Workbook

Sheet Resultats
C4: Distance [°] | E4: AD [2000] | H4: DEC [2000] | K4: Type | N4: The Bright Star Catalogue, 5th Revised Ed. (Preliminary Version)
E6: 13 | F6: h | H6: 47 | I6: ° | N6: Hoffleit D., Warren Jr W.H.
E7: 30 | F7: mn | H7: 0 | I7: '
E8: 0 | F8: s | H8: 0 | I8: "
E10: =(+E6+E7/60+E8/3600)*15 -> 202.5 | F10: ° | H10: =IF(H6>0,H6+H7/60+H8/3600,H6-H7/60-H8/3600) -> 47 | I10: °
E11: =RADIANS(E10) -> 3.534291735 | H11: =RADIANS(H10) -> 0.8203047484
A13: Résultats
B15: HR | C15: HD | D15: SAO | E15: AD | F15: DE | G15: Mag V | H15: Type | I15: Type | J15: Distance
B17: =IF(Base!AF2=1,+Base!A2,"") -> 5112 | C17: =IF(Base!AF2=1,+Base!C2,"") -> 118232 | D17: =IF(Base!AF2=1,+Base!D2,"") -> 44668 | E17: =IF(Base!AF2=1,+CONCATENATE(Base!E2,"h",Base!F2,"m",Base!G2,"s"),"") -> 13h34m27.3s | F17: =IF(Base!AF2=1,CONCATENATE(Base!H2,Base!I2,"°",Base!J2,"'",Base!K2,"""",),"") -> +49°0'58" | G17: =IF(Base!AF2=1,+Base!O2,"") -> 4.7 | H17: =IF(Base!AF2=1,+Base!Y2,"") -> A5V | I17: =IF(Base!AF2=1,+Base!Z2,"") -> A5V | J17: =+IF(Base!AF2=1,Base!AC2,"") -> 2.149334881
B18: =IF(Base!AF3=1,+Base!A3,"") -> 5116 | C18: =IF(Base!AF3=1,+Base!C3,"") -> 118295 | D18: =IF(Base!AF3=1,+Base!D3,"") -> 44675 | E18: =IF(Base!AF3=1,+CONCATENATE(Base!E3,"h",Base!F3,"m",Base!G3,"s"),"") -> 13h35m14.1s | F18: =IF(Base!AF3=1,CONCATENATE(Base!H3,Base!I3,"°",Base!J3,"'",Base!K3,"""",),"") -> +44°11'49" | G18: =IF(Base!AF3=1,+Base!O3,"") -> 6.84 | H18: =IF(Base!AF3=1,+Base!Y3,"") -> A7-F0III | I18: =IF(Base!AF3=1,+Base!Z3,"") -> A7-F0 | J18: =+IF(Base!AF3=1,Base!AC3,"") -> 2.948717504
B19: =IF(Base!AF4=1,+Base!A4,"") -> 5023 | C19: =IF(Base!AF4=1,+Base!C4,"") -> 115735 | D19: =IF(Base!AF4=1,+Base!D4,"") -> 44556 | E19: =IF(Base!AF4=1,+CONCATENATE(Base!E4,"h",Base!F4,"m",Base!G4,"s"),"") -> 13h18m14.5s | F19: =IF(Base!AF4=1,CONCATENATE(Base!H4,Base!I4,"°",Base!J4,"'",Base!K4,"""",),"") -> +49°40'55" | G19: =IF(Base!AF4=1,+Base!O4,"") -> 5.15 | H19: =IF(Base!AF4=1,+Base!Y4,"") -> A0V | I19: =IF(Base!AF4=1,+Base!Z4,"") -> A0V | J19: =+IF(Base!AF4=1,Base!AC4,"") -> 3.317659068
B20: =IF(Base!AF5=1,+Base!A5,"") -> 5045 | C20: =IF(Base!AF5=1,+Base!C5,"") -> 116303 | D20: =IF(Base!AF5=1,+Base!D5,"") -> 44582 | E20: =IF(Base!AF5=1,+CONCATENATE(Base!E5,"h",Base!F5,"m",Base!G5,"s"),"") -> 13h22m3.8s | F20: =IF(Base!AF5=1,CONCATENATE(Base!H5,Base!I5,"°",Base!J5,"'",Base!K5,"""",),"") -> +43°54'11" | G20: =IF(Base!AF5=1,+Base!O5,"") -> 6.35 | H20: =IF(Base!AF5=1,+Base!Y5,"") -> A7m | I20: =IF(Base!AF5=1,+Base!Z5,"") -> A7m | J20: =+IF(Base!AF5=1,Base!AC5,"") -> 3.395065328
B21: =IF(Base!AF6=1,+Base!A6,"") -> 5169 | C21: =IF(Base!AF6=1,+Base!C6,"") -> 119765 | D21: =IF(Base!AF6=1,+Base!D6,"") -> 28866 | E21: =IF(Base!AF6=1,+CONCATENATE(Base!E6,"h",Base!F6,"m",Base!G6,"s"),"") -> 13h43m54.7s | F21: =IF(Base!AF6=1,CONCATENATE(Base!H6,Base!I6,"°",Base!J6,"'",Base!K6,"""",),"") -> +52°3'52" | G21: =IF(Base!AF6=1,+Base!O6,"") -> 6.02 | H21: =IF(Base!AF6=1,+Base!Y6,"") -> A1V | I21: =IF(Base!AF6=1,+Base!Z6,"") -> A1V | J21: =+IF(Base!AF6=1,Base!AC6,"") -> 5.543087406
B22: =IF(Base!AF7=1,+Base!A7,"") -> 5142 | C22: =IF(Base!AF7=1,+Base!C7,"") -> 119024 | D22: =IF(Base!AF7=1,+Base!D7,"") -> 28832 | E22: =IF(Base!AF7=1,+CONCATENATE(Base!E7,"h",Base!F7,"m",Base!G7,"s"),"") -> 13h39m30.4s | F22: =IF(Base!AF7=1,CONCATENATE(Base!H7,Base!I7,"°",Base!J7,"'",Base!K7,"""",),"") -> +52°55'17" | G22: =IF(Base!AF7=1,+Base!O7,"") -> 5.46 | H22: =IF(Base!AF7=1,+Base!Y7,"") -> A3Vn | I22: =IF(Base!AF7=1,+Base!Z7,"") -> A3V | J22: =+IF(Base!AF7=1,Base!AC7,"") -> 6.114685578
B23: =IF(Base!AF8=1,+Base!A8,"") -> 5179 | C23: =IF(Base!AF8=1,+Base!C8,"") -> 120047 | D23: =IF(Base!AF8=1,+Base!D8,"") -> 44742 | E23: =IF(Base!AF8=1,+CONCATENATE(Base!E8,"h",Base!F8,"m",Base!G8,"s"),"") -> 13h46m13.5s | F23: =IF(Base!AF8=1,CONCATENATE(Base!H8,Base!I8,"°",Base!J8,"'",Base!K8,"""",),"") -> +41°5'19" | G23: =IF(Base!AF8=1,+Base!O8,"") -> 5.87 | H23: =IF(Base!AF8=1,+Base!Y8,"") -> A5V | I23: =IF(Base!AF8=1,+Base!Z8,"") -> A5V | J23: =+IF(Base!AF8=1,Base!AC8,"") -> 6.589009798
B24: =IF(Base!AF9=1,+Base!A9,"") -> 5004 | C24: =IF(Base!AF9=1,+Base!C9,"") -> 115271 | D24: =IF(Base!AF9=1,+Base!D9,"") -> 44531 | E24: =IF(Base!AF9=1,+CONCATENATE(Base!E9,"h",Base!F9,"m",Base!G9,"s"),"") -> 13h15m32s | F24: =IF(Base!AF9=1,CONCATENATE(Base!H9,Base!I9,"°",Base!J9,"'",Base!K9,"""",),"") -> +40°51'19" | G24: =IF(Base!AF9=1,+Base!O9,"") -> 5.79 | H24: =IF(Base!AF9=1,+Base!Y9,"") -> A7V | I24: =IF(Base!AF9=1,+Base!Z9,"") -> A7V | J24: =+IF(Base!AF9=1,Base!AC9,"") -> 6.672091058
B25: =IF(Base!AF10=1,+Base!A10,"") -> 5280 | C25: =IF(Base!AF10=1,+Base!C10,"") -> 122866 | D25: =IF(Base!AF10=1,+Base!D10,"") -> 28989 | E25: =IF(Base!AF10=1,+CONCATENATE(Base!E10,"h",Base!F10,"m",Base!G10,"s"),"") -> 14h2m59.7s | F25: =IF(Base!AF10=1,CONCATENATE(Base!H10,Base!I10,"°",Base!J10,"'",Base!K10,"""",),"") -> +50°58'19" | G25: =IF(Base!AF10=1,+Base!O10,"") -> 6.15 | H25: =IF(Base!AF10=1,+Base!Y10,"") -> A2V | I25: =IF(Base!AF10=1,+Base!Z10,"") -> A2V | J25: =+IF(Base!AF10=1,Base!AC10,"") -> 6.707598086
B26: =IF(Base!AF11=1,+Base!A11,"") -> 4866 | C26: =IF(Base!AF11=1,+Base!C11,"") -> 111421 | D26: =IF(Base!AF11=1,+Base!D11,"") -> 44332 | E26: =IF(Base!AF11=1,+CONCATENATE(Base!E11,"h",Base!F11,"m",Base!G11,"s"),"") -> 12h48m41.8s | F26: =IF(Base!AF11=1,CONCATENATE(Base!H11,Base!I11,"°",Base!J11,"'",Base!K11,"""",),"") -> +48°28'1" | G26: =IF(Base!AF11=1,+Base!O11,"") -> 6.27 | H26: =IF(Base!AF11=1,+Base!Y11,"") -> A6m | I26: =IF(Base!AF11=1,+Base!Z11,"") -> A6 | J26: =+IF(Base!AF11=1,Base!AC11,"") -> 7.092286917
B27: =IF(Base!AF12=1,+Base!A12,"") -> 5238 | C27: =IF(Base!AF12=1,+Base!C12,"") -> 121409 | D27: =IF(Base!AF12=1,+Base!D12,"") -> 28928 | E27: =IF(Base!AF12=1,+CONCATENATE(Base!E12,"h",Base!F12,"m",Base!G12,"s"),"") -> 13h53m51s | F27: =IF(Base!AF12=1,CONCATENATE(Base!H12,Base!I12,"°",Base!J12,"'",Base!K12,"""",),"") -> +53°43'43" | G27: =IF(Base!AF12=1,+Base!O12,"") -> 5.7 | H27: =IF(Base!AF12=1,+Base!Y12,"") -> A0V | I27: =IF(Base!AF12=1,+Base!Z12,"") -> A0V | J27: =+IF(Base!AF12=1,Base!AC12,"") -> 7.722933333
B28: =IF(Base!AF13=1,+Base!A13,"") -> 5055 | C28: =IF(Base!AF13=1,+Base!C13,"") -> 116657 | D28: =IF(Base!AF13=1,+Base!D13,"") -> 28738 | E28: =IF(Base!AF13=1,+CONCATENATE(Base!E13,"h",Base!F13,"m",Base!G13,"s"),"") -> 13h23m56.4s | F28: =IF(Base!AF13=1,CONCATENATE(Base!H13,Base!I13,"°",Base!J13,"'",Base!K13,"""",),"") -> +54°55'18" | G28: =IF(Base!AF13=1,+Base!O13,"") -> 3.95 | H28: =IF(Base!AF13=1,+Base!Y13,"") -> A1m | I28: =IF(Base!AF13=1,+Base!Z13,"") -> A1 | J28: =+IF(Base!AF13=1,Base!AC13,"") -> 7.978423248
B29: =IF(Base!AF14=1,+Base!A14,"") -> 5054 | C29: =IF(Base!AF14=1,+Base!C14,"") -> 116656 | D29: =IF(Base!AF14=1,+Base!D14,"") -> 28737 | E29: =IF(Base!AF14=1,+CONCATENATE(Base!E14,"h",Base!F14,"m",Base!G14,"s"),"") -> 13h23m55.5s | F29: =IF(Base!AF14=1,CONCATENATE(Base!H14,Base!I14,"°",Base!J14,"'",Base!K14,"""",),"") -> +54°55'31" | G29: =IF(Base!AF14=1,+Base!O14,"") -> 2.27 | H29: =IF(Base!AF14=1,+Base!Y14,"") -> A1VpSrSi | I29: =IF(Base!AF14=1,+Base!Z14,"") -> A1V | J29: =+IF(Base!AF14=1,Base!AC14,"") -> 7.982283929
B30: =IF(Base!AF15=1,+Base!A15,"") -> 5351 | C30: =IF(Base!AF15=1,+Base!C15,"") -> 125162 | D30: =IF(Base!AF15=1,+Base!D15,"") -> 44965 | E30: =IF(Base!AF15=1,+CONCATENATE(Base!E15,"h",Base!F15,"m",Base!G15,"s"),"") -> 14h16m23s | F30: =IF(Base!AF15=1,CONCATENATE(Base!H15,Base!I15,"°",Base!J15,"'",Base!K15,"""",),"") -> +46°5'18" | G30: =IF(Base!AF15=1,+Base!O15,"") -> 4.18 | H30: =IF(Base!AF15=1,+Base!Y15,"") -> A0p | I30: =IF(Base!AF15=1,+Base!Z15,"") -> A0p | J30: =+IF(Base!AF15=1,Base!AC15,"") -> 8.019993775
B31: =IF(Base!AF16=1,+Base!A16,"") -> 5062 | C31: =IF(Base!AF16=1,+Base!C16,"") -> 116842 | D31: =IF(Base!AF16=1,+Base!D16,"") -> 28751 | E31: =IF(Base!AF16=1,+CONCATENATE(Base!E16,"h",Base!F16,"m",Base!G16,"s"),"") -> 13h25m13.5s | F31: =IF(Base!AF16=1,CONCATENATE(Base!H16,Base!I16,"°",Base!J16,"'",Base!K16,"""",),"") -> +54°59'17" | G31: =IF(Base!AF16=1,+Base!O16,"") -> 4.01 | H31: =IF(Base!AF16=1,+Base!Y16,"") -> A5V | I31: =IF(Base!AF16=1,+Base!Z16,"") -> A5V | J31: =+IF(Base!AF16=1,Base!AC16,"") -> 8.02299445
B32: =IF(Base!AF17=1,+Base!A17,"") -> 5109 | C32: =IF(Base!AF17=1,+Base!C17,"") -> 118214 | D32: =IF(Base!AF17=1,+Base!D17,"") -> 28803 | E32: =IF(Base!AF17=1,+CONCATENATE(Base!E17,"h",Base!F17,"m",Base!G17,"s"),"") -> 13h34m7.3s | F32: =IF(Base!AF17=1,CONCATENATE(Base!H17,Base!I17,"°",Base!J17,"'",Base!K17,"""",),"") -> +55°20'55" | G32: =IF(Base!AF17=1,+Base!O17,"") -> 5.6 | H32: =IF(Base!AF17=1,+Base!Y17,"") -> A0V | I32: =IF(Base!AF17=1,+Base!Z17,"") -> A0V | J32: =+IF(Base!AF17=1,Base!AC17,"") -> 8.373319609
B33: =IF(Base!AF18=1,+Base!A18,"") -> 5329 | C33: =IF(Base!AF18=1,+Base!C18,"") -> 124675 | D33: =IF(Base!AF18=1,+Base!D18,"") -> 29046 | E33: =IF(Base!AF18=1,+CONCATENATE(Base!E18,"h",Base!F18,"m",Base!G18,"s"),"") -> 14h13m29s | F33: =IF(Base!AF18=1,CONCATENATE(Base!H18,Base!I18,"°",Base!J18,"'",Base!K18,"""",),"") -> +51°47'25" | G33: =IF(Base!AF18=1,+Base!O18,"") -> 4.54 | H33: =IF(Base!AF18=1,+Base!Y18,"") -> A8IV | I33: =IF(Base!AF18=1,+Base!Z18,"") -> A8IV | J33: =+IF(Base!AF18=1,Base!AC18,"") -> 8.530523425
B34: =IF(Base!AF19=1,+Base!A19,"") -> 5350 | C34: =IF(Base!AF19=1,+Base!C19,"") -> 125161 | D34: =IF(Base!AF19=1,+Base!D19,"") -> 29071 | E34: =IF(Base!AF19=1,+CONCATENATE(Base!E19,"h",Base!F19,"m",Base!G19,"s"),"") -> 14h16m9.9s | F34: =IF(Base!AF19=1,CONCATENATE(Base!H19,Base!I19,"°",Base!J19,"'",Base!K19,"""",),"") -> +51°22'2" | G34: =IF(Base!AF19=1,+Base!O19,"") -> 4.75 | H34: =IF(Base!AF19=1,+Base!Y19,"") -> A9V | I34: =IF(Base!AF19=1,+Base!Z19,"") -> A9V | J34: =+IF(Base!AF19=1,Base!AC19,"") -> 8.702456536
B35: =IF(Base!AF20=1,+Base!A20,"") -> 5360 | C35: =IF(Base!AF20=1,+Base!C20,"") -> 125349 | D35: =IF(Base!AF20=1,+Base!D20,"") -> 29086 | E35: =IF(Base!AF20=1,+CONCATENATE(Base!E20,"h",Base!F20,"m",Base!G20,"s"),"") -> 14h17m21.1s | F35: =IF(Base!AF20=1,CONCATENATE(Base!H20,Base!I20,"°",Base!J20,"'",Base!K20,"""",),"") -> +51°18'26" | G35: =IF(Base!AF20=1,+Base!O20,"") -> 6.2 | H35: =IF(Base!AF20=1,+Base!Y20,"") -> A2IV | I35: =IF(Base!AF20=1,+Base!Z20,"") -> A2IV | J35: =+IF(Base!AF20=1,Base!AC20,"") -> 8.844951358
B36: =IF(Base!AF21=1,+Base!A21,"") -> 4917 | C36: =IF(Base!AF21=1,+Base!C21,"") -> 112486 | D36: =IF(Base!AF21=1,+Base!D21,"") -> 28572 | E36: =IF(Base!AF21=1,+CONCATENATE(Base!E21,"h",Base!F21,"m",Base!G21,"s"),"") -> 12h56m17.6s | F36: =IF(Base!AF21=1,CONCATENATE(Base!H21,Base!I21,"°",Base!J21,"'",Base!K21,"""",),"") -> +54°5'58" | G36: =IF(Base!AF21=1,+Base!O21,"") -> 5.82 | H36: =IF(Base!AF21=1,+Base!Y21,"") -> A5m | I36: =IF(Base!AF21=1,+Base!Z21,"") -> A5m | J36: =+IF(Base!AF21=1,Base!AC21,"") -> 8.87926178
B37: =IF(Base!AF22=1,+Base!A22,"") -> 5345 | C37: =IF(Base!AF22=1,+Base!C22,"") -> 125019 | D37: =IF(Base!AF22=1,+Base!D22,"") -> 29059 | E37: =IF(Base!AF22=1,+CONCATENATE(Base!E22,"h",Base!F22,"m",Base!G22,"s"),"") -> 14h15m16.9s | F37: =IF(Base!AF22=1,CONCATENATE(Base!H22,Base!I22,"°",Base!J22,"'",Base!K22,"""",),"") -> +52°32'9" | G37: =IF(Base!AF22=1,+Base!O22,"") -> 6.58 | H37: =IF(Base!AF22=1,+Base!Y22,"") -> A4V | I37: =IF(Base!AF22=1,+Base!Z22,"") -> A4V | J37: =+IF(Base!AF22=1,Base!AC22,"") -> 9.153629764
B38: =IF(Base!AF23=1,+Base!A23,"") -> 4971 | C38: =IF(Base!AF23=1,+Base!C23,"") -> 114447 | D38: =IF(Base!AF23=1,+Base!D23,"") -> 63380 | E38: =IF(Base!AF23=1,+CONCATENATE(Base!E23,"h",Base!F23,"m",Base!G23,"s"),"") -> 13h10m3.2s | F38: =IF(Base!AF23=1,CONCATENATE(Base!H23,Base!I23,"°",Base!J23,"'",Base!K23,"""",),"") -> +38°29'56" | G38: =IF(Base!AF23=1,+Base!O23,"") -> 5.91 | H38: =IF(Base!AF23=1,+Base!Y23,"") -> A9III-IV | I38: =IF(Base!AF23=1,+Base!Z23,"") -> A9III | J38: =+IF(Base!AF23=1,Base!AC23,"") -> 9.251291058
B39: =IF(Base!AF24=1,+Base!A24,"") -> 5153 | C39: =IF(Base!AF24=1,+Base!C24,"") -> 119213 | D39: =IF(Base!AF24=1,+Base!D24,"") -> 28838 | E39: =IF(Base!AF24=1,+CONCATENATE(Base!E24,"h",Base!F24,"m",Base!G24,"s"),"") -> 13h40m21.3s | F39: =IF(Base!AF24=1,CONCATENATE(Base!H24,Base!I24,"°",Base!J24,"'",Base!K24,"""",),"") -> +57°12'27" | G39: =IF(Base!AF24=1,+Base!O24,"") -> 6.29 | H39: =IF(Base!AF24=1,+Base!Y24,"") -> A2VpSrCrEu | I39: =IF(Base!AF24=1,+Base!Z24,"") -> A2VpS | J39: =+IF(Base!AF24=1,Base!AC24,"") -> 10.32866434
B40: =IF(Base!AF25=1,+Base!A25,"") -> 4905 | C40: =IF(Base!AF25=1,+Base!C25,"") -> 112185 | D40: =IF(Base!AF25=1,+Base!D25,"") -> 28553 | E40: =IF(Base!AF25=1,+CONCATENATE(Base!E25,"h",Base!F25,"m",Base!G25,"s"),"") -> 12h54m1.7s | F40: =IF(Base!AF25=1,CONCATENATE(Base!H25,Base!I25,"°",Base!J25,"'",Base!K25,"""",),"") -> +55°57'35" | G40: =IF(Base!AF25=1,+Base!O25,"") -> 1.77 | H40: =IF(Base!AF25=1,+Base!Y25,"") -> A0pCr | I40: =IF(Base!AF25=1,+Base!Z25,"") -> A0 | J40: =+IF(Base!AF25=1,Base!AC25,"") -> 10.54694181
B41: =IF(Base!AF26=1,+Base!A26,"") -> 4915 | C41: =IF(Base!AF26=1,+Base!C26,"") -> 112413 | D41: =IF(Base!AF26=1,+Base!D26,"") -> 63257 | E41: =IF(Base!AF26=1,+CONCATENATE(Base!E26,"h",Base!F26,"m",Base!G26,"s"),"") -> 12h56m1.7s | F41: =IF(Base!AF26=1,CONCATENATE(Base!H26,Base!I26,"°",Base!J26,"'",Base!K26,"""",),"") -> +38°19'6" | G41: =IF(Base!AF26=1,+Base!O26,"") -> 2.9 | H41: =IF(Base!AF26=1,+Base!Y26,"") -> A0pSiEuHg | I41: =IF(Base!AF26=1,+Base!Z26,"") -> A0 | J41: =+IF(Base!AF26=1,Base!AC26,"") -> 10.68090849
B42: =IF(Base!AF27=1,+Base!A27,"") -> 5127 | C42: =IF(Base!AF27=1,+Base!C27,"") -> 118623 | D42: =IF(Base!AF27=1,+Base!D27,"") -> 63648 | E42: =IF(Base!AF27=1,+CONCATENATE(Base!E27,"h",Base!F27,"m",Base!G27,"s"),"") -> 13h37m27.6s | F42: =IF(Base!AF27=1,CONCATENATE(Base!H27,Base!I27,"°",Base!J27,"'",Base!K27,"""",),"") -> +36°17'42" | G42: =IF(Base!AF27=1,+Base!O27,"") -> 4.82 | H42: =IF(Base!AF27=1,+Base!Y27,"") -> A7III | I42: =IF(Base!AF27=1,+Base!Z27,"") -> A7III | J42: =+IF(Base!AF27=1,Base!AC27,"") -> 10.79444387
B43: =IF(Base!AF28=1,+Base!A28,"") -> 5372 | C43: =IF(Base!AF28=1,+Base!C28,"") -> 125632 | D43: =IF(Base!AF28=1,+Base!D28,"") -> 29098 | E43: =IF(Base!AF28=1,+CONCATENATE(Base!E28,"h",Base!F28,"m",Base!G28,"s"),"") -> 14h18m55.8s | F43: =IF(Base!AF28=1,CONCATENATE(Base!H28,Base!I28,"°",Base!J28,"'",Base!K28,"""",),"") -> +54°51'51" | G43: =IF(Base!AF28=1,+Base!O28,"") -> 6.53 | H43: =IF(Base!AF28=1,+Base!Y28,"") -> A5Vn | I43: =IF(Base!AF28=1,+Base!Z28,"") -> A5Vn | J43: =+IF(Base!AF28=1,Base!AC28,"") -> 10.98297975
B44: =IF(Base!AF29=1,+Base!A29,"") -> 5204 | C44: =IF(Base!AF29=1,+Base!C29,"") -> 120600 | D44: =IF(Base!AF29=1,+Base!D29,"") -> 63772 | E44: =IF(Base!AF29=1,+CONCATENATE(Base!E29,"h",Base!F29,"m",Base!G29,"s"),"") -> 13h49m45s | F44: =IF(Base!AF29=1,CONCATENATE(Base!H29,Base!I29,"°",Base!J29,"'",Base!K29,"""",),"") -> +36°37'58" | G44: =IF(Base!AF29=1,+Base!O29,"") -> 6.38 | H44: =IF(Base!AF29=1,+Base!Y29,"") -> A7IV-V | I44: =IF(Base!AF29=1,+Base!Z29,"") -> A7IV | J44: =+IF(Base!AF29=1,Base!AC29,"") -> 10.99504097
B45: =IF(Base!AF30=1,+Base!A30,"") -> 4811 | C45: =IF(Base!AF30=1,+Base!C30,"") -> 109980 | D45: =IF(Base!AF30=1,+Base!D30,"") -> 44265 | E45: =IF(Base!AF30=1,+CONCATENATE(Base!E30,"h",Base!F30,"m",Base!G30,"s"),"") -> 12h38m46.3s | F45: =IF(Base!AF30=1,CONCATENATE(Base!H30,Base!I30,"°",Base!J30,"'",Base!K30,"""",),"") -> +40°52'28" | G45: =IF(Base!AF30=1,+Base!O30,"") -> 6.37 | H45: =IF(Base!AF30=1,+Base!Y30,"") -> A7Vn | I45: =IF(Base!AF30=1,+Base!Z30,"") -> A7Vn | J45: =+IF(Base!AF30=1,Base!AC30,"") -> 11.04976245
B46: =IF(Base!AF31=1,+Base!A31,"") -> 5216 | C46: =IF(Base!AF31=1,+Base!C31,"") -> 120874 | D46: =IF(Base!AF31=1,+Base!D31,"") -> 28901 | E46: =IF(Base!AF31=1,+CONCATENATE(Base!E31,"h",Base!F31,"m",Base!G31,"s"),"") -> 13h50m27.7s | F46: =IF(Base!AF31=1,CONCATENATE(Base!H31,Base!I31,"°",Base!J31,"'",Base!K31,"""",),"") -> +58°32'22" | G46: =IF(Base!AF31=1,+Base!O31,"") -> 6.46 | H46: =IF(Base!AF31=1,+Base!Y31,"") -> A3V | I46: =IF(Base!AF31=1,+Base!Z31,"") -> A3V | J46: =+IF(Base!AF31=1,Base!AC31,"") -> 11.93868423
B47: =IF(Base!AF32=1,+Base!A32,"") -> 4875 | C47: =IF(Base!AF32=1,+Base!C32,"") -> 111604 | D47: =IF(Base!AF32=1,+Base!D32,"") -> 63217 | E47: =IF(Base!AF32=1,+CONCATENATE(Base!E32,"h",Base!F32,"m",Base!G32,"s"),"") -> 12h50m10.7s | F47: =IF(Base!AF32=1,CONCATENATE(Base!H32,Base!I32,"°",Base!J32,"'",Base!K32,"""",),"") -> +37°31'1" | G47: =IF(Base!AF32=1,+Base!O32,"") -> 5.89 | H47: =IF(Base!AF32=1,+Base!Y32,"") -> A3V | I47: =IF(Base!AF32=1,+Base!Z32,"") -> A3V | J47: =+IF(Base!AF32=1,Base!AC32,"") -> 11.98854118
B48: =IF(Base!AF33=1,+Base!A33,"") -> 5373 | C48: =IF(Base!AF33=1,+Base!C33,"") -> 125642 | D48: =IF(Base!AF33=1,+Base!D33,"") -> 64072 | E48: =IF(Base!AF33=1,+CONCATENATE(Base!E33,"h",Base!F33,"m",Base!G33,"s"),"") -> 14h19m47.7s | F48: =IF(Base!AF33=1,CONCATENATE(Base!H33,Base!I33,"°",Base!J33,"'",Base!K33,"""",),"") -> +38°47'38" | G48: =IF(Base!AF33=1,+Base!O33,"") -> 6.33 | H48: =IF(Base!AF33=1,+Base!Y33,"") -> A2V | I48: =IF(Base!AF33=1,+Base!Z33,"") -> A2V | J48: =+IF(Base!AF33=1,Base!AC33,"") -> 12.24117093
B49: =IF(Base!AF34=1,+Base!A34,"") -> 5468 | C49: =IF(Base!AF34=1,+Base!C34,"") -> 129002 | D49: =IF(Base!AF34=1,+Base!D34,"") -> 45153 | E49: =IF(Base!AF34=1,+CONCATENATE(Base!E34,"h",Base!F34,"m",Base!G34,"s"),"") -> 14h38m50.2s | F49: =IF(Base!AF34=1,CONCATENATE(Base!H34,Base!I34,"°",Base!J34,"'",Base!K34,"""",),"") -> +44°24'16" | G49: =IF(Base!AF34=1,+Base!O34,"") -> 5.39 | H49: =IF(Base!AF34=1,+Base!Y34,"") -> A1V | I49: =IF(Base!AF34=1,+Base!Z34,"") -> A1V | J49: =+IF(Base!AF34=1,Base!AC34,"") -> 12.26886096
B50: =IF(Base!AF35=1,+Base!A35,"") -> 5214 | C50: =IF(Base!AF35=1,+Base!C35,"") -> 120818 | D50: =IF(Base!AF35=1,+Base!D35,"") -> 63779 | E50: =IF(Base!AF35=1,+CONCATENATE(Base!E35,"h",Base!F35,"m",Base!G35,"s"),"") -> 13h51m4.5s | F50: =IF(Base!AF35=1,CONCATENATE(Base!H35,Base!I35,"°",Base!J35,"'",Base!K35,"""",),"") -> +34°46'21" | G50: =IF(Base!AF35=1,+Base!O35,"") -> 6.65 | H50: =IF(Base!AF35=1,+Base!Y35,"") -> A5IV | I50: =IF(Base!AF35=1,+Base!Z35,"") -> A5IV | J50: =+IF(Base!AF35=1,Base!AC35,"") -> 12.85211625
B51: =IF(Base!AF36=1,+Base!A36,"") -> 5467 | C51: =IF(Base!AF36=1,+Base!C36,"") -> 128998 | D51: =IF(Base!AF36=1,+Base!D36,"") -> 29227 | E51: =IF(Base!AF36=1,+CONCATENATE(Base!E36,"h",Base!F36,"m",Base!G36,"s"),"") -> 14h38m15.2s | F51: =IF(Base!AF36=1,CONCATENATE(Base!H36,Base!I36,"°",Base!J36,"'",Base!K36,"""",),"") -> +54°1'24" | G51: =IF(Base!AF36=1,+Base!O36,"") -> 5.85 | H51: =IF(Base!AF36=1,+Base!Y36,"") -> A1V | I51: =IF(Base!AF36=1,+Base!Z36,"") -> A1V | J51: =+IF(Base!AF36=1,Base!AC36,"") -> 12.87449057
B52: =IF(Base!AF37=1,+Base!A37,"") -> 5085 | C52: =IF(Base!AF37=1,+Base!C37,"") -> 117376 | D52: =IF(Base!AF37=1,+Base!D37,"") -> 16080 | E52: =IF(Base!AF37=1,+CONCATENATE(Base!E37,"h",Base!F37,"m",Base!G37,"s"),"") -> 13h28m27.1s | F52: =IF(Base!AF37=1,CONCATENATE(Base!H37,Base!I37,"°",Base!J37,"'",Base!K37,"""",),"") -> +59°56'45" | G52: =IF(Base!AF37=1,+Base!O37,"") -> 5.4 | H52: =IF(Base!AF37=1,+Base!Y37,"") -> A1Vn | I52: =IF(Base!AF37=1,+Base!Z37,"") -> A1Vn | J52: =+IF(Base!AF37=1,Base!AC37,"") -> 12.94782667
B53: =IF(Base!AF38=1,+Base!A38,"") -> 4936 | C53: =IF(Base!AF38=1,+Base!C38,"") -> 113436 | D53: =IF(Base!AF38=1,+Base!D38,"") -> 28613 | E53: =IF(Base!AF38=1,+CONCATENATE(Base!E38,"h",Base!F38,"m",Base!G38,"s"),"") -> 13h2m40.4s | F53: =IF(Base!AF38=1,CONCATENATE(Base!H38,Base!I38,"°",Base!J38,"'",Base!K38,"""",),"") -> +59°42'58" | G53: =IF(Base!AF38=1,+Base!O38,"") -> 6.53 | H53: =IF(Base!AF38=1,+Base!Y38,"") -> A3Vn | I53: =IF(Base!AF38=1,+Base!Z38,"") -> A3Vn | J53: =+IF(Base!AF38=1,Base!AC38,"") -> 13.33682484
B54: =IF(Base!AF39=1,+Base!A39,"") -> 5435 | C54: =IF(Base!AF39=1,+Base!C39,"") -> 127762 | D54: =IF(Base!AF39=1,+Base!D39,"") -> 64203 | E54: =IF(Base!AF39=1,+CONCATENATE(Base!E39,"h",Base!F39,"m",Base!G39,"s"),"") -> 14h32m4.7s | F54: =IF(Base!AF39=1,CONCATENATE(Base!H39,Base!I39,"°",Base!J39,"'",Base!K39,"""",),"") -> +38°18'30" | G54: =IF(Base!AF39=1,+Base!O39,"") -> 3.03 | H54: =IF(Base!AF39=1,+Base!Y39,"") -> A7III | I54: =IF(Base!AF39=1,+Base!Z39,"") -> A7III | J54: =+IF(Base!AF39=1,Base!AC39,"") -> 14.30280673
B55: =IF(Base!AF40=1,+Base!A40,"") -> 4760 | C55: =IF(Base!AF40=1,+Base!C40,"") -> 108844 | D55: =IF(Base!AF40=1,+Base!D40,"") -> 28405 | E55: =IF(Base!AF40=1,+CONCATENATE(Base!E40,"h",Base!F40,"m",Base!G40,"s"),"") -> 12h29m57.3s | F55: =IF(Base!AF40=1,CONCATENATE(Base!H40,Base!I40,"°",Base!J40,"'",Base!K40,"""",),"") -> +58°24'21" | G55: =IF(Base!AF40=1,+Base!O40,"") -> 5.35 | H55: =IF(Base!AF40=1,+Base!Y40,"") -> A5Del Del | I55: =IF(Base!AF40=1,+Base!Z40,"") -> A5Del | J55: =+IF(Base!AF40=1,Base!AC40,"") -> 14.52044515
B56: =IF(Base!AF41=1,+Base!A41,"") -> 4816 | C56: =IF(Base!AF41=1,+Base!C41,"") -> 110066 | D56: =IF(Base!AF41=1,+Base!D41,"") -> 63118 | E56: =IF(Base!AF41=1,+CONCATENATE(Base!E41,"h",Base!F41,"m",Base!G41,"s"),"") -> 12h39m16.9s | F56: =IF(Base!AF41=1,CONCATENATE(Base!H41,Base!I41,"°",Base!J41,"'",Base!K41,"""",),"") -> +35°57'7" | G56: =IF(Base!AF41=1,+Base!O41,"") -> 6.45 | H56: =IF(Base!AF41=1,+Base!Y41,"") -> A0pSrCrEu | I56: =IF(Base!AF41=1,+Base!Z41,"") -> A0 | J56: =+IF(Base!AF41=1,Base!AC41,"") -> 14.53305661
B57: =IF(Base!AF42=1,+Base!A42,"") ->  | C57: =IF(Base!AF42=1,+Base!C42,"") ->  | D57: =IF(Base!AF42=1,+Base!D42,"") ->  | E57: =IF(Base!AF42=1,+CONCATENATE(Base!E42,"h",Base!F42,"m",Base!G42,"s"),"") ->  | F57: =IF(Base!AF42=1,CONCATENATE(Base!H42,Base!I42,"°",Base!J42,"'",Base!K42,"""",),"") ->  | G57: =IF(Base!AF42=1,+Base!O42,"") ->  | H57: =IF(Base!AF42=1,+Base!Y42,"") ->  | I57: =IF(Base!AF42=1,+Base!Z42,"") ->  | J57: =+IF(Base!AF42=1,Base!AC42,"") -> 
B58: =IF(Base!AF43=1,+Base!A43,"") ->  | C58: =IF(Base!AF43=1,+Base!C43,"") ->  | D58: =IF(Base!AF43=1,+Base!D43,"") ->  | E58: =IF(Base!AF43=1,+CONCATENATE(Base!E43,"h",Base!F43,"m",Base!G43,"s"),"") ->  | F58: =IF(Base!AF43=1,CONCATENATE(Base!H43,Base!I43,"°",Base!J43,"'",Base!K43,"""",),"") ->  | G58: =IF(Base!AF43=1,+Base!O43,"") ->  | H58: =IF(Base!AF43=1,+Base!Y43,"") ->  | I58: =IF(Base!AF43=1,+Base!Z43,"") ->  | J58: =+IF(Base!AF43=1,Base!AC43,"") -> 
B59: =IF(Base!AF44=1,+Base!A44,"") ->  | C59: =IF(Base!AF44=1,+Base!C44,"") ->  | D59: =IF(Base!AF44=1,+Base!D44,"") ->  | E59: =IF(Base!AF44=1,+CONCATENATE(Base!E44,"h",Base!F44,"m",Base!G44,"s"),"") ->  | F59: =IF(Base!AF44=1,CONCATENATE(Base!H44,Base!I44,"°",Base!J44,"'",Base!K44,"""",),"") ->  | G59: =IF(Base!AF44=1,+Base!O44,"") ->  | H59: =IF(Base!AF44=1,+Base!Y44,"") ->  | I59: =IF(Base!AF44=1,+Base!Z44,"") ->  | J59: =+IF(Base!AF44=1,Base!AC44,"") -> 
B60: =IF(Base!AF45=1,+Base!A45,"") ->  | C60: =IF(Base!AF45=1,+Base!C45,"") ->  | D60: =IF(Base!AF45=1,+Base!D45,"") ->  | E60: =IF(Base!AF45=1,+CONCATENATE(Base!E45,"h",Base!F45,"m",Base!G45,"s"),"") ->  | F60: =IF(Base!AF45=1,CONCATENATE(Base!H45,Base!I45,"°",Base!J45,"'",Base!K45,"""",),"") ->  | G60: =IF(Base!AF45=1,+Base!O45,"") ->  | H60: =IF(Base!AF45=1,+Base!Y45,"") ->  | I60: =IF(Base!AF45=1,+Base!Z45,"") ->  | J60: =+IF(Base!AF45=1,Base!AC45,"") -> 
B61: =IF(Base!AF46=1,+Base!A46,"") ->  | C61: =IF(Base!AF46=1,+Base!C46,"") ->  | D61: =IF(Base!AF46=1,+Base!D46,"") ->  | E61: =IF(Base!AF46=1,+CONCATENATE(Base!E46,"h",Base!F46,"m",Base!G46,"s"),"") ->  | F61: =IF(Base!AF46=1,CONCATENATE(Base!H46,Base!I46,"°",Base!J46,"'",Base!K46,"""",),"") ->  | G61: =IF(Base!AF46=1,+Base!O46,"") ->  | H61: =IF(Base!AF46=1,+Base!Y46,"") ->  | I61: =IF(Base!AF46=1,+Base!Z46,"") ->  | J61: =+IF(Base!AF46=1,Base!AC46,"") -> 
B62: =IF(Base!AF47=1,+Base!A47,"") ->  | C62: =IF(Base!AF47=1,+Base!C47,"") ->  | D62: =IF(Base!AF47=1,+Base!D47,"") ->  | E62: =IF(Base!AF47=1,+CONCATENATE(Base!E47,"h",Base!F47,"m",Base!G47,"s"),"") ->  | F62: =IF(Base!AF47=1,CONCATENATE(Base!H47,Base!I47,"°",Base!J47,"'",Base!K47,"""",),"") ->  | G62: =IF(Base!AF47=1,+Base!O47,"") ->  | H62: =IF(Base!AF47=1,+Base!Y47,"") ->  | I62: =IF(Base!AF47=1,+Base!Z47,"") ->  | J62: =+IF(Base!AF47=1,Base!AC47,"") -> 
B63: =IF(Base!AF48=1,+Base!A48,"") ->  | C63: =IF(Base!AF48=1,+Base!C48,"") ->  | D63: =IF(Base!AF48=1,+Base!D48,"") ->  | E63: =IF(Base!AF48=1,+CONCATENATE(Base!E48,"h",Base!F48,"m",Base!G48,"s"),"") ->  | F63: =IF(Base!AF48=1,CONCATENATE(Base!H48,Base!I48,"°",Base!J48,"'",Base!K48,"""",),"") ->  | G63: =IF(Base!AF48=1,+Base!O48,"") ->  | H63: =IF(Base!AF48=1,+Base!Y48,"") ->  | I63: =IF(Base!AF48=1,+Base!Z48,"") ->  | J63: =+IF(Base!AF48=1,Base!AC48,"") -> 
B64: =IF(Base!AF49=1,+Base!A49,"") ->  | C64: =IF(Base!AF49=1,+Base!C49,"") ->  | D64: =IF(Base!AF49=1,+Base!D49,"") ->  | E64: =IF(Base!AF49=1,+CONCATENATE(Base!E49,"h",Base!F49,"m",Base!G49,"s"),"") ->  | F64: =IF(Base!AF49=1,CONCATENATE(Base!H49,Base!I49,"°",Base!J49,"'",Base!K49,"""",),"") ->  | G64: =IF(Base!AF49=1,+Base!O49,"") ->  | H64: =IF(Base!AF49=1,+Base!Y49,"") ->  | I64: =IF(Base!AF49=1,+Base!Z49,"") ->  | J64: =+IF(Base!AF49=1,Base!AC49,"") -> 
B65: =IF(Base!AF50=1,+Base!A50,"") ->  | C65: =IF(Base!AF50=1,+Base!C50,"") ->  | D65: =IF(Base!AF50=1,+Base!D50,"") ->  | E65: =IF(Base!AF50=1,+CONCATENATE(Base!E50,"h",Base!F50,"m",Base!G50,"s"),"") ->  | F65: =IF(Base!AF50=1,CONCATENATE(Base!H50,Base!I50,"°",Base!J50,"'",Base!K50,"""",),"") ->  | G65: =IF(Base!AF50=1,+Base!O50,"") ->  | H65: =IF(Base!AF50=1,+Base!Y50,"") ->  | I65: =IF(Base!AF50=1,+Base!Z50,"") ->  | J65: =+IF(Base!AF50=1,Base!AC50,"") -> 
B66: =IF(Base!AF51=1,+Base!A51,"") ->  | C66: =IF(Base!AF51=1,+Base!C51,"") ->  | D66: =IF(Base!AF51=1,+Base!D51,"") ->  | E66: =IF(Base!AF51=1,+CONCATENATE(Base!E51,"h",Base!F51,"m",Base!G51,"s"),"") ->  | F66: =IF(Base!AF51=1,CONCATENATE(Base!H51,Base!I51,"°",Base!J51,"'",Base!K51,"""",),"") ->  | G66: =IF(Base!AF51=1,+Base!O51,"") ->  | H66: =IF(Base!AF51=1,+Base!Y51,"") ->  | I66: =IF(Base!AF51=1,+Base!Z51,"") ->  | J66: =+IF(Base!AF51=1,Base!AC51,"") -> 
B67: =IF(Base!AF52=1,+Base!A52,"") ->  | C67: =IF(Base!AF52=1,+Base!C52,"") ->  | D67: =IF(Base!AF52=1,+Base!D52,"") ->  | E67: =IF(Base!AF52=1,+CONCATENATE(Base!E52,"h",Base!F52,"m",Base!G52,"s"),"") ->  | F67: =IF(Base!AF52=1,CONCATENATE(Base!H52,Base!I52,"°",Base!J52,"'",Base!K52,"""",),"") ->  | G67: =IF(Base!AF52=1,+Base!O52,"") ->  | H67: =IF(Base!AF52=1,+Base!Y52,"") ->  | I67: =IF(Base!AF52=1,+Base!Z52,"") ->  | J67: =+IF(Base!AF52=1,Base!AC52,"") -> 
B68: =IF(Base!AF53=1,+Base!A53,"") ->  | C68: =IF(Base!AF53=1,+Base!C53,"") ->  | D68: =IF(Base!AF53=1,+Base!D53,"") ->  | E68: =IF(Base!AF53=1,+CONCATENATE(Base!E53,"h",Base!F53,"m",Base!G53,"s"),"") ->  | F68: =IF(Base!AF53=1,CONCATENATE(Base!H53,Base!I53,"°",Base!J53,"'",Base!K53,"""",),"") ->  | G68: =IF(Base!AF53=1,+Base!O53,"") ->  | H68: =IF(Base!AF53=1,+Base!Y53,"") ->  | I68: =IF(Base!AF53=1,+Base!Z53,"") ->  | J68: =+IF(Base!AF53=1,Base!AC53,"") -> 
B69: =IF(Base!AF54=1,+Base!A54,"") ->  | C69: =IF(Base!AF54=1,+Base!C54,"") ->  | D69: =IF(Base!AF54=1,+Base!D54,"") ->  | E69: =IF(Base!AF54=1,+CONCATENATE(Base!E54,"h",Base!F54,"m",Base!G54,"s"),"") ->  | F69: =IF(Base!AF54=1,CONCATENATE(Base!H54,Base!I54,"°",Base!J54,"'",Base!K54,"""",),"") ->  | G69: =IF(Base!AF54=1,+Base!O54,"") ->  | H69: =IF(Base!AF54=1,+Base!Y54,"") ->  | I69: =IF(Base!AF54=1,+Base!Z54,"") ->  | J69: =+IF(Base!AF54=1,Base!AC54,"") -> 
B70: =IF(Base!AF55=1,+Base!A55,"") ->  | C70: =IF(Base!AF55=1,+Base!C55,"") ->  | D70: =IF(Base!AF55=1,+Base!D55,"") ->  | E70: =IF(Base!AF55=1,+CONCATENATE(Base!E55,"h",Base!F55,"m",Base!G55,"s"),"") ->  | F70: =IF(Base!AF55=1,CONCATENATE(Base!H55,Base!I55,"°",Base!J55,"'",Base!K55,"""",),"") ->  | G70: =IF(Base!AF55=1,+Base!O55,"") ->  | H70: =IF(Base!AF55=1,+Base!Y55,"") ->  | I70: =IF(Base!AF55=1,+Base!Z55,"") ->  | J70: =+IF(Base!AF55=1,Base!AC55,"") -> 
B71: =IF(Base!AF56=1,+Base!A56,"") ->  | C71: =IF(Base!AF56=1,+Base!C56,"") ->  | D71: =IF(Base!AF56=1,+Base!D56,"") ->  | E71: =IF(Base!AF56=1,+CONCATENATE(Base!E56,"h",Base!F56,"m",Base!G56,"s"),"") ->  | F71: =IF(Base!AF56=1,CONCATENATE(Base!H56,Base!I56,"°",Base!J56,"'",Base!K56,"""",),"") ->  | G71: =IF(Base!AF56=1,+Base!O56,"") ->  | H71: =IF(Base!AF56=1,+Base!Y56,"") ->  | I71: =IF(Base!AF56=1,+Base!Z56,"") ->  | J71: =+IF(Base!AF56=1,Base!AC56,"") -> 
B72: =IF(Base!AF57=1,+Base!A57,"") ->  | C72: =IF(Base!AF57=1,+Base!C57,"") ->  | D72: =IF(Base!AF57=1,+Base!D57,"") ->  | E72: =IF(Base!AF57=1,+CONCATENATE(Base!E57,"h",Base!F57,"m",Base!G57,"s"),"") ->  | F72: =IF(Base!AF57=1,CONCATENATE(Base!H57,Base!I57,"°",Base!J57,"'",Base!K57,"""",),"") ->  | G72: =IF(Base!AF57=1,+Base!O57,"") ->  | H72: =IF(Base!AF57=1,+Base!Y57,"") ->  | I72: =IF(Base!AF57=1,+Base!Z57,"") ->  | J72: =+IF(Base!AF57=1,Base!AC57,"") -> 
B73: =IF(Base!AF58=1,+Base!A58,"") ->  | C73: =IF(Base!AF58=1,+Base!C58,"") ->  | D73: =IF(Base!AF58=1,+Base!D58,"") ->  | E73: =IF(Base!AF58=1,+CONCATENATE(Base!E58,"h",Base!F58,"m",Base!G58,"s"),"") ->  | F73: =IF(Base!AF58=1,CONCATENATE(Base!H58,Base!I58,"°",Base!J58,"'",Base!K58,"""",),"") ->  | G73: =IF(Base!AF58=1,+Base!O58,"") ->  | H73: =IF(Base!AF58=1,+Base!Y58,"") ->  | I73: =IF(Base!AF58=1,+Base!Z58,"") ->  | J73: =+IF(Base!AF58=1,Base!AC58,"") -> 
B74: =IF(Base!AF59=1,+Base!A59,"") ->  | C74: =IF(Base!AF59=1,+Base!C59,"") ->  | D74: =IF(Base!AF59=1,+Base!D59,"") ->  | E74: =IF(Base!AF59=1,+CONCATENATE(Base!E59,"h",Base!F59,"m",Base!G59,"s"),"") ->  | F74: =IF(Base!AF59=1,CONCATENATE(Base!H59,Base!I59,"°",Base!J59,"'",Base!K59,"""",),"") ->  | G74: =IF(Base!AF59=1,+Base!O59,"") ->  | H74: =IF(Base!AF59=1,+Base!Y59,"") ->  | I74: =IF(Base!AF59=1,+Base!Z59,"") ->  | J74: =+IF(Base!AF59=1,Base!AC59,"") -> 
B75: =IF(Base!AF60=1,+Base!A60,"") ->  | C75: =IF(Base!AF60=1,+Base!C60,"") ->  | D75: =IF(Base!AF60=1,+Base!D60,"") ->  | E75: =IF(Base!AF60=1,+CONCATENATE(Base!E60,"h",Base!F60,"m",Base!G60,"s"),"") ->  | F75: =IF(Base!AF60=1,CONCATENATE(Base!H60,Base!I60,"°",Base!J60,"'",Base!K60,"""",),"") ->  | G75: =IF(Base!AF60=1,+Base!O60,"") ->  | H75: =IF(Base!AF60=1,+Base!Y60,"") ->  | I75: =IF(Base!AF60=1,+Base!Z60,"") ->  | J75: =+IF(Base!AF60=1,Base!AC60,"") -> 
B76: =IF(Base!AF61=1,+Base!A61,"") ->  | C76: =IF(Base!AF61=1,+Base!C61,"") ->  | D76: =IF(Base!AF61=1,+Base!D61,"") ->  | E76: =IF(Base!AF61=1,+CONCATENATE(Base!E61,"h",Base!F61,"m",Base!G61,"s"),"") ->  | F76: =IF(Base!AF61=1,CONCATENATE(Base!H61,Base!I61,"°",Base!J61,"'",Base!K61,"""",),"") ->  | G76: =IF(Base!AF61=1,+Base!O61,"") ->  | H76: =IF(Base!AF61=1,+Base!Y61,"") ->  | I76: =IF(Base!AF61=1,+Base!Z61,"") ->  | J76: =+IF(Base!AF61=1,Base!AC61,"") -> 
B77: =IF(Base!AF62=1,+Base!A62,"") ->  | C77: =IF(Base!AF62=1,+Base!C62,"") ->  | D77: =IF(Base!AF62=1,+Base!D62,"") ->  | E77: =IF(Base!AF62=1,+CONCATENATE(Base!E62,"h",Base!F62,"m",Base!G62,"s"),"") ->  | F77: =IF(Base!AF62=1,CONCATENATE(Base!H62,Base!I62,"°",Base!J62,"'",Base!K62,"""",),"") ->  | G77: =IF(Base!AF62=1,+Base!O62,"") ->  | H77: =IF(Base!AF62=1,+Base!Y62,"") ->  | I77: =IF(Base!AF62=1,+Base!Z62,"") ->  | J77: =+IF(Base!AF62=1,Base!AC62,"") -> 
B78: =IF(Base!AF63=1,+Base!A63,"") ->  | C78: =IF(Base!AF63=1,+Base!C63,"") ->  | D78: =IF(Base!AF63=1,+Base!D63,"") ->  | E78: =IF(Base!AF63=1,+CONCATENATE(Base!E63,"h",Base!F63,"m",Base!G63,"s"),"") ->  | F78: =IF(Base!AF63=1,CONCATENATE(Base!H63,Base!I63,"°",Base!J63,"'",Base!K63,"""",),"") ->  | G78: =IF(Base!AF63=1,+Base!O63,"") ->  | H78: =IF(Base!AF63=1,+Base!Y63,"") ->  | I78: =IF(Base!AF63=1,+Base!Z63,"") ->  | J78: =+IF(Base!AF63=1,Base!AC63,"") -> 
B79: =IF(Base!AF64=1,+Base!A64,"") ->  | C79: =IF(Base!AF64=1,+Base!C64,"") ->  | D79: =IF(Base!AF64=1,+Base!D64,"") ->  | E79: =IF(Base!AF64=1,+CONCATENATE(Base!E64,"h",Base!F64,"m",Base!G64,"s"),"") ->  | F79: =IF(Base!AF64=1,CONCATENATE(Base!H64,Base!I64,"°",Base!J64,"'",Base!K64,"""",),"") ->  | G79: =IF(Base!AF64=1,+Base!O64,"") ->  | H79: =IF(Base!AF64=1,+Base!Y64,"") ->  | I79: =IF(Base!AF64=1,+Base!Z64,"") ->  | J79: =+IF(Base!AF64=1,Base!AC64,"") -> 
B80: =IF(Base!AF65=1,+Base!A65,"") ->  | C80: =IF(Base!AF65=1,+Base!C65,"") ->  | D80: =IF(Base!AF65=1,+Base!D65,"") ->  | E80: =IF(Base!AF65=1,+CONCATENATE(Base!E65,"h",Base!F65,"m",Base!G65,"s"),"") ->  | F80: =IF(Base!AF65=1,CONCATENATE(Base!H65,Base!I65,"°",Base!J65,"'",Base!K65,"""",),"") ->  | G80: =IF(Base!AF65=1,+Base!O65,"") ->  | H80: =IF(Base!AF65=1,+Base!Y65,"") ->  | I80: =IF(Base!AF65=1,+Base!Z65,"") ->  | J80: =+IF(Base!AF65=1,Base!AC65,"") -> 
B81: =IF(Base!AF66=1,+Base!A66,"") ->  | C81: =IF(Base!AF66=1,+Base!C66,"") ->  | D81: =IF(Base!AF66=1,+Base!D66,"") ->  | E81: =IF(Base!AF66=1,+CONCATENATE(Base!E66,"h",Base!F66,"m",Base!G66,"s"),"") ->  | F81: =IF(Base!AF66=1,CONCATENATE(Base!H66,Base!I66,"°",Base!J66,"'",Base!K66,"""",),"") ->  | G81: =IF(Base!AF66=1,+Base!O66,"") ->  | H81: =IF(Base!AF66=1,+Base!Y66,"") ->  | I81: =IF(Base!AF66=1,+Base!Z66,"") ->  | J81: =+IF(Base!AF66=1,Base!AC66,"") -> 
B82: =IF(Base!AF67=1,+Base!A67,"") ->  | C82: =IF(Base!AF67=1,+Base!C67,"") ->  | D82: =IF(Base!AF67=1,+Base!D67,"") ->  | E82: =IF(Base!AF67=1,+CONCATENATE(Base!E67,"h",Base!F67,"m",Base!G67,"s"),"") ->  | F82: =IF(Base!AF67=1,CONCATENATE(Base!H67,Base!I67,"°",Base!J67,"'",Base!K67,"""",),"") ->  | G82: =IF(Base!AF67=1,+Base!O67,"") ->  | H82: =IF(Base!AF67=1,+Base!Y67,"") ->  | I82: =IF(Base!AF67=1,+Base!Z67,"") ->  | J82: =+IF(Base!AF67=1,Base!AC67,"") -> 
B83: =IF(Base!AF68=1,+Base!A68,"") ->  | C83: =IF(Base!AF68=1,+Base!C68,"") ->  | D83: =IF(Base!AF68=1,+Base!D68,"") ->  | E83: =IF(Base!AF68=1,+CONCATENATE(Base!E68,"h",Base!F68,"m",Base!G68,"s"),"") ->  | F83: =IF(Base!AF68=1,CONCATENATE(Base!H68,Base!I68,"°",Base!J68,"'",Base!K68,"""",),"") ->  | G83: =IF(Base!AF68=1,+Base!O68,"") ->  | H83: =IF(Base!AF68=1,+Base!Y68,"") ->  | I83: =IF(Base!AF68=1,+Base!Z68,"") ->  | J83: =+IF(Base!AF68=1,Base!AC68,"") -> 
B84: =IF(Base!AF69=1,+Base!A69,"") ->  | C84: =IF(Base!AF69=1,+Base!C69,"") ->  | D84: =IF(Base!AF69=1,+Base!D69,"") ->  | E84: =IF(Base!AF69=1,+CONCATENATE(Base!E69,"h",Base!F69,"m",Base!G69,"s"),"") ->  | F84: =IF(Base!AF69=1,CONCATENATE(Base!H69,Base!I69,"°",Base!J69,"'",Base!K69,"""",),"") ->  | G84: =IF(Base!AF69=1,+Base!O69,"") ->  | H84: =IF(Base!AF69=1,+Base!Y69,"") ->  | I84: =IF(Base!AF69=1,+Base!Z69,"") ->  | J84: =+IF(Base!AF69=1,Base!AC69,"") -> 
B85: =IF(Base!AF70=1,+Base!A70,"") ->  | C85: =IF(Base!AF70=1,+Base!C70,"") ->  | D85: =IF(Base!AF70=1,+Base!D70,"") ->  | E85: =IF(Base!AF70=1,+CONCATENATE(Base!E70,"h",Base!F70,"m",Base!G70,"s"),"") ->  | F85: =IF(Base!AF70=1,CONCATENATE(Base!H70,Base!I70,"°",Base!J70,"'",Base!K70,"""",),"") ->  | G85: =IF(Base!AF70=1,+Base!O70,"") ->  | H85: =IF(Base!AF70=1,+Base!Y70,"") ->  | I85: =IF(Base!AF70=1,+Base!Z70,"") ->  | J85: =+IF(Base!AF70=1,Base!AC70,"") -> 
B86: =IF(Base!AF71=1,+Base!A71,"") ->  | C86: =IF(Base!AF71=1,+Base!C71,"") ->  | D86: =IF(Base!AF71=1,+Base!D71,"") ->  | E86: =IF(Base!AF71=1,+CONCATENATE(Base!E71,"h",Base!F71,"m",Base!G71,"s"),"") ->  | F86: =IF(Base!AF71=1,CONCATENATE(Base!H71,Base!I71,"°",Base!J71,"'",Base!K71,"""",),"") ->  | G86: =IF(Base!AF71=1,+Base!O71,"") ->  | H86: =IF(Base!AF71=1,+Base!Y71,"") ->  | I86: =IF(Base!AF71=1,+Base!Z71,"") ->  | J86: =+IF(Base!AF71=1,Base!AC71,"") -> 
B87: =IF(Base!AF72=1,+Base!A72,"") ->  | C87: =IF(Base!AF72=1,+Base!C72,"") ->  | D87: =IF(Base!AF72=1,+Base!D72,"") ->  | E87: =IF(Base!AF72=1,+CONCATENATE(Base!E72,"h",Base!F72,"m",Base!G72,"s"),"") ->  | F87: =IF(Base!AF72=1,CONCATENATE(Base!H72,Base!I72,"°",Base!J72,"'",Base!K72,"""",),"") ->  | G87: =IF(Base!AF72=1,+Base!O72,"") ->  | H87: =IF(Base!AF72=1,+Base!Y72,"") ->  | I87: =IF(Base!AF72=1,+Base!Z72,"") ->  | J87: =+IF(Base!AF72=1,Base!AC72,"") -> 
B88: =IF(Base!AF73=1,+Base!A73,"") ->  | C88: =IF(Base!AF73=1,+Base!C73,"") ->  | D88: =IF(Base!AF73=1,+Base!D73,"") ->  | E88: =IF(Base!AF73=1,+CONCATENATE(Base!E73,"h",Base!F73,"m",Base!G73,"s"),"") ->  | F88: =IF(Base!AF73=1,CONCATENATE(Base!H73,Base!I73,"°",Base!J73,"'",Base!K73,"""",),"") ->  | G88: =IF(Base!AF73=1,+Base!O73,"") ->  | H88: =IF(Base!AF73=1,+Base!Y73,"") ->  | I88: =IF(Base!AF73=1,+Base!Z73,"") ->  | J88: =+IF(Base!AF73=1,Base!AC73,"") -> 
B89: =IF(Base!AF74=1,+Base!A74,"") ->  | C89: =IF(Base!AF74=1,+Base!C74,"") ->  | D89: =IF(Base!AF74=1,+Base!D74,"") ->  | E89: =IF(Base!AF74=1,+CONCATENATE(Base!E74,"h",Base!F74,"m",Base!G74,"s"),"") ->  | F89: =IF(Base!AF74=1,CONCATENATE(Base!H74,Base!I74,"°",Base!J74,"'",Base!K74,"""",),"") ->  | G89: =IF(Base!AF74=1,+Base!O74,"") ->  | H89: =IF(Base!AF74=1,+Base!Y74,"") ->  | I89: =IF(Base!AF74=1,+Base!Z74,"") ->  | J89: =+IF(Base!AF74=1,Base!AC74,"") -> 
B90: =IF(Base!AF75=1,+Base!A75,"") ->  | C90: =IF(Base!AF75=1,+Base!C75,"") ->  | D90: =IF(Base!AF75=1,+Base!D75,"") ->  | E90: =IF(Base!AF75=1,+CONCATENATE(Base!E75,"h",Base!F75,"m",Base!G75,"s"),"") ->  | F90: =IF(Base!AF75=1,CONCATENATE(Base!H75,Base!I75,"°",Base!J75,"'",Base!K75,"""",),"") ->  | G90: =IF(Base!AF75=1,+Base!O75,"") ->  | H90: =IF(Base!AF75=1,+Base!Y75,"") ->  | I90: =IF(Base!AF75=1,+Base!Z75,"") ->  | J90: =+IF(Base!AF75=1,Base!AC75,"") -> 
B91: =IF(Base!AF76=1,+Base!A76,"") ->  | C91: =IF(Base!AF76=1,+Base!C76,"") ->  | D91: =IF(Base!AF76=1,+Base!D76,"") ->  | E91: =IF(Base!AF76=1,+CONCATENATE(Base!E76,"h",Base!F76,"m",Base!G76,"s"),"") ->  | F91: =IF(Base!AF76=1,CONCATENATE(Base!H76,Base!I76,"°",Base!J76,"'",Base!K76,"""",),"") ->  | G91: =IF(Base!AF76=1,+Base!O76,"") ->  | H91: =IF(Base!AF76=1,+Base!Y76,"") ->  | I91: =IF(Base!AF76=1,+Base!Z76,"") ->  | J91: =+IF(Base!AF76=1,Base!AC76,"") -> 
B92: =IF(Base!AF77=1,+Base!A77,"") ->  | C92: =IF(Base!AF77=1,+Base!C77,"") ->  | D92: =IF(Base!AF77=1,+Base!D77,"") ->  | E92: =IF(Base!AF77=1,+CONCATENATE(Base!E77,"h",Base!F77,"m",Base!G77,"s"),"") ->  | F92: =IF(Base!AF77=1,CONCATENATE(Base!H77,Base!I77,"°",Base!J77,"'",Base!K77,"""",),"") ->  | G92: =IF(Base!AF77=1,+Base!O77,"") ->  | H92: =IF(Base!AF77=1,+Base!Y77,"") ->  | I92: =IF(Base!AF77=1,+Base!Z77,"") ->  | J92: =+IF(Base!AF77=1,Base!AC77,"") -> 
B93: =IF(Base!AF78=1,+Base!A78,"") ->  | C93: =IF(Base!AF78=1,+Base!C78,"") ->  | D93: =IF(Base!AF78=1,+Base!D78,"") ->  | E93: =IF(Base!AF78=1,+CONCATENATE(Base!E78,"h",Base!F78,"m",Base!G78,"s"),"") ->  | F93: =IF(Base!AF78=1,CONCATENATE(Base!H78,Base!I78,"°",Base!J78,"'",Base!K78,"""",),"") ->  | G93: =IF(Base!AF78=1,+Base!O78,"") ->  | H93: =IF(Base!AF78=1,+Base!Y78,"") ->  | I93: =IF(Base!AF78=1,+Base!Z78,"") ->  | J93: =+IF(Base!AF78=1,Base!AC78,"") -> 
B94: =IF(Base!AF79=1,+Base!A79,"") ->  | C94: =IF(Base!AF79=1,+Base!C79,"") ->  | D94: =IF(Base!AF79=1,+Base!D79,"") ->  | E94: =IF(Base!AF79=1,+CONCATENATE(Base!E79,"h",Base!F79,"m",Base!G79,"s"),"") ->  | F94: =IF(Base!AF79=1,CONCATENATE(Base!H79,Base!I79,"°",Base!J79,"'",Base!K79,"""",),"") ->  | G94: =IF(Base!AF79=1,+Base!O79,"") ->  | H94: =IF(Base!AF79=1,+Base!Y79,"") ->  | I94: =IF(Base!AF79=1,+Base!Z79,"") ->  | J94: =+IF(Base!AF79=1,Base!AC79,"") -> 
B95: =IF(Base!AF80=1,+Base!A80,"") ->  | C95: =IF(Base!AF80=1,+Base!C80,"") ->  | D95: =IF(Base!AF80=1,+Base!D80,"") ->  | E95: =IF(Base!AF80=1,+CONCATENATE(Base!E80,"h",Base!F80,"m",Base!G80,"s"),"") ->  | F95: =IF(Base!AF80=1,CONCATENATE(Base!H80,Base!I80,"°",Base!J80,"'",Base!K80,"""",),"") ->  | G95: =IF(Base!AF80=1,+Base!O80,"") ->  | H95: =IF(Base!AF80=1,+Base!Y80,"") ->  | I95: =IF(Base!AF80=1,+Base!Z80,"") ->  | J95: =+IF(Base!AF80=1,Base!AC80,"") -> 
B96: =IF(Base!AF81=1,+Base!A81,"") ->  | C96: =IF(Base!AF81=1,+Base!C81,"") ->  | D96: =IF(Base!AF81=1,+Base!D81,"") ->  | E96: =IF(Base!AF81=1,+CONCATENATE(Base!E81,"h",Base!F81,"m",Base!G81,"s"),"") ->  | F96: =IF(Base!AF81=1,CONCATENATE(Base!H81,Base!I81,"°",Base!J81,"'",Base!K81,"""",),"") ->  | G96: =IF(Base!AF81=1,+Base!O81,"") ->  | H96: =IF(Base!AF81=1,+Base!Y81,"") ->  | I96: =IF(Base!AF81=1,+Base!Z81,"") ->  | J96: =+IF(Base!AF81=1,Base!AC81,"") -> 
B97: =IF(Base!AF82=1,+Base!A82,"") ->  | C97: =IF(Base!AF82=1,+Base!C82,"") ->  | D97: =IF(Base!AF82=1,+Base!D82,"") ->  | E97: =IF(Base!AF82=1,+CONCATENATE(Base!E82,"h",Base!F82,"m",Base!G82,"s"),"") ->  | F97: =IF(Base!AF82=1,CONCATENATE(Base!H82,Base!I82,"°",Base!J82,"'",Base!K82,"""",),"") ->  | G97: =IF(Base!AF82=1,+Base!O82,"") ->  | H97: =IF(Base!AF82=1,+Base!Y82,"") ->  | I97: =IF(Base!AF82=1,+Base!Z82,"") ->  | J97: =+IF(Base!AF82=1,Base!AC82,"") -> 
B98: =IF(Base!AF83=1,+Base!A83,"") ->  | C98: =IF(Base!AF83=1,+Base!C83,"") ->  | D98: =IF(Base!AF83=1,+Base!D83,"") ->  | E98: =IF(Base!AF83=1,+CONCATENATE(Base!E83,"h",Base!F83,"m",Base!G83,"s"),"") ->  | F98: =IF(Base!AF83=1,CONCATENATE(Base!H83,Base!I83,"°",Base!J83,"'",Base!K83,"""",),"") ->  | G98: =IF(Base!AF83=1,+Base!O83,"") ->  | H98: =IF(Base!AF83=1,+Base!Y83,"") ->  | I98: =IF(Base!AF83=1,+Base!Z83,"") ->  | J98: =+IF(Base!AF83=1,Base!AC83,"") -> 
B99: =IF(Base!AF84=1,+Base!A84,"") ->  | C99: =IF(Base!AF84=1,+Base!C84,"") ->  | D99: =IF(Base!AF84=1,+Base!D84,"") ->  | E99: =IF(Base!AF84=1,+CONCATENATE(Base!E84,"h",Base!F84,"m",Base!G84,"s"),"") ->  | F99: =IF(Base!AF84=1,CONCATENATE(Base!H84,Base!I84,"°",Base!J84,"'",Base!K84,"""",),"") ->  | G99: =IF(Base!AF84=1,+Base!O84,"") ->  | H99: =IF(Base!AF84=1,+Base!Y84,"") ->  | I99: =IF(Base!AF84=1,+Base!Z84,"") ->  | J99: =+IF(Base!AF84=1,Base!AC84,"") -> 
B100: =IF(Base!AF85=1,+Base!A85,"") ->  | C100: =IF(Base!AF85=1,+Base!C85,"") ->  | D100: =IF(Base!AF85=1,+Base!D85,"") ->  | E100: =IF(Base!AF85=1,+CONCATENATE(Base!E85,"h",Base!F85,"m",Base!G85,"s"),"") ->  | F100: =IF(Base!AF85=1,CONCATENATE(Base!H85,Base!I85,"°",Base!J85,"'",Base!K85,"""",),"") ->  | G100: =IF(Base!AF85=1,+Base!O85,"") ->  | H100: =IF(Base!AF85=1,+Base!Y85,"") ->  | I100: =IF(Base!AF85=1,+Base!Z85,"") ->  | J100: =+IF(Base!AF85=1,Base!AC85,"") -> 
B101: =IF(Base!AF86=1,+Base!A86,"") ->  | C101: =IF(Base!AF86=1,+Base!C86,"") ->  | D101: =IF(Base!AF86=1,+Base!D86,"") ->  | E101: =IF(Base!AF86=1,+CONCATENATE(Base!E86,"h",Base!F86,"m",Base!G86,"s"),"") ->  | F101: =IF(Base!AF86=1,CONCATENATE(Base!H86,Base!I86,"°",Base!J86,"'",Base!K86,"""",),"") ->  | G101: =IF(Base!AF86=1,+Base!O86,"") ->  | H101: =IF(Base!AF86=1,+Base!Y86,"") ->  | I101: =IF(Base!AF86=1,+Base!Z86,"") ->  | J101: =+IF(Base!AF86=1,Base!AC86,"") -> 

Sheet Base
A1: HR | B1: Name | C1: HD | D1: SAO | E1: AD0 | F1: AD1 | G1: AD2 | H1: sDE | I1: DE0 | J1: DE1 | K1: DE2 | L1: AD h.hh | M1: AD d.dd | N1: DE d.dd | O1: Mag | P1: cMag | Q1: B-V | R1: Colonne2 | S1: U-B | T1: Colonne3 | U1: R-I | V1: Colonne4 | W1: Colonne5 | X1: pSType | Y1: Sp | Z1: SpS | AA1: SpSS | AB1: SpSSS | AC1: Distance | AD1: Tri Classe | AE1: Tri Dist | AF1: Tri
A2: 5112 | B2: 24 CVn | C2: 118232 | D2: 44668 | E2: 13 | F2: 34 | G2: 27.3 | H2: + | I2: 49 | J2: 0 | K2: 58 | L2: 13.57425 | M2: 203.61375 | N2: 49.01611111 | O2: 4.7 | Q2: 0.12 | S2: 0.11 | U2: 0.02 | Y2: A5V | Z2: A5V | AA2: A5 | AB2: =+LEFT(AA2,1) -> A | AC2: =DEGREES(ACOS(SIN(Resultats!$H$11)*SIN(RADIANS(N2))+COS(Resultats!$H$11)*COS(RADIANS(N2))*COS(Resultats!$E$11-RADIANS(M2)))) -> 2.149334881 | AD2: =+IF(AB2=Data!$E$18,1,0) -> 1 | AE2: =+IF(AC2<Data!$B$17,1,0) -> 1 | AF2: =+IF(AND(AD2,AE2),1,0) -> 1
A3: 5116 | C3: 118295 | D3: 44675 | E3: 13 | F3: 35 | G3: 14.1 | H3: + | I3: 44 | J3: 11 | K3: 49 | L3: 13.58725 | M3: 203.80875 | N3: 44.19694444 | O3: 6.84 | Q3: 0.2 | S3: 0.25 | Y3: A7-F0III | Z3: A7-F0 | AA3: A7 | AB3: =+LEFT(AA3,1) -> A | AC3: =DEGREES(ACOS(SIN(Resultats!$H$11)*SIN(RADIANS(N3))+COS(Resultats!$H$11)*COS(RADIANS(N3))*COS(Resultats!$E$11-RADIANS(M3)))) -> 2.948717504 | AD3: =+IF(AB3=Data!$E$18,1,0) -> 1 | AE3: =+IF(AC3<Data!$B$17,1,0) -> 1 | AF3: =+IF(AND(AD3,AE3),1,0) -> 1
A4: 5023 | B4: 21 CVn | C4: 115735 | D4: 44556 | E4: 13 | F4: 18 | G4: 14.5 | H4: + | I4: 49 | J4: 40 | K4: 55 | L4: 13.30402778 | M4: 199.5604167 | N4: 49.68194444 | O4: 5.15 | Q4: -0.07 | S4: -0.2 | Y4: A0V | Z4: A0V | AA4: A0 | AB4: =+LEFT(AA4,1) -> A | AC4: =DEGREES(ACOS(SIN(Resultats!$H$11)*SIN(RADIANS(N4))+COS(Resultats!$H$11)*COS(RADIANS(N4))*COS(Resultats!$E$11-RADIANS(M4)))) -> 3.317659068 | AD4: =+IF(AB4=Data!$E$18,1,0) -> 1 | AE4: =+IF(AC4<Data!$B$17,1,0) -> 1 | AF4: =+IF(AND(AD4,AE4),1,0) -> 1
A5: 5045 | C5: 116303 | D5: 44582 | E5: 13 | F5: 22 | G5: 3.8 | H5: + | I5: 43 | J5: 54 | K5: 11 | L5: 13.36772222 | M5: 200.5158333 | N5: 43.90305556 | O5: 6.35 | Q5: 0.24 | S5: 0.06 | U5: 0.14 | Y5: A7m | Z5: A7m | AA5: A7 | AB5: =+LEFT(AA5,1) -> A | AC5: =DEGREES(ACOS(SIN(Resultats!$H$11)*SIN(RADIANS(N5))+COS(Resultats!$H$11)*COS(RADIANS(N5))*COS(Resultats!$E$11-RADIANS(M5)))) -> 3.395065328 | AD5: =+IF(AB5=Data!$E$18,1,0) -> 1 | AE5: =+IF(AC5<Data!$B$17,1,0) -> 1 | AF5: =+IF(AND(AD5,AE5),1,0) -> 1
A6: 5169 | C6: 119765 | D6: 28866 | E6: 13 | F6: 43 | G6: 54.7 | H6: + | I6: 52 | J6: 3 | K6: 52 | L6: 13.73186111 | M6: 205.9779167 | N6: 52.06444444 | O6: 6.02 | Q6: 0 | S6: -0.01 | Y6: A1V | Z6: A1V | AA6: A1 | AB6: =+LEFT(AA6,1) -> A | AC6: =DEGREES(ACOS(SIN(Resultats!$H$11)*SIN(RADIANS(N6))+COS(Resultats!$H$11)*COS(RADIANS(N6))*COS(Resultats!$E$11-RADIANS(M6)))) -> 5.543087406 | AD6: =+IF(AB6=Data!$E$18,1,0) -> 1 | AE6: =+IF(AC6<Data!$B$17,1,0) -> 1 | AF6: =+IF(AND(AD6,AE6),1,0) -> 1
A7: 5142 | B7: 82 UMa | C7: 119024 | D7: 28832 | E7: 13 | F7: 39 | G7: 30.4 | H7: + | I7: 52 | J7: 55 | K7: 17 | L7: 13.65844444 | M7: 204.8766667 | N7: 52.92138889 | O7: 5.46 | Q7: 0.1 | S7: 0.04 | Y7: A3Vn | Z7: A3V | AA7: A3 | AB7: =+LEFT(AA7,1) -> A | AC7: =DEGREES(ACOS(SIN(Resultats!$H$11)*SIN(RADIANS(N7))+COS(Resultats!$H$11)*COS(RADIANS(N7))*COS(Resultats!$E$11-RADIANS(M7)))) -> 6.114685578 | AD7: =+IF(AB7=Data!$E$18,1,0) -> 1 | AE7: =+IF(AC7<Data!$B$17,1,0) -> 1 | AF7: =+IF(AND(AD7,AE7),1,0) -> 1
A8: 5179 | C8: 120047 | D8: 44742 | E8: 13 | F8: 46 | G8: 13.5 | H8: + | I8: 41 | J8: 5 | K8: 19 | L8: 13.77041667 | M8: 206.55625 | N8: 41.08861111 | O8: 5.87 | Q8: 0.21 | S8: 0.06 | Y8: A5V | Z8: A5V | AA8: A5 | AB8: =+LEFT(AA8,1) -> A | AC8: =DEGREES(ACOS(SIN(Resultats!$H$11)*SIN(RADIANS(N8))+COS(Resultats!$H$11)*COS(RADIANS(N8))*COS(Resultats!$E$11-RADIANS(M8)))) -> 6.589009798 | AD8: =+IF(AB8=Data!$E$18,1,0) -> 1 | AE8: =+IF(AC8<Data!$B$17,1,0) -> 1 | AF8: =+IF(AND(AD8,AE8),1,0) -> 1
A9: 5004 | B9: 19 CVn | C9: 115271 | D9: 44531 | E9: 13 | F9: 15 | G9: 32 | H9: + | I9: 40 | J9: 51 | K9: 19 | L9: 13.25888889 | M9: 198.8833333 | N9: 40.85527778 | O9: 5.79 | Q9: 0.19 | S9: 0.12 | Y9: A7V | Z9: A7V | AA9: A7 | AB9: =+LEFT(AA9,1) -> A | AC9: =DEGREES(ACOS(SIN(Resultats!$H$11)*SIN(RADIANS(N9))+COS(Resultats!$H$11)*COS(RADIANS(N9))*COS(Resultats!$E$11-RADIANS(M9)))) -> 6.672091058 | AD9: =+IF(AB9=Data!$E$18,1,0) -> 1 | AE9: =+IF(AC9<Data!$B$17,1,0) -> 1 | AF9: =+IF(AND(AD9,AE9),1,0) -> 1
A10: 5280 | C10: 122866 | D10: 28989 | E10: 14 | F10: 2 | G10: 59.7 | H10: + | I10: 50 | J10: 58 | K10: 19 | L10: 14.04991667 | M10: 210.74875 | N10: 50.97194444 | O10: 6.15 | Q10: 0.01 | Y10: A2V | Z10: A2V | AA10: A2 | AB10: =+LEFT(AA10,1) -> A | AC10: =DEGREES(ACOS(SIN(Resultats!$H$11)*SIN(RADIANS(N10))+COS(Resultats!$H$11)*COS(RADIANS(N10))*COS(Resultats!$E$11-RADIANS(M10)))) -> 6.707598086 | AD10: =+IF(AB10=Data!$E$18,1,0) -> 1 | AE10: =+IF(AC10<Data!$B$17,1,0) -> 1 | AF10: =+IF(AND(AD10,AE10),1,0) -> 1
A11: 4866 | B11: 11 CVn | C11: 111421 | D11: 44332 | E11: 12 | F11: 48 | G11: 41.8 | H11: + | I11: 48 | J11: 28 | K11: 1 | L11: 12.81161111 | M11: 192.1741667 | N11: 48.46694444 | O11: 6.27 | Q11: 0.18 | S11: 0.17 | Y11: A6m | Z11: A6 | AA11: A6 | AB11: =+LEFT(AA11,1) -> A | AC11: =DEGREES(ACOS(SIN(Resultats!$H$11)*SIN(RADIANS(N11))+COS(Resultats!$H$11)*COS(RADIANS(N11))*COS(Resultats!$E$11-RADIANS(M11)))) -> 7.092286917 | AD11: =+IF(AB11=Data!$E$18,1,0) -> 1 | AE11: =+IF(AC11<Data!$B$17,1,0) -> 1 | AF11: =+IF(AND(AD11,AE11),1,0) -> 1
A12: 5238 | B12: 86 UMa | C12: 121409 | D12: 28928 | E12: 13 | F12: 53 | G12: 51 | H12: + | I12: 53 | J12: 43 | K12: 43 | L12: 13.8975 | M12: 208.4625 | N12: 53.72861111 | O12: 5.7 | Q12: -0.05 | S12: -0.07 | Y12: A0V | Z12: A0V | AA12: A0 | AB12: =+LEFT(AA12,1) -> A | AC12: =DEGREES(ACOS(SIN(Resultats!$H$11)*SIN(RADIANS(N12))+COS(Resultats!$H$11)*COS(RADIANS(N12))*COS(Resultats!$E$11-RADIANS(M12)))) -> 7.722933333 | AD12: =+IF(AB12=Data!$E$18,1,0) -> 1 | AE12: =+IF(AC12<Data!$B$17,1,0) -> 1 | AF12: =+IF(AND(AD12,AE12),1,0) -> 1
A13: 5055 | B13: 79Zet UMa | C13: 116657 | D13: 28738 | E13: 13 | F13: 23 | G13: 56.4 | H13: + | I13: 54 | J13: 55 | K13: 18 | L13: 13.399 | M13: 200.985 | N13: 54.92166667 | O13: 3.95 | Q13: 0.13 | S13: 0.09 | Y13: A1m | Z13: A1 | AA13: A1 | AB13: =+LEFT(AA13,1) -> A | AC13: =DEGREES(ACOS(SIN(Resultats!$H$11)*SIN(RADIANS(N13))+COS(Resultats!$H$11)*COS(RADIANS(N13))*COS(Resultats!$E$11-RADIANS(M13)))) -> 7.978423248 | AD13: =+IF(AB13=Data!$E$18,1,0) -> 1 | AE13: =+IF(AC13<Data!$B$17,1,0) -> 1 | AF13: =+IF(AND(AD13,AE13),1,0) -> 1
A14: 5054 | B14: 79Zet UMa | C14: 116656 | D14: 28737 | E14: 13 | F14: 23 | G14: 55.5 | H14: + | I14: 54 | J14: 55 | K14: 31 | L14: 13.39875 | M14: 200.98125 | N14: 54.92527778 | O14: 2.27 | Q14: 0.02 | S14: 0.03 | U14: -0.02 | Y14: A1VpSrSi | Z14: A1V | AA14: A1 | AB14: =+LEFT(AA14,1) -> A | AC14: =DEGREES(ACOS(SIN(Resultats!$H$11)*SIN(RADIANS(N14))+COS(Resultats!$H$11)*COS(RADIANS(N14))*COS(Resultats!$E$11-RADIANS(M14)))) -> 7.982283929 | AD14: =+IF(AB14=Data!$E$18,1,0) -> 1 | AE14: =+IF(AC14<Data!$B$17,1,0) -> 1 | AF14: =+IF(AND(AD14,AE14),1,0) -> 1
A15: 5351 | B15: 19Lam Boo | C15: 125162 | D15: 44965 | E15: 14 | F15: 16 | G15: 23 | H15: + | I15: 46 | J15: 5 | K15: 18 | L15: 14.27305556 | M15: 214.0958333 | N15: 46.08833333 | O15: 4.18 | Q15: 0.08 | S15: 0.05 | U15: 0.03 | Y15: A0p | Z15: A0p | AA15: A0 | AB15: =+LEFT(AA15,1) -> A | AC15: =DEGREES(ACOS(SIN(Resultats!$H$11)*SIN(RADIANS(N15))+COS(Resultats!$H$11)*COS(RADIANS(N15))*COS(Resultats!$E$11-RADIANS(M15)))) -> 8.019993775 | AD15: =+IF(AB15=Data!$E$18,1,0) -> 1 | AE15: =+IF(AC15<Data!$B$17,1,0) -> 1 | AF15: =+IF(AND(AD15,AE15),1,0) -> 1
A16: 5062 | B16: 80 UMa | C16: 116842 | D16: 28751 | E16: 13 | F16: 25 | G16: 13.5 | H16: + | I16: 54 | J16: 59 | K16: 17 | L16: 13.42041667 | M16: 201.30625 | N16: 54.98805556 | O16: 4.01 | Q16: 0.16 | S16: 0.08 | U16: 0.07 | Y16: A5V | Z16: A5V | AA16: A5 | AB16: =+LEFT(AA16,1) -> A | AC16: =DEGREES(ACOS(SIN(Resultats!$H$11)*SIN(RADIANS(N16))+COS(Resultats!$H$11)*COS(RADIANS(N16))*COS(Resultats!$E$11-RADIANS(M16)))) -> 8.02299445 | AD16: =+IF(AB16=Data!$E$18,1,0) -> 1 | AE16: =+IF(AC16<Data!$B$17,1,0) -> 1 | AF16: =+IF(AND(AD16,AE16),1,0) -> 1
A17: 5109 | B17: 81 UMa | C17: 118214 | D17: 28803 | E17: 13 | F17: 34 | G17: 7.3 | H17: + | I17: 55 | J17: 20 | K17: 55 | L17: 13.56869444 | M17: 203.5304167 | N17: 55.34861111 | O17: 5.6 | Q17: -0.03 | S17: -0.09 | Y17: A0V | Z17: A0V | AA17: A0 | AB17: =+LEFT(AA17,1) -> A | AC17: =DEGREES(ACOS(SIN(Resultats!$H$11)*SIN(RADIANS(N17))+COS(Resultats!$H$11)*COS(RADIANS(N17))*COS(Resultats!$E$11-RADIANS(M17)))) -> 8.373319609 | AD17: =+IF(AB17=Data!$E$18,1,0) -> 1 | AE17: =+IF(AC17<Data!$B$17,1,0) -> 1 | AF17: =+IF(AND(AD17,AE17),1,0) -> 1
A18: 5329 | B18: 17Kap2Boo | C18: 124675 | D18: 29046 | E18: 14 | F18: 13 | G18: 29 | H18: + | I18: 51 | J18: 47 | K18: 25 | L18: 14.22472222 | M18: 213.3708333 | N18: 51.79027778 | O18: 4.54 | Q18: 0.2 | S18: 0.14 | U18: 0.12 | Y18: A8IV | Z18: A8IV | AA18: A8 | AB18: =+LEFT(AA18,1) -> A | AC18: =DEGREES(ACOS(SIN(Resultats!$H$11)*SIN(RADIANS(N18))+COS(Resultats!$H$11)*COS(RADIANS(N18))*COS(Resultats!$E$11-RADIANS(M18)))) -> 8.530523425 | AD18: =+IF(AB18=Data!$E$18,1,0) -> 1 | AE18: =+IF(AC18<Data!$B$17,1,0) -> 1 | AF18: =+IF(AND(AD18,AE18),1,0) -> 1
A19: 5350 | B19: 21Iot Boo | C19: 125161 | D19: 29071 | E19: 14 | F19: 16 | G19: 9.9 | H19: + | I19: 51 | J19: 22 | K19: 2 | L19: 14.26941667 | M19: 214.04125 | N19: 51.36722222 | O19: 4.75 | Q19: 0.2 | S19: 0.06 | U19: 0.09 | Y19: A9V | Z19: A9V | AA19: A9 | AB19: =+LEFT(AA19,1) -> A | AC19: =DEGREES(ACOS(SIN(Resultats!$H$11)*SIN(RADIANS(N19))+COS(Resultats!$H$11)*COS(RADIANS(N19))*COS(Resultats!$E$11-RADIANS(M19)))) -> 8.702456536 | AD19: =+IF(AB19=Data!$E$18,1,0) -> 1 | AE19: =+IF(AC19<Data!$B$17,1,0) -> 1 | AF19: =+IF(AND(AD19,AE19),1,0) -> 1
A20: 5360 | C20: 125349 | D20: 29086 | E20: 14 | F20: 17 | G20: 21.1 | H20: + | I20: 51 | J20: 18 | K20: 26 | L20: 14.28919444 | M20: 214.3379167 | N20: 51.30722222 | O20: 6.2 | Q20: 0.04 | Y20: A2IV | Z20: A2IV | AA20: A2 | AB20: =+LEFT(AA20,1) -> A | AC20: =DEGREES(ACOS(SIN(Resultats!$H$11)*SIN(RADIANS(N20))+COS(Resultats!$H$11)*COS(RADIANS(N20))*COS(Resultats!$E$11-RADIANS(M20)))) -> 8.844951358 | AD20: =+IF(AB20=Data!$E$18,1,0) -> 1 | AE20: =+IF(AC20<Data!$B$17,1,0) -> 1 | AF20: =+IF(AND(AD20,AE20),1,0) -> 1
A21: 4917 | C21: 112486 | D21: 28572 | E21: 12 | F21: 56 | G21: 17.6 | H21: + | I21: 54 | J21: 5 | K21: 58 | L21: 12.93822222 | M21: 194.0733333 | N21: 54.09944444 | O21: 5.82 | Q21: 0.19 | S21: 0.08 | U21: 0.08 | Y21: A5m | Z21: A5m | AA21: A5 | AB21: =+LEFT(AA21,1) -> A | AC21: =DEGREES(ACOS(SIN(Resultats!$H$11)*SIN(RADIANS(N21))+COS(Resultats!$H$11)*COS(RADIANS(N21))*COS(Resultats!$E$11-RADIANS(M21)))) -> 8.87926178 | AD21: =+IF(AB21=Data!$E$18,1,0) -> 1 | AE21: =+IF(AC21<Data!$B$17,1,0) -> 1 | AF21: =+IF(AND(AD21,AE21),1,0) -> 1
A22: 5345 | C22: 125019 | D22: 29059 | E22: 14 | F22: 15 | G22: 16.9 | H22: + | I22: 52 | J22: 32 | K22: 9 | L22: 14.25469444 | M22: 213.8204167 | N22: 52.53583333 | O22: 6.58 | Q22: 0.1 | S22: 0.09 | Y22: A4V | Z22: A4V | AA22: A4 | AB22: =+LEFT(AA22,1) -> A | AC22: =DEGREES(ACOS(SIN(Resultats!$H$11)*SIN(RADIANS(N22))+COS(Resultats!$H$11)*COS(RADIANS(N22))*COS(Resultats!$E$11-RADIANS(M22)))) -> 9.153629764 | AD22: =+IF(AB22=Data!$E$18,1,0) -> 1 | AE22: =+IF(AC22<Data!$B$17,1,0) -> 1 | AF22: =+IF(AND(AD22,AE22),1,0) -> 1
A23: 4971 | B23: 17 CVn | C23: 114447 | D23: 63380 | E23: 13 | F23: 10 | G23: 3.2 | H23: + | I23: 38 | J23: 29 | K23: 56 | L23: 13.16755556 | M23: 197.5133333 | N23: 38.49888889 | O23: 5.91 | Q23: 0.29 | Y23: A9III-IV | Z23: A9III | AA23: A9 | AB23: =+LEFT(AA23,1) -> A | AC23: =DEGREES(ACOS(SIN(Resultats!$H$11)*SIN(RADIANS(N23))+COS(Resultats!$H$11)*COS(RADIANS(N23))*COS(Resultats!$E$11-RADIANS(M23)))) -> 9.251291058 | AD23: =+IF(AB23=Data!$E$18,1,0) -> 1 | AE23: =+IF(AC23<Data!$B$17,1,0) -> 1 | AF23: =+IF(AND(AD23,AE23),1,0) -> 1
A24: 5153 | C24: 119213 | D24: 28838 | E24: 13 | F24: 40 | G24: 21.3 | H24: + | I24: 57 | J24: 12 | K24: 27 | L24: 13.67258333 | M24: 205.08875 | N24: 57.2075 | O24: 6.29 | Q24: 0.1 | S24: 0.02 | Y24: A2VpSrCrEu | Z24: A2VpS | AA24: A2 | AB24: =+LEFT(AA24,1) -> A | AC24: =DEGREES(ACOS(SIN(Resultats!$H$11)*SIN(RADIANS(N24))+COS(Resultats!$H$11)*COS(RADIANS(N24))*COS(Resultats!$E$11-RADIANS(M24)))) -> 10.32866434 | AD24: =+IF(AB24=Data!$E$18,1,0) -> 1 | AE24: =+IF(AC24<Data!$B$17,1,0) -> 1 | AF24: =+IF(AND(AD24,AE24),1,0) -> 1
A25: 4905 | B25: 77Eps UMa | C25: 112185 | D25: 28553 | E25: 12 | F25: 54 | G25: 1.7 | H25: + | I25: 55 | J25: 57 | K25: 35 | L25: 12.90047222 | M25: 193.5070833 | N25: 55.95972222 | O25: 1.77 | Q25: -0.02 | S25: 0.02 | U25: -0.03 | Y25: A0pCr | Z25: A0 | AA25: A0 | AB25: =+LEFT(AA25,1) -> A | AC25: =DEGREES(ACOS(SIN(Resultats!$H$11)*SIN(RADIANS(N25))+COS(Resultats!$H$11)*COS(RADIANS(N25))*COS(Resultats!$E$11-RADIANS(M25)))) -> 10.54694181 | AD25: =+IF(AB25=Data!$E$18,1,0) -> 1 | AE25: =+IF(AC25<Data!$B$17,1,0) -> 1 | AF25: =+IF(AND(AD25,AE25),1,0) -> 1
A26: 4915 | B26: 12Alp2CVn | C26: 112413 | D26: 63257 | E26: 12 | F26: 56 | G26: 1.7 | H26: + | I26: 38 | J26: 19 | K26: 6 | L26: 12.93380556 | M26: 194.0070833 | N26: 38.31833333 | O26: 2.9 | Q26: -0.12 | S26: -0.32 | U26: -0.06 | Y26: A0pSiEuHg | Z26: A0 | AA26: A0 | AB26: =+LEFT(AA26,1) -> A | AC26: =DEGREES(ACOS(SIN(Resultats!$H$11)*SIN(RADIANS(N26))+COS(Resultats!$H$11)*COS(RADIANS(N26))*COS(Resultats!$E$11-RADIANS(M26)))) -> 10.68090849 | AD26: =+IF(AB26=Data!$E$18,1,0) -> 1 | AE26: =+IF(AC26<Data!$B$17,1,0) -> 1 | AF26: =+IF(AND(AD26,AE26),1,0) -> 1
A27: 5127 | B27: 25 CVn | C27: 118623 | D27: 63648 | E27: 13 | F27: 37 | G27: 27.6 | H27: + | I27: 36 | J27: 17 | K27: 42 | L27: 13.62433333 | M27: 204.365 | N27: 36.295 | O27: 4.82 | Q27: 0.23 | S27: 0.09 | U27: 0.13 | Y27: A7III | Z27: A7III | AA27: A7 | AB27: =+LEFT(AA27,1) -> A | AC27: =DEGREES(ACOS(SIN(Resultats!$H$11)*SIN(RADIANS(N27))+COS(Resultats!$H$11)*COS(RADIANS(N27))*COS(Resultats!$E$11-RADIANS(M27)))) -> 10.79444387 | AD27: =+IF(AB27=Data!$E$18,1,0) -> 1 | AE27: =+IF(AC27<Data!$B$17,1,0) -> 1 | AF27: =+IF(AND(AD27,AE27),1,0) -> 1
A28: 5372 | C28: 125632 | D28: 29098 | E28: 14 | F28: 18 | G28: 55.8 | H28: + | I28: 54 | J28: 51 | K28: 51 | L28: 14.3155 | M28: 214.7325 | N28: 54.86416667 | O28: 6.53 | P28: R | Y28: A5Vn | Z28: A5Vn | AA28: A5 | AB28: =+LEFT(AA28,1) -> A | AC28: =DEGREES(ACOS(SIN(Resultats!$H$11)*SIN(RADIANS(N28))+COS(Resultats!$H$11)*COS(RADIANS(N28))*COS(Resultats!$E$11-RADIANS(M28)))) -> 10.98297975 | AD28: =+IF(AB28=Data!$E$18,1,0) -> 1 | AE28: =+IF(AC28<Data!$B$17,1,0) -> 1 | AF28: =+IF(AND(AD28,AE28),1,0) -> 1
A29: 5204 | C29: 120600 | D29: 63772 | E29: 13 | F29: 49 | G29: 45 | H29: + | I29: 36 | J29: 37 | K29: 58 | L29: 13.82916667 | M29: 207.4375 | N29: 36.63277778 | O29: 6.38 | P29: R | Y29: A7IV-V | Z29: A7IV | AA29: A7 | AB29: =+LEFT(AA29,1) -> A | AC29: =DEGREES(ACOS(SIN(Resultats!$H$11)*SIN(RADIANS(N29))+COS(Resultats!$H$11)*COS(RADIANS(N29))*COS(Resultats!$E$11-RADIANS(M29)))) -> 10.99504097 | AD29: =+IF(AB29=Data!$E$18,1,0) -> 1 | AE29: =+IF(AC29<Data!$B$17,1,0) -> 1 | AF29: =+IF(AND(AD29,AE29),1,0) -> 1
A30: 4811 | B30: 9 CVn | C30: 109980 | D30: 44265 | E30: 12 | F30: 38 | G30: 46.3 | H30: + | I30: 40 | J30: 52 | K30: 28 | L30: 12.64619444 | M30: 189.6929167 | N30: 40.87444444 | O30: 6.37 | Q30: 0.18 | S30: 0.07 | Y30: A7Vn | Z30: A7Vn | AA30: A7 | AB30: =+LEFT(AA30,1) -> A | AC30: =DEGREES(ACOS(SIN(Resultats!$H$11)*SIN(RADIANS(N30))+COS(Resultats!$H$11)*COS(RADIANS(N30))*COS(Resultats!$E$11-RADIANS(M30)))) -> 11.04976245 | AD30: =+IF(AB30=Data!$E$18,1,0) -> 1 | AE30: =+IF(AC30<Data!$B$17,1,0) -> 1 | AF30: =+IF(AND(AD30,AE30),1,0) -> 1
A31: 5216 | C31: 120874 | D31: 28901 | E31: 13 | F31: 50 | G31: 27.7 | H31: + | I31: 58 | J31: 32 | K31: 22 | L31: 13.84102778 | M31: 207.6154167 | N31: 58.53944444 | O31: 6.46 | Q31: 0.09 | S31: 0.08 | Y31: A3V | Z31: A3V | AA31: A3 | AB31: =+LEFT(AA31,1) -> A | AC31: =DEGREES(ACOS(SIN(Resultats!$H$11)*SIN(RADIANS(N31))+COS(Resultats!$H$11)*COS(RADIANS(N31))*COS(Resultats!$E$11-RADIANS(M31)))) -> 11.93868423 | AD31: =+IF(AB31=Data!$E$18,1,0) -> 1 | AE31: =+IF(AC31<Data!$B$17,1,0) -> 1 | AF31: =+IF(AND(AD31,AE31),1,0) -> 1
A32: 4875 | C32: 111604 | D32: 63217 | E32: 12 | F32: 50 | G32: 10.7 | H32: + | I32: 37 | J32: 31 | K32: 1 | L32: 12.83630556 | M32: 192.5445833 | N32: 37.51694444 | O32: 5.89 | Q32: 0.15 | S32: 0.08 | Y32: A3V | Z32: A3V | AA32: A3 | AB32: =+LEFT(AA32,1) -> A | AC32: =DEGREES(ACOS(SIN(Resultats!$H$11)*SIN(RADIANS(N32))+COS(Resultats!$H$11)*COS(RADIANS(N32))*COS(Resultats!$E$11-RADIANS(M32)))) -> 11.98854118 | AD32: =+IF(AB32=Data!$E$18,1,0) -> 1 | AE32: =+IF(AC32<Data!$B$17,1,0) -> 1 | AF32: =+IF(AND(AD32,AE32),1,0) -> 1
A33: 5373 | C33: 125642 | D33: 64072 | E33: 14 | F33: 19 | G33: 47.7 | H33: + | I33: 38 | J33: 47 | K33: 38 | L33: 14.32991667 | M33: 214.94875 | N33: 38.79388889 | O33: 6.33 | Q33: 0.05 | S33: 0.05 | U33: -0.03 | Y33: A2V | Z33: A2V | AA33: A2 | AB33: =+LEFT(AA33,1) -> A | AC33: =DEGREES(ACOS(SIN(Resultats!$H$11)*SIN(RADIANS(N33))+COS(Resultats!$H$11)*COS(RADIANS(N33))*COS(Resultats!$E$11-RADIANS(M33)))) -> 12.24117093 | AD33: =+IF(AB33=Data!$E$18,1,0) -> 1 | AE33: =+IF(AC33<Data!$B$17,1,0) -> 1 | AF33: =+IF(AND(AD33,AE33),1,0) -> 1
A34: 5468 | B34: 33 Boo | C34: 129002 | D34: 45153 | E34: 14 | F34: 38 | G34: 50.2 | H34: + | I34: 44 | J34: 24 | K34: 16 | L34: 14.64727778 | M34: 219.7091667 | N34: 44.40444444 | O34: 5.39 | Q34: 0 | S34: -0.04 | Y34: A1V | Z34: A1V | AA34: A1 | AB34: =+LEFT(AA34,1) -> A | AC34: =DEGREES(ACOS(SIN(Resultats!$H$11)*SIN(RADIANS(N34))+COS(Resultats!$H$11)*COS(RADIANS(N34))*COS(Resultats!$E$11-RADIANS(M34)))) -> 12.26886096 | AD34: =+IF(AB34=Data!$E$18,1,0) -> 1 | AE34: =+IF(AC34<Data!$B$17,1,0) -> 1 | AF34: =+IF(AND(AD34,AE34),1,0) -> 1
A35: 5214 | C35: 120818 | D35: 63779 | E35: 13 | F35: 51 | G35: 4.5 | H35: + | I35: 34 | J35: 46 | K35: 21 | L35: 13.85125 | M35: 207.76875 | N35: 34.7725 | O35: 6.65 | Q35: 0.12 | S35: 0.07 | U35: 0.01 | Y35: A5IV | Z35: A5IV | AA35: A5 | AB35: =+LEFT(AA35,1) -> A | AC35: =DEGREES(ACOS(SIN(Resultats!$H$11)*SIN(RADIANS(N35))+COS(Resultats!$H$11)*COS(RADIANS(N35))*COS(Resultats!$E$11-RADIANS(M35)))) -> 12.85211625 | AD35: =+IF(AB35=Data!$E$18,1,0) -> 1 | AE35: =+IF(AC35<Data!$B$17,1,0) -> 1 | AF35: =+IF(AND(AD35,AE35),1,0) -> 1
A36: 5467 | C36: 128998 | D36: 29227 | E36: 14 | F36: 38 | G36: 15.2 | H36: + | I36: 54 | J36: 1 | K36: 24 | L36: 14.63755556 | M36: 219.5633333 | N36: 54.02333333 | O36: 5.85 | Q36: -0.01 | S36: 0 | Y36: A1V | Z36: A1V | AA36: A1 | AB36: =+LEFT(AA36,1) -> A | AC36: =DEGREES(ACOS(SIN(Resultats!$H$11)*SIN(RADIANS(N36))+COS(Resultats!$H$11)*COS(RADIANS(N36))*COS(Resultats!$E$11-RADIANS(M36)))) -> 12.87449057 | AD36: =+IF(AB36=Data!$E$18,1,0) -> 1 | AE36: =+IF(AC36<Data!$B$17,1,0) -> 1 | AF36: =+IF(AND(AD36,AE36),1,0) -> 1
A37: 5085 | C37: 117376 | D37: 16080 | E37: 13 | F37: 28 | G37: 27.1 | H37: + | I37: 59 | J37: 56 | K37: 45 | L37: 13.47419444 | M37: 202.1129167 | N37: 59.94583333 | O37: 5.4 | Q37: -0.01 | S37: -0.02 | Y37: A1Vn | Z37: A1Vn | AA37: A1 | AB37: =+LEFT(AA37,1) -> A | AC37: =DEGREES(ACOS(SIN(Resultats!$H$11)*SIN(RADIANS(N37))+COS(Resultats!$H$11)*COS(RADIANS(N37))*COS(Resultats!$E$11-RADIANS(M37)))) -> 12.94782667 | AD37: =+IF(AB37=Data!$E$18,1,0) -> 1 | AE37: =+IF(AC37<Data!$B$17,1,0) -> 1 | AF37: =+IF(AND(AD37,AE37),1,0) -> 1
A38: 4936 | C38: 113436 | D38: 28613 | E38: 13 | F38: 2 | G38: 40.4 | H38: + | I38: 59 | J38: 42 | K38: 58 | L38: 13.04455556 | M38: 195.6683333 | N38: 59.71611111 | O38: 6.53 | Q38: 0.05 | S38: 0.06 | U38: 0.03 | Y38: A3Vn | Z38: A3Vn | AA38: A3 | AB38: =+LEFT(AA38,1) -> A | AC38: =DEGREES(ACOS(SIN(Resultats!$H$11)*SIN(RADIANS(N38))+COS(Resultats!$H$11)*COS(RADIANS(N38))*COS(Resultats!$E$11-RADIANS(M38)))) -> 13.33682484 | AD38: =+IF(AB38=Data!$E$18,1,0) -> 1 | AE38: =+IF(AC38<Data!$B$17,1,0) -> 1 | AF38: =+IF(AND(AD38,AE38),1,0) -> 1
A39: 5435 | B39: 27Gam Boo | C39: 127762 | D39: 64203 | E39: 14 | F39: 32 | G39: 4.7 | H39: + | I39: 38 | J39: 18 | K39: 30 | L39: 14.53463889 | M39: 218.0195833 | N39: 38.30833333 | O39: 3.03 | Q39: 0.19 | S39: 0.12 | U39: 0.08 | Y39: A7III | Z39: A7III | AA39: A7 | AB39: =+LEFT(AA39,1) -> A | AC39: =DEGREES(ACOS(SIN(Resultats!$H$11)*SIN(RADIANS(N39))+COS(Resultats!$H$11)*COS(RADIANS(N39))*COS(Resultats!$E$11-RADIANS(M39)))) -> 14.30280673 | AD39: =+IF(AB39=Data!$E$18,1,0) -> 1 | AE39: =+IF(AC39<Data!$B$17,1,0) -> 1 | AF39: =+IF(AND(AD39,AE39),1,0) -> 1
A40: 4760 | B40: 74 UMa | C40: 108844 | D40: 28405 | E40: 12 | F40: 29 | G40: 57.3 | H40: + | I40: 58 | J40: 24 | K40: 21 | L40: 12.49925 | M40: 187.48875 | N40: 58.40583333 | O40: 5.35 | Q40: 0.2 | S40: 0.14 | U40: 0.06 | Y40: A5Del Del | Z40: A5Del | AA40: A5 | AB40: =+LEFT(AA40,1) -> A | AC40: =DEGREES(ACOS(SIN(Resultats!$H$11)*SIN(RADIANS(N40))+COS(Resultats!$H$11)*COS(RADIANS(N40))*COS(Resultats!$E$11-RADIANS(M40)))) -> 14.52044515 | AD40: =+IF(AB40=Data!$E$18,1,0) -> 1 | AE40: =+IF(AC40<Data!$B$17,1,0) -> 1 | AF40: =+IF(AND(AD40,AE40),1,0) -> 1
A41: 4816 | C41: 110066 | D41: 63118 | E41: 12 | F41: 39 | G41: 16.9 | H41: + | I41: 35 | J41: 57 | K41: 7 | L41: 12.65469444 | M41: 189.8204167 | N41: 35.95194444 | O41: 6.45 | Q41: 0.06 | S41: 0.03 | Y41: A0pSrCrEu | Z41: A0 | AA41: A0 | AB41: =+LEFT(AA41,1) -> A | AC41: =DEGREES(ACOS(SIN(Resultats!$H$11)*SIN(RADIANS(N41))+COS(Resultats!$H$11)*COS(RADIANS(N41))*COS(Resultats!$E$11-RADIANS(M41)))) -> 14.53305661 | AD41: =+IF(AB41=Data!$E$18,1,0) -> 1 | AE41: =+IF(AC41<Data!$B$17,1,0) -> 1 | AF41: =+IF(AND(AD41,AE41),1,0) -> 1
A42: 5067 | C42: 116957 | D42: 44611 | E42: 13 | F42: 26 | G42: 16.6 | H42: + | I42: 46 | J42: 1 | K42: 41 | L42: 13.43794444 | M42: 201.5691667 | N42: 46.02805556 | O42: 5.88 | Q42: 0.97 | X42: g | Y42: K0 | Z42: gK0 | AA42: K0 | AB42: =+LEFT(AA42,1) -> K | AC42: =DEGREES(ACOS(SIN(Resultats!$H$11)*SIN(RADIANS(N42))+COS(Resultats!$H$11)*COS(RADIANS(N42))*COS(Resultats!$E$11-RADIANS(M42)))) -> 1.164031289 | AD42: =+IF(AB42=Data!$E$18,1,0) -> 0 | AE42: =+IF(AC42<Data!$B$17,1,0) -> 1 | AF42: =+IF(AND(AD42,AE42),1,0) -> 0
A43: 5126 | C43: 118536 | D43: 44682 | E43: 13 | F43: 36 | G43: 39.8 | H43: + | I43: 49 | J43: 29 | K43: 12 | L43: 13.61105556 | M43: 204.1658333 | N43: 49.48666667 | O43: 6.49 | P43: R | Y43: K1III | Z43: K1III | AA43: K1 | AB43: =+LEFT(AA43,1) -> K | AC43: =DEGREES(ACOS(SIN(Resultats!$H$11)*SIN(RADIANS(N43))+COS(Resultats!$H$11)*COS(RADIANS(N43))*COS(Resultats!$E$11-RADIANS(M43)))) -> 2.722736499 | AD43: =+IF(AB43=Data!$E$18,1,0) -> 0 | AE43: =+IF(AC43<Data!$B$17,1,0) -> 1 | AF43: =+IF(AND(AD43,AE43),1,0) -> 0
A44: 5079 | C44: 117281 | D44: 28766 | E44: 13 | F44: 28 | G44: 11.7 | H44: + | I44: 50 | J44: 35 | K44: 14 | L44: 13.46991667 | M44: 202.04875 | N44: 50.58722222 | O44: 6.8 | P44: R | Y44: F1IV | Z44: F1IV | AA44: F1 | AB44: =+LEFT(AA44,1) -> F | AC44: =DEGREES(ACOS(SIN(Resultats!$H$11)*SIN(RADIANS(N44))+COS(Resultats!$H$11)*COS(RADIANS(N44))*COS(Resultats!$E$11-RADIANS(M44)))) -> 3.599498783 | AD44: =+IF(AB44=Data!$E$18,1,0) -> 0 | AE44: =+IF(AC44<Data!$B$17,1,0) -> 1 | AF44: =+IF(AND(AD44,AE44),1,0) -> 0
A45: 5083 | C45: 117361 | D45: 28771 | E45: 13 | F45: 28 | G45: 45.7 | H45: + | I45: 50 | J45: 43 | K45: 6 | L45: 13.47936111 | M45: 202.1904167 | N45: 50.71833333 | O45: 6.43 | Q45: 0.37 | S45: 0.05 | Y45: F0IV | Z45: F0IV | AA45: F0 | AB45: =+LEFT(AA45,1) -> F | AC45: =DEGREES(ACOS(SIN(Resultats!$H$11)*SIN(RADIANS(N45))+COS(Resultats!$H$11)*COS(RADIANS(N45))*COS(Resultats!$E$11-RADIANS(M45)))) -> 3.723897943 | AD45: =+IF(AB45=Data!$E$18,1,0) -> 0 | AE45: =+IF(AC45<Data!$B$17,1,0) -> 1 | AF45: =+IF(AND(AD45,AE45),1,0) -> 0
A46: 5191 | B46: 85Eta UMa | C46: 120315 | D46: 44752 | E46: 13 | F46: 47 | G46: 32.4 | H46: + | I46: 49 | J46: 18 | K46: 48 | L46: 13.79233333 | M46: 206.885 | N46: 49.31333333 | O46: 1.86 | Q46: -0.19 | S46: -0.67 | U46: -0.18 | Y46: B3V | Z46: B3V | AA46: B3 | AB46: =+LEFT(AA46,1) -> B | AC46: =DEGREES(ACOS(SIN(Resultats!$H$11)*SIN(RADIANS(N46))+COS(Resultats!$H$11)*COS(RADIANS(N46))*COS(Resultats!$E$11-RADIANS(M46)))) -> 3.72834708 | AD46: =+IF(AB46=Data!$E$18,1,0) -> 0 | AE46: =+IF(AC46<Data!$B$17,1,0) -> 1 | AF46: =+IF(AND(AD46,AE46),1,0) -> 0
A47: 5148 | C47: 119124 | D47: 28836 | E47: 13 | F47: 40 | G47: 23.2 | H47: + | I47: 50 | J47: 31 | K47: 10 | L47: 13.67311111 | M47: 205.0966667 | N47: 50.51944444 | O47: 6.32 | Q47: 0.54 | S47: -0.03 | Y47: F7-9V | Z47: F7-9V | AA47: F7 | AB47: =+LEFT(AA47,1) -> F | AC47: =DEGREES(ACOS(SIN(Resultats!$H$11)*SIN(RADIANS(N47))+COS(Resultats!$H$11)*COS(RADIANS(N47))*COS(Resultats!$E$11-RADIANS(M47)))) -> 3.913035075 | AD47: =+IF(AB47=Data!$E$18,1,0) -> 0 | AE47: =+IF(AC47<Data!$B$17,1,0) -> 1 | AF47: =+IF(AND(AD47,AE47),1,0) -> 0
A48: 5133 | C48: 118741 | D48: 28819 | E48: 13 | F48: 37 | G48: 43 | H48: + | I48: 50 | J48: 42 | K48: 53 | L48: 13.62861111 | M48: 204.4291667 | N48: 50.71472222 | O48: 6.48 | Q48: 1.55 | S48: 1.66 | U48: 1.05 | Y48: M2II-III+K3III | Z48: M2II | AA48: M2 | AB48: =+LEFT(AA48,1) -> M | AC48: =DEGREES(ACOS(SIN(Resultats!$H$11)*SIN(RADIANS(N48))+COS(Resultats!$H$11)*COS(RADIANS(N48))*COS(Resultats!$E$11-RADIANS(M48)))) -> 3.925217553 | AD48: =+IF(AB48=Data!$E$18,1,0) -> 0 | AE48: =+IF(AC48<Data!$B$17,1,0) -> 1 | AF48: =+IF(AND(AD48,AE48),1,0) -> 0
A49: 4945 | C49: 113847 | D49: 44465 | E49: 13 | F49: 5 | G49: 52.3 | H49: + | I49: 45 | J49: 16 | K49: 7 | L49: 13.09786111 | M49: 196.4679167 | N49: 45.26861111 | O49: 5.63 | Q49: 1.13 | Y49: K1III | Z49: K1III | AA49: K1 | AB49: =+LEFT(AA49,1) -> K | AC49: =DEGREES(ACOS(SIN(Resultats!$H$11)*SIN(RADIANS(N49))+COS(Resultats!$H$11)*COS(RADIANS(N49))*COS(Resultats!$E$11-RADIANS(M49)))) -> 4.522888917 | AD49: =+IF(AB49=Data!$E$18,1,0) -> 0 | AE49: =+IF(AC49<Data!$B$17,1,0) -> 1 | AF49: =+IF(AND(AD49,AE49),1,0) -> 0
A50: 5096 | C50: 117710 | D50: 44637 | E50: 13 | F50: 31 | G50: 15.8 | H50: + | I50: 42 | J50: 6 | K50: 22 | L50: 13.52105556 | M50: 202.8158333 | N50: 42.10611111 | O50: 6.08 | Q50: 1.05 | Y50: K2III | Z50: K2III | AA50: K2 | AB50: =+LEFT(AA50,1) -> K | AC50: =DEGREES(ACOS(SIN(Resultats!$H$11)*SIN(RADIANS(N50))+COS(Resultats!$H$11)*COS(RADIANS(N50))*COS(Resultats!$E$11-RADIANS(M50)))) -> 4.899049033 | AD50: =+IF(AB50=Data!$E$18,1,0) -> 0 | AE50: =+IF(AC50<Data!$B$17,1,0) -> 1 | AF50: =+IF(AND(AD50,AE50),1,0) -> 0
A51: 5271 | C51: 122675 | D51: 44858 | E51: 14 | F51: 2 | G51: 12.2 | H51: + | I51: 45 | J51: 45 | K51: 13 | L51: 14.03672222 | M51: 210.5508333 | N51: 45.75361111 | O51: 6.27 | Q51: 1.32 | S51: 1.45 | Y51: K2III | Z51: K2III | AA51: K2 | AB51: =+LEFT(AA51,1) -> K | AC51: =DEGREES(ACOS(SIN(Resultats!$H$11)*SIN(RADIANS(N51))+COS(Resultats!$H$11)*COS(RADIANS(N51))*COS(Resultats!$E$11-RADIANS(M51)))) -> 5.689699592 | AD51: =+IF(AB51=Data!$E$18,1,0) -> 0 | AE51: =+IF(AC51<Data!$B$17,1,0) -> 1 | AF51: =+IF(AND(AD51,AE51),1,0) -> 0
A52: 4919 | C52: 112570 | D52: 44398 | E52: 12 | F52: 57 | G52: 7.7 | H52: + | I52: 46 | J52: 10 | K52: 37 | L52: 12.95213889 | M52: 194.2820833 | N52: 46.17694444 | O52: 6.12 | Q52: 1.01 | S52: 0.8 | Y52: K0III-IV | Z52: K0III | AA52: K0 | AB52: =+LEFT(AA52,1) -> K | AC52: =DEGREES(ACOS(SIN(Resultats!$H$11)*SIN(RADIANS(N52))+COS(Resultats!$H$11)*COS(RADIANS(N52))*COS(Resultats!$E$11-RADIANS(M52)))) -> 5.704548707 | AD52: =+IF(AB52=Data!$E$18,1,0) -> 0 | AE52: =+IF(AC52<Data!$B$17,1,0) -> 1 | AF52: =+IF(AND(AD52,AE52),1,0) -> 0
A53: 5076 | C53: 117242 | D53: 28763 | E53: 13 | F53: 27 | G53: 59.5 | H53: + | I53: 52 | J53: 44 | K53: 45 | L53: 13.46652778 | M53: 201.9979167 | N53: 52.74583333 | O53: 6.34 | Q53: 0.23 | S53: 0.14 | Y53: F0 | Z53: F0 | AA53: F0 | AB53: =+LEFT(AA53,1) -> F | AC53: =DEGREES(ACOS(SIN(Resultats!$H$11)*SIN(RADIANS(N53))+COS(Resultats!$H$11)*COS(RADIANS(N53))*COS(Resultats!$E$11-RADIANS(M53)))) -> 5.754897835 | AD53: =+IF(AB53=Data!$E$18,1,0) -> 0 | AE53: =+IF(AC53<Data!$B$17,1,0) -> 1 | AF53: =+IF(AND(AD53,AE53),1,0) -> 0
A54: 5160 | C54: 119445 | D54: 44720 | E54: 13 | F54: 42 | G54: 28.8 | H54: + | I54: 41 | J54: 40 | K54: 27 | L54: 13.708 | M54: 205.62 | N54: 41.67416667 | O54: 6.3 | Q54: 0.86 | Y54: G6III | Z54: G6III | AA54: G6 | AB54: =+LEFT(AA54,1) -> G | AC54: =DEGREES(ACOS(SIN(Resultats!$H$11)*SIN(RADIANS(N54))+COS(Resultats!$H$11)*COS(RADIANS(N54))*COS(Resultats!$E$11-RADIANS(M54)))) -> 5.773201348 | AD54: =+IF(AB54=Data!$E$18,1,0) -> 0 | AE54: =+IF(AC54<Data!$B$17,1,0) -> 1 | AF54: =+IF(AND(AD54,AE54),1,0) -> 0
A55: 4909 | C55: 112264 | D55: 44383 | E55: 12 | F55: 54 | G55: 56.5 | H55: + | I55: 47 | J55: 11 | K55: 48 | L55: 12.91569444 | M55: 193.7354167 | N55: 47.19666667 | O55: 5.84 | Q55: 1.55 | S55: 1.57 | Y55: M5III | Z55: M5III | AA55: M5 | AB55: =+LEFT(AA55,1) -> M | AC55: =DEGREES(ACOS(SIN(Resultats!$H$11)*SIN(RADIANS(N55))+COS(Resultats!$H$11)*COS(RADIANS(N55))*COS(Resultats!$E$11-RADIANS(M55)))) -> 5.966526158 | AD55: =+IF(AB55=Data!$E$18,1,0) -> 0 | AE55: =+IF(AC55<Data!$B$17,1,0) -> 1 | AF55: =+IF(AND(AD55,AE55),1,0) -> 0
A56: 5077 | C56: 117261 | D56: 44621 | E56: 13 | F56: 28 | G56: 26.2 | H56: + | I56: 40 | J56: 43 | K56: 47 | L56: 13.47394444 | M56: 202.1091667 | N56: 40.72972222 | O56: 6.47 | Q56: 0.92 | Y56: G8III | Z56: G8III | AA56: G8 | AB56: =+LEFT(AA56,1) -> G | AC56: =DEGREES(ACOS(SIN(Resultats!$H$11)*SIN(RADIANS(N56))+COS(Resultats!$H$11)*COS(RADIANS(N56))*COS(Resultats!$E$11-RADIANS(M56)))) -> 6.276582271 | AD56: =+IF(AB56=Data!$E$18,1,0) -> 0 | AE56: =+IF(AC56<Data!$B$17,1,0) -> 1 | AF56: =+IF(AND(AD56,AE56),1,0) -> 0
A57: 5017 | B57: 20 CVn | C57: 115604 | D57: 44549 | E57: 13 | F57: 17 | G57: 32.5 | H57: + | I57: 40 | J57: 34 | K57: 21 | L57: 13.29236111 | M57: 199.3854167 | N57: 40.5725 | O57: 4.73 | Q57: 0.3 | S57: 0.21 | U57: 0.15 | Y57: F3III | Z57: F3III | AA57: F3 | AB57: =+LEFT(AA57,1) -> F | AC57: =DEGREES(ACOS(SIN(Resultats!$H$11)*SIN(RADIANS(N57))+COS(Resultats!$H$11)*COS(RADIANS(N57))*COS(Resultats!$E$11-RADIANS(M57)))) -> 6.807935012 | AD57: =+IF(AB57=Data!$E$18,1,0) -> 0 | AE57: =+IF(AC57<Data!$B$17,1,0) -> 1 | AF57: =+IF(AND(AD57,AE57),1,0) -> 0
A58: 5300 | B58: 13 Boo | C58: 123782 | D58: 44905 | E58: 14 | F58: 8 | G58: 17.3 | H58: + | I58: 49 | J58: 27 | K58: 29 | L58: 14.13813889 | M58: 212.0720833 | N58: 49.45805556 | O58: 5.25 | Q58: 1.65 | S58: 1.92 | U58: 1.12 | Y58: M1.5III | Z58: M1.5I | AA58: M1 | AB58: =+LEFT(AA58,1) -> M | AC58: =DEGREES(ACOS(SIN(Resultats!$H$11)*SIN(RADIANS(N58))+COS(Resultats!$H$11)*COS(RADIANS(N58))*COS(Resultats!$E$11-RADIANS(M58)))) -> 6.82783438 | AD58: =+IF(AB58=Data!$E$18,1,0) -> 0 | AE58: =+IF(AC58<Data!$B$17,1,0) -> 1 | AF58: =+IF(AND(AD58,AE58),1,0) -> 0
A59: 5032 | B59: 23 CVn | C59: 116010 | D59: 44570 | E59: 13 | F59: 20 | G59: 19 | H59: + | I59: 40 | J59: 9 | K59: 2 | L59: 13.33861111 | M59: 200.0791667 | N59: 40.15055556 | O59: 5.6 | Q59: 1.2 | Y59: K1III | Z59: K1III | AA59: K1 | AB59: =+LEFT(AA59,1) -> K | AC59: =DEGREES(ACOS(SIN(Resultats!$H$11)*SIN(RADIANS(N59))+COS(Resultats!$H$11)*COS(RADIANS(N59))*COS(Resultats!$E$11-RADIANS(M59)))) -> 7.069436363 | AD59: =+IF(AB59=Data!$E$18,1,0) -> 0 | AE59: =+IF(AC59<Data!$B$17,1,0) -> 1 | AF59: =+IF(AND(AD59,AE59),1,0) -> 0
A60: 5299 | C60: 123657 | D60: 44901 | E60: 14 | F60: 7 | G60: 55.8 | H60: + | I60: 43 | J60: 51 | K60: 16 | L60: 14.13216667 | M60: 211.9825 | N60: 43.85444444 | O60: 5.27 | Q60: 1.59 | S60: 1.66 | U60: 1.66 | Y60: M4.5:III | Z60: M4.5 | AA60: M4 | AB60: =+LEFT(AA60,1) -> M | AC60: =DEGREES(ACOS(SIN(Resultats!$H$11)*SIN(RADIANS(N60))+COS(Resultats!$H$11)*COS(RADIANS(N60))*COS(Resultats!$E$11-RADIANS(M60)))) -> 7.354327534 | AD60: =+IF(AB60=Data!$E$18,1,0) -> 0 | AE60: =+IF(AC60<Data!$B$17,1,0) -> 1 | AF60: =+IF(AND(AD60,AE60),1,0) -> 0
A61: 4997 | C61: 115004 | D61: 44519 | E61: 13 | F61: 13 | G61: 43 | H61: + | I61: 40 | J61: 9 | K61: 10 | L61: 13.22861111 | M61: 198.4291667 | N61: 40.15277778 | O61: 4.92 | Q61: 1.06 | S61: 0.93 | U61: 0.49 | Y61: G8IIIaCN0.5 | Z61: G8III | AA61: G8 | AB61: =+LEFT(AA61,1) -> G | AC61: =DEGREES(ACOS(SIN(Resultats!$H$11)*SIN(RADIANS(N61))+COS(Resultats!$H$11)*COS(RADIANS(N61))*COS(Resultats!$E$11-RADIANS(M61)))) -> 7.452626163 | AD61: =+IF(AB61=Data!$E$18,1,0) -> 0 | AE61: =+IF(AC61<Data!$B$17,1,0) -> 1 | AF61: =+IF(AND(AD61,AE61),1,0) -> 0
A62: 5154 | B62: 83 UMa | C62: 119228 | D62: 28843 | E62: 13 | F62: 40 | G62: 44.3 | H62: + | I62: 54 | J62: 40 | K62: 54 | L62: 13.67897222 | M62: 205.1845833 | N62: 54.68166667 | O62: 4.66 | Q62: 1.64 | S62: 1.96 | U62: 1.12 | Y62: M2IIIabBa0.5 | Z62: M2III | AA62: M2 | AB62: =+LEFT(AA62,1) -> M | AC62: =DEGREES(ACOS(SIN(Resultats!$H$11)*SIN(RADIANS(N62))+COS(Resultats!$H$11)*COS(RADIANS(N62))*COS(Resultats!$E$11-RADIANS(M62)))) -> 7.864970497 | AD62: =+IF(AB62=Data!$E$18,1,0) -> 0 | AE62: =+IF(AC62<Data!$B$17,1,0) -> 1 | AF62: =+IF(AND(AD62,AE62),1,0) -> 0
A63: 5187 | B63: 84 UMa | C63: 120198 | D63: 28885 | E63: 13 | F63: 46 | G63: 35.7 | H63: + | I63: 54 | J63: 25 | K63: 58 | L63: 13.77658333 | M63: 206.64875 | N63: 54.43277778 | O63: 5.7 | Q63: -0.08 | S63: -0.08 | Y63: B9pEuCr | Z63: B9pEu | AA63: B9 | AB63: =+LEFT(AA63,1) -> B | AC63: =DEGREES(ACOS(SIN(Resultats!$H$11)*SIN(RADIANS(N63))+COS(Resultats!$H$11)*COS(RADIANS(N63))*COS(Resultats!$E$11-RADIANS(M63)))) -> 7.879812528 | AD63: =+IF(AB63=Data!$E$18,1,0) -> 0 | AE63: =+IF(AC63<Data!$B$17,1,0) -> 1 | AF63: =+IF(AND(AD63,AE63),1,0) -> 0
A64: 4846 | C64: 110914 | D64: 44317 | E64: 12 | F64: 45 | G64: 7.8 | H64: + | I64: 45 | J64: 26 | K64: 25 | L64: 12.75216667 | M64: 191.2825 | N64: 45.44027778 | O64: 4.99 | Q64: 2.54 | S64: 6.33 | U64: 1.39 | Y64: C7I | Z64: C7I | AA64: C7 | AB64: =+LEFT(AA64,1) -> C | AC64: =DEGREES(ACOS(SIN(Resultats!$H$11)*SIN(RADIANS(N64))+COS(Resultats!$H$11)*COS(RADIANS(N64))*COS(Resultats!$E$11-RADIANS(M64)))) -> 7.909093287 | AD64: =+IF(AB64=Data!$E$18,1,0) -> 0 | AE64: =+IF(AC64<Data!$B$17,1,0) -> 1 | AF64: =+IF(AND(AD64,AE64),1,0) -> 0
A65: 5363 | C65: 125406 | D65: 44982 | E65: 14 | F65: 17 | G65: 49.2 | H65: + | I65: 48 | J65: 0 | K65: 6 | L65: 14.297 | M65: 214.455 | N65: 48.00166667 | O65: 6.32 | Q65: 0.44 | Y65: F5 | Z65: F5 | AA65: F5 | AB65: =+LEFT(AA65,1) -> F | AC65: =DEGREES(ACOS(SIN(Resultats!$H$11)*SIN(RADIANS(N65))+COS(Resultats!$H$11)*COS(RADIANS(N65))*COS(Resultats!$E$11-RADIANS(M65)))) -> 8.130045906 | AD65: =+IF(AB65=Data!$E$18,1,0) -> 0 | AE65: =+IF(AC65<Data!$B$17,1,0) -> 1 | AF65: =+IF(AND(AD65,AE65),1,0) -> 0
A66: 5199 | C66: 120499 | D66: 63763 | E66: 13 | F66: 48 | G66: 57.2 | H66: + | I66: 39 | J66: 32 | K66: 34 | L66: 13.81588889 | M66: 207.2383333 | N66: 39.54277778 | O66: 7.4 | Y66: M6IIIe | Z66: M6III | AA66: M6 | AB66: =+LEFT(AA66,1) -> M | AC66: =DEGREES(ACOS(SIN(Resultats!$H$11)*SIN(RADIANS(N66))+COS(Resultats!$H$11)*COS(RADIANS(N66))*COS(Resultats!$E$11-RADIANS(M66)))) -> 8.21269094 | AD66: =+IF(AB66=Data!$E$18,1,0) -> 0 | AE66: =+IF(AC66<Data!$B$17,1,0) -> 1 | AF66: =+IF(AND(AD66,AE66),1,0) -> 0
A67: 5108 | C67: 118156 | D67: 63616 | E67: 13 | F67: 34 | G67: 21.8 | H67: + | I67: 38 | J67: 47 | K67: 21 | L67: 13.57272222 | M67: 203.5908333 | N67: 38.78916667 | O67: 6.37 | Q67: 0.21 | S67: 0.11 | Y67: F0IV | Z67: F0IV | AA67: F0 | AB67: =+LEFT(AA67,1) -> F | AC67: =DEGREES(ACOS(SIN(Resultats!$H$11)*SIN(RADIANS(N67))+COS(Resultats!$H$11)*COS(RADIANS(N67))*COS(Resultats!$E$11-RADIANS(M67)))) -> 8.249393381 | AD67: =+IF(AB67=Data!$E$18,1,0) -> 0 | AE67: =+IF(AC67<Data!$B$17,1,0) -> 1 | AF67: =+IF(AND(AD67,AE67),1,0) -> 0
A68: 4843 | C68: 110834 | D68: 44307 | E68: 12 | F68: 44 | G68: 27.1 | H68: + | I68: 44 | J68: 6 | K68: 11 | L68: 12.74086111 | M68: 191.1129167 | N68: 44.10305556 | O68: 6.33 | Q68: 0.43 | Y68: F6IV | Z68: F6IV | AA68: F6 | AB68: =+LEFT(AA68,1) -> F | AC68: =DEGREES(ACOS(SIN(Resultats!$H$11)*SIN(RADIANS(N68))+COS(Resultats!$H$11)*COS(RADIANS(N68))*COS(Resultats!$E$11-RADIANS(M68)))) -> 8.474342263 | AD68: =+IF(AB68=Data!$E$18,1,0) -> 0 | AE68: =+IF(AC68<Data!$B$17,1,0) -> 1 | AF68: =+IF(AND(AD68,AE68),1,0) -> 0
A69: 5328 | B69: 17Kap1Boo | C69: 124674 | D69: 29045 | E69: 14 | F69: 13 | G69: 27.7 | H69: + | I69: 51 | J69: 47 | K69: 16 | L69: 14.22436111 | M69: 213.3654167 | N69: 51.78777778 | O69: 6.69 | Q69: 0.39 | S69: -0.04 | Y69: F1V | Z69: F1V | AA69: F1 | AB69: =+LEFT(AA69,1) -> F | AC69: =DEGREES(ACOS(SIN(Resultats!$H$11)*SIN(RADIANS(N69))+COS(Resultats!$H$11)*COS(RADIANS(N69))*COS(Resultats!$E$11-RADIANS(M69)))) -> 8.52637284 | AD69: =+IF(AB69=Data!$E$18,1,0) -> 0 | AE69: =+IF(AC69<Data!$B$17,1,0) -> 1 | AF69: =+IF(AND(AD69,AE69),1,0) -> 0
A70: 5180 | C70: 120048 | D70: 63735 | E70: 13 | F70: 46 | G70: 19 | H70: + | I70: 38 | J70: 30 | K70: 14 | L70: 13.77194444 | M70: 206.5791667 | N70: 38.50388889 | O70: 5.94 | Q70: 0.94 | Y70: G9III | Z70: G9III | AA70: G9 | AB70: =+LEFT(AA70,1) -> G | AC70: =DEGREES(ACOS(SIN(Resultats!$H$11)*SIN(RADIANS(N70))+COS(Resultats!$H$11)*COS(RADIANS(N70))*COS(Resultats!$E$11-RADIANS(M70)))) -> 9.005303253 | AD70: =+IF(AB70=Data!$E$18,1,0) -> 0 | AE70: =+IF(AC70<Data!$B$17,1,0) -> 1 | AF70: =+IF(AND(AD70,AE70),1,0) -> 0
A71: 5186 | C71: 120164 | D71: 63739 | E71: 13 | F71: 46 | G71: 59.8 | H71: + | I71: 38 | J71: 32 | K71: 34 | L71: 13.78327778 | M71: 206.7491667 | N71: 38.54277778 | O71: 5.5 | Q71: 1.03 | S71: 0.84 | U71: 0.52 | Y71: K0III+F8V | Z71: K0III | AA71: K0 | AB71: =+LEFT(AA71,1) -> K | AC71: =DEGREES(ACOS(SIN(Resultats!$H$11)*SIN(RADIANS(N71))+COS(Resultats!$H$11)*COS(RADIANS(N71))*COS(Resultats!$E$11-RADIANS(M71)))) -> 9.010479549 | AD71: =+IF(AB71=Data!$E$18,1,0) -> 0 | AE71: =+IF(AC71<Data!$B$17,1,0) -> 1 | AF71: =+IF(AND(AD71,AE71),1,0) -> 0
A72: 5177 | C72: 119992 | D72: 28878 | E72: 13 | F72: 45 | G72: 13.2 | H72: + | I72: 55 | J72: 52 | K72: 46 | L72: 13.75366667 | M72: 206.305 | N72: 55.87944444 | O72: 6.5 | Q72: 0.47 | S72: -0.06 | Y72: F7IV-V | Z72: F7IV- | AA72: F7 | AB72: =+LEFT(AA72,1) -> F | AC72: =DEGREES(ACOS(SIN(Resultats!$H$11)*SIN(RADIANS(N72))+COS(Resultats!$H$11)*COS(RADIANS(N72))*COS(Resultats!$E$11-RADIANS(M72)))) -> 9.187175057 | AD72: =+IF(AB72=Data!$E$18,1,0) -> 0 | AE72: =+IF(AC72<Data!$B$17,1,0) -> 1 | AF72: =+IF(AND(AD72,AE72),1,0) -> 0
A73: 4967 | B73: 15 CVn | C73: 114376 | D73: 63374 | E73: 13 | F73: 9 | G73: 42 | H73: + | I73: 38 | J73: 32 | K73: 2 | L73: 13.16166667 | M73: 197.425 | N73: 38.53388889 | O73: 6.28 | Q73: -0.12 | S73: -0.48 | Y73: B7III | Z73: B7III | AA73: B7 | AB73: =+LEFT(AA73,1) -> B | AC73: =DEGREES(ACOS(SIN(Resultats!$H$11)*SIN(RADIANS(N73))+COS(Resultats!$H$11)*COS(RADIANS(N73))*COS(Resultats!$E$11-RADIANS(M73)))) -> 9.244525635 | AD73: =+IF(AB73=Data!$E$18,1,0) -> 0 | AE73: =+IF(AC73<Data!$B$17,1,0) -> 1 | AF73: =+IF(AND(AD73,AE73),1,0) -> 0
A74: 5335 | C74: 124755 | D74: 44952 | E74: 14 | F74: 14 | G74: 23.5 | H74: + | I74: 41 | J74: 31 | K74: 8 | L74: 14.23986111 | M74: 213.5979167 | N74: 41.51888889 | O74: 6.24 | Q74: 1.04 | X74: g | Y74: K3 | Z74: gK3 | AA74: K3 | AB74: =+LEFT(AA74,1) -> K | AC74: =DEGREES(ACOS(SIN(Resultats!$H$11)*SIN(RADIANS(N74))+COS(Resultats!$H$11)*COS(RADIANS(N74))*COS(Resultats!$E$11-RADIANS(M74)))) -> 9.640247168 | AD74: =+IF(AB74=Data!$E$18,1,0) -> 0 | AE74: =+IF(AC74<Data!$B$17,1,0) -> 1 | AF74: =+IF(AND(AD74,AE74),1,0) -> 0
A75: 5110 | C75: 118216 | D75: 63623 | E75: 13 | F75: 34 | G75: 47.8 | H75: + | I75: 37 | J75: 10 | K75: 57 | L75: 13.57994444 | M75: 203.6991667 | N75: 37.1825 | O75: 4.98 | Q75: 0.4 | S75: 0.06 | U75: 0.3 | Y75: F2IV | Z75: F2IV | AA75: F2 | AB75: =+LEFT(AA75,1) -> F | AC75: =DEGREES(ACOS(SIN(Resultats!$H$11)*SIN(RADIANS(N75))+COS(Resultats!$H$11)*COS(RADIANS(N75))*COS(Resultats!$E$11-RADIANS(M75)))) -> 9.857407317 | AD75: =+IF(AB75=Data!$E$18,1,0) -> 0 | AE75: =+IF(AC75<Data!$B$17,1,0) -> 1 | AF75: =+IF(AND(AD75,AE75),1,0) -> 0
A76: 5052 | C76: 116581 | D76: 63514 | E76: 13 | F76: 23 | G76: 54 | H76: + | I76: 37 | J76: 2 | K76: 2 | L76: 13.39833333 | M76: 200.975 | N76: 37.03388889 | O76: 6.07 | Q76: 1.68 | Y76: M3III | Z76: M3III | AA76: M3 | AB76: =+LEFT(AA76,1) -> M | AC76: =DEGREES(ACOS(SIN(Resultats!$H$11)*SIN(RADIANS(N76))+COS(Resultats!$H$11)*COS(RADIANS(N76))*COS(Resultats!$E$11-RADIANS(M76)))) -> 10.02974939 | AD76: =+IF(AB76=Data!$E$18,1,0) -> 0 | AE76: =+IF(AC76<Data!$B$17,1,0) -> 1 | AF76: =+IF(AND(AD76,AE76),1,0) -> 0
A77: 5420 | B77: 24 Boo | C77: 127243 | D77: 29165 | E77: 14 | F77: 28 | G77: 37.8 | H77: + | I77: 49 | J77: 50 | K77: 41 | L77: 14.47716667 | M77: 217.1575 | N77: 49.84472222 | O77: 5.59 | Q77: 0.85 | S77: 0.44 | Y77: G3IV | Z77: G3IV | AA77: G3 | AB77: =+LEFT(AA77,1) -> G | AC77: =DEGREES(ACOS(SIN(Resultats!$H$11)*SIN(RADIANS(N77))+COS(Resultats!$H$11)*COS(RADIANS(N77))*COS(Resultats!$E$11-RADIANS(M77)))) -> 10.11575836 | AD77: =+IF(AB77=Data!$E$18,1,0) -> 0 | AE77: =+IF(AC77<Data!$B$17,1,0) -> 1 | AF77: =+IF(AND(AD77,AE77),1,0) -> 0
A78: 5404 | B78: 23The Boo | C78: 126660 | D78: 29137 | E78: 14 | F78: 25 | G78: 11.8 | H78: + | I78: 51 | J78: 51 | K78: 3 | L78: 14.41994444 | M78: 216.2991667 | N78: 51.85083333 | O78: 4.05 | Q78: 0.5 | S78: 0.01 | U78: 0.25 | Y78: F7V | Z78: F7V | AA78: F7 | AB78: =+LEFT(AA78,1) -> F | AC78: =DEGREES(ACOS(SIN(Resultats!$H$11)*SIN(RADIANS(N78))+COS(Resultats!$H$11)*COS(RADIANS(N78))*COS(Resultats!$E$11-RADIANS(M78)))) -> 10.17940405 | AD78: =+IF(AB78=Data!$E$18,1,0) -> 0 | AE78: =+IF(AC78<Data!$B$17,1,0) -> 1 | AF78: =+IF(AND(AD78,AE78),1,0) -> 0
A79: 4964 | C79: 114357 | D79: 63372 | E79: 13 | F79: 9 | G79: 38.7 | H79: + | I79: 37 | J79: 25 | K79: 23 | L79: 13.16075 | M79: 197.41125 | N79: 37.42305556 | O79: 6.02 | Q79: 1.15 | Y79: K3III | Z79: K3III | AA79: K3 | AB79: =+LEFT(AA79,1) -> K | AC79: =DEGREES(ACOS(SIN(Resultats!$H$11)*SIN(RADIANS(N79))+COS(Resultats!$H$11)*COS(RADIANS(N79))*COS(Resultats!$E$11-RADIANS(M79)))) -> 10.28614109 | AD79: =+IF(AB79=Data!$E$18,1,0) -> 0 | AE79: =+IF(AC79<Data!$B$17,1,0) -> 1 | AF79: =+IF(AND(AD79,AE79),1,0) -> 0
A80: 4931 | B80: 78 UMa | C80: 113139 | D80: 28601 | E80: 13 | F80: 0 | G80: 43.8 | H80: + | I80: 56 | J80: 21 | K80: 59 | L80: 13.01216667 | M80: 195.1825 | N80: 56.36638889 | O80: 4.93 | Q80: 0.36 | S80: 0.01 | U80: 0.21 | Y80: F2V | Z80: F2V | AA80: F2 | AB80: =+LEFT(AA80,1) -> F | AC80: =DEGREES(ACOS(SIN(Resultats!$H$11)*SIN(RADIANS(N80))+COS(Resultats!$H$11)*COS(RADIANS(N80))*COS(Resultats!$E$11-RADIANS(M80)))) -> 10.39370793 | AD80: =+IF(AB80=Data!$E$18,1,0) -> 0 | AE80: =+IF(AC80<Data!$B$17,1,0) -> 1 | AF80: =+IF(AND(AD80,AE80),1,0) -> 0
A81: 4914 | B81: 12Alp1CVn | C81: 112412 | D81: 63256 | E81: 12 | F81: 56 | G81: 0.4 | H81: + | I81: 38 | J81: 18 | K81: 53 | L81: 12.93344444 | M81: 194.0016667 | N81: 38.31472222 | O81: 5.6 | Q81: 0.34 | S81: -0.03 | U81: 0.23 | Y81: F0V | Z81: F0V | AA81: F0 | AB81: =+LEFT(AA81,1) -> F | AC81: =DEGREES(ACOS(SIN(Resultats!$H$11)*SIN(RADIANS(N81))+COS(Resultats!$H$11)*COS(RADIANS(N81))*COS(Resultats!$E$11-RADIANS(M81)))) -> 10.68624949 | AD81: =+IF(AB81=Data!$E$18,1,0) -> 0 | AE81: =+IF(AC81<Data!$B$17,1,0) -> 1 | AF81: =+IF(AND(AD81,AE81),1,0) -> 0
A82: 4761 | B82: 7 CVn | C82: 108845 | D82: 28407 | E82: 12 | F82: 30 | G82: 2.9 | H82: + | I82: 51 | J82: 32 | K82: 8 | L82: 12.50080556 | M82: 187.5120833 | N82: 51.53555556 | O82: 6.21 | Q82: 0.51 | S82: 0.03 | Y82: F6-8V | Z82: F6-8V | AA82: F6 | AB82: =+LEFT(AA82,1) -> F | AC82: =DEGREES(ACOS(SIN(Resultats!$H$11)*SIN(RADIANS(N82))+COS(Resultats!$H$11)*COS(RADIANS(N82))*COS(Resultats!$E$11-RADIANS(M82)))) -> 10.75424894 | AD82: =+IF(AB82=Data!$E$18,1,0) -> 0 | AE82: =+IF(AC82<Data!$B$17,1,0) -> 1 | AF82: =+IF(AND(AD82,AE82),1,0) -> 0
A83: 5452 | C83: 128333 | D83: 45121 | E83: 14 | F83: 34 | G83: 39.6 | H83: + | I83: 49 | J83: 22 | K83: 6 | L83: 14.57766667 | M83: 218.665 | N83: 49.36833333 | O83: 5.74 | Q83: 1.56 | S83: 1.88 | U83: 0.72 | V83: E | Y83: M1IIIab | Z83: M1III | AA83: M1 | AB83: =+LEFT(AA83,1) -> M | AC83: =DEGREES(ACOS(SIN(Resultats!$H$11)*SIN(RADIANS(N83))+COS(Resultats!$H$11)*COS(RADIANS(N83))*COS(Resultats!$E$11-RADIANS(M83)))) -> 11.01195856 | AD83: =+IF(AB83=Data!$E$18,1,0) -> 0 | AE83: =+IF(AC83<Data!$B$17,1,0) -> 1 | AF83: =+IF(AND(AD83,AE83),1,0) -> 0
A84: 5347 | C84: 125111 | D84: 64040 | E84: 14 | F84: 16 | G84: 24.2 | H84: + | I84: 39 | J84: 44 | K84: 41 | L84: 14.27338889 | M84: 214.1008333 | N84: 39.74472222 | O84: 6.38 | Q84: 0.36 | S84: -0.07 | Y84: F2IV | Z84: F2IV | AA84: F2 | AB84: =+LEFT(AA84,1) -> F | AC84: =DEGREES(ACOS(SIN(Resultats!$H$11)*SIN(RADIANS(N84))+COS(Resultats!$H$11)*COS(RADIANS(N84))*COS(Resultats!$E$11-RADIANS(M84)))) -> 11.10338987 | AD84: =+IF(AB84=Data!$E$18,1,0) -> 0 | AE84: =+IF(AC84<Data!$B$17,1,0) -> 1 | AF84: =+IF(AND(AD84,AE84),1,0) -> 0
A85: 4767 | C85: 108954 | D85: 28413 | E85: 12 | F85: 30 | G85: 50.1 | H85: + | I85: 53 | J85: 4 | K85: 36 | L85: 12.51391667 | M85: 187.70875 | N85: 53.07666667 | O85: 6.21 | Q85: 0.54 | S85: 0.07 | Y85: F8-G0V | Z85: F8-G0 | AA85: F8 | AB85: =+LEFT(AA85,1) -> F | AC85: =DEGREES(ACOS(SIN(Resultats!$H$11)*SIN(RADIANS(N85))+COS(Resultats!$H$11)*COS(RADIANS(N85))*COS(Resultats!$E$11-RADIANS(M85)))) -> 11.24438254 | AD85: =+IF(AB85=Data!$E$18,1,0) -> 0 | AE85: =+IF(AC85<Data!$B$17,1,0) -> 1 | AF85: =+IF(AND(AD85,AE85),1,0) -> 0
A86: 4845 | B86: 10 CVn | C86: 110897 | D86: 63177 | E86: 12 | F86: 44 | G86: 59.5 | H86: + | I86: 39 | J86: 16 | K86: 44 | L86: 12.74986111 | M86: 191.2479167 | N86: 39.27888889 | O86: 5.95 | Q86: 0.55 | S86: -0.03 | U86: 0.29 | Y86: G0V | Z86: G0V | AA86: G0 | AB86: =+LEFT(AA86,1) -> G | AC86: =DEGREES(ACOS(SIN(Resultats!$H$11)*SIN(RADIANS(N86))+COS(Resultats!$H$11)*COS(RADIANS(N86))*COS(Resultats!$E$11-RADIANS(M86)))) -> 11.24971697 | AD86: =+IF(AB86=Data!$E$18,1,0) -> 0 | AE86: =+IF(AC86<Data!$B$17,1,0) -> 1 | AF86: =+IF(AND(AD86,AE86),1,0) -> 0
A87: 4785 | B87: 8Bet CVn | C87: 109358 | D87: 44230 | E87: 12 | F87: 33 | G87: 44.5 | H87: + | I87: 41 | J87: 21 | K87: 27 | L87: 12.56236111 | M87: 188.4354167 | N87: 41.3575 | O87: 4.26 | Q87: 0.59 | S87: 0.05 | U87: 0.31 | Y87: G0V | Z87: G0V | AA87: G0 | AB87: =+LEFT(AA87,1) -> G | AC87: =DEGREES(ACOS(SIN(Resultats!$H$11)*SIN(RADIANS(N87))+COS(Resultats!$H$11)*COS(RADIANS(N87))*COS(Resultats!$E$11-RADIANS(M87)))) -> 11.53321888 | AD87: =+IF(AB87=Data!$E$18,1,0) -> 0 | AE87: =+IF(AC87<Data!$B$17,1,0) -> 1 | AF87: =+IF(AND(AD87,AE87),1,0) -> 0
A88: 4716 | B88: 5 CVn | C88: 107950 | D88: 28366 | E88: 12 | F88: 24 | G88: 1.5 | H88: + | I88: 51 | J88: 33 | K88: 44 | L88: 12.40041667 | M88: 186.00625 | N88: 51.56222222 | O88: 4.8 | Q88: 0.87 | S88: 0.62 | U88: 0.44 | Y88: G6IIIBa0.2 | Z88: G6III | AA88: G6 | AB88: =+LEFT(AA88,1) -> G | AC88: =DEGREES(ACOS(SIN(Resultats!$H$11)*SIN(RADIANS(N88))+COS(Resultats!$H$11)*COS(RADIANS(N88))*COS(Resultats!$E$11-RADIANS(M88)))) -> 11.65399849 | AD88: =+IF(AB88=Data!$E$18,1,0) -> 0 | AE88: =+IF(AC88<Data!$B$17,1,0) -> 1 | AF88: =+IF(AND(AD88,AE88),1,0) -> 0
A89: 5423 | C89: 127334 | D89: 45075 | E89: 14 | F89: 29 | G89: 36.8 | H89: + | I89: 41 | J89: 47 | K89: 45 | L89: 14.49355556 | M89: 217.4033333 | N89: 41.79583333 | O89: 6.35 | Q89: 0.7 | S89: 0.21 | Y89: G5V | Z89: G5V | AA89: G5 | AB89: =+LEFT(AA89,1) -> G | AC89: =DEGREES(ACOS(SIN(Resultats!$H$11)*SIN(RADIANS(N89))+COS(Resultats!$H$11)*COS(RADIANS(N89))*COS(Resultats!$E$11-RADIANS(M89)))) -> 11.8260716 | AD89: =+IF(AB89=Data!$E$18,1,0) -> 0 | AE89: =+IF(AC89<Data!$B$17,1,0) -> 1 | AF89: =+IF(AND(AD89,AE89),1,0) -> 0
A90: 4690 | B90: 3 CVn | C90: 107274 | D90: 44127 | E90: 12 | F90: 19 | G90: 48.7 | H90: + | I90: 48 | J90: 59 | K90: 3 | L90: 12.33019444 | M90: 184.9529167 | N90: 48.98416667 | O90: 5.29 | Q90: 1.66 | S90: 1.97 | U90: 1.06 | Y90: M0III | Z90: M0III | AA90: M0 | AB90: =+LEFT(AA90,1) -> M | AC90: =DEGREES(ACOS(SIN(Resultats!$H$11)*SIN(RADIANS(N90))+COS(Resultats!$H$11)*COS(RADIANS(N90))*COS(Resultats!$E$11-RADIANS(M90)))) -> 11.88174661 | AD90: =+IF(AB90=Data!$E$18,1,0) -> 0 | AE90: =+IF(AC90<Data!$B$17,1,0) -> 1 | AF90: =+IF(AND(AD90,AE90),1,0) -> 0
A91: 5411 | C91: 126943 | D91: 45058 | E91: 14 | F91: 27 | G91: 27.3 | H91: + | I91: 41 | J91: 1 | K91: 30 | L91: 14.45758333 | M91: 216.86375 | N91: 41.025 | O91: 6.63 | Q91: 0.37 | S91: -0.05 | Y91: F1IV | Z91: F1IV | AA91: F1 | AB91: =+LEFT(AA91,1) -> F | AC91: =DEGREES(ACOS(SIN(Resultats!$H$11)*SIN(RADIANS(N91))+COS(Resultats!$H$11)*COS(RADIANS(N91))*COS(Resultats!$E$11-RADIANS(M91)))) -> 11.90699124 | AD91: =+IF(AB91=Data!$E$18,1,0) -> 0 | AE91: =+IF(AC91<Data!$B$17,1,0) -> 1 | AF91: =+IF(AND(AD91,AE91),1,0) -> 0
A92: 5025 | C92: 115810 | D92: 63468 | E92: 13 | F92: 19 | G92: 4.2 | H92: + | I92: 35 | J92: 7 | K92: 41 | L92: 13.31783333 | M92: 199.7675 | N92: 35.12805556 | O92: 6.02 | Q92: 0.24 | Y92: F0IV | Z92: F0IV | AA92: F0 | AB92: =+LEFT(AA92,1) -> F | AC92: =DEGREES(ACOS(SIN(Resultats!$H$11)*SIN(RADIANS(N92))+COS(Resultats!$H$11)*COS(RADIANS(N92))*COS(Resultats!$E$11-RADIANS(M92)))) -> 12.04729844 | AD92: =+IF(AB92=Data!$E$18,1,0) -> 0 | AE92: =+IF(AC92<Data!$B$17,1,0) -> 1 | AF92: =+IF(AND(AD92,AE92),1,0) -> 0
A93: 4943 | B93: 14 CVn | C93: 113797 | D93: 63338 | E93: 13 | F93: 5 | G93: 44.5 | H93: + | I93: 35 | J93: 47 | K93: 56 | L93: 13.09569444 | M93: 196.4354167 | N93: 35.79888889 | O93: 5.25 | Q93: -0.08 | S93: -0.2 | Y93: B9V | Z93: B9V | AA93: B9 | AB93: =+LEFT(AA93,1) -> B | AC93: =DEGREES(ACOS(SIN(Resultats!$H$11)*SIN(RADIANS(N93))+COS(Resultats!$H$11)*COS(RADIANS(N93))*COS(Resultats!$E$11-RADIANS(M93)))) -> 12.08019367 | AD93: =+IF(AB93=Data!$E$18,1,0) -> 0 | AE93: =+IF(AC93<Data!$B$17,1,0) -> 1 | AF93: =+IF(AND(AD93,AE93),1,0) -> 0
A94: 5369 | C94: 125538 | D94: 64064 | E94: 14 | F94: 18 | G94: 55.7 | H94: + | I94: 38 | J94: 46 | K94: 3 | L94: 14.31547222 | M94: 214.7320833 | N94: 38.7675 | O94: 6.86 | Q94: 1.06 | S94: 0.89 | Y94: G9IV | Z94: G9IV | AA94: G9 | AB94: =+LEFT(AA94,1) -> G | AC94: =DEGREES(ACOS(SIN(Resultats!$H$11)*SIN(RADIANS(N94))+COS(Resultats!$H$11)*COS(RADIANS(N94))*COS(Resultats!$E$11-RADIANS(M94)))) -> 12.1436998 | AD94: =+IF(AB94=Data!$E$18,1,0) -> 0 | AE94: =+IF(AC94<Data!$B$17,1,0) -> 1 | AF94: =+IF(AND(AD94,AE94),1,0) -> 0
A95: 5161 | C95: 119458 | D95: 63701 | E95: 13 | F95: 42 | G95: 43.4 | H95: + | I95: 34 | J95: 59 | K95: 20 | L95: 13.71205556 | M95: 205.6808333 | N95: 34.98888889 | O95: 5.98 | Q95: 0.85 | Y95: G5III | Z95: G5III | AA95: G5 | AB95: =+LEFT(AA95,1) -> G | AC95: =DEGREES(ACOS(SIN(Resultats!$H$11)*SIN(RADIANS(N95))+COS(Resultats!$H$11)*COS(RADIANS(N95))*COS(Resultats!$E$11-RADIANS(M95)))) -> 12.24585226 | AD95: =+IF(AB95=Data!$E$18,1,0) -> 0 | AE95: =+IF(AC95<Data!$B$17,1,0) -> 1 | AF95: =+IF(AND(AD95,AE95),1,0) -> 0
A96: 5464 | C96: 128902 | D96: 45145 | E96: 14 | F96: 38 | G96: 12.5 | H96: + | I96: 43 | J96: 38 | K96: 31 | L96: 14.63680556 | M96: 219.5520833 | N96: 43.64194444 | O96: 5.7 | Q96: 1.48 | S96: 1.68 | U96: 0.82 | Y96: K2III | Z96: K2III | AA96: K2 | AB96: =+LEFT(AA96,1) -> K | AC96: =DEGREES(ACOS(SIN(Resultats!$H$11)*SIN(RADIANS(N96))+COS(Resultats!$H$11)*COS(RADIANS(N96))*COS(Resultats!$E$11-RADIANS(M96)))) -> 12.42292537 | AD96: =+IF(AB96=Data!$E$18,1,0) -> 0 | AE96: =+IF(AC96<Data!$B$17,1,0) -> 1 | AF96: =+IF(AND(AD96,AE96),1,0) -> 0
A97: 4715 | B97: 4 CVn | C97: 107904 | D97: 44155 | E97: 12 | F97: 23 | G97: 47 | H97: + | I97: 42 | J97: 32 | K97: 34 | L97: 12.39638889 | M97: 185.9458333 | N97: 42.54277778 | O97: 6.06 | Q97: 0.33 | S97: 0.18 | Y97: F3III-IV | Z97: F3III | AA97: F3 | AB97: =+LEFT(AA97,1) -> F | AC97: =DEGREES(ACOS(SIN(Resultats!$H$11)*SIN(RADIANS(N97))+COS(Resultats!$H$11)*COS(RADIANS(N97))*COS(Resultats!$E$11-RADIANS(M97)))) -> 12.53903224 | AD97: =+IF(AB97=Data!$E$18,1,0) -> 0 | AE97: =+IF(AC97<Data!$B$17,1,0) -> 1 | AF97: =+IF(AND(AD97,AE97),1,0) -> 0
A98: 5442 | C98: 128000 | D98: 29191 | E98: 14 | F98: 32 | G98: 30.9 | H98: + | I98: 55 | J98: 23 | K98: 52 | L98: 14.54191667 | M98: 218.12875 | N98: 55.39777778 | O98: 5.76 | Q98: 1.5 | X98: g | Y98: K5 | Z98: gK5 | AA98: K5 | AB98: =+LEFT(AA98,1) -> K | AC98: =DEGREES(ACOS(SIN(Resultats!$H$11)*SIN(RADIANS(N98))+COS(Resultats!$H$11)*COS(RADIANS(N98))*COS(Resultats!$E$11-RADIANS(M98)))) -> 12.84915874 | AD98: =+IF(AB98=Data!$E$18,1,0) -> 0 | AE98: =+IF(AC98<Data!$B$17,1,0) -> 1 | AF98: =+IF(AND(AD98,AE98),1,0) -> 0
A99: 5215 | C99: 120819 | D99: 63781 | E99: 13 | F99: 51 | G99: 9.2 | H99: + | I99: 34 | J99: 39 | K99: 52 | L99: 13.85255556 | M99: 207.7883333 | N99: 34.66444444 | O99: 5.87 | Q99: 1.62 | S99: 1.96 | Y99: M2III | Z99: M2III | AA99: M2 | AB99: =+LEFT(AA99,1) -> M | AC99: =DEGREES(ACOS(SIN(Resultats!$H$11)*SIN(RADIANS(N99))+COS(Resultats!$H$11)*COS(RADIANS(N99))*COS(Resultats!$E$11-RADIANS(M99)))) -> 12.96034261 | AD99: =+IF(AB99=Data!$E$18,1,0) -> 0 | AE99: =+IF(AC99<Data!$B$17,1,0) -> 1 | AF99: =+IF(AND(AD99,AE99),1,0) -> 0
A100: 4745 | B100: 73 UMa | C100: 108502 | D100: 28394 | E100: 12 | F100: 27 | G100: 35.1 | H100: + | I100: 55 | J100: 42 | K100: 46 | L100: 12.45975 | M100: 186.89625 | N100: 55.71277778 | O100: 5.7 | Q100: 1.55 | Y100: M2IIIb | Z100: M2III | AA100: M2 | AB100: =+LEFT(AA100,1) -> M | AC100: =DEGREES(ACOS(SIN(Resultats!$H$11)*SIN(RADIANS(N100))+COS(Resultats!$H$11)*COS(RADIANS(N100))*COS(Resultats!$E$11-RADIANS(M100)))) -> 13.01770884 | AD100: =+IF(AB100=Data!$E$18,1,0) -> 0 | AE100: =+IF(AC100<Data!$B$17,1,0) -> 1 | AF100: =+IF(AND(AD100,AE100),1,0) -> 0
A101: 5022 | C101: 115723 | D101: 63462 | E101: 13 | F101: 18 | G101: 27.8 | H101: + | I101: 34 | J101: 5 | K101: 53 | L101: 13.30772222 | M101: 199.6158333 | N101: 34.09805556 | O101: 5.82 | Q101: 1.35 | Y101: K4.5III | Z101: K4.5I | AA101: K4 | AB101: =+LEFT(AA101,1) -> K | AC101: =DEGREES(ACOS(SIN(Resultats!$H$11)*SIN(RADIANS(N101))+COS(Resultats!$H$11)*COS(RADIANS(N101))*COS(Resultats!$E$11-RADIANS(M101)))) -> 13.08424608 | AD101: =+IF(AB101=Data!$E$18,1,0) -> 0 | AE101: =+IF(AC101<Data!$B$17,1,0) -> 1 | AF101: =+IF(AND(AD101,AE101),1,0) -> 0
A102: 4672 | C102: 106884 | D102: 28327 | E102: 12 | F102: 17 | G102: 29.5 | H102: + | I102: 53 | J102: 11 | K102: 28 | L102: 12.29152778 | M102: 184.3729167 | N102: 53.19111111 | O102: 5.81 | Q102: 1.3 | S102: 1.52 | Y102: K6III | Z102: K6III | AA102: K6 | AB102: =+LEFT(AA102,1) -> K | AC102: =DEGREES(ACOS(SIN(Resultats!$H$11)*SIN(RADIANS(N102))+COS(Resultats!$H$11)*COS(RADIANS(N102))*COS(Resultats!$E$11-RADIANS(M102)))) -> 13.12234466 | AD102: =+IF(AB102=Data!$E$18,1,0) -> 0 | AE102: =+IF(AC102<Data!$B$17,1,0) -> 1 | AF102: =+IF(AND(AD102,AE102),1,0) -> 0
A103: 5219 | C103: 120933 | D103: 63793 | E103: 13 | F103: 51 | G103: 47.5 | H103: + | I103: 34 | J103: 26 | K103: 39 | L103: 13.86319444 | M103: 207.9479167 | N103: 34.44416667 | O103: 4.74 | Q103: 1.66 | S103: 1.96 | U103: 1.28 | Y103: K5III | Z103: K5III | AA103: K5 | AB103: =+LEFT(AA103,1) -> K | AC103: =DEGREES(ACOS(SIN(Resultats!$H$11)*SIN(RADIANS(N103))+COS(Resultats!$H$11)*COS(RADIANS(N103))*COS(Resultats!$E$11-RADIANS(M103)))) -> 13.20873246 | AD103: =+IF(AB103=Data!$E$18,1,0) -> 0 | AE103: =+IF(AC103<Data!$B$17,1,0) -> 1 | AF103: =+IF(AND(AD103,AE103),1,0) -> 0
A104: 5402 | C104: 126597 | D104: 64137 | E104: 14 | F104: 25 | G104: 29.2 | H104: + | I104: 38 | J104: 23 | K104: 35 | L104: 14.42477778 | M104: 216.3716667 | N104: 38.39305556 | O104: 6.27 | Q104: 1.23 | S104: 1.26 | X104: g | Y104: K2 | Z104: gK2 | AA104: K2 | AB104: =+LEFT(AA104,1) -> K | AC104: =DEGREES(ACOS(SIN(Resultats!$H$11)*SIN(RADIANS(N104))+COS(Resultats!$H$11)*COS(RADIANS(N104))*COS(Resultats!$E$11-RADIANS(M104)))) -> 13.3074888 | AD104: =+IF(AB104=Data!$E$18,1,0) -> 0 | AE104: =+IF(AC104<Data!$B$17,1,0) -> 1 | AF104: =+IF(AND(AD104,AE104),1,0) -> 0
A105: 5538 | B105: 39 Boo | C105: 131041 | D105: 45231 | E105: 14 | F105: 49 | G105: 41.3 | H105: + | I105: 48 | J105: 43 | K105: 14 | L105: 14.82813889 | M105: 222.4220833 | N105: 48.72055556 | O105: 5.69 | Q105: 0.47 | Y105: F6V+F5V | Z105: F6V+F | AA105: F6 | AB105: =+LEFT(AA105,1) -> F | AC105: =DEGREES(ACOS(SIN(Resultats!$H$11)*SIN(RADIANS(N105))+COS(Resultats!$H$11)*COS(RADIANS(N105))*COS(Resultats!$E$11-RADIANS(M105)))) -> 13.43760641 | AD105: =+IF(AB105=Data!$E$18,1,0) -> 0 | AE105: =+IF(AC105<Data!$B$17,1,0) -> 1 | AF105: =+IF(AND(AD105,AE105),1,0) -> 0
A106: 4654 | C106: 106478 | D106: 28309 | E106: 12 | F106: 14 | G106: 43.4 | H106: + | I106: 53 | J106: 26 | K106: 5 | L106: 12.24538889 | M106: 183.6808333 | N106: 53.43472222 | O106: 6.16 | Q106: 1.04 | X106: g | Y106: K0 | Z106: gK0 | AA106: K0 | AB106: =+LEFT(AA106,1) -> K | AC106: =DEGREES(ACOS(SIN(Resultats!$H$11)*SIN(RADIANS(N106))+COS(Resultats!$H$11)*COS(RADIANS(N106))*COS(Resultats!$E$11-RADIANS(M106)))) -> 13.59528272 | AD106: =+IF(AB106=Data!$E$18,1,0) -> 0 | AE106: =+IF(AC106<Data!$B$17,1,0) -> 1 | AF106: =+IF(AND(AD106,AE106),1,0) -> 0
A107: 5302 | C107: 123977 | D107: 29019 | E107: 14 | F107: 8 | G107: 46 | H107: + | I107: 59 | J107: 20 | K107: 16 | L107: 14.14611111 | M107: 212.1916667 | N107: 59.33777778 | O107: 6.46 | Q107: 1.02 | S107: 0.82 | U107: 0.52 | Y107: K0III | Z107: K0III | AA107: K0 | AB107: =+LEFT(AA107,1) -> K | AC107: =DEGREES(ACOS(SIN(Resultats!$H$11)*SIN(RADIANS(N107))+COS(Resultats!$H$11)*COS(RADIANS(N107))*COS(Resultats!$E$11-RADIANS(M107)))) -> 13.60486073 | AD107: =+IF(AB107=Data!$E$18,1,0) -> 0 | AE107: =+IF(AC107<Data!$B$17,1,0) -> 1 | AF107: =+IF(AND(AD107,AE107),1,0) -> 0
A108: 5533 | B108: 38 Boo | C108: 130945 | D108: 45226 | E108: 14 | F108: 49 | G108: 18.7 | H108: + | I108: 46 | J108: 6 | K108: 58 | L108: 14.82186111 | M108: 222.3279167 | N108: 46.11611111 | O108: 5.74 | Q108: 0.48 | S108: 0 | Y108: F7IV w | Z108: F7IV | AA108: F7 | AB108: =+LEFT(AA108,1) -> F | AC108: =DEGREES(ACOS(SIN(Resultats!$H$11)*SIN(RADIANS(N108))+COS(Resultats!$H$11)*COS(RADIANS(N108))*COS(Resultats!$E$11-RADIANS(M108)))) -> 13.62612557 | AD108: =+IF(AB108=Data!$E$18,1,0) -> 0 | AE108: =+IF(AC108<Data!$B$17,1,0) -> 1 | AF108: =+IF(AND(AD108,AE108),1,0) -> 0
A109: 5537 | C109: 131040 | D109: 29296 | E109: 14 | F109: 49 | G109: 32.3 | H109: + | I109: 51 | J109: 22 | K109: 29 | L109: 14.82563889 | M109: 222.3845833 | N109: 51.37472222 | O109: 6.51 | Q109: 0.4 | S109: 0 | Y109: F5IV | Z109: F5IV | AA109: F5 | AB109: =+LEFT(AA109,1) -> F | AC109: =DEGREES(ACOS(SIN(Resultats!$H$11)*SIN(RADIANS(N109))+COS(Resultats!$H$11)*COS(RADIANS(N109))*COS(Resultats!$E$11-RADIANS(M109)))) -> 13.6622528 | AD109: =+IF(AB109=Data!$E$18,1,0) -> 0 | AE109: =+IF(AC109<Data!$B$17,1,0) -> 1 | AF109: =+IF(AND(AD109,AE109),1,0) -> 0
A110: 4726 | B110: 71 UMa | C110: 108135 | D110: 28375 | E110: 12 | F110: 25 | G110: 3.2 | H110: + | I110: 56 | J110: 46 | K110: 39 | L110: 12.41755556 | M110: 186.2633333 | N110: 56.7775 | O110: 5.81 | Q110: 1.62 | S110: 1.83 | U110: 1 | V110: E | Y110: M3IIIb | Z110: M3III | AA110: M3 | AB110: =+LEFT(AA110,1) -> M | AC110: =DEGREES(ACOS(SIN(Resultats!$H$11)*SIN(RADIANS(N110))+COS(Resultats!$H$11)*COS(RADIANS(N110))*COS(Resultats!$E$11-RADIANS(M110)))) -> 13.93461699 | AD110: =+IF(AB110=Data!$E$18,1,0) -> 0 | AE110: =+IF(AC110<Data!$B$17,1,0) -> 1 | AF110: =+IF(AND(AD110,AE110),1,0) -> 0
A111: 5451 | C111: 128332 | D111: 29202 | E111: 14 | F111: 34 | G111: 15.9 | H111: + | I111: 57 | J111: 3 | K111: 55 | L111: 14.57108333 | M111: 218.56625 | N111: 57.06527778 | O111: 6.48 | Q111: 0.49 | S111: -0.03 | Y111: F6-8V | Z111: F6-8V | AA111: F6 | AB111: =+LEFT(AA111,1) -> F | AC111: =DEGREES(ACOS(SIN(Resultats!$H$11)*SIN(RADIANS(N111))+COS(Resultats!$H$11)*COS(RADIANS(N111))*COS(Resultats!$E$11-RADIANS(M111)))) -> 14.0398943 | AD111: =+IF(AB111=Data!$E$18,1,0) -> 0 | AE111: =+IF(AC111<Data!$B$17,1,0) -> 1 | AF111: =+IF(AND(AD111,AE111),1,0) -> 0
A112: 4728 | B112: 6 CVn | C112: 108225 | D112: 63000 | E112: 12 | F112: 25 | G112: 50.9 | H112: + | I112: 39 | J112: 1 | K112: 7 | L112: 12.43080556 | M112: 186.4620833 | N112: 39.01861111 | O112: 5.02 | Q112: 0.96 | S112: 0.73 | U112: 0.46 | Y112: G9III | Z112: G9III | AA112: G9 | AB112: =+LEFT(AA112,1) -> G | AC112: =DEGREES(ACOS(SIN(Resultats!$H$11)*SIN(RADIANS(N112))+COS(Resultats!$H$11)*COS(RADIANS(N112))*COS(Resultats!$E$11-RADIANS(M112)))) -> 14.14272505 | AD112: =+IF(AB112=Data!$E$18,1,0) -> 0 | AE112: =+IF(AC112<Data!$B$17,1,0) -> 1 | AF112: =+IF(AND(AD112,AE112),1,0) -> 0
A113: 5581 | C113: 132254 | D113: 45288 | E113: 14 | F113: 56 | G113: 23 | H113: + | I113: 49 | J113: 37 | K113: 43 | L113: 14.93972222 | M113: 224.0958333 | N113: 49.62861111 | O113: 5.63 | Q113: 0.5 | S113: 0 | Y113: F7V | Z113: F7V | AA113: F7 | AB113: =+LEFT(AA113,1) -> F | AC113: =DEGREES(ACOS(SIN(Resultats!$H$11)*SIN(RADIANS(N113))+COS(Resultats!$H$11)*COS(RADIANS(N113))*COS(Resultats!$E$11-RADIANS(M113)))) -> 14.54792589 | AD113: =+IF(AB113=Data!$E$18,1,0) -> 0 | AE113: =+IF(AC113<Data!$B$17,1,0) -> 1 | AF113: =+IF(AND(AD113,AE113),1,0) -> 0
A114: 5361 | C114: 125351 | D114: 64053 | E114: 14 | F114: 17 | G114: 59.8 | H114: + | I114: 35 | J114: 30 | K114: 34 | L114: 14.29994444 | M114: 214.4991667 | N114: 35.50944444 | O114: 4.81 | Q114: 1.06 | S114: 0.92 | U114: 0.53 | Y114: K0III | Z114: K0III | AA114: K0 | AB114: =+LEFT(AA114,1) -> K | AC114: =DEGREES(ACOS(SIN(Resultats!$H$11)*SIN(RADIANS(N114))+COS(Resultats!$H$11)*COS(RADIANS(N114))*COS(Resultats!$E$11-RADIANS(M114)))) -> 14.57304468 | AD114: =+IF(AB114=Data!$E$18,1,0) -> 0 | AE114: =+IF(AC114<Data!$B$17,1,0) -> 1 | AF114: =+IF(AND(AD114,AE114),1,0) -> 0
A115: 4867 | C115: 111456 | D115: 15907 | E115: 12 | F115: 48 | G115: 39.4 | H115: + | I115: 60 | J115: 19 | K115: 12 | L115: 12.81094444 | M115: 192.1641667 | N115: 60.32 | O115: 5.85 | Q115: 0.46 | S115: -0.04 | U115: 0.28 | Y115: F5V | Z115: F5V | AA115: F5 | AB115: =+LEFT(AA115,1) -> F | AC115: =DEGREES(ACOS(SIN(Resultats!$H$11)*SIN(RADIANS(N115))+COS(Resultats!$H$11)*COS(RADIANS(N115))*COS(Resultats!$E$11-RADIANS(M115)))) -> 14.62054127 | AD115: =+IF(AB115=Data!$E$18,1,0) -> 0 | AE115: =+IF(AC115<Data!$B$17,1,0) -> 1 | AF115: =+IF(AND(AD115,AE115),1,0) -> 0
A116: 4666 | B116: 2 CVn | C116: 106690 | D116: 44097 | E116: 12 | F116: 16 | G116: 7.6 | H116: + | I116: 40 | J116: 39 | K116: 37 | L116: 12.26877778 | M116: 184.0316667 | N116: 40.66027778 | O116: 5.66 | Q116: 1.55 | S116: 1.96 | Y116: M1III+F7V | Z116: M1III | AA116: M1 | AB116: =+LEFT(AA116,1) -> M | AC116: =DEGREES(ACOS(SIN(Resultats!$H$11)*SIN(RADIANS(N116))+COS(Resultats!$H$11)*COS(RADIANS(N116))*COS(Resultats!$E$11-RADIANS(M116)))) -> 14.70619727 | AD116: =+IF(AB116=Data!$E$18,1,0) -> 0 | AE116: =+IF(AC116<Data!$B$17,1,0) -> 1 | AF116: =+IF(AND(AD116,AE116),1,0) -> 0
A117: 5213 | C117: 120787 | D117: 16186 | E117: 13 | F117: 49 | G117: 45.5 | H117: + | I117: 61 | J117: 29 | K117: 21 | L117: 13.82930556 | M117: 207.4395833 | N117: 61.48916667 | O117: 5.96 | Q117: 0.96 | S117: 0.64 | Y117: G3V | Z117: G3V | AA117: G3 | AB117: =+LEFT(AA117,1) -> G | AC117: =DEGREES(ACOS(SIN(Resultats!$H$11)*SIN(RADIANS(N117))+COS(Resultats!$H$11)*COS(RADIANS(N117))*COS(Resultats!$E$11-RADIANS(M117)))) -> 14.7634954 | AD117: =+IF(AB117=Data!$E$18,1,0) -> 0 | AE117: =+IF(AC117<Data!$B$17,1,0) -> 1 | AF117: =+IF(AND(AD117,AE117),1,0) -> 0
A118: 4762 | B118: 75 UMa | C118: 108861 | D118: 28408 | E118: 12 | F118: 30 | G118: 4.3 | H118: + | I118: 58 | J118: 46 | K118: 3 | L118: 12.50119444 | M118: 187.5179167 | N118: 58.7675 | O118: 6.08 | Q118: 0.98 | Y118: G8III-IV | Z118: G8III | AA118: G8 | AB118: =+LEFT(AA118,1) -> G | AC118: =DEGREES(ACOS(SIN(Resultats!$H$11)*SIN(RADIANS(N118))+COS(Resultats!$H$11)*COS(RADIANS(N118))*COS(Resultats!$E$11-RADIANS(M118)))) -> 14.76879428 | AD118: =+IF(AB118=Data!$E$18,1,0) -> 0 | AE118: =+IF(AC118<Data!$B$17,1,0) -> 1 | AF118: =+IF(AND(AD118,AE118),1,0) -> 0
A119: 4800 | C119: 109729 | D119: 28444 | E119: 12 | F119: 36 | G119: 23.3 | H119: + | I119: 59 | J119: 29 | K119: 13 | L119: 12.60647222 | M119: 189.0970833 | N119: 59.48694444 | O119: 5.5 | P119: H | Y119: M4IIIe | Z119: M4III | AA119: M4 | AB119: =+LEFT(AA119,1) -> M | AC119: =DEGREES(ACOS(SIN(Resultats!$H$11)*SIN(RADIANS(N119))+COS(Resultats!$H$11)*COS(RADIANS(N119))*COS(Resultats!$E$11-RADIANS(M119)))) -> 14.77961682 | AD119: =+IF(AB119=Data!$E$18,1,0) -> 0 | AE119: =+IF(AC119<Data!$B$17,1,0) -> 1 | AF119: =+IF(AND(AD119,AE119),1,0) -> 0
A120: 5493 | C120: 129846 | D120: 45190 | E120: 14 | F120: 43 | G120: 44.4 | H120: + | I120: 40 | J120: 27 | K120: 33 | L120: 14.729 | M120: 220.935 | N120: 40.45916667 | O120: 5.73 | Q120: 1.39 | Y120: K4III | Z120: K4III | AA120: K4 | AB120: =+LEFT(AA120,1) -> K | AC120: =DEGREES(ACOS(SIN(Resultats!$H$11)*SIN(RADIANS(N120))+COS(Resultats!$H$11)*COS(RADIANS(N120))*COS(Resultats!$E$11-RADIANS(M120)))) -> 14.79134366 | AD120: =+IF(AB120=Data!$E$18,1,0) -> 0 | AE120: =+IF(AC120<Data!$B$17,1,0) -> 1 | AF120: =+IF(AND(AD120,AE120),1,0) -> 0
A121: 5256 | C121: 122064 | D121: 16230 | E121: 13 | F121: 57 | G121: 32.1 | H121: + | I121: 61 | J121: 29 | K121: 34 | L121: 13.95891667 | M121: 209.38375 | N121: 61.49277778 | O121: 6.37 | P121: R | Y121: K3V | Z121: K3V | AA121: K3 | AB121: =+LEFT(AA121,1) -> K | AC121: =DEGREES(ACOS(SIN(Resultats!$H$11)*SIN(RADIANS(N121))+COS(Resultats!$H$11)*COS(RADIANS(N121))*COS(Resultats!$E$11-RADIANS(M121)))) -> 15.02057819 | AD121: =+IF(AB121=Data!$E$18,1,0) -> 0 | AE121: =+IF(AC121<Data!$B$17,1,0) -> 0 | AF121: =+IF(AND(AD121,AE121),1,0) -> 0
A122: 4701 | B122: 70 UMa | C122: 107465 | D122: 28346 | E122: 12 | F122: 20 | G122: 50.8 | H122: + | I122: 57 | J122: 51 | K122: 50 | L122: 12.34744444 | M122: 185.2116667 | N122: 57.86388889 | O122: 5.55 | Q122: 1.43 | S122: 1.71 | Y122: K5III | Z122: K5III | AA122: K5 | AB122: =+LEFT(AA122,1) -> K | AC122: =DEGREES(ACOS(SIN(Resultats!$H$11)*SIN(RADIANS(N122))+COS(Resultats!$H$11)*COS(RADIANS(N122))*COS(Resultats!$E$11-RADIANS(M122)))) -> 15.05257747 | AD122: =+IF(AB122=Data!$E$18,1,0) -> 0 | AE122: =+IF(AC122<Data!$B$17,1,0) -> 0 | AF122: =+IF(AND(AD122,AE122),1,0) -> 0
A123: 4904 | C123: 112171 | D123: 63244 | E123: 12 | F123: 54 | G123: 13.1 | H123: + | I123: 33 | J123: 32 | K123: 4 | L123: 12.90363889 | M123: 193.5545833 | N123: 33.53444444 | O123: 6.26 | Q123: 0.2 | S123: 0.09 | Y123: A7IV | Z123: A7IV | AA123: A7 | AB123: =+LEFT(AA123,1) -> A | AC123: =DEGREES(ACOS(SIN(Resultats!$H$11)*SIN(RADIANS(N123))+COS(Resultats!$H$11)*COS(RADIANS(N123))*COS(Resultats!$E$11-RADIANS(M123)))) -> 15.07293273 | AD123: =+IF(AB123=Data!$E$18,1,0) -> 1 | AE123: =+IF(AC123<Data!$B$17,1,0) -> 0 | AF123: =+IF(AND(AD123,AE123),1,0) -> 0
A124: 4660 | B124: 69Del UMa | C124: 106591 | D124: 28315 | E124: 12 | F124: 15 | G124: 25.6 | H124: + | I124: 57 | J124: 1 | K124: 57 | L124: 12.25711111 | M124: 183.8566667 | N124: 57.0325 | O124: 3.31 | Q124: 0.08 | S124: 0.07 | U124: 0 | Y124: A3V | Z124: A3V | AA124: A3 | AB124: =+LEFT(AA124,1) -> A | AC124: =DEGREES(ACOS(SIN(Resultats!$H$11)*SIN(RADIANS(N124))+COS(Resultats!$H$11)*COS(RADIANS(N124))*COS(Resultats!$E$11-RADIANS(M124)))) -> 15.15209708 | AD124: =+IF(AB124=Data!$E$18,1,0) -> 1 | AE124: =+IF(AC124<Data!$B$17,1,0) -> 0 | AF124: =+IF(AND(AD124,AE124),1,0) -> 0
A125: 5416 | C125: 127065 | D125: 64161 | E125: 14 | F125: 28 | G125: 16.4 | H125: + | I125: 36 | J125: 11 | K125: 49 | L125: 14.47122222 | M125: 217.0683333 | N125: 36.19694444 | O125: 6.1 | P125: R | Y125: K0III | Z125: K0III | AA125: K0 | AB125: =+LEFT(AA125,1) -> K | AC125: =DEGREES(ACOS(SIN(Resultats!$H$11)*SIN(RADIANS(N125))+COS(Resultats!$H$11)*COS(RADIANS(N125))*COS(Resultats!$E$11-RADIANS(M125)))) -> 15.29465294 | AD125: =+IF(AB125=Data!$E$18,1,0) -> 0 | AE125: =+IF(AC125<Data!$B$17,1,0) -> 0 | AF125: =+IF(AND(AD125,AE125),1,0) -> 0
A126: 5597 | C126: 133029 | D126: 45326 | E126: 15 | F126: 0 | G126: 38.7 | H126: + | I126: 47 | J126: 16 | K126: 40 | L126: 15.01075 | M126: 225.16125 | N126: 47.27777778 | O126: 6.37 | Q126: -0.14 | S126: -0.27 | Y126: B9pSiSrCr | Z126: B9pSi | AA126: B9 | AB126: =+LEFT(AA126,1) -> B | AC126: =DEGREES(ACOS(SIN(Resultats!$H$11)*SIN(RADIANS(N126))+COS(Resultats!$H$11)*COS(RADIANS(N126))*COS(Resultats!$E$11-RADIANS(M126)))) -> 15.36284047 | AD126: =+IF(AB126=Data!$E$18,1,0) -> 0 | AE126: =+IF(AC126<Data!$B$17,1,0) -> 0 | AF126: =+IF(AND(AD126,AE126),1,0) -> 0
A127: 4953 | C127: 113994 | D127: 15985 | E127: 13 | F127: 6 | G127: 22.7 | H127: + | I127: 62 | J127: 2 | K127: 31 | L127: 13.10630556 | M127: 196.5945833 | N127: 62.04194444 | O127: 6.14 | Q127: 0.99 | S127: 0.65 | Y127: G7III | Z127: G7III | AA127: G7 | AB127: =+LEFT(AA127,1) -> G | AC127: =DEGREES(ACOS(SIN(Resultats!$H$11)*SIN(RADIANS(N127))+COS(Resultats!$H$11)*COS(RADIANS(N127))*COS(Resultats!$E$11-RADIANS(M127)))) -> 15.4121056 | AD127: =+IF(AB127=Data!$E$18,1,0) -> 0 | AE127: =+IF(AC127<Data!$B$17,1,0) -> 0 | AF127: =+IF(AND(AD127,AE127),1,0) -> 0
A128: 5441 | C128: 127986 | D128: 64212 | E128: 14 | F128: 33 | G128: 20.3 | H128: + | I128: 36 | J128: 57 | K128: 34 | L128: 14.55563889 | M128: 218.3345833 | N128: 36.95944444 | O128: 6.43 | P128: R | Y128: F8IV w | Z128: F8IV | AA128: F8 | AB128: =+LEFT(AA128,1) -> F | AC128: =DEGREES(ACOS(SIN(Resultats!$H$11)*SIN(RADIANS(N128))+COS(Resultats!$H$11)*COS(RADIANS(N128))*COS(Resultats!$E$11-RADIANS(M128)))) -> 15.41942645 | AD128: =+IF(AB128=Data!$E$18,1,0) -> 0 | AE128: =+IF(AC128<Data!$B$17,1,0) -> 0 | AF128: =+IF(AND(AD128,AE128),1,0) -> 0
A129: 4974 | C129: 114504 | D129: 15999 | E129: 13 | F129: 9 | G129: 50.2 | H129: + | I129: 62 | J129: 13 | K129: 45 | L129: 13.16394444 | M129: 197.4591667 | N129: 62.22916667 | O129: 6.54 | Q129: -0.02 | S129: -0.02 | Y129: A1V | Z129: A1V | AA129: A1 | AB129: =+LEFT(AA129,1) -> A | AC129: =DEGREES(ACOS(SIN(Resultats!$H$11)*SIN(RADIANS(N129))+COS(Resultats!$H$11)*COS(RADIANS(N129))*COS(Resultats!$E$11-RADIANS(M129)))) -> 15.49497643 | AD129: =+IF(AB129=Data!$E$18,1,0) -> 1 | AE129: =+IF(AC129<Data!$B$17,1,0) -> 0 | AF129: =+IF(AND(AD129,AE129),1,0) -> 0
A130: 4641 | B130: 68 UMa | C130: 106002 | D130: 28291 | E130: 12 | F130: 11 | G130: 44.9 | H130: + | I130: 57 | J130: 3 | K130: 16 | L130: 12.19580556 | M130: 182.9370833 | N130: 57.05444444 | O130: 6.43 | P130: R | X130: g | Y130: K5 | Z130: gK5 | AA130: K5 | AB130: =+LEFT(AA130,1) -> K | AC130: =DEGREES(ACOS(SIN(Resultats!$H$11)*SIN(RADIANS(N130))+COS(Resultats!$H$11)*COS(RADIANS(N130))*COS(Resultats!$E$11-RADIANS(M130)))) -> 15.58521935 | AD130: =+IF(AB130=Data!$E$18,1,0) -> 0 | AE130: =+IF(AC130<Data!$B$17,1,0) -> 0 | AF130: =+IF(AND(AD130,AE130),1,0) -> 0
A131: 4840 | C131: 110678 | D131: 15877 | E131: 12 | F131: 43 | G131: 4.2 | H131: + | I131: 61 | J131: 9 | K131: 20 | L131: 12.71783333 | M131: 190.7675 | N131: 61.15555556 | O131: 6.38 | Q131: 1.26 | S131: 1.39 | Y131: K0 | Z131: K0 | AA131: K0 | AB131: =+LEFT(AA131,1) -> K | AC131: =DEGREES(ACOS(SIN(Resultats!$H$11)*SIN(RADIANS(N131))+COS(Resultats!$H$11)*COS(RADIANS(N131))*COS(Resultats!$E$11-RADIANS(M131)))) -> 15.68525323 | AD131: =+IF(AB131=Data!$E$18,1,0) -> 0 | AE131: =+IF(AC131<Data!$B$17,1,0) -> 0 | AF131: =+IF(AND(AD131,AE131),1,0) -> 0
A132: 5245 | C132: 121682 | D132: 63837 | E132: 13 | F132: 56 | G132: 10.5 | H132: + | I132: 32 | J132: 1 | K132: 57 | L132: 13.93625 | M132: 209.04375 | N132: 32.0325 | O132: 6.32 | Q132: 0.37 | S132: 0.06 | Y132: F4IV-V | Z132: F4IV | AA132: F4 | AB132: =+LEFT(AA132,1) -> F | AC132: =DEGREES(ACOS(SIN(Resultats!$H$11)*SIN(RADIANS(N132))+COS(Resultats!$H$11)*COS(RADIANS(N132))*COS(Resultats!$E$11-RADIANS(M132)))) -> 15.78150675 | AD132: =+IF(AB132=Data!$E$18,1,0) -> 0 | AE132: =+IF(AC132<Data!$B$17,1,0) -> 0 | AF132: =+IF(AND(AD132,AE132),1,0) -> 0
A133: 5448 | C133: 128198 | D133: 64227 | E133: 14 | F133: 34 | G133: 38.5 | H133: + | I133: 36 | J133: 37 | K133: 33 | L133: 14.57736111 | M133: 218.6604167 | N133: 36.62583333 | O133: 6.03 | Q133: 1.38 | X133: g | Y133: K5 | Z133: gK5 | AA133: K5 | AB133: =+LEFT(AA133,1) -> K | AC133: =DEGREES(ACOS(SIN(Resultats!$H$11)*SIN(RADIANS(N133))+COS(Resultats!$H$11)*COS(RADIANS(N133))*COS(Resultats!$E$11-RADIANS(M133)))) -> 15.84047565 | AD133: =+IF(AB133=Data!$E$18,1,0) -> 0 | AE133: =+IF(AC133<Data!$B$17,1,0) -> 0 | AF133: =+IF(AND(AD133,AE133),1,0) -> 0
A134: 5618 | B134: 44 Boo | C134: 133640 | D134: 45357 | E134: 15 | F134: 3 | G134: 47.4 | H134: + | I134: 47 | J134: 39 | K134: 16 | L134: 15.06316667 | M134: 225.9475 | N134: 47.65444444 | O134: 4.76 | Q134: 0.65 | S134: 0.11 | Y134: F9-G1Vn | Z134: F9-G1 | AA134: F9 | AB134: =+LEFT(AA134,1) -> F | AC134: =DEGREES(ACOS(SIN(Resultats!$H$11)*SIN(RADIANS(N134))+COS(Resultats!$H$11)*COS(RADIANS(N134))*COS(Resultats!$E$11-RADIANS(M134)))) -> 15.84574309 | AD134: =+IF(AB134=Data!$E$18,1,0) -> 0 | AE134: =+IF(AC134<Data!$B$17,1,0) -> 0 | AF134: =+IF(AND(AD134,AE134),1,0) -> 0
A135: 4594 | B135: 67 UMa | C135: 104513 | D135: 44002 | E135: 12 | F135: 2 | G135: 6.8 | H135: + | I135: 43 | J135: 2 | K135: 44 | L135: 12.03522222 | M135: 180.5283333 | N135: 43.04555556 | O135: 5.21 | Q135: 0.26 | S135: 0.07 | U135: 0.11 | Y135: F0Vam | Z135: F0V | AA135: F0 | AB135: =+LEFT(AA135,1) -> F | AC135: =DEGREES(ACOS(SIN(Resultats!$H$11)*SIN(RADIANS(N135))+COS(Resultats!$H$11)*COS(RADIANS(N135))*COS(Resultats!$E$11-RADIANS(M135)))) -> 15.9672637 | AD135: =+IF(AB135=Data!$E$18,1,0) -> 0 | AE135: =+IF(AC135<Data!$B$17,1,0) -> 0 | AF135: =+IF(AND(AD135,AE135),1,0) -> 0
A136: 5437 | C136: 127929 | D136: 16411 | E136: 14 | F136: 31 | G136: 42.8 | H136: + | I136: 60 | J136: 13 | K136: 32 | L136: 14.52855556 | M136: 217.9283333 | N136: 60.22555556 | O136: 6.27 | Q136: 0.24 | S136: 0.14 | Y136: F0III | Z136: F0III | AA136: F0 | AB136: =+LEFT(AA136,1) -> F | AC136: =DEGREES(ACOS(SIN(Resultats!$H$11)*SIN(RADIANS(N136))+COS(Resultats!$H$11)*COS(RADIANS(N136))*COS(Resultats!$E$11-RADIANS(M136)))) -> 15.9977374 | AD136: =+IF(AB136=Data!$E$18,1,0) -> 0 | AE136: =+IF(AC136<Data!$B$17,1,0) -> 0 | AF136: =+IF(AND(AD136,AE136),1,0) -> 0
A137: 5627 | B137: 47 Boo | C137: 133962 | D137: 45370 | E137: 15 | F137: 5 | G137: 25.8 | H137: + | I137: 48 | J137: 9 | K137: 4 | L137: 15.0905 | M137: 226.3575 | N137: 48.15111111 | O137: 5.57 | Q137: 0 | S137: -0.07 | Y137: A1V | Z137: A1V | AA137: A1 | AB137: =+LEFT(AA137,1) -> A | AC137: =DEGREES(ACOS(SIN(Resultats!$H$11)*SIN(RADIANS(N137))+COS(Resultats!$H$11)*COS(RADIANS(N137))*COS(Resultats!$E$11-RADIANS(M137)))) -> 16.07093581 | AD137: =+IF(AB137=Data!$E$18,1,0) -> 1 | AE137: =+IF(AC137<Data!$B$17,1,0) -> 0 | AF137: =+IF(AND(AD137,AE137),1,0) -> 0
A138: 5143 | C138: 119035 | D138: 63676 | E138: 13 | F138: 40 | G138: 15.6 | H138: + | I138: 31 | J138: 0 | K138: 43 | L138: 13.671 | M138: 205.065 | N138: 31.01194444 | O138: 6.21 | Q138: 0.96 | Y138: G5II: | Z138: G5II | AA138: G5 | AB138: =+LEFT(AA138,1) -> G | AC138: =DEGREES(ACOS(SIN(Resultats!$H$11)*SIN(RADIANS(N138))+COS(Resultats!$H$11)*COS(RADIANS(N138))*COS(Resultats!$E$11-RADIANS(M138)))) -> 16.10942789 | AD138: =+IF(AB138=Data!$E$18,1,0) -> 0 | AE138: =+IF(AC138<Data!$B$17,1,0) -> 0 | AF138: =+IF(AND(AD138,AE138),1,0) -> 0
A139: 4561 | B139: 65 UMa | C139: 103498 | D139: 43946 | E139: 11 | F139: 55 | G139: 11.2 | H139: + | I139: 46 | J139: 28 | K139: 11 | L139: 11.91977778 | M139: 178.7966667 | N139: 46.46972222 | O139: 7.03 | Q139: 0.01 | S139: 0.02 | Y139: A1pCrEuSr: | Z139: A1 | AA139: A1 | AB139: =+LEFT(AA139,1) -> A | AC139: =DEGREES(ACOS(SIN(Resultats!$H$11)*SIN(RADIANS(N139))+COS(Resultats!$H$11)*COS(RADIANS(N139))*COS(Resultats!$E$11-RADIANS(M139)))) -> 16.192256 | AD139: =+IF(AB139=Data!$E$18,1,0) -> 1 | AE139: =+IF(AC139<Data!$B$17,1,0) -> 0 | AF139: =+IF(AND(AD139,AE139),1,0) -> 0
A140: 4560 | B140: 65 UMa | C140: 103483 | D140: 43945 | E140: 11 | F140: 55 | G140: 5.7 | H140: + | I140: 46 | J140: 28 | K140: 37 | L140: 11.91825 | M140: 178.77375 | N140: 46.47694444 | O140: 6.54 | Q140: 0.1 | S140: 0.08 | Y140: A3Vn | Z140: A3V | AA140: A3 | AB140: =+LEFT(AA140,1) -> A | AC140: =DEGREES(ACOS(SIN(Resultats!$H$11)*SIN(RADIANS(N140))+COS(Resultats!$H$11)*COS(RADIANS(N140))*COS(Resultats!$E$11-RADIANS(M140)))) -> 16.20645422 | AD140: =+IF(AB140=Data!$E$18,1,0) -> 1 | AE140: =+IF(AC140<Data!$B$17,1,0) -> 0 | AF140: =+IF(AND(AD140,AE140),1,0) -> 0
A141: 5195 | C141: 120420 | D141: 63760 | E141: 13 | F141: 48 | G141: 38.7 | H141: + | I141: 31 | J141: 11 | K141: 25 | L141: 13.81075 | M141: 207.16125 | N141: 31.19027778 | O141: 5.62 | Q141: 1.01 | Y141: K0III | Z141: K0III | AA141: K0 | AB141: =+LEFT(AA141,1) -> K | AC141: =DEGREES(ACOS(SIN(Resultats!$H$11)*SIN(RADIANS(N141))+COS(Resultats!$H$11)*COS(RADIANS(N141))*COS(Resultats!$E$11-RADIANS(M141)))) -> 16.21057628 | AD141: =+IF(AB141=Data!$E$18,1,0) -> 0 | AE141: =+IF(AC141<Data!$B$17,1,0) -> 0 | AF141: =+IF(AND(AD141,AE141),1,0) -> 0
A142: 5070 | C142: 117043 | D142: 16071 | E142: 13 | F142: 25 | G142: 59.9 | H142: + | I142: 63 | J142: 15 | K142: 40 | L142: 13.43330556 | M142: 201.4995833 | N142: 63.26111111 | O142: 6.5 | Q142: 0.74 | S142: 0.3 | Y142: G6V | Z142: G6V | AA142: G6 | AB142: =+LEFT(AA142,1) -> G | AC142: =DEGREES(ACOS(SIN(Resultats!$H$11)*SIN(RADIANS(N142))+COS(Resultats!$H$11)*COS(RADIANS(N142))*COS(Resultats!$E$11-RADIANS(M142)))) -> 16.270679 | AD142: =+IF(AB142=Data!$E$18,1,0) -> 0 | AE142: =+IF(AC142<Data!$B$17,1,0) -> 0 | AF142: =+IF(AND(AD142,AE142),1,0) -> 0
A143: 5612 | C143: 133484 | D143: 45348 | E143: 15 | F143: 3 | G143: 6.6 | H143: + | I143: 44 | J143: 38 | K143: 40 | L143: 15.05183333 | M143: 225.7775 | N143: 44.64444444 | O143: 6.65 | Q143: 0.46 | S143: 0.04 | Y143: F6IV | Z143: F6IV | AA143: F6 | AB143: =+LEFT(AA143,1) -> F | AC143: =DEGREES(ACOS(SIN(Resultats!$H$11)*SIN(RADIANS(N143))+COS(Resultats!$H$11)*COS(RADIANS(N143))*COS(Resultats!$E$11-RADIANS(M143)))) -> 16.3300071 | AD143: =+IF(AB143=Data!$E$18,1,0) -> 0 | AE143: =+IF(AC143<Data!$B$17,1,0) -> 0 | AF143: =+IF(AND(AD143,AE143),1,0) -> 0
A144: 5648 | C144: 134493 | D144: 29420 | E144: 15 | F144: 8 | G144: 19.5 | H144: + | I144: 50 | J144: 3 | K144: 18 | L144: 15.13875 | M144: 227.08125 | N144: 50.055 | O144: 6.39 | Q144: 1.03 | Y144: K0III | Z144: K0III | AA144: K0 | AB144: =+LEFT(AA144,1) -> K | AC144: =DEGREES(ACOS(SIN(Resultats!$H$11)*SIN(RADIANS(N144))+COS(Resultats!$H$11)*COS(RADIANS(N144))*COS(Resultats!$E$11-RADIANS(M144)))) -> 16.48482587 | AD144: =+IF(AB144=Data!$E$18,1,0) -> 0 | AE144: =+IF(AC144<Data!$B$17,1,0) -> 0 | AF144: =+IF(AND(AD144,AE144),1,0) -> 0
A145: 4554 | B145: 64Gam UMa | C145: 103287 | D145: 28179 | E145: 11 | F145: 53 | G145: 49.8 | H145: + | I145: 53 | J145: 41 | K145: 41 | L145: 11.89716667 | M145: 178.4575 | N145: 53.69472222 | O145: 2.44 | Q145: 0 | S145: 0.02 | U145: -0.03 | Y145: A0Ve | Z145: A0V | AA145: A0 | AB145: =+LEFT(AA145,1) -> A | AC145: =DEGREES(ACOS(SIN(Resultats!$H$11)*SIN(RADIANS(N145))+COS(Resultats!$H$11)*COS(RADIANS(N145))*COS(Resultats!$E$11-RADIANS(M145)))) -> 16.63479766 | AD145: =+IF(AB145=Data!$E$18,1,0) -> 1 | AE145: =+IF(AC145<Data!$B$17,1,0) -> 0 | AF145: =+IF(AND(AD145,AE145),1,0) -> 0
A146: 5310 | C146: 124186 | D146: 63979 | E146: 14 | F146: 11 | G146: 15.1 | H146: + | I146: 32 | J146: 17 | K146: 44 | L146: 14.18752778 | M146: 212.8129167 | N146: 32.29555556 | O146: 6.11 | Q146: 1.26 | S146: 1.43 | Y146: K4III | Z146: K4III | AA146: K4 | AB146: =+LEFT(AA146,1) -> K | AC146: =DEGREES(ACOS(SIN(Resultats!$H$11)*SIN(RADIANS(N146))+COS(Resultats!$H$11)*COS(RADIANS(N146))*COS(Resultats!$E$11-RADIANS(M146)))) -> 16.67763097 | AD146: =+IF(AB146=Data!$E$18,1,0) -> 0 | AE146: =+IF(AC146<Data!$B$17,1,0) -> 0 | AF146: =+IF(AND(AD146,AE146),1,0) -> 0
A147: 5635 | C147: 134190 | D147: 29407 | E147: 15 | F147: 6 | G147: 16.7 | H147: + | I147: 54 | J147: 33 | K147: 23 | L147: 15.10463889 | M147: 226.5695833 | N147: 54.55638889 | O147: 5.25 | Q147: 0.96 | S147: 0.64 | U147: 0.49 | Y147: G7.5IIIFe-1 | Z147: G7.5I | AA147: G7 | AB147: =+LEFT(AA147,1) -> G | AC147: =DEGREES(ACOS(SIN(Resultats!$H$11)*SIN(RADIANS(N147))+COS(Resultats!$H$11)*COS(RADIANS(N147))*COS(Resultats!$E$11-RADIANS(M147)))) -> 16.87738922 | AD147: =+IF(AB147=Data!$E$18,1,0) -> 0 | AE147: =+IF(AC147<Data!$B$17,1,0) -> 0 | AF147: =+IF(AND(AD147,AE147),1,0) -> 0
A148: 4859 | C148: 111270 | D148: 15901 | E148: 12 | F148: 47 | G148: 18.9 | H148: + | I148: 62 | J148: 46 | K148: 51 | L148: 12.78858333 | M148: 191.82875 | N148: 62.78083333 | O148: 5.89 | P148: R | Y148: A9V | Z148: A9V | AA148: A9 | AB148: =+LEFT(AA148,1) -> A | AC148: =DEGREES(ACOS(SIN(Resultats!$H$11)*SIN(RADIANS(N148))+COS(Resultats!$H$11)*COS(RADIANS(N148))*COS(Resultats!$E$11-RADIANS(M148)))) -> 16.88015167 | AD148: =+IF(AB148=Data!$E$18,1,0) -> 1 | AE148: =+IF(AC148<Data!$B$17,1,0) -> 0 | AF148: =+IF(AND(AD148,AE148),1,0) -> 0
A149: 4934 | C149: 113337 | D149: 15962 | E149: 13 | F149: 1 | G149: 46.8 | H149: + | I149: 63 | J149: 36 | K149: 37 | L149: 13.02966667 | M149: 195.445 | N149: 63.61027778 | O149: 6 | Q149: 0.41 | S149: 0.02 | Y149: F6V | Z149: F6V | AA149: F6 | AB149: =+LEFT(AA149,1) -> F | AC149: =DEGREES(ACOS(SIN(Resultats!$H$11)*SIN(RADIANS(N149))+COS(Resultats!$H$11)*COS(RADIANS(N149))*COS(Resultats!$E$11-RADIANS(M149)))) -> 17.06426505 | AD149: =+IF(AB149=Data!$E$18,1,0) -> 0 | AE149: =+IF(AC149<Data!$B$17,1,0) -> 0 | AF149: =+IF(AND(AD149,AE149),1,0) -> 0
A150: 4833 | B150: 76 UMa | C150: 110462 | D150: 15871 | E150: 12 | F150: 41 | G150: 33.9 | H150: + | I150: 62 | J150: 42 | K150: 47 | L150: 12.69275 | M150: 190.39125 | N150: 62.71305556 | O150: 6.07 | Q150: 0.01 | S150: 0.07 | Y150: A2III | Z150: A2III | AA150: A2 | AB150: =+LEFT(AA150,1) -> A | AC150: =DEGREES(ACOS(SIN(Resultats!$H$11)*SIN(RADIANS(N150))+COS(Resultats!$H$11)*COS(RADIANS(N150))*COS(Resultats!$E$11-RADIANS(M150)))) -> 17.1232237 | AD150: =+IF(AB150=Data!$E$18,1,0) -> 1 | AE150: =+IF(AC150<Data!$B$17,1,0) -> 0 | AF150: =+IF(AND(AD150,AE150),1,0) -> 0
A151: 5529 | C151: 130817 | D151: 64344 | E151: 14 | F151: 49 | G151: 6.7 | H151: + | I151: 37 | J151: 48 | K151: 40 | L151: 14.81852778 | M151: 222.2779167 | N151: 37.81111111 | O151: 6.16 | Q151: 0.36 | S151: -0.07 | Y151: F2V | Z151: F2V | AA151: F2 | AB151: =+LEFT(AA151,1) -> F | AC151: =DEGREES(ACOS(SIN(Resultats!$H$11)*SIN(RADIANS(N151))+COS(Resultats!$H$11)*COS(RADIANS(N151))*COS(Resultats!$E$11-RADIANS(M151)))) -> 17.17953561 | AD151: =+IF(AB151=Data!$E$18,1,0) -> 0 | AE151: =+IF(AC151<Data!$B$17,1,0) -> 0 | AF151: =+IF(AND(AD151,AE151),1,0) -> 0
A152: 5552 | C152: 131507 | D152: 29315 | E152: 14 | F152: 51 | G152: 26.4 | H152: + | I152: 59 | J152: 17 | K152: 38 | L152: 14.85733333 | M152: 222.86 | N152: 59.29388889 | O152: 5.46 | Q152: 1.36 | S152: 1.6 | U152: 0.7 | Y152: K4III | Z152: K4III | AA152: K4 | AB152: =+LEFT(AA152,1) -> K | AC152: =DEGREES(ACOS(SIN(Resultats!$H$11)*SIN(RADIANS(N152))+COS(Resultats!$H$11)*COS(RADIANS(N152))*COS(Resultats!$E$11-RADIANS(M152)))) -> 17.19361948 | AD152: =+IF(AB152=Data!$E$18,1,0) -> 0 | AE152: =+IF(AC152<Data!$B$17,1,0) -> 0 | AF152: =+IF(AND(AD152,AE152),1,0) -> 0
A153: 4924 | B153: 37 Com | C153: 112989 | D153: 63288 | E153: 13 | F153: 0 | G153: 16.5 | H153: + | I153: 30 | J153: 47 | K153: 6 | L153: 13.00458333 | M153: 195.06875 | N153: 30.785 | O153: 4.9 | Q153: 1.17 | S153: 1.05 | U153: 0.58 | Y153: G9IIICH-2Fe1Ca | Z153: G9III | AA153: G9 | AB153: =+LEFT(AA153,1) -> G | AC153: =DEGREES(ACOS(SIN(Resultats!$H$11)*SIN(RADIANS(N153))+COS(Resultats!$H$11)*COS(RADIANS(N153))*COS(Resultats!$E$11-RADIANS(M153)))) -> 17.19590438 | AD153: =+IF(AB153=Data!$E$18,1,0) -> 0 | AE153: =+IF(AC153<Data!$B$17,1,0) -> 0 | AF153: =+IF(AND(AD153,AE153),1,0) -> 0
A154: 4784 | C154: 109345 | D154: 63072 | E154: 12 | F154: 33 | G154: 47.4 | H154: + | I154: 33 | J154: 23 | K154: 5 | L154: 12.56316667 | M154: 188.4475 | N154: 33.38472222 | O154: 6.24 | Q154: 1.05 | S154: 0.9 | U154: 0.52 | Y154: K0III | Z154: K0III | AA154: K0 | AB154: =+LEFT(AA154,1) -> K | AC154: =DEGREES(ACOS(SIN(Resultats!$H$11)*SIN(RADIANS(N154))+COS(Resultats!$H$11)*COS(RADIANS(N154))*COS(Resultats!$E$11-RADIANS(M154)))) -> 17.28159868 | AD154: =+IF(AB154=Data!$E$18,1,0) -> 0 | AE154: =+IF(AC154<Data!$B$17,1,0) -> 0 | AF154: =+IF(AND(AD154,AE154),1,0) -> 0
A155: 4566 | B155: 66 UMa | C155: 103605 | D155: 28191 | E155: 11 | F155: 55 | G155: 58.4 | H155: + | I155: 56 | J155: 35 | K155: 55 | L155: 11.93288889 | M155: 178.9933333 | N155: 56.59861111 | O155: 5.84 | Q155: 1.1 | Y155: K1III | Z155: K1III | AA155: K1 | AB155: =+LEFT(AA155,1) -> K | AC155: =DEGREES(ACOS(SIN(Resultats!$H$11)*SIN(RADIANS(N155))+COS(Resultats!$H$11)*COS(RADIANS(N155))*COS(Resultats!$E$11-RADIANS(M155)))) -> 17.28403397 | AD155: =+IF(AB155=Data!$E$18,1,0) -> 0 | AE155: =+IF(AC155<Data!$B$17,1,0) -> 0 | AF155: =+IF(AND(AD155,AE155),1,0) -> 0
A156: 4783 | C156: 109317 | D156: 63070 | E156: 12 | F156: 33 | G156: 38.9 | H156: + | I156: 33 | J156: 14 | K156: 51 | L156: 12.56080556 | M156: 188.4120833 | N156: 33.2475 | O156: 5.42 | Q156: 1 | S156: 0.83 | U156: 0.5 | Y156: K0IIICN-1 | Z156: K0III | AA156: K0 | AB156: =+LEFT(AA156,1) -> K | AC156: =DEGREES(ACOS(SIN(Resultats!$H$11)*SIN(RADIANS(N156))+COS(Resultats!$H$11)*COS(RADIANS(N156))*COS(Resultats!$E$11-RADIANS(M156)))) -> 17.41210498 | AD156: =+IF(AB156=Data!$E$18,1,0) -> 0 | AE156: =+IF(AC156<Data!$B$17,1,0) -> 0 | AF156: =+IF(AND(AD156,AE156),1,0) -> 0
A157: 4518 | B157: 63Chi UMa | C157: 102224 | D157: 43886 | E157: 11 | F157: 46 | G157: 3 | H157: + | I157: 47 | J157: 46 | K157: 46 | L157: 11.7675 | M157: 176.5125 | N157: 47.77944444 | O157: 3.71 | Q157: 1.18 | S157: 1.16 | U157: 0.6 | Y157: K0.5IIIb | Z157: K0.5I | AA157: K0 | AB157: =+LEFT(AA157,1) -> K | AC157: =DEGREES(ACOS(SIN(Resultats!$H$11)*SIN(RADIANS(N157))+COS(Resultats!$H$11)*COS(RADIANS(N157))*COS(Resultats!$E$11-RADIANS(M157)))) -> 17.52812037 | AD157: =+IF(AB157=Data!$E$18,1,0) -> 0 | AE157: =+IF(AC157<Data!$B$17,1,0) -> 0 | AF157: =+IF(AND(AD157,AE157),1,0) -> 0
A158: 5492 | C158: 129798 | D158: 16466 | E158: 14 | F158: 42 | G158: 3.2 | H158: + | I158: 61 | J158: 15 | K158: 43 | L158: 14.70088889 | M158: 220.5133333 | N158: 61.26194444 | O158: 6.25 | Q158: 0.41 | S158: -0.01 | U158: 0.2 | Y158: F2V | Z158: F2V | AA158: F2 | AB158: =+LEFT(AA158,1) -> F | AC158: =DEGREES(ACOS(SIN(Resultats!$H$11)*SIN(RADIANS(N158))+COS(Resultats!$H$11)*COS(RADIANS(N158))*COS(Resultats!$E$11-RADIANS(M158)))) -> 17.6158509 | AD158: =+IF(AB158=Data!$E$18,1,0) -> 0 | AE158: =+IF(AC158<Data!$B$17,1,0) -> 0 | AF158: =+IF(AND(AD158,AE158),1,0) -> 0
A159: 5075 | C159: 117201 | D159: 16079 | E159: 13 | F159: 27 | G159: 10.7 | H159: + | I159: 64 | J159: 43 | K159: 10 | L159: 13.45297222 | M159: 201.7945833 | N159: 64.71944444 | O159: 7.04 | Q159: 0.39 | S159: -0.01 | Y159: F0 | Z159: F0 | AA159: F0 | AB159: =+LEFT(AA159,1) -> F | AC159: =DEGREES(ACOS(SIN(Resultats!$H$11)*SIN(RADIANS(N159))+COS(Resultats!$H$11)*COS(RADIANS(N159))*COS(Resultats!$E$11-RADIANS(M159)))) -> 17.72359938 | AD159: =+IF(AB159=Data!$E$18,1,0) -> 0 | AE159: =+IF(AC159<Data!$B$17,1,0) -> 0 | AF159: =+IF(AND(AD159,AE159),1,0) -> 0
A160: 5541 | C160: 131111 | D160: 64355 | E160: 14 | F160: 50 | G160: 29.6 | H160: + | I160: 37 | J160: 16 | K160: 19 | L160: 14.84155556 | M160: 222.6233333 | N160: 37.27194444 | O160: 5.48 | Q160: 1.02 | S160: 0.84 | U160: 0.54 | Y160: K0III-IV | Z160: K0III | AA160: K0 | AB160: =+LEFT(AA160,1) -> K | AC160: =DEGREES(ACOS(SIN(Resultats!$H$11)*SIN(RADIANS(N160))+COS(Resultats!$H$11)*COS(RADIANS(N160))*COS(Resultats!$E$11-RADIANS(M160)))) -> 17.73220206 | AD160: =+IF(AB160=Data!$E$18,1,0) -> 0 | AE160: =+IF(AC160<Data!$B$17,1,0) -> 0 | AF160: =+IF(AND(AD160,AE160),1,0) -> 0
A161: 5074 | C161: 117200 | D161: 16078 | E161: 13 | F161: 27 | G161: 4.6 | H161: + | I161: 64 | J161: 44 | K161: 8 | L161: 13.45127778 | M161: 201.7691667 | N161: 64.73555556 | O161: 6.66 | Q161: 0.37 | S161: 0 | Y161: F0 | Z161: F0 | AA161: F0 | AB161: =+LEFT(AA161,1) -> F | AC161: =DEGREES(ACOS(SIN(Resultats!$H$11)*SIN(RADIANS(N161))+COS(Resultats!$H$11)*COS(RADIANS(N161))*COS(Resultats!$E$11-RADIANS(M161)))) -> 17.74000869 | AD161: =+IF(AB161=Data!$E$18,1,0) -> 0 | AE161: =+IF(AC161<Data!$B$17,1,0) -> 0 | AF161: =+IF(AND(AD161,AE161),1,0) -> 0
A162: 5602 | B162: 42Bet Boo | C162: 133208 | D162: 45337 | E162: 15 | F162: 1 | G162: 56.8 | H162: + | I162: 40 | J162: 23 | K162: 26 | L162: 15.03244444 | M162: 225.4866667 | N162: 40.39055556 | O162: 3.5 | Q162: 0.97 | S162: 0.72 | U162: 0.44 | Y162: G8IIIaBa0.3Fe- | Z162: G8III | AA162: G8 | AB162: =+LEFT(AA162,1) -> G | AC162: =DEGREES(ACOS(SIN(Resultats!$H$11)*SIN(RADIANS(N162))+COS(Resultats!$H$11)*COS(RADIANS(N162))*COS(Resultats!$E$11-RADIANS(M162)))) -> 17.80400772 | AD162: =+IF(AB162=Data!$E$18,1,0) -> 0 | AE162: =+IF(AC162<Data!$B$17,1,0) -> 0 | AF162: =+IF(AND(AD162,AE162),1,0) -> 0
A163: 5162 | C163: 119476 | D163: 16142 | E163: 13 | F163: 41 | G163: 29.9 | H163: + | I163: 64 | J163: 49 | K163: 21 | L163: 13.69163889 | M163: 205.3745833 | N163: 64.8225 | O163: 5.85 | Q163: 0.07 | S163: 0.08 | Y163: A2V | Z163: A2V | AA163: A2 | AB163: =+LEFT(AA163,1) -> A | AC163: =DEGREES(ACOS(SIN(Resultats!$H$11)*SIN(RADIANS(N163))+COS(Resultats!$H$11)*COS(RADIANS(N163))*COS(Resultats!$E$11-RADIANS(M163)))) -> 17.89071634 | AD163: =+IF(AB163=Data!$E$18,1,0) -> 1 | AE163: =+IF(AC163<Data!$B$17,1,0) -> 0 | AF163: =+IF(AND(AD163,AE163),1,0) -> 0
A164: 5226 | B164: 10 Dra | C164: 121130 | D164: 16199 | E164: 13 | F164: 51 | G164: 25.9 | H164: + | I164: 64 | J164: 43 | K164: 24 | L164: 13.85719444 | M164: 207.8579167 | N164: 64.72333333 | O164: 4.65 | Q164: 1.58 | S164: 1.89 | U164: 1.36 | Y164: M3.5III | Z164: M3.5I | AA164: M3 | AB164: =+LEFT(AA164,1) -> M | AC164: =DEGREES(ACOS(SIN(Resultats!$H$11)*SIN(RADIANS(N164))+COS(Resultats!$H$11)*COS(RADIANS(N164))*COS(Resultats!$E$11-RADIANS(M164)))) -> 17.96125705 | AD164: =+IF(AB164=Data!$E$18,1,0) -> 0 | AE164: =+IF(AC164<Data!$B$17,1,0) -> 0 | AF164: =+IF(AND(AD164,AE164),1,0) -> 0
A165: 4572 | C165: 103799 | D165: 43963 | E165: 11 | F165: 57 | G165: 14.6 | H165: + | I165: 40 | J165: 20 | K165: 37 | L165: 11.95405556 | M165: 179.3108333 | N165: 40.34361111 | O165: 6.62 | Q165: 0.46 | S165: -0.02 | Y165: F6V | Z165: F6V | AA165: F6 | AB165: =+LEFT(AA165,1) -> F | AC165: =DEGREES(ACOS(SIN(Resultats!$H$11)*SIN(RADIANS(N165))+COS(Resultats!$H$11)*COS(RADIANS(N165))*COS(Resultats!$E$11-RADIANS(M165)))) -> 17.96145073 | AD165: =+IF(AB165=Data!$E$18,1,0) -> 0 | AE165: =+IF(AC165<Data!$B$17,1,0) -> 0 | AF165: =+IF(AND(AD165,AE165),1,0) -> 0
A166: 5291 | B166: 11Alp Dra | C166: 123299 | D166: 16273 | E166: 14 | F166: 4 | G166: 23.3 | H166: + | I166: 64 | J166: 22 | K166: 33 | L166: 14.07313889 | M166: 211.0970833 | N166: 64.37583333 | O166: 3.65 | Q166: -0.05 | S166: -0.08 | U166: -0.07 | Y166: A0III | Z166: A0III | AA166: A0 | AB166: =+LEFT(AA166,1) -> A | AC166: =DEGREES(ACOS(SIN(Resultats!$H$11)*SIN(RADIANS(N166))+COS(Resultats!$H$11)*COS(RADIANS(N166))*COS(Resultats!$E$11-RADIANS(M166)))) -> 18.00076059 | AD166: =+IF(AB166=Data!$E$18,1,0) -> 1 | AE166: =+IF(AC166<Data!$B$17,1,0) -> 0 | AF166: =+IF(AND(AD166,AE166),1,0) -> 0
A167: 5588 | B167: 40 Boo | C167: 132772 | D167: 64449 | E167: 14 | F167: 59 | G167: 36.9 | H167: + | I167: 39 | J167: 15 | K167: 55 | L167: 14.99358333 | M167: 224.90375 | N167: 39.26527778 | O167: 5.64 | Q167: 0.31 | S167: 0.03 | Y167: F0-2IV-III | Z167: F0-2I | AA167: F0 | AB167: =+LEFT(AA167,1) -> F | AC167: =DEGREES(ACOS(SIN(Resultats!$H$11)*SIN(RADIANS(N167))+COS(Resultats!$H$11)*COS(RADIANS(N167))*COS(Resultats!$E$11-RADIANS(M167)))) -> 18.00167375 | AD167: =+IF(AB167=Data!$E$18,1,0) -> 0 | AE167: =+IF(AC167<Data!$B$17,1,0) -> 0 | AF167: =+IF(AND(AD167,AE167),1,0) -> 0
A168: 4521 | C168: 102328 | D168: 28142 | E168: 11 | F168: 46 | G168: 55.6 | H168: + | I168: 55 | J168: 37 | K168: 42 | L168: 11.78211111 | M168: 176.7316667 | N168: 55.62833333 | O168: 5.27 | Q168: 1.27 | S168: 1.48 | U168: 0.6 | Y168: K2.5IIIbCN1Ca1 | Z168: K2.5I | AA168: K2 | AB168: =+LEFT(AA168,1) -> K | AC168: =DEGREES(ACOS(SIN(Resultats!$H$11)*SIN(RADIANS(N168))+COS(Resultats!$H$11)*COS(RADIANS(N168))*COS(Resultats!$E$11-RADIANS(M168)))) -> 18.12229132 | AD168: =+IF(AB168=Data!$E$18,1,0) -> 0 | AE168: =+IF(AC168<Data!$B$17,1,0) -> 0 | AF168: =+IF(AND(AD168,AE168),1,0) -> 0
A169: 5436 | C169: 127821 | D169: 16406 | E169: 14 | F169: 30 | G169: 46.1 | H169: + | I169: 63 | J169: 11 | K169: 8 | L169: 14.51280556 | M169: 217.6920833 | N169: 63.18555556 | O169: 6.09 | Q169: 0.41 | S169: -0.04 | Y169: F4IV | Z169: F4IV | AA169: F4 | AB169: =+LEFT(AA169,1) -> F | AC169: =DEGREES(ACOS(SIN(Resultats!$H$11)*SIN(RADIANS(N169))+COS(Resultats!$H$11)*COS(RADIANS(N169))*COS(Resultats!$E$11-RADIANS(M169)))) -> 18.26585789 | AD169: =+IF(AB169=Data!$E$18,1,0) -> 0 | AE169: =+IF(AC169<Data!$B$17,1,0) -> 0 | AF169: =+IF(AND(AD169,AE169),1,0) -> 0
A170: 5715 | C170: 136729 | D170: 29487 | E170: 15 | F170: 20 | G170: 5.2 | H170: + | I170: 51 | J170: 57 | K170: 31 | L170: 15.33477778 | M170: 230.0216667 | N170: 51.95861111 | O170: 5.66 | Q170: 0.11 | S170: 0.11 | Y170: A4V | Z170: A4V | AA170: A4 | AB170: =+LEFT(AA170,1) -> A | AC170: =DEGREES(ACOS(SIN(Resultats!$H$11)*SIN(RADIANS(N170))+COS(Resultats!$H$11)*COS(RADIANS(N170))*COS(Resultats!$E$11-RADIANS(M170)))) -> 18.43224324 | AD170: =+IF(AB170=Data!$E$18,1,0) -> 1 | AE170: =+IF(AC170<Data!$B$17,1,0) -> 0 | AF170: =+IF(AND(AD170,AE170),1,0) -> 0
A171: 4948 | C171: 113865 | D171: 82648 | E171: 13 | F171: 6 | G171: 10.2 | H171: + | I171: 29 | J171: 1 | K171: 46 | L171: 13.10283333 | M171: 196.5425 | N171: 29.02944444 | O171: 6.54 | Q171: 0.05 | S171: 0.09 | Y171: A3IV | Z171: A3IV | AA171: A3 | AB171: =+LEFT(AA171,1) -> A | AC171: =DEGREES(ACOS(SIN(Resultats!$H$11)*SIN(RADIANS(N171))+COS(Resultats!$H$11)*COS(RADIANS(N171))*COS(Resultats!$E$11-RADIANS(M171)))) -> 18.55933137 | AD171: =+IF(AB171=Data!$E$18,1,0) -> 1 | AE171: =+IF(AC171<Data!$B$17,1,0) -> 0 | AF171: =+IF(AND(AD171,AE171),1,0) -> 0
A172: 4474 | C172: 101013 | D172: 28081 | E172: 11 | F172: 37 | G172: 53 | H172: + | I172: 50 | J172: 37 | K172: 6 | L172: 11.63138889 | M172: 174.4708333 | N172: 50.61833333 | O172: 6.14 | Q172: 1.07 | S172: 0.76 | U172: 0.48 | Y172: G9III:Ba2.5 | Z172: G9III | AA172: G9 | AB172: =+LEFT(AA172,1) -> G | AC172: =DEGREES(ACOS(SIN(Resultats!$H$11)*SIN(RADIANS(N172))+COS(Resultats!$H$11)*COS(RADIANS(N172))*COS(Resultats!$E$11-RADIANS(M172)))) -> 18.69243295 | AD172: =+IF(AB172=Data!$E$18,1,0) -> 0 | AE172: =+IF(AC172<Data!$B$17,1,0) -> 0 | AF172: =+IF(AND(AD172,AE172),1,0) -> 0
A173: 4500 | C173: 101604 | D173: 28101 | E173: 11 | F173: 41 | G173: 43.6 | H173: + | I173: 55 | J173: 10 | K173: 21 | L173: 11.69544444 | M173: 175.4316667 | N173: 55.1725 | O173: 6.27 | Q173: 1.49 | Y173: K5 | Z173: K5 | AA173: K5 | AB173: =+LEFT(AA173,1) -> K | AC173: =DEGREES(ACOS(SIN(Resultats!$H$11)*SIN(RADIANS(N173))+COS(Resultats!$H$11)*COS(RADIANS(N173))*COS(Resultats!$E$11-RADIANS(M173)))) -> 18.70521702 | AD173: =+IF(AB173=Data!$E$18,1,0) -> 0 | AE173: =+IF(AC173<Data!$B$17,1,0) -> 0 | AF173: =+IF(AND(AD173,AE173),1,0) -> 0
A174: 5608 | C174: 133388 | D174: 16574 | E174: 15 | F174: 1 | G174: 27.1 | H174: + | I174: 60 | J174: 12 | K174: 16 | L174: 15.02419444 | M174: 225.3629167 | N174: 60.20444444 | O174: 5.93 | Q174: 0.09 | S174: 0.1 | Y174: A4V | Z174: A4V | AA174: A4 | AB174: =+LEFT(AA174,1) -> A | AC174: =DEGREES(ACOS(SIN(Resultats!$H$11)*SIN(RADIANS(N174))+COS(Resultats!$H$11)*COS(RADIANS(N174))*COS(Resultats!$E$11-RADIANS(M174)))) -> 18.74876976 | AD174: =+IF(AB174=Data!$E$18,1,0) -> 1 | AE174: =+IF(AC174<Data!$B$17,1,0) -> 0 | AF174: =+IF(AND(AD174,AE174),1,0) -> 0
A175: 5229 | C175: 121164 | D175: 83055 | E175: 13 | F175: 53 | G175: 10.3 | H175: + | I175: 28 | J175: 38 | K175: 53 | L175: 13.88619444 | M175: 208.2929167 | N175: 28.64805556 | O175: 5.9 | Q175: 0.2 | S175: 0.14 | Y175: A7V | Z175: A7V | AA175: A7 | AB175: =+LEFT(AA175,1) -> A | AC175: =DEGREES(ACOS(SIN(Resultats!$H$11)*SIN(RADIANS(N175))+COS(Resultats!$H$11)*COS(RADIANS(N175))*COS(Resultats!$E$11-RADIANS(M175)))) -> 18.9002487 | AD175: =+IF(AB175=Data!$E$18,1,0) -> 1 | AE175: =+IF(AC175<Data!$B$17,1,0) -> 0 | AF175: =+IF(AND(AD175,AE175),1,0) -> 0
A176: 4480 | B176: 60 UMa | C176: 101133 | D176: 43839 | E176: 11 | F176: 38 | G176: 33.5 | H176: + | I176: 46 | J176: 50 | K176: 3 | L176: 11.64263889 | M176: 174.6395833 | N176: 46.83416667 | O176: 6.1 | Q176: 0.38 | S176: 0.14 | Y176: F5III s | Z176: F5III | AA176: F5 | AB176: =+LEFT(AA176,1) -> F | AC176: =DEGREES(ACOS(SIN(Resultats!$H$11)*SIN(RADIANS(N176))+COS(Resultats!$H$11)*COS(RADIANS(N176))*COS(Resultats!$E$11-RADIANS(M176)))) -> 18.9299638 | AD176: =+IF(AB176=Data!$E$18,1,0) -> 0 | AE176: =+IF(AC176<Data!$B$17,1,0) -> 0 | AF176: =+IF(AND(AD176,AE176),1,0) -> 0
A177: 5445 | C177: 128093 | D177: 64221 | E177: 14 | F177: 34 | G177: 11.7 | H177: + | I177: 32 | J177: 32 | K177: 4 | L177: 14.56991667 | M177: 218.54875 | N177: 32.53444444 | O177: 6.33 | Q177: 0.4 | S177: -0.03 | Y177: F5V | Z177: F5V | AA177: F5 | AB177: =+LEFT(AA177,1) -> F | AC177: =DEGREES(ACOS(SIN(Resultats!$H$11)*SIN(RADIANS(N177))+COS(Resultats!$H$11)*COS(RADIANS(N177))*COS(Resultats!$E$11-RADIANS(M177)))) -> 18.9346081 | AD177: =+IF(AB177=Data!$E$18,1,0) -> 0 | AE177: =+IF(AC177<Data!$B$17,1,0) -> 0 | AF177: =+IF(AND(AD177,AE177),1,0) -> 0
A178: 4916 | B178: 8 Dra | C178: 112429 | D178: 15941 | E178: 12 | F178: 55 | G178: 28.5 | H178: + | I178: 65 | J178: 26 | K178: 19 | L178: 12.92458333 | M178: 193.86875 | N178: 65.43861111 | O178: 5.24 | Q178: 0.28 | S178: 0.02 | Y178: F0V | Z178: F0V | AA178: F0 | AB178: =+LEFT(AA178,1) -> F | AC178: =DEGREES(ACOS(SIN(Resultats!$H$11)*SIN(RADIANS(N178))+COS(Resultats!$H$11)*COS(RADIANS(N178))*COS(Resultats!$E$11-RADIANS(M178)))) -> 19.01162066 | AD178: =+IF(AB178=Data!$E$18,1,0) -> 0 | AE178: =+IF(AC178<Data!$B$17,1,0) -> 0 | AF178: =+IF(AND(AD178,AE178),1,0) -> 0
A179: 5422 | C179: 127304 | D179: 64178 | E179: 14 | F179: 29 | G179: 49.7 | H179: + | I179: 31 | J179: 47 | K179: 28 | L179: 14.49713889 | M179: 217.4570833 | N179: 31.79111111 | O179: 6.06 | Q179: -0.03 | S179: -0.09 | Y179: A0V s | Z179: A0V s | AA179: A0 | AB179: =+LEFT(AA179,1) -> A | AC179: =DEGREES(ACOS(SIN(Resultats!$H$11)*SIN(RADIANS(N179))+COS(Resultats!$H$11)*COS(RADIANS(N179))*COS(Resultats!$E$11-RADIANS(M179)))) -> 19.03212719 | AD179: =+IF(AB179=Data!$E$18,1,0) -> 1 | AE179: =+IF(AC179<Data!$B$17,1,0) -> 0 | AF179: =+IF(AND(AD179,AE179),1,0) -> 0
A180: 4727 | C180: 108150 | D180: 15801 | E180: 12 | F180: 25 | G180: 6.4 | H180: + | I180: 63 | J180: 48 | K180: 10 | L180: 12.41844444 | M180: 186.2766667 | N180: 63.80277778 | O180: 6.32 | Q180: 0.91 | Y180: G8III | Z180: G8III | AA180: G8 | AB180: =+LEFT(AA180,1) -> G | AC180: =DEGREES(ACOS(SIN(Resultats!$H$11)*SIN(RADIANS(N180))+COS(Resultats!$H$11)*COS(RADIANS(N180))*COS(Resultats!$E$11-RADIANS(M180)))) -> 19.03551135 | AD180: =+IF(AB180=Data!$E$18,1,0) -> 0 | AE180: =+IF(AC180<Data!$B$17,1,0) -> 0 | AF180: =+IF(AND(AD180,AE180),1,0) -> 0
A181: 5145 | C181: 119081 | D181: 82944 | E181: 13 | F181: 40 | G181: 39.1 | H181: + | I181: 28 | J181: 3 | K181: 55 | L181: 13.67752778 | M181: 205.1629167 | N181: 28.06527778 | O181: 6.23 | Q181: 1.28 | S181: 1.5 | Y181: K3III | Z181: K3III | AA181: K3 | AB181: =+LEFT(AA181,1) -> K | AC181: =DEGREES(ACOS(SIN(Resultats!$H$11)*SIN(RADIANS(N181))+COS(Resultats!$H$11)*COS(RADIANS(N181))*COS(Resultats!$E$11-RADIANS(M181)))) -> 19.04913513 | AD181: =+IF(AB181=Data!$E$18,1,0) -> 0 | AE181: =+IF(AC181<Data!$B$17,1,0) -> 0 | AF181: =+IF(AND(AD181,AE181),1,0) -> 0
A182: 5677 | C182: 135530 | D182: 45445 | E182: 15 | F182: 14 | G182: 10.3 | H182: + | I182: 42 | J182: 10 | K182: 17 | L182: 15.23619444 | M182: 228.5429167 | N182: 42.17138889 | O182: 6.13 | Q182: 1.66 | S182: 1.93 | U182: 0.92 | V182: E | Y182: M2IIIa | Z182: M2III | AA182: M2 | AB182: =+LEFT(AA182,1) -> M | AC182: =DEGREES(ACOS(SIN(Resultats!$H$11)*SIN(RADIANS(N182))+COS(Resultats!$H$11)*COS(RADIANS(N182))*COS(Resultats!$E$11-RADIANS(M182)))) -> 19.06832336 | AD182: =+IF(AB182=Data!$E$18,1,0) -> 0 | AE182: =+IF(AC182<Data!$B$17,1,0) -> 0 | AF182: =+IF(AND(AD182,AE182),1,0) -> 0
A183: 5374 | C183: 125658 | D183: 64074 | E183: 14 | F183: 20 | G183: 8.7 | H183: + | I183: 30 | J183: 25 | K183: 45 | L183: 14.33575 | M183: 215.03625 | N183: 30.42916667 | O183: 6.44 | Q183: 0.15 | S183: 0.1 | U183: 0.05 | Y183: A5III | Z183: A5III | AA183: A5 | AB183: =+LEFT(AA183,1) -> A | AC183: =DEGREES(ACOS(SIN(Resultats!$H$11)*SIN(RADIANS(N183))+COS(Resultats!$H$11)*COS(RADIANS(N183))*COS(Resultats!$E$11-RADIANS(M183)))) -> 19.18752764 | AD183: =+IF(AB183=Data!$E$18,1,0) -> 1 | AE183: =+IF(AC183<Data!$B$17,1,0) -> 0 | AF183: =+IF(AND(AD183,AE183),1,0) -> 0
A184: 4486 | C184: 101177 | D184: 43841 | E184: 11 | F184: 38 | G184: 44.9 | H184: + | I184: 45 | J184: 6 | K184: 31 | L184: 11.64580556 | M184: 174.6870833 | N184: 45.10861111 | O184: 6.44 | Q184: 0.56 | S184: 0.05 | Y184: G0V | Z184: G0V | AA184: G0 | AB184: =+LEFT(AA184,1) -> G | AC184: =DEGREES(ACOS(SIN(Resultats!$H$11)*SIN(RADIANS(N184))+COS(Resultats!$H$11)*COS(RADIANS(N184))*COS(Resultats!$E$11-RADIANS(M184)))) -> 19.29152055 | AD184: =+IF(AB184=Data!$E$18,1,0) -> 0 | AE184: =+IF(AC184<Data!$B$17,1,0) -> 0 | AF184: =+IF(AND(AD184,AE184),1,0) -> 0
A185: 5716 | C185: 136751 | D185: 45497 | E185: 15 | F185: 20 | G185: 41.6 | H185: + | I185: 44 | J185: 26 | K185: 3 | L185: 15.34488889 | M185: 230.1733333 | N185: 44.43416667 | O185: 6.19 | Q185: 0.39 | S185: 0.04 | Y185: F3-4IV s | Z185: F3-4I | AA185: F3 | AB185: =+LEFT(AA185,1) -> F | AC185: =DEGREES(ACOS(SIN(Resultats!$H$11)*SIN(RADIANS(N185))+COS(Resultats!$H$11)*COS(RADIANS(N185))*COS(Resultats!$E$11-RADIANS(M185)))) -> 19.38817016 | AD185: =+IF(AB185=Data!$E$18,1,0) -> 0 | AE185: =+IF(AC185<Data!$B$17,1,0) -> 0 | AF185: =+IF(AND(AD185,AE185),1,0) -> 0
A186: 4983 | B186: 43Bet Com | C186: 114710 | D186: 82706 | E186: 13 | F186: 11 | G186: 52.4 | H186: + | I186: 27 | J186: 52 | K186: 41 | L186: 13.19788889 | M186: 197.9683333 | N186: 27.87805556 | O186: 4.26 | Q186: 0.57 | S186: 0.07 | U186: 0.3 | Y186: F9.5V | Z186: F9.5V | AA186: F9 | AB186: =+LEFT(AA186,1) -> F | AC186: =DEGREES(ACOS(SIN(Resultats!$H$11)*SIN(RADIANS(N186))+COS(Resultats!$H$11)*COS(RADIANS(N186))*COS(Resultats!$E$11-RADIANS(M186)))) -> 19.44888693 | AD186: =+IF(AB186=Data!$E$18,1,0) -> 0 | AE186: =+IF(AC186<Data!$B$17,1,0) -> 0 | AF186: =+IF(AND(AD186,AE186),1,0) -> 0
A187: 4575 | C187: 103953 | D187: 15673 | E187: 11 | F187: 58 | G187: 20.6 | H187: + | I187: 61 | J187: 27 | K187: 53 | L187: 11.97238889 | M187: 179.5858333 | N187: 61.46472222 | O187: 6.76 | Y187: K0III | Z187: K0III | AA187: K0 | AB187: =+LEFT(AA187,1) -> K | AC187: =DEGREES(ACOS(SIN(Resultats!$H$11)*SIN(RADIANS(N187))+COS(Resultats!$H$11)*COS(RADIANS(N187))*COS(Resultats!$E$11-RADIANS(M187)))) -> 19.50828341 | AD187: =+IF(AB187=Data!$E$18,1,0) -> 0 | AE187: =+IF(AC187<Data!$B$17,1,0) -> 0 | AF187: =+IF(AND(AD187,AE187),1,0) -> 0
A188: 4457 | C188: 100615 | D188: 28064 | E188: 11 | F188: 35 | G188: 4.9 | H188: + | I188: 54 | J188: 47 | K188: 7 | L188: 11.58469444 | M188: 173.7704167 | N188: 54.78527778 | O188: 5.63 | Q188: 1.02 | Y188: K0III | Z188: K0III | AA188: K0 | AB188: =+LEFT(AA188,1) -> K | AC188: =DEGREES(ACOS(SIN(Resultats!$H$11)*SIN(RADIANS(N188))+COS(Resultats!$H$11)*COS(RADIANS(N188))*COS(Resultats!$E$11-RADIANS(M188)))) -> 19.54645943 | AD188: =+IF(AB188=Data!$E$18,1,0) -> 0 | AE188: =+IF(AC188<Data!$B$17,1,0) -> 0 | AF188: =+IF(AND(AD188,AE188),1,0) -> 0
A189: 5748 | C189: 137928 | D189: 29527 | E189: 15 | F189: 26 | G189: 32.5 | H189: + | I189: 54 | J189: 1 | K189: 12 | L189: 15.44236111 | M189: 231.6354167 | N189: 54.02 | O189: 6.45 | Q189: 0.05 | Y189: A2IV | Z189: A2IV | AA189: A2 | AB189: =+LEFT(AA189,1) -> A | AC189: =DEGREES(ACOS(SIN(Resultats!$H$11)*SIN(RADIANS(N189))+COS(Resultats!$H$11)*COS(RADIANS(N189))*COS(Resultats!$E$11-RADIANS(M189)))) -> 19.64280186 | AD189: =+IF(AB189=Data!$E$18,1,0) -> 1 | AE189: =+IF(AC189<Data!$B$17,1,0) -> 0 | AF189: =+IF(AND(AD189,AE189),1,0) -> 0
A190: 4569 | C190: 103736 | D190: 15666 | E190: 11 | F190: 56 | G190: 53.2 | H190: + | I190: 61 | J190: 32 | K190: 57 | L190: 11.94811111 | M190: 179.2216667 | N190: 61.54916667 | O190: 6.22 | Q190: 0.96 | Y190: G8III | Z190: G8III | AA190: G8 | AB190: =+LEFT(AA190,1) -> G | AC190: =DEGREES(ACOS(SIN(Resultats!$H$11)*SIN(RADIANS(N190))+COS(Resultats!$H$11)*COS(RADIANS(N190))*COS(Resultats!$E$11-RADIANS(M190)))) -> 19.69777086 | AD190: =+IF(AB190=Data!$E$18,1,0) -> 0 | AE190: =+IF(AC190<Data!$B$17,1,0) -> 0 | AF190: =+IF(AND(AD190,AE190),1,0) -> 0
A191: 4668 | C191: 106760 | D191: 62928 | E191: 12 | F191: 16 | G191: 30.1 | H191: + | I191: 33 | J191: 3 | K191: 41 | L191: 12.27502778 | M191: 184.1254167 | N191: 33.06138889 | O191: 5 | Q191: 1.14 | S191: 1.07 | U191: 0.58 | Y191: K0.5IIIb | Z191: K0.5I | AA191: K0 | AB191: =+LEFT(AA191,1) -> K | AC191: =DEGREES(ACOS(SIN(Resultats!$H$11)*SIN(RADIANS(N191))+COS(Resultats!$H$11)*COS(RADIANS(N191))*COS(Resultats!$E$11-RADIANS(M191)))) -> 19.70973951 | AD191: =+IF(AB191=Data!$E$18,1,0) -> 0 | AE191: =+IF(AC191<Data!$B$17,1,0) -> 0 | AF191: =+IF(AND(AD191,AE191),1,0) -> 0
A192: 4593 | C192: 104438 | D192: 62802 | E192: 12 | F192: 1 | G192: 39.5 | H192: + | I192: 36 | J192: 2 | K192: 31 | L192: 12.02763889 | M192: 180.4145833 | N192: 36.04194444 | O192: 5.59 | Q192: 1.01 | S192: 0.8 | U192: 0.51 | Y192: K0III | Z192: K0III | AA192: K0 | AB192: =+LEFT(AA192,1) -> K | AC192: =DEGREES(ACOS(SIN(Resultats!$H$11)*SIN(RADIANS(N192))+COS(Resultats!$H$11)*COS(RADIANS(N192))*COS(Resultats!$E$11-RADIANS(M192)))) -> 19.72841226 | AD192: =+IF(AB192=Data!$E$18,1,0) -> 0 | AE192: =+IF(AC192<Data!$B$17,1,0) -> 0 | AF192: =+IF(AND(AD192,AE192),1,0) -> 0
A193: 5732 | C193: 137390 | D193: 45521 | E193: 15 | F193: 24 | G193: 5.1 | H193: + | I193: 45 | J193: 16 | K193: 16 | L193: 15.40141667 | M193: 231.02125 | N193: 45.27111111 | O193: 6.01 | Q193: 1.2 | S193: 1.23 | Y193: K2III | Z193: K2III | AA193: K2 | AB193: =+LEFT(AA193,1) -> K | AC193: =DEGREES(ACOS(SIN(Resultats!$H$11)*SIN(RADIANS(N193))+COS(Resultats!$H$11)*COS(RADIANS(N193))*COS(Resultats!$E$11-RADIANS(M193)))) -> 19.72946521 | AD193: =+IF(AB193=Data!$E$18,1,0) -> 0 | AE193: =+IF(AC193<Data!$B$17,1,0) -> 0 | AF193: =+IF(AND(AD193,AE193),1,0) -> 0
A194: 4493 | C194: 101391 | D194: 28093 | E194: 11 | F194: 40 | G194: 27.4 | H194: + | I194: 57 | J194: 58 | K194: 14 | L194: 11.67427778 | M194: 175.1141667 | N194: 57.97055556 | O194: 6.37 | Q194: -0.12 | S194: -0.34 | Y194: B9pHgMn: | Z194: B9pHg | AA194: B9 | AB194: =+LEFT(AA194,1) -> B | AC194: =DEGREES(ACOS(SIN(Resultats!$H$11)*SIN(RADIANS(N194))+COS(Resultats!$H$11)*COS(RADIANS(N194))*COS(Resultats!$E$11-RADIANS(M194)))) -> 19.7478079 | AD194: =+IF(AB194=Data!$E$18,1,0) -> 0 | AE194: =+IF(AC194<Data!$B$17,1,0) -> 0 | AF194: =+IF(AND(AD194,AE194),1,0) -> 0
A195: 4477 | B195: 59 UMa | C195: 101107 | D195: 43837 | E195: 11 | F195: 38 | G195: 20.6 | H195: + | I195: 43 | J195: 37 | K195: 32 | L195: 11.63905556 | M195: 174.5858333 | N195: 43.62555556 | O195: 5.59 | Q195: 0.33 | S195: 0.01 | Y195: F2II-III | Z195: F2II- | AA195: F2 | AB195: =+LEFT(AA195,1) -> F | AC195: =DEGREES(ACOS(SIN(Resultats!$H$11)*SIN(RADIANS(N195))+COS(Resultats!$H$11)*COS(RADIANS(N195))*COS(Resultats!$E$11-RADIANS(M195)))) -> 19.80906885 | AD195: =+IF(AB195=Data!$E$18,1,0) -> 0 | AE195: =+IF(AC195<Data!$B$17,1,0) -> 0 | AF195: =+IF(AND(AD195,AE195),1,0) -> 0
A196: 4610 | C196: 105043 | D196: 15710 | E196: 12 | F196: 5 | G196: 39.7 | H196: + | I196: 62 | J196: 55 | K196: 59 | L196: 12.09436111 | M196: 181.4154167 | N196: 62.93305556 | O196: 6.13 | Q196: 1.17 | S196: 1.15 | Y196: K2III | Z196: K2III | AA196: K2 | AB196: =+LEFT(AA196,1) -> K | AC196: =DEGREES(ACOS(SIN(Resultats!$H$11)*SIN(RADIANS(N196))+COS(Resultats!$H$11)*COS(RADIANS(N196))*COS(Resultats!$E$11-RADIANS(M196)))) -> 19.81254534 | AD196: =+IF(AB196=Data!$E$18,1,0) -> 0 | AE196: =+IF(AC196<Data!$B$17,1,0) -> 0 | AF196: =+IF(AND(AD196,AE196),1,0) -> 0
A197: 4436 | C197: 100055 | D197: 43793 | E197: 11 | F197: 31 | G197: 10.2 | H197: + | I197: 48 | J197: 47 | K197: 21 | L197: 11.5195 | M197: 172.7925 | N197: 48.78916667 | O197: 6.56 | Q197: 0.93 | S197: 0.72 | Y197: G9III | Z197: G9III | AA197: G9 | AB197: =+LEFT(AA197,1) -> G | AC197: =DEGREES(ACOS(SIN(Resultats!$H$11)*SIN(RADIANS(N197))+COS(Resultats!$H$11)*COS(RADIANS(N197))*COS(Resultats!$E$11-RADIANS(M197)))) -> 19.87162721 | AD197: =+IF(AB197=Data!$E$18,1,0) -> 0 | AE197: =+IF(AC197<Data!$B$17,1,0) -> 0 | AF197: =+IF(AND(AD197,AE197),1,0) -> 0
A198: 4954 | B198: 41 Com | C198: 113996 | D198: 82659 | E198: 13 | F198: 7 | G198: 10.7 | H198: + | I198: 27 | J198: 37 | K198: 29 | L198: 13.11963889 | M198: 196.7945833 | N198: 27.62472222 | O198: 4.8 | Q198: 1.48 | S198: 1.85 | U198: 0.81 | Y198: K5III | Z198: K5III | AA198: K5 | AB198: =+LEFT(AA198,1) -> K | AC198: =DEGREES(ACOS(SIN(Resultats!$H$11)*SIN(RADIANS(N198))+COS(Resultats!$H$11)*COS(RADIANS(N198))*COS(Resultats!$E$11-RADIANS(M198)))) -> 19.88578776 | AD198: =+IF(AB198=Data!$E$18,1,0) -> 0 | AE198: =+IF(AC198<Data!$B$17,1,0) -> 0 | AF198: =+IF(AND(AD198,AE198),1,0) -> 0
A199: 4956 | C199: 114092 | D199: 82665 | E199: 13 | F199: 7 | G199: 53.6 | H199: + | I199: 27 | J199: 33 | K199: 21 | L199: 13.13155556 | M199: 196.9733333 | N199: 27.55583333 | O199: 6.19 | Q199: 1.36 | S199: 1.64 | U199: 0.48 | V199: E | Y199: K4III | Z199: K4III | AA199: K4 | AB199: =+LEFT(AA199,1) -> K | AC199: =DEGREES(ACOS(SIN(Resultats!$H$11)*SIN(RADIANS(N199))+COS(Resultats!$H$11)*COS(RADIANS(N199))*COS(Resultats!$E$11-RADIANS(M199)))) -> 19.92228209 | AD199: =+IF(AB199=Data!$E$18,1,0) -> 0 | AE199: =+IF(AC199<Data!$B$17,1,0) -> 0 | AF199: =+IF(AND(AD199,AE199),1,0) -> 0
A200: 4928 | B200: 9 Dra | C200: 113092 | D200: 15960 | E200: 12 | F200: 59 | G200: 55.1 | H200: + | I200: 66 | J200: 35 | K200: 50 | L200: 12.99863889 | M200: 194.9795833 | N200: 66.59722222 | O200: 5.32 | Q200: 1.29 | S200: 1.29 | Y200: K2III | Z200: K2III | AA200: K2 | AB200: =+LEFT(AA200,1) -> K | AC200: =DEGREES(ACOS(SIN(Resultats!$H$11)*SIN(RADIANS(N200))+COS(Resultats!$H$11)*COS(RADIANS(N200))*COS(Resultats!$E$11-RADIANS(M200)))) -> 19.99145082 | AD200: =+IF(AB200=Data!$E$18,1,0) -> 0 | AE200: =+IF(AC200<Data!$B$17,1,0) -> 0 | AF200: =+IF(AND(AD200,AE200),1,0) -> 0
... 2050 more rows

Sheet Tri
A1: HR | B1: Name | C1: HD | D1: SAO | E1: AD0 | F1: AD1 | G1: AD2 | H1: sDE | I1: DE0 | J1: DE1 | K1: DE2 | L1: DE3 | M1: Mag | N1: cMag | O1: B-V | P1: U-B | Q1: R-I | R1: pSType | S1: SpType | T1: SpTypeS | U1: Colonne6
A2: 1 | C2: 3 | D2: 36042 | E2: 0 | F2: 5 | G2: 9.9 | H2: + | I2: 45 | J2: 13 | K2: 45 | L2: 45 | M2: 6.7 | O2: 0.07 | P2: 0.08 | S2: A1Vn | T2: A1Vn
A3: 2 | C3: 6 | D3: 128569 | E3: 0 | F3: 5 | G3: 3.8 | H3: - | I3: 0 | J3: 30 | K3: 11 | L3: 0 | M3: 6.29 | O3: 1.1 | P3: 1.02 | R3: g | S3: G9 | T3: gG9
A4: 3 | B4: 33 Psc | C4: 28 | D4: 128572 | E4: 0 | F4: 5 | G4: 20.1 | H4: - | I4: 5 | J4: 42 | K4: 27 | L4: -5 | M4: 4.61 | O4: 1.04 | P4: 0.89 | Q4: 0.54 | S4: K0IIIbCN-0.5 | T4: K0III
A5: 4 | B5: 86 Peg | C5: 87 | D5: 91701 | E5: 0 | F5: 5 | G5: 42 | H5: + | I5: 13 | J5: 23 | K5: 46 | L5: 13 | M5: 5.51 | O5: 0.9 | S5: G5III | T5: G5III
A6: 5 | C6: 123 | D6: 21085 | E6: 0 | F6: 6 | G6: 16 | H6: + | I6: 58 | J6: 26 | K6: 12 | L6: 58 | M6: 5.96 | O6: 0.67 | P6: 0.2 | S6: G5V | T6: G5V
A7: 7 | B7: 10 Cas | C7: 144 | D7: 10978 | E7: 0 | F7: 6 | G7: 26.5 | H7: + | I7: 64 | J7: 11 | K7: 46 | L7: 64 | M7: 5.59 | O7: -0.03 | P7: -0.19 | S7: B9III | T7: B9III
A8: 8 | C8: 166 | D8: 73743 | E8: 0 | F8: 6 | G8: 36.8 | H8: + | I8: 29 | J8: 1 | K8: 17 | L8: 29 | M8: 6.13 | O8: 0.75 | P8: 0.33 | S8: K0V | T8: K0V
A9: 11 | C9: 315 | D9: 128595 | E9: 0 | F9: 7 | G9: 44.1 | H9: - | I9: 2 | J9: 32 | K9: 56 | L9: -2 | M9: 6.43 | O9: -0.14 | P9: -0.47 | S9: B8IIIpSi | T9: B8III
A10: 14 | C10: 352 | D10: 128602 | E10: 0 | F10: 8 | G10: 12.1 | H10: - | I10: 2 | J10: 26 | K10: 52 | L10: -2 | M10: 6.07 | O10: 1.38 | P10: 1.14 | S10: K2III+F | T10: K2III
A11: 15 | B11: 21Alp And | C11: 358 | D11: 73765 | E11: 0 | F11: 8 | G11: 23.3 | H11: + | I11: 29 | J11: 5 | K11: 26 | L11: 29 | M11: 2.06 | O11: -0.11 | P11: -0.46 | Q11: -0.1 | S11: B8IVpMnHg | T11: B8IVp
A12: 16 | C12: 360 | D12: 128604 | E12: 0 | F12: 8 | G12: 17.4 | H12: - | I12: 8 | J12: 49 | K12: 26 | L12: -8 | M12: 5.99 | O12: 1.04 | P12: 0.83 | R12: g | S12: G8 | T12: gG8
A13: 17 | C13: 400 | D13: 53677 | E13: 0 | F13: 8 | G13: 41 | H13: + | I13: 36 | J13: 37 | K13: 36 | L13: 36 | M13: 6.19 | O13: 0.48 | P13: -0.09 | S13: F8IV | T13: F8IV
A14: 19 | C14: 417 | D14: 73769 | E14: 0 | F14: 8 | G14: 52.2 | H14: + | I14: 25 | J14: 27 | K14: 46 | L14: 25 | M14: 6.23 | O14: 0.97 | P14: 0.73 | S14: K0III | T14: K0III
A15: 20 | C15: 431 | D15: 4048 | E15: 0 | F15: 9 | G15: 20.2 | H15: + | I15: 79 | J15: 42 | K15: 53 | L15: 79 | M15: 6.01 | O15: 0.19 | P15: 0.1 | S15: A7IV | T15: A7IV
A16: 21 | B16: 11Bet Cas | C16: 432 | D16: 21133 | E16: 0 | F16: 9 | G16: 10.7 | H16: + | I16: 59 | J16: 8 | K16: 59 | L16: 59 | M16: 2.27 | O16: 0.34 | P16: 0.11 | Q16: 0.2 | S16: F2III-IV | T16: F2III
A17: 22 | B17: 87 Peg | C17: 448 | D17: 91734 | E17: 0 | F17: 9 | G17: 2.4 | H17: + | I17: 18 | J17: 12 | K17: 43 | L17: 18 | M17: 5.53 | O17: 1.04 | S17: G9III | T17: G9III
A18: 26 | B18: 34 Psc | C18: 560 | D18: 91750 | E18: 0 | F18: 10 | G18: 2.3 | H18: + | I18: 11 | J18: 8 | K18: 44 | L18: 11 | M18: 5.51 | O18: -0.07 | P18: -0.24 | S18: B9Vn | T18: B9Vn
A19: 27 | B19: 22 And | C19: 571 | D19: 36123 | E19: 0 | F19: 10 | G19: 19.3 | H19: + | I19: 46 | J19: 4 | K19: 20 | L19: 46 | M19: 5.03 | O19: 0.4 | P19: 0.25 | Q19: 0.29 | S19: F2II | T19: F2II
A20: 28 | C20: 584 | D20: 21162 | E20: 0 | F20: 10 | G20: 29.7 | H20: + | I20: 57 | J20: 9 | K20: 56 | L20: 57 | M20: 6.74 | O20: -0.08 | P20: -0.41 | S20: B7IV | T20: B7IV
A21: 29 | C21: 587 | D21: 128621 | E21: 0 | F21: 10 | G21: 18.8 | H21: - | I21: 5 | J21: 14 | K21: 55 | L21: -5 | M21: 5.84 | O21: 0.98 | P21: 0.74 | S21: K1III | T21: K1III
A22: 31 | C22: 645 | D22: 147127 | E22: 0 | F22: 10 | G22: 42.8 | H22: - | I22: 12 | J22: 34 | K22: 48 | L22: -12 | M22: 5.85 | O22: 1.01 | P22: 0.8 | S22: K0IV | T22: K0IV
A23: 33 | B23: 6 Cet | C23: 693 | D23: 147133 | E23: 0 | F23: 11 | G23: 15.9 | H23: - | I23: 15 | J23: 28 | K23: 5 | L23: -15 | M23: 4.89 | O23: 0.49 | P23: -0.03 | S23: F7V | T23: F7V
A24: 36 | C24: 743 | D24: 36148 | E24: 0 | F24: 11 | G24: 59.1 | H24: + | I24: 48 | J24: 9 | K24: 9 | L24: 48 | M24: 6.16 | O24: 1.45 | R24: g | S24: K4 | T24: gK4
A25: 38 | C25: 829 | D25: 53725 | E25: 0 | F25: 12 | G25: 50.4 | H25: + | I25: 37 | J25: 41 | K25: 36 | L25: 37 | M25: 6.73 | O25: -0.13 | P25: -0.7 | S25: B2V | T25: B2V
A26: 39 | B26: 88Gam Peg | C26: 886 | D26: 91781 | E26: 0 | F26: 13 | G26: 14.2 | H26: + | I26: 15 | J26: 11 | K26: 1 | L26: 15 | M26: 2.83 | O26: -0.23 | P26: -0.87 | Q26: -0.19 | S26: B2IV | T26: B2IV
A27: 40 | C27: 895 | D27: 73823 | E27: 0 | F27: 13 | G27: 24 | H27: + | I27: 26 | J27: 59 | K27: 14 | L27: 26 | M27: 6.3 | O27: 0.65 | P27: 0.33 | S27: G0III | T27: G0III
A28: 41 | B28: 23 And | C28: 905 | D28: 36173 | E28: 0 | F28: 13 | G28: 30.8 | H28: + | I28: 41 | J28: 2 | K28: 7 | L28: 41 | M28: 5.72 | O28: 0.31 | P28: -0.02 | S28: F0IV | T28: F0IV
A29: 44 | C29: 952 | D29: 53744 | E29: 0 | F29: 14 | G29: 2.3 | H29: + | I29: 33 | J29: 12 | K29: 22 | L29: 33 | M29: 6.25 | O29: -0.01 | P29: -0.05 | S29: A1V | T29: A1V
A30: 45 | B30: 89Chi Peg | C30: 1013 | D30: 91792 | E30: 0 | F30: 14 | G30: 36.2 | H30: + | I30: 20 | J30: 12 | K30: 24 | L30: 20 | M30: 4.8 | O30: 1.57 | P30: 1.93 | Q30: 1.13 | S30: M2+III | T30: M2+II
A31: 46 | C31: 1014 | D31: 128655 | E31: 0 | F31: 14 | G31: 27.6 | H31: - | I31: 7 | J31: 46 | K31: 50 | L31: -7 | M31: 5.12 | O31: 1.62 | P31: 1.81 | Q31: 1.03 | S31: M3+III | T31: M3+II
A32: 49 | C32: 1048 | D32: 73838 | E32: 0 | F32: 14 | G32: 56.1 | H32: + | I32: 22 | J32: 17 | K32: 3 | L32: 22 | M32: 6.24 | O32: -0.01 | P32: 0.12 | S32: A1pSi | T32: A1pSi
A33: 50 | B33: 35 Psc | C33: 1061 | D33: 109087 | E33: 0 | F33: 14 | G33: 58.8 | H33: + | I33: 8 | J33: 49 | K33: 15 | L33: 8 | M33: 5.79 | O33: 0.31 | P33: 0.04 | S33: F0IV | T33: F0IV
A34: 51 | C34: 1064 | D34: 128660 | E34: 0 | F34: 14 | G34: 54.5 | H34: - | I34: 9 | J34: 34 | K34: 11 | L34: -9 | M34: 5.75 | O34: -0.08 | S34: B9V | T34: B9V
A35: 52 | C35: 1075 | D35: 53755 | E35: 0 | F35: 15 | G35: 7 | H35: + | I35: 31 | J35: 32 | K35: 9 | L35: 31 | M35: 6.45 | N35: R | S35: K5 | T35: K5
A36: 53 | C36: 1083 | D36: 73842 | E36: 0 | F36: 15 | G36: 10.6 | H36: + | I36: 27 | J36: 16 | K36: 59 | L36: 27 | M36: 6.35 | O36: -0.02 | P36: 0.02 | S36: A1Vn | T36: A1Vn
A37: 55 | C37: 1141 | D37: 4071 | E37: 0 | F37: 16 | G37: 14 | H37: + | I37: 76 | J37: 57 | K37: 3 | L37: 76 | M37: 6.35 | O37: -0.07 | P37: -0.26 | S37: B8Vnn | T37: B8Vnn
A38: 56 | C38: 1185 | D38: 36221 | E38: 0 | F38: 16 | G38: 21.6 | H38: + | I38: 43 | J38: 35 | K38: 41 | L38: 43 | M38: 6.15 | O38: 0.05 | P38: 0.03 | S38: A2VpSi | T38: A2VpS
A39: 59 | B39: 36 Psc | C39: 1227 | D39: 109100 | E39: 0 | F39: 16 | G39: 34.1 | H39: + | I39: 8 | J39: 14 | K39: 24 | L39: 8 | M39: 6.11 | O39: 0.92 | P39: 0.66 | S39: G8II-III | T39: G8II-
A40: 60 | C40: 1239 | D40: 11084 | E40: 0 | F40: 16 | G40: 57.1 | H40: + | I40: 61 | J40: 32 | K40: 0 | L40: 61 | M40: 5.74 | O40: 0.88 | P40: 0.59 | S40: G8III | T40: G8III
A41: 62 | C41: 1279 | D41: 36236 | E41: 0 | F41: 17 | G41: 9.1 | H41: + | I41: 47 | J41: 56 | K41: 51 | L41: 47 | M41: 5.89 | O41: -0.09 | P41: -0.44 | S41: B7III | T41: B7III
A42: 63 | B42: 24The And | C42: 1280 | D42: 53777 | E42: 0 | F42: 17 | G42: 5.5 | H42: + | I42: 38 | J42: 40 | K42: 54 | L42: 38 | M42: 4.61 | O42: 0.06 | P42: 0.04 | Q42: 0.01 | S42: A2V | T42: A2V
A43: 65 | C43: 1337 | D43: 21273 | E43: 0 | F43: 17 | G43: 43 | H43: + | I43: 51 | J43: 25 | K43: 59 | L43: 51 | M43: 6.14 | O43: -0.13 | P43: -0.97 | S43: O9IIInn | T43: O9III
A44: 67 | C44: 1367 | D44: 109119 | E44: 0 | F44: 17 | G44: 47.7 | H44: + | I44: 1 | J44: 41 | K44: 20 | L44: 1 | M44: 6.17 | O44: 0.94 | P44: 0.73 | S44: K0II | T44: K0II
A45: 68 | B45: 25Sig And | C45: 1404 | D45: 53798 | E45: 0 | F45: 18 | G45: 19.7 | H45: + | I45: 36 | J45: 47 | K45: 7 | L45: 36 | M45: 4.52 | O45: 0.05 | P45: 0.07 | Q45: 0 | S45: A2V | T45: A2V
A46: 69 | C46: 1419 | D46: 91832 | E46: 0 | F46: 18 | G46: 17.2 | H46: + | I46: 11 | J46: 12 | K46: 21 | L46: 11 | M46: 6.05 | O46: 1.03 | S46: K0III | T46: K0III
A47: 70 | B47: 26 And | C47: 1438 | D47: 36256 | E47: 0 | F47: 18 | G47: 42.1 | H47: + | I47: 43 | J47: 47 | K47: 28 | L47: 43 | M47: 6.11 | O47: -0.08 | P47: -0.35 | S47: B8V | T47: B8V
A48: 71 | C48: 1439 | D48: 53803 | E48: 0 | F48: 18 | G48: 38.3 | H48: + | I48: 31 | J48: 31 | K48: 2 | L48: 31 | M48: 5.87 | O48: -0.01 | P48: 0 | S48: A0IV | T48: A0IV
A49: 72 | C49: 1461 | D49: 128690 | E49: 0 | F49: 18 | G49: 41.8 | H49: - | I49: 8 | J49: 3 | K49: 10 | L49: -8 | M49: 6.46 | O49: 0.68 | P49: 0.29 | S49: G0V | T49: G0V
A50: 74 | B50: 8Iot Cet | C50: 1522 | D50: 128694 | E50: 0 | F50: 19 | G50: 25.7 | H50: - | I50: 8 | J50: 49 | K50: 26 | L50: -8 | M50: 3.56 | O50: 1.22 | P50: 1.25 | Q50: 0.59 | S50: K1.5III | T50: K1.5I
A51: 75 | C51: 1527 | D51: 36269 | E51: 0 | F51: 19 | G51: 41.6 | H51: + | I51: 40 | J51: 43 | K51: 47 | L51: 40 | M51: 6.33 | O51: 1.18 | S51: K1III | T51: K1III
A52: 76 | C52: 1561 | D52: 36272 | E52: 0 | F52: 20 | G52: 5.2 | H52: + | I52: 48 | J52: 51 | K52: 55 | L52: 48 | M52: 6.52 | S52: A0V s | T52: A0V s
A53: 78 | C53: 1606 | D53: 53820 | E53: 0 | F53: 20 | G53: 24.4 | H53: + | I53: 30 | J53: 56 | K53: 9 | L53: 30 | M53: 5.9 | O53: -0.1 | P53: -0.46 | S53: B7V | T53: B7V
A54: 79 | C54: 1632 | D54: 53825 | E54: 0 | F54: 20 | G54: 45.5 | H54: + | I54: 32 | J54: 54 | K54: 41 | L54: 32 | M54: 5.79 | O54: 1.59 | Q54: 1 | S54: K5III | T54: K5III
A55: 80 | B55: 41 Psc | C55: 1635 | D55: 109152 | E55: 0 | F55: 20 | G55: 35.9 | H55: + | I55: 8 | J55: 11 | K55: 25 | L55: 8 | M55: 5.37 | O55: 1.34 | P55: 1.55 | R55: g | S55: K3 | T55: gK3
A56: 81 | C56: 1663 | D56: 91858 | E56: 0 | F56: 20 | G56: 54.5 | H56: + | I56: 10 | J56: 58 | K56: 37 | L56: 10 | M56: 6.56 | S56: A0V | T56: A0V
A57: 82 | B57: 27Rho And | C57: 1671 | D57: 53828 | E57: 0 | F57: 21 | G57: 7.3 | H57: + | I57: 37 | J57: 58 | K57: 7 | L57: 37 | M57: 5.18 | O57: 0.42 | P57: 0.05 | S57: F5III | T57: F5III
A58: 86 | B58: 42 Psc | C58: 1796 | D58: 91866 | E58: 0 | F58: 22 | G58: 25.5 | H58: + | I58: 13 | J58: 28 | K58: 57 | L58: 13 | M58: 6.23 | O58: 1.22 | S58: K3III | T58: K3III
A59: 88 | B59: 9 Cet | C59: 1835 | D59: 147237 | E59: 0 | F59: 22 | G59: 51.8 | H59: - | I59: 12 | J59: 12 | K59: 34 | L59: -12 | M59: 6.39 | O59: 0.66 | P59: 0.24 | S59: G2V | T59: G2V
A60: 90 | C60: 1967 | D60: 53860 | E60: 0 | F60: 24 | G60: 2 | H60: + | I60: 38 | J60: 34 | K60: 38 | L60: 38 | M60: 7.39 | O60: 1.97 | P60: 1.25 | Q60: 2.21 | S60: S6.5IIIeZr6Ti2 | T60: S6.5I
A61: 91 | C61: 1976 | D61: 21366 | E61: 0 | F61: 24 | G61: 15.6 | H61: + | I61: 52 | J61: 1 | K61: 12 | L61: 52 | M61: 5.57 | O61: -0.12 | P61: -0.6 | S61: B5IV | T61: B5IV
A62: 93 | B62: 12 Cas | C62: 2011 | D62: 11172 | E62: 0 | F62: 24 | G62: 47.5 | H62: + | I62: 61 | J62: 49 | K62: 52 | L62: 61 | M62: 5.4 | O62: 0 | P62: -0.16 | S62: B9III | T62: B9III
A63: 94 | C63: 2023 | D63: 128743 | E63: 0 | F63: 24 | G63: 29.7 | H63: - | I63: 2 | J63: 13 | K63: 9 | L63: -2 | M63: 6.07 | O63: 1.22 | P63: 1.23 | S63: K1III | T63: K1III
A64: 96 | C64: 2054 | D64: 21381 | E64: 0 | F64: 25 | G64: 6.4 | H64: + | I64: 53 | J64: 2 | K64: 49 | L64: 53 | M64: 5.74 | O64: -0.06 | P64: -0.31 | S64: B9IV | T64: B9IV
A65: 97 | B65: 44 Psc | C65: 2114 | D65: 109192 | E65: 0 | F65: 25 | G65: 24.2 | H65: + | I65: 1 | J65: 56 | K65: 23 | L65: 1 | M65: 5.77 | O65: 0.86 | P65: 0.57 | S65: G5III | T65: G5III
A66: 101 | B66: 10 Cet | C66: 2273 | D66: 128760 | E66: 0 | F66: 26 | G66: 37.4 | H66: - | I66: 0 | J66: 2 | K66: 59 | L66: 0 | M66: 6.19 | O66: 0.9 | P66: 0.55 | S66: G8III | T66: G8III
A67: 103 | B67: 47 Psc | C67: 2411 | D67: 91910 | E67: 0 | F67: 28 | G67: 2.9 | H67: + | I67: 17 | J67: 53 | K67: 35 | L67: 17 | M67: 5.06 | O67: 1.65 | P67: 1.82 | Q67: 1.54 | S67: M3III | T67: M3III
A68: 104 | C68: 2421 | D68: 36390 | E68: 0 | F68: 28 | G68: 13.7 | H68: + | I68: 44 | J68: 23 | K68: 40 | L68: 44 | M68: 5.17 | O68: 0.03 | P68: -0.01 | S68: A2V s | T68: A2V s
A69: 106 | B69: 48 Psc | C69: 2436 | D69: 91912 | E69: 0 | F69: 28 | G69: 12.7 | H69: + | I69: 16 | J69: 26 | K69: 42 | L69: 16 | M69: 6.06 | O69: 1.58 | P69: 2 | S69: K5III | T69: K5III
A70: 107 | C70: 2454 | D70: 109224 | E70: 0 | F70: 28 | G70: 20.1 | H70: + | I70: 10 | J70: 11 | K70: 23 | L70: 10 | M70: 6.04 | O70: 0.43 | P70: -0.06 | S70: F6Va vw | T70: F6Va
A71: 110 | C71: 2507 | D71: 53928 | E71: 0 | F71: 28 | G71: 56.6 | H71: + | I71: 36 | J71: 54 | K71: 0 | L71: 36 | M71: 6.26 | O71: 0.92 | S71: G5III | T71: G5III
A72: 112 | C72: 2589 | D72: 4130 | E72: 0 | F72: 30 | G72: 55 | H72: + | I72: 77 | J72: 1 | K72: 10 | L72: 77 | M72: 6.21 | O72: 0.84 | P72: 0.54 | S72: K0IV | T72: K0IV
A73: 113 | C73: 2626 | D73: 21457 | E73: 0 | F73: 30 | G73: 19.9 | H73: + | I73: 59 | J73: 58 | K73: 38 | L73: 59 | M73: 5.94 | O73: 0.01 | P73: -0.36 | S73: B9IIIn | T73: B9III
A74: 114 | B74: 28 And | C74: 2628 | D74: 74041 | E74: 0 | F74: 30 | G74: 7.3 | H74: + | I74: 29 | J74: 45 | K74: 6 | L74: 29 | M74: 5.23 | O74: 0.24 | P74: 0.09 | S74: A7III | T74: A7III
A75: 115 | C75: 2630 | D75: 147307 | E75: 0 | F75: 29 | G75: 51.9 | H75: - | I75: 14 | J75: 51 | K75: 51 | L75: -14 | M75: 6.14 | O75: 0.37 | S75: F2III | T75: F2III
A76: 117 | B76: 12 Cet | C76: 2637 | D76: 128791 | E76: 0 | F76: 30 | G76: 2.4 | H76: - | I76: 3 | J76: 57 | K76: 26 | L76: -3 | M76: 5.72 | O76: 1.56 | P76: 1.91 | S76: M0III | T76: M0III
A77: 121 | B77: 13 Cas | C77: 2729 | D77: 11243 | E77: 0 | F77: 31 | G77: 25.3 | H77: + | I77: 66 | J77: 31 | K77: 10 | L77: 66 | M77: 6.18 | O77: -0.1 | P77: -0.47 | S77: B6V | T77: B6V
A78: 122 | C78: 2767 | D78: 53956 | E78: 0 | F78: 31 | G78: 25.6 | H78: + | I78: 33 | J78: 34 | K78: 54 | L78: 33 | M78: 5.87 | O78: 1.14 | S78: K1III | T78: K1III
A79: 123 | B79: 14Lam Cas | C79: 2772 | D79: 21489 | E79: 0 | F79: 31 | G79: 46.4 | H79: + | I79: 54 | J79: 31 | K79: 20 | L79: 54 | M79: 4.73 | O79: -0.1 | P79: -0.35 | Q79: -0.12 | S79: B8Vn | T79: B8Vn
A80: 124 | C80: 2774 | D80: 21486 | E80: 0 | F80: 31 | G80: 41.2 | H80: + | I80: 52 | J80: 50 | K80: 22 | L80: 52 | M80: 5.6 | O80: 1.15 | P80: 1.13 | S80: K2III | T80: K2III
A81: 128 | C81: 2888 | D81: 36453 | E81: 0 | F81: 32 | G81: 26.8 | H81: + | I81: 43 | J81: 29 | K81: 41 | L81: 43 | M81: 6.7 | O81: -0.01 | P81: -0.2 | S81: A1Vn | T81: A1Vn
A82: 129 | C82: 2904 | D82: 4142 | E82: 0 | F82: 33 | G82: 19.3 | H82: + | I82: 70 | J82: 58 | K82: 54 | L82: 70 | M82: 6.42 | O82: -0.01 | P82: -0.06 | S82: A0Vn | T82: A0Vn
A83: 130 | B83: 15Kap Cas | C83: 2905 | D83: 11256 | E83: 0 | F83: 33 | G83: 0 | H83: + | I83: 62 | J83: 55 | K83: 54 | L83: 62 | M83: 4.16 | O83: 0.14 | P83: -0.8 | Q83: 0.06 | S83: B1Ia | T83: B1Ia
A84: 131 | B84: 52 Psc | C84: 2910 | D84: 74084 | E84: 0 | F84: 32 | G84: 35.5 | H84: + | I84: 20 | J84: 17 | K84: 40 | L84: 20 | M84: 5.38 | O84: 1.08 | P84: 0.96 | S84: K0III | T84: K0III
A85: 132 | B85: 51 Psc | C85: 2913 | D85: 109262 | E85: 0 | F85: 32 | G85: 23.8 | H85: + | I85: 6 | J85: 57 | K85: 20 | L85: 6 | M85: 5.67 | O85: 0 | P85: -0.17 | S85: B9.5V | T85: B9.5V
A86: 133 | C86: 2924 | D86: 74083 | E86: 0 | F86: 32 | G86: 34.5 | H86: + | I86: 27 | J86: 34 | K86: 50 | L86: 27 | M86: 6.67 | S86: A2IV | T86: A2IV
A87: 134 | C87: 2942 | D87: 74090 | E87: 0 | F87: 32 | G87: 49.1 | H87: + | I87: 28 | J87: 16 | K87: 49 | L87: 28 | M87: 6.3 | O87: 1 | P87: 0.73 | S87: K0III | T87: K0III
A88: 135 | C88: 2952 | D88: 21512 | E88: 0 | F88: 33 | G88: 10.4 | H88: + | I88: 54 | J88: 53 | K88: 42 | L88: 54 | M88: 5.93 | O88: 1.04 | P88: 0.84 | S88: K0III | T88: K0III
A89: 137 | B89: 16 Cas | C89: 3038 | D89: 11265 | E89: 0 | F89: 34 | G89: 24.9 | H89: + | I89: 66 | J89: 45 | K89: 1 | L89: 66 | M89: 6.48 | O89: -0.08 | P89: -0.32 | S89: B9III | T89: B9III
A90: 141 | C90: 3166 | D90: 91980 | E90: 0 | F90: 34 | G90: 55.3 | H90: + | I90: 13 | J90: 22 | K90: 16 | L90: 13 | M90: 6.4 | S90: K0 | T90: K0
A91: 142 | B91: 13 Cet | C91: 3196 | D91: 128839 | E91: 0 | F91: 35 | G91: 14.9 | H91: - | I91: 3 | J91: 35 | K91: 34 | L91: -3 | M91: 5.2 | O91: 0.56 | P91: 0.08 | S91: F8V | T91: F8V
A92: 143 | B92: 14 Cet | C92: 3229 | D92: 128843 | E92: 0 | F92: 35 | G92: 32.8 | H92: - | I92: 0 | J92: 30 | K92: 20 | L92: 0 | M92: 5.93 | O92: 0.44 | P92: -0.02 | S92: F5IV | T92: F5IV
A93: 144 | C93: 3240 | D93: 21551 | E93: 0 | F93: 36 | G93: 8.3 | H93: + | I93: 54 | J93: 10 | K93: 7 | L93: 54 | M93: 5.08 | O93: -0.11 | P93: -0.36 | S93: B7III | T93: B7III
A94: 145 | C94: 3268 | D94: 91990 | E94: 0 | F94: 35 | G94: 54.7 | H94: + | I94: 13 | J94: 12 | K94: 24 | L94: 13 | M94: 6.41 | O94: 0.52 | P94: -0.05 | S94: F7V | T94: F7V
A95: 146 | C95: 3283 | D95: 11291 | E95: 0 | F95: 36 | G95: 27.3 | H95: + | I95: 60 | J95: 19 | K95: 34 | L95: 60 | M95: 5.79 | O95: 0.29 | P95: 0.29 | S95: A4III | T95: A4III
A96: 149 | C96: 3322 | D96: 74136 | E96: 0 | F96: 36 | G96: 20 | H96: + | I96: 27 | J96: 15 | K96: 17 | L96: 27 | M96: 6.5 | O96: -0.09 | P96: -0.39 | S96: B8IIIpHgMn: | T96: B8III
A97: 150 | C97: 3325 | D97: 147360 | E97: 0 | F97: 36 | G97: 3 | H97: - | I97: 14 | J97: 58 | K97: 25 | L97: -14 | M97: 6.45 | O97: 1.06 | P97: 0.91 | S97: G9III | T97: G9III
A98: 152 | C98: 3346 | D98: 36509 | E98: 0 | F98: 36 | G98: 46.6 | H98: + | I98: 44 | J98: 29 | K98: 19 | L98: 44 | M98: 5.13 | O98: 1.6 | P98: 1.97 | S98: K5-M0III | T98: K5-M0
A99: 153 | B99: 17Zet Cas | C99: 3360 | D99: 21566 | E99: 0 | F99: 36 | G99: 58.3 | H99: + | I99: 53 | J99: 53 | K99: 49 | L99: 53 | M99: 3.66 | O99: -0.2 | P99: -0.87 | Q99: -0.21 | S99: B2IV | T99: B2IV
A100: 154 | B100: 29Pi And | C100: 3369 | D100: 54033 | E100: 0 | F100: 36 | G100: 52.9 | H100: + | I100: 33 | J100: 43 | K100: 10 | L100: 33 | M100: 4.36 | O100: -0.14 | P100: -0.55 | Q100: -0.12 | S100: B5V | T100: B5V
A101: 155 | B101: 53 Psc | C101: 3379 | D101: 91995 | E101: 0 | F101: 36 | G101: 47.3 | H101: + | I101: 15 | J101: 13 | K101: 54 | L101: 15 | M101: 5.89 | O101: -0.15 | P101: -0.66 | S101: B2.5IV | T101: B2.5I
A102: 156 | C102: 3411 | D102: 74148 | E102: 0 | F102: 37 | G102: 7.2 | H102: + | I102: 24 | J102: 0 | K102: 51 | L102: 24 | M102: 6.47 | N102: R | S102: K2III | T102: K2III
A103: 157 | C103: 3421 | D103: 54038 | E103: 0 | F103: 37 | G103: 21.1 | H103: + | I103: 35 | J103: 23 | K103: 58 | L103: 35 | M103: 5.48 | O103: 0.88 | P103: 0.48 | S103: G2.5IIa | T103: G2.5I
A104: 158 | C104: 3440 | D104: 106 | E104: 0 | F104: 39 | G104: 47.3 | H104: + | I104: 82 | J104: 29 | K104: 38 | L104: 82 | M104: 6.4 | O104: 0.55 | P104: -0.01 | R104: d | S104: F6 | T104: dF6
A105: 161 | C105: 3457 | D105: 109315 | E105: 0 | F105: 37 | G105: 30.5 | H105: + | I105: 3 | J105: 8 | K105: 7 | L105: 3 | M105: 6.39 | O105: 1.33 | P105: 1.52 | Q105: 0.54 | S105: K4III | T105: K4III
A106: 163 | B106: 30Eps And | C106: 3546 | D106: 74164 | E106: 0 | F106: 38 | G106: 33.3 | H106: + | I106: 29 | J106: 18 | K106: 42 | L106: 29 | M106: 4.37 | O106: 0.87 | P106: 0.47 | Q106: 0.51 | S106: G6IIIFe-3CH1 | T106: G6III
A107: 164 | C107: 3574 | D107: 36550 | E107: 0 | F107: 39 | G107: 9.9 | H107: + | I107: 49 | J107: 21 | K107: 16 | L107: 49 | M107: 5.43 | O107: 1.64 | S107: K7III | T107: K7III
A108: 165 | B108: 31Del And | C108: 3627 | D108: 54058 | E108: 0 | F108: 39 | G108: 19.7 | H108: + | I108: 30 | J108: 51 | K108: 39 | L108: 30 | M108: 3.27 | O108: 1.28 | P108: 1.48 | Q108: 0.66 | S108: K3III | T108: K3III
A109: 166 | B109: 54 Psc | C109: 3651 | D109: 74175 | E109: 0 | F109: 39 | G109: 21.8 | H109: + | I109: 21 | J109: 15 | K109: 2 | L109: 21 | M109: 5.87 | O109: 0.85 | P109: 0.57 | Q109: 0.39 | S109: K0+V | T109: K0+V
A110: 167 | B110: 55 Psc | C110: 3690 | D110: 74182 | E110: 0 | F110: 39 | G110: 55.6 | H110: + | I110: 21 | J110: 26 | K110: 18 | L110: 21 | M110: 5.36 | O110: 1.16 | P110: 1.05 | S110: K0III+F3V | T110: K0III
A111: 168 | B111: 18Alp Cas | C111: 3712 | D111: 21609 | E111: 0 | F111: 40 | G111: 30.5 | H111: + | I111: 56 | J111: 32 | K111: 14 | L111: 56 | M111: 2.23 | O111: 1.17 | P111: 1.13 | Q111: 0.6 | S111: K0IIIa | T111: K0III
A112: 174 | C112: 3807 | D112: 128891 | E112: 0 | F112: 40 | G112: 42.4 | H112: - | I112: 4 | J112: 21 | K112: 7 | L112: -4 | M112: 5.91 | O112: 1.1 | P112: 0.89 | S112: K0III | T112: K0III
A113: 175 | B113: 32 And | C113: 3817 | D113: 54079 | E113: 0 | F113: 41 | G113: 7.2 | H113: + | I113: 39 | J113: 27 | K113: 31 | L113: 39 | M113: 5.33 | O113: 0.89 | P113: 0.6 | Q113: 0.46 | S113: G8III | T113: G8III
A114: 177 | C114: 3856 | D114: 11336 | E114: 0 | F114: 42 | G114: 3.4 | H114: + | I114: 66 | J114: 8 | K114: 51 | L114: 66 | M114: 5.83 | O114: 1.04 | P114: 0.87 | S114: G9III-IV | T114: G9III
A115: 178 | C115: 3883 | D115: 74200 | E115: 0 | F115: 41 | G115: 36 | H115: + | I115: 24 | J115: 37 | K115: 45 | L115: 24 | M115: 6.04 | O115: 0.26 | P115: 0.22 | Q115: 0.11 | S115: A7m | T115: A7m
A116: 179 | B116: 19Xi Cas | C116: 3901 | D116: 21637 | E116: 0 | F116: 42 | G116: 3.9 | H116: + | I116: 50 | J116: 30 | K116: 45 | L116: 50 | M116: 4.8 | O116: -0.11 | P116: -0.63 | Q116: -0.12 | S116: B2V | T116: B2V
A117: 181 | C117: 3924 | D117: 21642 | E117: 0 | F117: 42 | G117: 31.1 | H117: + | I117: 58 | J117: 45 | K117: 12 | L117: 58 | M117: 6.17 | O117: -0.01 | P117: -0.11 | S117: B9.5III | T117: B9.5I
A118: 184 | B118: 20Pi Cas | C118: 4058 | D118: 36602 | E118: 0 | F118: 43 | G118: 28.1 | H118: + | I118: 47 | J118: 1 | K118: 29 | L118: 47 | M118: 4.94 | O118: 0.18 | P118: 0.09 | S118: A5V | T118: A5V
A119: 189 | C119: 4142 | D119: 36617 | E119: 0 | F119: 44 | G119: 26.4 | H119: + | I119: 47 | J119: 51 | K119: 51 | L119: 47 | M119: 5.67 | O119: -0.12 | P119: -0.56 | S119: B5V | T119: B5V
A120: 190 | C120: 4145 | D120: 147422 | E120: 0 | F120: 43 | G120: 50.2 | H120: - | I120: 12 | J120: 0 | K120: 42 | L120: -12 | M120: 6.02 | O120: 1.1 | P120: 1.09 | S120: K2III-IV | T120: K2III
A121: 192 | B121: 21 Cas | C121: 4161 | D121: 4216 | E121: 0 | F121: 45 | G121: 39 | H121: + | I121: 74 | J121: 59 | K121: 17 | L121: 74 | M121: 5.66 | O121: 0.05 | P121: 0.07 | S121: A2IV | T121: A2IV
A122: 193 | B122: 22Omi Cas | C122: 4180 | D122: 36620 | E122: 0 | F122: 44 | G122: 43.5 | H122: + | I122: 48 | J122: 17 | K122: 4 | L122: 48 | M122: 4.54 | O122: -0.07 | P122: -0.51 | Q122: -0.05 | S122: B5IIIe | T122: B5III
A123: 194 | B123: 17Phi1Cet | C123: 4188 | D123: 147423 | E123: 0 | F123: 44 | G123: 11.4 | H123: - | I123: 10 | J123: 36 | K123: 34 | L123: -10 | M123: 4.76 | O123: 1.01 | P123: 0.84 | Q123: 0.51 | S123: K0III | T123: K0III
A124: 196 | C124: 4222 | D124: 21677 | E124: 0 | F124: 45 | G124: 17.2 | H124: + | I124: 55 | J124: 13 | K124: 18 | L124: 55 | M124: 5.42 | O124: 0.04 | P124: 0.04 | S124: A2V s | T124: A2V s
A125: 200 | C125: 4295 | D125: 11380 | E125: 0 | F125: 46 | G125: 39 | H125: + | I125: 69 | J125: 19 | K125: 30 | L125: 69 | M125: 6.33 | N125: R | S125: F3V | T125: F3V
A126: 201 | C126: 4301 | D126: 128935 | E126: 0 | F126: 45 | G126: 24.1 | H126: - | I126: 4 | J126: 37 | K126: 45 | L126: -4 | M126: 6.15 | O126: 1.62 | P126: 2.01 | S126: M0III | T126: M0III
A127: 203 | B127: 18 Cet | C127: 4307 | D127: 147432 | E127: 0 | F127: 45 | G127: 28.7 | H127: - | I127: 12 | J127: 52 | K127: 51 | L127: -12 | M127: 6.15 | O127: 0.61 | P127: 0.1 | S127: G0V | T127: G0V
A128: 204 | C128: 4321 | D128: 21689 | E128: 0 | F128: 46 | G128: 15.1 | H128: + | I128: 55 | J128: 18 | K128: 19 | L128: 55 | M128: 6.52 | S128: A2III | T128: A2III
A129: 205 | C129: 4335 | D129: 36640 | E129: 0 | F129: 46 | G129: 10.9 | H129: + | I129: 44 | J129: 51 | K129: 41 | L129: 44 | M129: 6.05 | O129: -0.07 | P129: -0.27 | S129: B9.5IIIpHgMnCr | T129: B9.5I
A130: 207 | C130: 4362 | D130: 21693 | E130: 0 | F130: 46 | G130: 42.4 | H130: + | I130: 59 | J130: 34 | K130: 28 | L130: 59 | M130: 6.39 | O130: 1.09 | P130: 0.77 | S130: G0Ib | T130: G0Ib
A131: 208 | B131: 23 Cas | C131: 4382 | D131: 4226 | E131: 0 | F131: 47 | G131: 46.1 | H131: + | I131: 74 | J131: 50 | K131: 51 | L131: 74 | M131: 5.41 | O131: -0.08 | P131: -0.39 | S131: B8III | T131: B8III
A132: 211 | B132: 57 Psc | C132: 4408 | D132: 92072 | E132: 0 | F132: 46 | G132: 33 | H132: + | I132: 15 | J132: 28 | K132: 32 | L132: 15 | M132: 5.38 | O132: 1.65 | P132: 1.76 | S132: M4IIIa | T132: M4III
A133: 212 | C133: 4440 | D133: 4229 | E133: 0 | F133: 48 | G133: 9.1 | H133: + | I133: 72 | J133: 40 | K133: 30 | L133: 72 | M133: 5.87 | O133: 1.01 | P133: 0.82 | S133: K0IV | T133: K0IV
A134: 213 | B134: 58 Psc | C134: 4482 | D134: 92080 | E134: 0 | F134: 47 | G134: 1.5 | H134: + | I134: 11 | J134: 58 | K134: 26 | L134: 11 | M134: 5.5 | O134: 0.97 | S134: G8II | T134: G8II
A135: 214 | B135: 59 Psc | C135: 4490 | D135: 92082 | E135: 0 | F135: 47 | G135: 13.6 | H135: + | I135: 19 | J135: 34 | K135: 44 | L135: 19 | M135: 6.13 | O135: 0.27 | P135: 0.18 | S135: F0Vn | T135: F0Vn
A136: 215 | B136: 34Zet And | C136: 4502 | D136: 74267 | E136: 0 | F136: 47 | G136: 20.3 | H136: + | I136: 24 | J136: 16 | K136: 2 | L136: 24 | M136: 4.06 | O136: 1.12 | P136: 0.9 | Q136: 0.59 | S136: K1IIe | T136: K1IIe
A137: 216 | B137: 60 Psc | C137: 4526 | D137: 109461 | E137: 0 | F137: 47 | G137: 23.6 | H137: + | I137: 6 | J137: 44 | K137: 27 | L137: 6 | M137: 5.99 | O137: 0.94 | P137: 0.7 | S137: G8III | T137: G8III
A138: 217 | B138: 61 Psc | C138: 4568 | D138: 74280 | E138: 0 | F138: 47 | G138: 54.8 | H138: + | I138: 20 | J138: 55 | K138: 31 | L138: 20 | M138: 6.54 | O138: 0.5 | P138: 0.03 | S138: F8V | T138: F8V
A139: 219 | B139: 24Eta Cas | C139: 4614 | D139: 21732 | E139: 0 | F139: 49 | G139: 6 | H139: + | I139: 57 | J139: 48 | K139: 57 | L139: 57 | M139: 3.44 | O139: 0.57 | P139: 0.01 | Q139: 0.36 | S139: F9V+dM0 | T139: F9V+d
A140: 221 | B140: 62 Psc | C140: 4627 | D140: 109470 | E140: 0 | F140: 48 | G140: 17.4 | H140: + | I140: 7 | J140: 18 | K140: 0 | L140: 7 | M140: 5.93 | O140: 1.1 | P140: 1 | S140: G8III | T140: G8III
A141: 222 | C141: 4628 | D141: 109471 | E141: 0 | F141: 48 | G141: 23 | H141: + | I141: 5 | J141: 16 | K141: 50 | L141: 5 | M141: 5.75 | O141: 0.88 | P141: 0.59 | Q141: 0.47 | S141: K2V | T141: K2V
A142: 223 | B142: 25Nu Cas | C142: 4636 | D142: 21729 | E142: 0 | F142: 48 | G142: 50.1 | H142: + | I142: 50 | J142: 58 | K142: 6 | L142: 50 | M142: 4.89 | O142: -0.11 | P142: -0.42 | S142: B9III | T142: B9III
A143: 224 | B143: 63Del Psc | C143: 4656 | D143: 109474 | E143: 0 | F143: 48 | G143: 41 | H143: + | I143: 7 | J143: 35 | K143: 6 | L143: 7 | M143: 4.43 | O143: 1.5 | P143: 1.86 | Q143: 0.87 | S143: K4IIIb | T143: K4III
A144: 225 | B144: 64 Psc | C144: 4676 | D144: 92099 | E144: 0 | F144: 48 | G144: 58.7 | H144: + | I144: 16 | J144: 56 | K144: 26 | L144: 16 | M144: 5.07 | O144: 0.51 | P144: 0 | S144: F8V | T144: F8V
A145: 226 | B145: 35Nu And | C145: 4727 | D145: 36699 | E145: 0 | F145: 49 | G145: 48.8 | H145: + | I145: 41 | J145: 4 | K145: 44 | L145: 41 | M145: 4.53 | O145: -0.15 | P145: -0.58 | Q145: -0.15 | S145: B5V+F8V | T145: B5V+F
A146: 227 | C146: 4730 | D146: 147464 | E146: 0 | F146: 49 | G146: 25.6 | H146: - | I146: 13 | J146: 33 | K146: 41 | L146: -13 | M146: 5.59 | O146: 1.3 | P146: 1.54 | S146: K5III | T146: K5III
A147: 230 | B147: 65 Psc | C147: 4757 | D147: 74295 | E147: 0 | F147: 49 | G147: 52.8 | H147: + | I147: 27 | J147: 42 | K147: 39 | L147: 27 | M147: 7 | O147: 0.36 | P147: 0.06 | S147: F4III | T147: F4III
A148: 231 | B148: 65 Psc | C148: 4758 | D148: 74296 | E148: 0 | F148: 49 | G148: 53.2 | H148: + | I148: 27 | J148: 42 | K148: 37 | L148: 27 | M148: 7.1 | S148: F5III | T148: F5III
A149: 233 | C149: 4775 | D149: 11424 | E149: 0 | F149: 50 | G149: 43.6 | H149: + | I149: 64 | J149: 14 | K149: 51 | L149: 64 | M149: 5.39 | O149: 0.49 | P149: 0.14 | S149: G0III-IV+B9.5V | T149: G0III
A150: 234 | C150: 4778 | D150: 36702 | E150: 0 | F150: 50 | G150: 18.3 | H150: + | I150: 45 | J150: 0 | K150: 8 | L150: 45 | M150: 6.15 | O150: 0.01 | P150: -0.03 | S150: A0pCr | T150: A0pCr
A151: 235 | B151: 19Phi2Cet | C151: 4813 | D151: 147470 | E151: 0 | F151: 50 | G151: 7.6 | H151: - | I151: 10 | J151: 38 | K151: 40 | L151: -10 | M151: 5.19 | O151: 0.5 | P151: -0.02 | Q151: 0.28 | S151: F7IV-V | T151: F7IV-
A152: 237 | C152: 4817 | D152: 11430 | E152: 0 | F152: 51 | G152: 16.4 | H152: + | I152: 61 | J152: 48 | K152: 21 | L152: 61 | M152: 6.07 | O152: 1.88 | P152: 1.84 | S152: K2Ib-IICN-2 | T152: K2Ib-
A153: 238 | C153: 4818 | D153: 21767 | E153: 0 | F153: 50 | G153: 57.4 | H153: + | I153: 51 | J153: 30 | K153: 29 | L153: 51 | M153: 6.39 | O153: 0.28 | P153: 0.12 | S153: F2IV | T153: F2IV
A154: 240 | C154: 4853 | D154: 143 | E154: 0 | F154: 54 | G154: 53.1 | H154: + | I154: 83 | J154: 42 | K154: 26 | L154: 83 | M154: 5.62 | O154: 0.09 | P154: 0.1 | S154: A4V | T154: A4V
A155: 241 | C155: 4881 | D155: 21775 | E155: 0 | F155: 51 | G155: 33.7 | H155: + | I155: 51 | J155: 34 | K155: 16 | L155: 51 | M155: 6.21 | S155: B9.5V | T155: B9.5V
A156: 243 | C156: 4928 | D156: 109507 | E156: 0 | F156: 51 | G156: 18.3 | H156: + | I156: 3 | J156: 23 | K156: 6 | L156: 3 | M156: 6.37 | O156: 1.07 | P156: 0.89 | S156: K0III | T156: K0III
A157: 244 | C157: 5015 | D157: 11444 | E157: 0 | F157: 53 | G157: 4.1 | H157: + | I157: 61 | J157: 7 | K157: 27 | L157: 61 | M157: 4.82 | O157: 0.53 | P157: 0.12 | Q157: 0.3 | S157: F8V | T157: F8V
A158: 246 | C158: 5066 | D158: 54225 | E158: 0 | F158: 52 | G158: 53.4 | H158: + | I158: 38 | J158: 32 | K158: 55 | L158: 38 | M158: 6.69 | O158: 0.02 | P158: 0.1 | S158: A2V | T158: A2V
A159: 248 | B159: 20 Cet | C159: 5112 | D159: 129009 | E159: 0 | F159: 53 | G159: 0.5 | H159: - | I159: 1 | J159: 8 | K159: 39 | L159: -1 | M159: 4.77 | O159: 1.57 | P159: 1.93 | Q159: 0.91 | S159: M0III | T159: M0III
A160: 249 | C160: 5118 | D160: 54237 | E160: 0 | F160: 53 | G160: 28.2 | H160: + | I160: 37 | J160: 25 | K160: 5 | L160: 37 | M160: 6.06 | O160: 1.14 | R160: g | S160: K3 | T160: gK3
A161: 250 | C161: 5128 | D161: 21814 | E161: 0 | F161: 53 | G161: 47.6 | H161: + | I161: 52 | J161: 41 | K161: 21 | L161: 52 | M161: 6.27 | O161: 0.19 | P161: 0.15 | Q161: 0.08 | S161: A5m | T161: A5m
A162: 253 | B162: 26Ups1Cas | C162: 5234 | D162: 21832 | E162: 0 | F162: 55 | G162: 0.1 | H162: + | I162: 58 | J162: 58 | K162: 22 | L162: 58 | M162: 4.83 | O162: 1.21 | P162: 1.26 | Q162: 0.61 | S162: K2III | T162: K2III
A163: 254 | B163: 66 Psc | C163: 5267 | D163: 92145 | E163: 0 | F163: 54 | G163: 35.2 | H163: + | I163: 19 | J163: 11 | K163: 18 | L163: 19 | M163: 5.74 | N163: R | O163: -0.01 | P163: -0.14 | S163: A1VN | T163: A1VN
A164: 255 | B164: 21 Cet | C164: 5268 | D164: 129019 | E164: 0 | F164: 54 | G164: 17.6 | H164: - | I164: 8 | J164: 44 | K164: 27 | L164: -8 | M164: 6.16 | O164: 0.92 | P164: 0.54 | S164: G5IV | T164: G5IV
A165: 256 | C165: 5273 | D165: 36763 | E165: 0 | F165: 55 | G165: 5.2 | H165: + | I165: 48 | J165: 40 | K165: 43 | L165: 48 | M165: 6.27 | O165: 1.68 | P165: 2 | S165: M2.5IIIa | T165: M2.5I
A166: 258 | B166: 36 And | C166: 5286 | D166: 74359 | E166: 0 | F166: 54 | G166: 58 | H166: + | I166: 23 | J166: 37 | K166: 42 | L166: 23 | M166: 5.47 | O166: 1 | P166: 0.9 | Q166: 0.5 | S166: K1IV | T166: K1IV
A167: 259 | C167: 5316 | D167: 74365 | E167: 0 | F167: 55 | G167: 14.7 | H167: + | I167: 24 | J167: 33 | K167: 25 | L167: 24 | M167: 6.2 | O167: 1.62 | P167: 1.75 | S167: M4IIIab | T167: M4III
A168: 260 | C168: 5343 | D168: 21846 | E168: 0 | F168: 56 | G168: 12.9 | H168: + | I168: 57 | J168: 59 | K168: 48 | L168: 57 | M168: 6.21 | O168: 1.37 | S168: K3III | T168: K3III
A169: 261 | C169: 5357 | D169: 11481 | E169: 0 | F169: 56 | G169: 55.6 | H169: + | I169: 68 | J169: 46 | K169: 34 | L169: 68 | M169: 6.37 | O169: 0.38 | P169: -0.02 | S169: F4III | T169: F4III
A170: 262 | B170: 67 Psc | C170: 5382 | D170: 74373 | E170: 0 | F170: 55 | G170: 58.5 | H170: + | I170: 27 | J170: 12 | K170: 34 | L170: 27 | M170: 6.09 | O170: 0.14 | P170: 0.09 | S170: A5IV | T170: A5IV
A171: 263 | C171: 5384 | D171: 129032 | E171: 0 | F171: 55 | G171: 42.4 | H171: - | I171: 7 | J171: 20 | K171: 50 | L171: -7 | M171: 5.85 | O171: 1.52 | P171: 1.93 | Q171: 0.64 | S171: K5III | T171: K5III
A172: 264 | B172: 27Gam Cas | C172: 5394 | D172: 11482 | E172: 0 | F172: 56 | G172: 42.5 | H172: + | I172: 60 | J172: 43 | K172: 0 | L172: 60 | M172: 2.47 | O172: -0.15 | P172: -1.08 | Q172: -0.08 | S172: B0IVe | T172: B0IVe
A173: 265 | B173: 28Ups2Cas | C173: 5395 | D173: 21855 | E173: 0 | F173: 56 | G173: 39.8 | H173: + | I173: 59 | J173: 10 | K173: 52 | L173: 59 | M173: 4.63 | O173: 0.96 | P173: 0.69 | Q173: 0.5 | S173: G8IIIbFe-0.5 | T173: G8III
A174: 266 | C174: 5408 | D174: 11484 | E174: 0 | F174: 56 | G174: 47.1 | H174: + | I174: 60 | J174: 21 | K174: 46 | L174: 60 | M174: 5.55 | O174: -0.07 | P174: -0.32 | S174: B9IVn | T174: B9IVn
A175: 267 | B175: 22Phi3Cet | C175: 5437 | D175: 147519 | E175: 0 | F175: 56 | G175: 1.5 | H175: - | I175: 11 | J175: 16 | K175: 0 | L175: -11 | M175: 5.31 | O175: 1.52 | P175: 1.78 | S175: K4III | T175: K4III
A176: 269 | B176: 37Mu And | C176: 5448 | D176: 54281 | E176: 0 | F176: 56 | G176: 45.2 | H176: + | I176: 38 | J176: 29 | K176: 58 | L176: 38 | M176: 3.87 | O176: 0.13 | P176: 0.15 | Q176: 0.08 | S176: A5V | T176: A5V
A177: 271 | B177: 38Eta And | C177: 5516 | D177: 74388 | E177: 0 | F177: 57 | G177: 12.4 | H177: + | I177: 23 | J177: 25 | K177: 3 | L177: 23 | M177: 4.42 | O177: 0.94 | P177: 0.69 | Q177: 0.48 | S177: G8IIIb | T177: G8III
A178: 272 | C178: 5526 | D178: 36795 | E178: 0 | F178: 57 | G178: 39.7 | H178: + | I178: 45 | J178: 50 | K178: 23 | L178: 45 | M178: 6.12 | O178: 1.02 | P178: 0.89 | S178: K2III | T178: K2III
A179: 273 | C179: 5550 | D179: 11502 | E179: 0 | F179: 58 | G179: 31.1 | H179: + | I179: 66 | J179: 21 | K179: 8 | L179: 66 | M179: 5.97 | O179: -0.02 | P179: -0.13 | S179: A0III | T179: A0III
A180: 274 | B180: 68 Psc | C180: 5575 | D180: 74395 | E180: 0 | F180: 57 | G180: 50.2 | H180: + | I180: 28 | J180: 59 | K180: 32 | L180: 28 | M180: 5.42 | O180: 1.08 | R180: g | S180: G6 | T180: gG6
A181: 275 | C181: 5608 | D181: 54306 | E181: 0 | F181: 58 | G181: 14.2 | H181: + | I181: 33 | J181: 57 | K181: 3 | L181: 33 | M181: 5.98 | O181: 1 | S181: K0 | T181: K0
A182: 276 | C182: 5612 | D182: 92183 | E182: 0 | F182: 57 | G182: 54.5 | H182: + | I182: 13 | J182: 41 | K182: 45 | L182: 13 | M182: 6.32 | O182: 0.89 | P182: 0.57 | Q182: 0.46 | S182: G8III | T182: G8III
A183: 277 | C183: 5641 | D183: 74402 | E183: 0 | F183: 58 | G183: 18.9 | H183: + | I183: 21 | J183: 24 | K183: 16 | L183: 21 | M183: 6.37 | N183: R | O183: 0.09 | P183: 0.11 | S183: A2V | T183: A2V
A184: 278 | C184: 5715 | D184: 4288 | E184: 1 | F184: 0 | G184: 31 | H184: + | I184: 70 | J184: 58 | K184: 59 | L184: 70 | M184: 6.39 | O184: 0.13 | P184: 0.11 | S184: A4IV | T184: A4IV
A185: 279 | B185: 23Phi4Cet | C185: 5722 | D185: 147546 | E185: 0 | F185: 58 | G185: 43.9 | H185: - | I185: 11 | J185: 22 | K185: 48 | L185: -11 | M185: 5.61 | O185: 0.97 | P185: 0.66 | S185: G7III | T185: G7III
A186: 282 | C186: 5788 | D186: 36832 | E186: 1 | F186: 0 | G186: 3.4 | H186: + | I186: 44 | J186: 42 | K186: 40 | L186: 44 | M186: 6.84 | N186: H | S186: A2Vn | T186: A2Vn
A187: 283 | C187: 5789 | D187: 36833 | E187: 1 | F187: 0 | G187: 3.6 | H187: + | I187: 44 | J187: 42 | K187: 48 | L187: 44 | M187: 6.04 | N187: H | O187: -0.01 | P187: -0.04 | S187: B9.5Vn | T187: B9.5V
A188: 284 | C188: 5820 | D188: 109581 | E188: 0 | F188: 59 | G188: 49.7 | H188: + | I188: 6 | J188: 28 | K188: 59 | L188: 6 | M188: 6.11 | O188: 1.67 | P188: 1.92 | Q188: 1.02 | S188: M2III | T188: M2III
A189: 285 | C189: 5848 | D189: 181 | E189: 1 | F189: 8 | G189: 44.7 | H189: + | I189: 86 | J189: 15 | K189: 25 | L189: 86 | M189: 4.25 | O189: 1.21 | P189: 1.33 | Q189: 0.6 | S189: K2II-III | T189: K2II-
A190: 286 | C190: 5914 | D190: 209 | E190: 1 | F190: 33 | G190: 50.4 | H190: + | I190: 89 | J190: 0 | K190: 56 | L190: 89 | M190: 6.46 | O190: 0.11 | P190: 0.07 | S190: A3V | T190: A3V
A191: 287 | C191: 6028 | D191: 21938 | E191: 1 | F191: 2 | G191: 18.4 | H191: + | I191: 51 | J191: 2 | K191: 6 | L191: 51 | M191: 6.47 | S191: A3V | T191: A3V
A192: 289 | C192: 6114 | D192: 36875 | E192: 1 | F192: 3 | G192: 1.5 | H192: + | I192: 47 | J192: 22 | K192: 34 | L192: 47 | M192: 6.45 | O192: 0.25 | P192: 0.09 | S192: A9IV | T192: A9IV
A193: 290 | B193: 39 And | C193: 6116 | D193: 36874 | E193: 1 | F193: 2 | G193: 54.3 | H193: + | I193: 41 | J193: 20 | K193: 42 | L193: 41 | M193: 5.98 | O193: 0.16 | P193: 0.1 | Q193: 0.05 | S193: A5m | T193: A5m
A194: 291 | B194: 69Sig Psc | C194: 6118 | D194: 54374 | E194: 1 | F194: 2 | G194: 49.1 | H194: + | I194: 31 | J194: 48 | K194: 16 | L194: 31 | M194: 5.5 | O194: -0.05 | P194: -0.18 | S194: B9.5V | T194: B9.5V
A195: 292 | C195: 6130 | D195: 11551 | E195: 1 | F195: 3 | G195: 37 | H195: + | I195: 61 | J195: 4 | K195: 30 | L195: 61 | M195: 5.92 | O195: 0.49 | S195: F0II | T195: F0II
A196: 294 | B196: 71Eps Psc | C196: 6186 | D196: 109627 | E196: 1 | F196: 2 | G196: 56.6 | H196: + | I196: 7 | J196: 53 | K196: 24 | L196: 7 | M196: 4.28 | O196: 0.96 | P196: 0.7 | Q196: 0.52 | S196: K0III | T196: K0III
A197: 296 | B197: 25 Cet | C197: 6203 | D197: 129094 | E197: 1 | F197: 3 | G197: 2.6 | H197: - | I197: 4 | J197: 50 | K197: 12 | L197: -4 | M197: 5.43 | O197: 1.11 | P197: 1.04 | S197: K0III-IV | T197: K0III
A198: 297 | C198: 6210 | D198: 11557 | E198: 1 | F198: 4 | G198: 19.6 | H198: + | I198: 61 | J198: 34 | K198: 49 | L198: 61 | M198: 5.84 | O198: 0.54 | P198: 0.11 | S198: F6V | T198: F6V
A199: 298 | C199: 6211 | D199: 21967 | E199: 1 | F199: 4 | G199: 2.4 | H199: + | I199: 52 | J199: 30 | K199: 8 | L199: 52 | M199: 5.99 | O199: 1.47 | S199: K2 | T199: K2
A200: 301 | B200: 26 Cet | C200: 6288 | D200: 109643 | E200: 1 | F200: 3 | G200: 49 | H200: + | I200: 1 | J200: 22 | K200: 0 | L200: 1 | M200: 6.04 | O200: 0.27 | P200: 0.13 | S200: F1V | T200: F1V
... 4300 more rows

Sheet catalog
A1: HR | B1: Name | C1: HD | D1: SAO | F1: AD0 | G1: AD1 | H1: AD2 | I1: sDE | J1: DE0 | K1: DE1 | L1: DE2 | M1: DE3 | N1: Mag | O1: cMag | P1: B-V | R1: U-B | T1: R-I | W1: pSType | X1: Stype
A2: 1 | C2: 3 | D2: 36042 | F2: 0 | G2: 5 | H2: 9.9 | I2: + | J2: 45 | K2: 13 | L2: 45 | M2: 45 | N2: 6.7 | P2: 0.07 | R2: 0.08 | X2: A1Vn | Y2: 1 | Z2: 00:05:09.900 | AA2: +45:13:45.00 | AB2: -0.012 | AC2: -0.018 | AD2: 6.7 | AE2: A1Vn
A3: 2 | C3: 6 | D3: 128569 | F3: 0 | G3: 5 | H3: 3.8 | I3: - | J3: 0 | K3: 30 | L3: 11 | M3: 0 | N3: 6.29 | P3: 1.1 | R3: 1.02 | W3: g | X3: G9 | Y3: 2 | Z3: 00:05:03.800 | AA3: -00:30:11.00 | AB3: 0.045 | AC3: -0.06 | AD3: 6.29 | AE3: gG9
A4: 3 | B4: 33 Psc | C4: 28 | D4: 128572 | E4: Var? | F4: 0 | G4: 5 | H4: 20.1 | I4: - | J4: 5 | K4: 42 | L4: 27 | M4: -5 | N4: 4.61 | P4: 1.04 | R4: 0.89 | T4: 0.54 | X4: K0IIIbCN-0.5 | Y4: 3 | Z4: 00:05:20.100 | AA4: -05:42:27.00 | AB4: -0.009 | AC4: 0.089 | AD4: 4.61 | AE4: K0III | AF4: *
A5: 4 | B5: 86 Peg | C5: 87 | D5: 91701 | F5: 0 | G5: 5 | H5: 42 | I5: + | J5: 13 | K5: 23 | L5: 46 | M5: 13 | N5: 5.51 | P5: 0.9 | X5: G5III | Y5: 4 | Z5: 00:05:42 | AA5: +13:23:46.00 | AB5: 0.045 | AC5: -0.012 | AD5: 5.51 | AE5: G5III
A6: 5 | C6: 123 | D6: 21085 | E6: V640 Cas | F6: 0 | G6: 6 | H6: 16 | I6: + | J6: 58 | K6: 26 | L6: 12 | M6: 58 | N6: 5.96 | P6: 0.67 | R6: 0.2 | X6: G5V | Y6: 5 | Z6: 00:06:16 | AA6: +58:26:12.00 | AB6: 0.263 | AC6: 0.03 | AD6: 5.96 | AE6: G5V
A7: 6 | C7: 142 | D7: 214963 | F7: 0 | G7: 6 | H7: 19 | I7: - | J7: 49 | K7: 4 | L7: 30 | M7: -49 | N7: 5.7 | P7: 0.52 | R7: 0.05 | X7: G1IV | Y7: 6 | Z7: 00:06:19 | AA7: -49:04:30.00 | AB7: 0.565 | AC7: -0.038 | AD7: 5.7 | AE7: G1IV
A8: 7 | B8: 10 Cas | C8: 144 | D8: 10978 | F8: 0 | G8: 6 | H8: 26.5 | I8: + | J8: 64 | K8: 11 | L8: 46 | M8: 64 | N8: 5.59 | P8: -0.03 | R8: -0.19 | X8: B9III | Y8: 7 | Z8: 00:06:26.500 | AA8: +64:11:46.00 | AB8: 0.008 | AC8: 0 | AD8: 5.59 | AE8: B9III
A9: 8 | C9: 166 | D9: 73743 | E9: 33 | F9: 0 | G9: 6 | H9: 36.8 | I9: + | J9: 29 | K9: 1 | L9: 17 | M9: 29 | N9: 6.13 | P9: 0.75 | R9: 0.33 | X9: K0V | Y9: 8 | Z9: 00:06:36.800 | AA9: +29:01:17.00 | AB9: 0.38 | AC9: -0.182 | AD9: 6.13 | AE9: K0V
A10: 9 | C10: 203 | D10: 166053 | F10: 0 | G10: 6 | H10: 50.1 | I10: - | J10: 23 | K10: 6 | L10: 27 | M10: -23 | N10: 6.18 | P10: 0.38 | R10: 0.05 | X10: A7V | Y10: 9 | Z10: 00:06:50.100 | AA10: -23:06:27.00 | AB10: 0.1 | AC10: -0.045 | AD10: 6.18 | AE10: A7V
A11: 10 | C11: 256 | D11: 147090 | F11: 0 | G11: 7 | H11: 18.2 | I11: - | J11: 17 | K11: 23 | L11: 11 | M11: -17 | N11: 6.19 | P11: 0.14 | R11: 0.1 | X11: A6Vn | Y11: 10 | Z11: 00:07:18.200 | AA11: -17:23:11.00 | AB11: -0.018 | AC11: 0.036 | AD11: 6.19 | AE11: A6Vn
A12: 11 | C12: 315 | D12: 128595 | E12: Var? | F12: 0 | G12: 7 | H12: 44.1 | I12: - | J12: 2 | K12: 32 | L12: 56 | M12: -2 | N12: 6.43 | P12: -0.14 | R12: -0.47 | X12: B8IIIpSi | Y12: 11 | Z12: 00:07:44.100 | AA12: -02:32:56.00 | AB12: 0.027 | AC12: -0.002 | AD12: 6.43 | AE12: B8III | AF12: *
A13: 12 | C13: 319 | D13: 166066 | E13: 46 | F13: 0 | G13: 7 | H13: 46.8 | I13: - | J13: 22 | K13: 30 | L13: 32 | M13: -22 | N13: 5.94 | P13: 0.14 | R13: 0.06 | X13: A2Vp: | Y13: 12 | Z13: 00:07:46.800 | AA13: -22:30:32.00 | AB13: 0.052 | AC13: -0.044 | AD13: 5.94 | AE13: A2Vp:
A14: 13 | C14: 344 | D14: 192367 | F14: 0 | G14: 8 | H14: 3.5 | I14: - | J14: 33 | K14: 31 | L14: 46 | M14: -33 | N14: 5.68 | P14: 1.12 | X14: K1III | Y14: 13 | Z14: 00:08:03.500 | AA14: -33:31:46.00 | AB14: -0.037 | AC14: 0 | AD14: 5.68 | AE14: K1III
A15: 14 | C15: 352 | D15: 128602 | E15: AP Psc | F15: 0 | G15: 8 | H15: 12.1 | I15: - | J15: 2 | K15: 26 | L15: 52 | M15: -2 | N15: 6.07 | P15: 1.38 | R15: 1.14 | X15: K2III+F | Y15: 14 | Z15: 00:08:12.100 | AA15: -02:26:52.00 | AB15: 0.009 | AC15: -0.003 | AD15: 6.07 | AE15: K2III | AF15: *
A16: 15 | B16: 21Alp And | C16: 358 | D16: 73765 | E16: Alp And | F16: 0 | G16: 8 | H16: 23.3 | I16: + | J16: 29 | K16: 5 | L16: 26 | M16: 29 | N16: 2.06 | P16: -0.11 | R16: -0.46 | T16: -0.1 | X16: B8IVpMnHg | Y16: 15 | Z16: 00:08:23.300 | AA16: +29:05:26.00 | AB16: 0.136 | AC16: -0.163 | AD16: 2.06 | AE16: B8IVp | AF16: *
A17: 16 | C17: 360 | D17: 128604 | F17: 0 | G17: 8 | H17: 17.4 | I17: - | J17: 8 | K17: 49 | L17: 26 | M17: -8 | N17: 5.99 | P17: 1.04 | R17: 0.83 | W17: g | X17: G8 | Y17: 16 | Z17: 00:08:17.400 | AA17: -08:49:26.00 | AB17: -0.052 | AC17: -0.033 | AD17: 5.99 | AE17: gG8
A18: 17 | C18: 400 | D18: 53677 | F18: 0 | G18: 8 | H18: 41 | I18: + | J18: 36 | K18: 37 | L18: 36 | M18: 36 | N18: 6.19 | P18: 0.48 | R18: -0.09 | X18: F8IV | Y18: 17 | Z18: 00:08:41 | AA18: +36:37:36.00 | AB18: -0.1 | AC18: -0.145 | AD18: 6.19 | AE18: F8IV
A19: 18 | C19: 402 | D19: 147103 | E19: 51 | F19: 0 | G19: 8 | H19: 33.4 | I19: - | J19: 17 | K19: 34 | L19: 39 | M19: -17 | N19: 6.06 | P19: 1.67 | R19: 1.97 | X19: M0III | Y19: 18 | Z19: 00:08:33.400 | AA19: -17:34:39.00 | AB19: 0 | AC19: -0.025 | AD19: 6.06 | AE19: M0III
A20: 19 | C20: 417 | D20: 73769 | F20: 0 | G20: 8 | H20: 52.2 | I20: + | J20: 25 | K20: 27 | L20: 46 | M20: 25 | N20: 6.23 | P20: 0.97 | R20: 0.73 | X20: K0III | Y20: 19 | Z20: 00:08:52.200 | AA20: +25:27:46.00 | AB20: 0.114 | AC20: 0.031 | AD20: 6.23 | AE20: K0III
A21: 20 | C21: 431 | D21: 4048 | F21: 0 | G21: 9 | H21: 20.2 | I21: + | J21: 79 | K21: 42 | L21: 53 | M21: 79 | N21: 6.01 | P21: 0.19 | R21: 0.1 | X21: A7IV | Y21: 20 | Z21: 00:09:20.200 | AA21: +79:42:53.00 | AB21: 0.102 | AC21: -0.027 | AD21: 6.01 | AE21: A7IV
A22: 21 | B22: 11Bet Cas | C22: 432 | D22: 21133 | E22: Bet Cas | F22: 0 | G22: 9 | H22: 10.7 | I22: + | J22: 59 | K22: 8 | L22: 59 | M22: 59 | N22: 2.27 | P22: 0.34 | R22: 0.11 | T22: 0.2 | X22: F2III-IV | Y22: 21 | Z22: 00:09:10.700 | AA22: +59:08:59.00 | AB22: 0.525 | AC22: -0.181 | AD22: 2.27 | AE22: F2III | AF22: *
A23: 22 | B23: 87 Peg | C23: 448 | D23: 91734 | F23: 0 | G23: 9 | H23: 2.4 | I23: + | J23: 18 | K23: 12 | L23: 43 | M23: 18 | N23: 5.53 | P23: 1.04 | X23: G9III | Y23: 22 | Z23: 00:09:02.400 | AA23: +18:12:43.00 | AB23: 0.137 | AC23: -0.024 | AD23: 5.53 | AE23: G9III
A24: 23 | C24: 469 | D24: 231943 | F24: 0 | G24: 9 | H24: 2.4 | I24: - | J24: 54 | K24: 0 | L24: 7 | M24: -54 | N24: 6.33 | P24: 0.74 | R24: 0.39 | X24: G4IV | Y24: 23 | Z24: 00:09:02.400 | AA24: -54:00:07.00 | AB24: 0.051 | AC24: 0.016 | AD24: 6.33 | AE24: G4IV
A25: 24 | B25: Kap1Scl | C25: 493 | D25: 166083 | F25: 0 | G25: 9 | H25: 21 | I25: - | J25: 27 | K25: 59 | L25: 16 | M25: -27 | N25: 5.42 | P25: 0.42 | R25: 0.08 | X25: F2V | Y25: 24 | Z25: 00:09:21 | AA25: -27:59:16.00 | AB25: 0.072 | AC25: -0.004 | AD25: 5.42 | AE25: F2V
A26: 25 | B26: Eps Phe | C26: 496 | D26: 214983 | F26: 0 | G26: 9 | H26: 24.7 | I26: - | J26: 45 | K26: 44 | L26: 51 | M26: -45 | N26: 3.88 | P26: 1.03 | R26: 0.84 | T26: 0.52 | X26: K0III | Y26: 25 | Z26: 00:09:24.700 | AA26: -45:44:51.00 | AB26: 0.124 | AC26: -0.181 | AD26: 3.88 | AE26: K0III
A27: 26 | B27: 34 Psc | C27: 560 | D27: 91750 | F27: 0 | G27: 10 | H27: 2.3 | I27: + | J27: 11 | K27: 8 | L27: 44 | M27: 11 | N27: 5.51 | P27: -0.07 | R27: -0.24 | X27: B9Vn | Y27: 26 | Z27: 00:10:02.300 | AA27: +11:08:44.00 | AB27: 0.041 | AC27: -0.003 | AD27: 5.51 | AE27: B9Vn
A28: 27 | B28: 22 And | C28: 571 | D28: 36123 | F28: 0 | G28: 10 | H28: 19.3 | I28: + | J28: 46 | K28: 4 | L28: 20 | M28: 46 | N28: 5.03 | P28: 0.4 | R28: 0.25 | T28: 0.29 | X28: F2II | Y28: 27 | Z28: 00:10:19.300 | AA28: +46:04:20.00 | AB28: 0.008 | AC28: 0 | AD28: 5.03 | AE28: F2II
A29: 28 | C29: 584 | D29: 21162 | F29: 0 | G29: 10 | H29: 29.7 | I29: + | J29: 57 | K29: 9 | L29: 56 | M29: 57 | N29: 6.74 | P29: -0.08 | R29: -0.41 | X29: B7IV | Y29: 28 | Z29: 00:10:29.700 | AA29: +57:09:56.00 | AB29: 0.023 | AC29: 0.006 | AD29: 6.74 | AE29: B7IV
A30: 29 | C30: 587 | D30: 128621 | F30: 0 | G30: 10 | H30: 18.8 | I30: - | J30: 5 | K30: 14 | L30: 55 | M30: -5 | N30: 5.84 | P30: 0.98 | R30: 0.74 | X30: K1III | Y30: 29 | Z30: 00:10:18.800 | AA30: -05:14:55.00 | AB30: 0.036 | AC30: -0.033 | AD30: 5.84 | AE30: K1III
A31: 30 | B31: Gam3Oct | C31: 636 | D31: 258215 | F31: 0 | G31: 10 | H31: 2.1 | I31: - | J31: 82 | K31: 13 | L31: 26 | M31: -82 | N31: 5.28 | P31: 1.05 | R31: 0.92 | X31: G8III | Y31: 30 | Z31: 00:10:02.100 | AA31: -82:13:26.00 | AB31: -0.029 | AC31: -0.02 | AD31: 5.28 | AE31: G8III
A32: 31 | C32: 645 | D32: 147127 | F32: 0 | G32: 10 | H32: 42.8 | I32: - | J32: 12 | K32: 34 | L32: 48 | M32: -12 | N32: 5.85 | P32: 1.01 | R32: 0.8 | X32: K0IV | Y32: 31 | Z32: 00:10:42.800 | AA32: -12:34:48.00 | AB32: 0.15 | AC32: -0.038 | AD32: 5.85 | AE32: K0IV
A33: 32 | C33: 661 | D33: 255642 | F33: 0 | G33: 10 | H33: 38.6 | I33: - | J33: 73 | K33: 13 | L33: 28 | M33: -73 | N33: 6.64 | P33: 0.37 | R33: 0.06 | X33: F2V+F6V | Y33: 32 | Z33: 00:10:38.600 | AA33: -73:13:28.00 | AB33: 0.123 | AC33: 0.016 | AD33: 6.64 | AE33: F2V+F | AF33: *
A34: 33 | B34: 6 Cet | C34: 693 | D34: 147133 | F34: 0 | G34: 11 | H34: 15.9 | I34: - | J34: 15 | K34: 28 | L34: 5 | M34: -15 | N34: 4.89 | P34: 0.49 | R34: -0.03 | X34: F7V | Y34: 33 | Z34: 00:11:15.900 | AA34: -15:28:05.00 | AB34: -0.077 | AC34: -0.268 | AD34: 4.89 | AE34: F7V
A35: 34 | B35: Kap2Scl | C35: 720 | D35: 166103 | F35: 0 | G35: 11 | H35: 34.4 | I35: - | J35: 27 | K35: 47 | L35: 59 | M35: -27 | N35: 5.41 | P35: 1.34 | R35: 1.46 | X35: K5III | Y35: 34 | Z35: 00:11:34.400 | AA35: -27:47:59.00 | AB35: 0.01 | AC35: 0.016 | AD35: 5.41 | AE35: K5III
A36: 35 | B36: The Scl | C36: 739 | D36: 192388 | F36: 0 | G36: 11 | H36: 44 | I36: - | J36: 35 | K36: 7 | L36: 59 | M36: -35 | N36: 5.25 | P36: 0.44 | X36: F4V | Y36: 35 | Z36: 00:11:44 | AA36: -35:07:59.00 | AB36: 0.173 | AC36: 0.119 | AD36: 5.25 | AE36: F4V
A37: 36 | C37: 743 | D37: 36148 | F37: 0 | G37: 11 | H37: 59.1 | I37: + | J37: 48 | K37: 9 | L37: 9 | M37: 48 | N37: 6.16 | P37: 1.45 | W37: g | X37: K4 | Y37: 36 | Z37: 00:11:59.100 | AA37: +48:09:09.00 | AB37: 0.058 | AC37: 0.017 | AD37: 6.16 | AE37: gK4
A38: 37 | C38: 787 | D38: 147144 | F38: 0 | G38: 12 | H38: 10 | I38: - | J38: 17 | K38: 56 | L38: 18 | M38: -17 | N38: 5.25 | P38: 1.48 | R38: 1.63 | X38: K5III | Y38: 37 | Z38: 00:12:10 | AA38: -17:56:18.00 | AB38: 0.056 | AC38: -0.031 | AD38: 5.25 | AE38: K5III
A39: 38 | C39: 829 | D39: 53725 | F39: 0 | G39: 12 | H39: 50.4 | I39: + | J39: 37 | K39: 41 | L39: 36 | M39: 37 | N39: 6.73 | P39: -0.13 | R39: -0.7 | X39: B2V | Y39: 38 | Z39: 00:12:50.400 | AA39: +37:41:36.00 | AB39: 0.028 | AC39: -0.012 | AD39: 6.73 | AE39: B2V
A40: 39 | B40: 88Gam Peg | C40: 886 | D40: 91781 | E40: Gam Peg | F40: 0 | G40: 13 | H40: 14.2 | I40: + | J40: 15 | K40: 11 | L40: 1 | M40: 15 | N40: 2.83 | P40: -0.23 | R40: -0.87 | T40: -0.19 | X40: B2IV | Y40: 39 | Z40: 00:13:14.200 | AA40: +15:11:01.00 | AB40: 0.003 | AC40: -0.012 | AD40: 2.83 | AE40: B2IV
A41: 40 | C41: 895 | D41: 73823 | F41: 0 | G41: 13 | H41: 24 | I41: + | J41: 26 | K41: 59 | L41: 14 | M41: 26 | N41: 6.3 | P41: 0.65 | R41: 0.33 | X41: G0III | Y41: 40 | Z41: 00:13:24 | AA41: +26:59:14.00 | AB41: -0.008 | AC41: -0.047 | AD41: 6.3 | AE41: G0III
A42: 41 | B42: 23 And | C42: 905 | D42: 36173 | F42: 0 | G42: 13 | H42: 30.8 | I42: + | J42: 41 | K42: 2 | L42: 7 | M42: 41 | N42: 5.72 | P42: 0.31 | R42: -0.02 | X42: F0IV | Y42: 41 | Z42: 00:13:30.800 | AA42: +41:02:07.00 | AB42: -0.123 | AC42: -0.148 | AD42: 5.72 | AE42: F0IV
A43: 42 | C43: 942 | D43: 166130 | E43: 96 | F43: 0 | G43: 13 | H43: 42.1 | I43: - | J43: 26 | K43: 1 | L43: 19 | M43: -26 | N43: 5.94 | P43: 1.55 | X43: K5III | Y43: 42 | Z43: 00:13:42.100 | AA43: -26:01:19.00 | AB43: 0.026 | AC43: -0.069 | AD43: 5.94 | AE43: K5III
A44: 43 | C44: 943 | D44: 166131 | F44: 0 | G44: 13 | H44: 44.2 | I44: - | J44: 26 | K44: 17 | L44: 5 | M44: -26 | N44: 6.31 | P44: 1.48 | R44: 1.65 | X44: K5III | Y44: 43 | Z44: 00:13:44.200 | AA44: -26:17:05.00 | AB44: -0.02 | AC44: 0.012 | AD44: 6.31 | AE44: K5III
A45: 44 | C45: 952 | D45: 53744 | F45: 0 | G45: 14 | H45: 2.3 | I45: + | J45: 33 | K45: 12 | L45: 22 | M45: 33 | N45: 6.25 | P45: -0.01 | R45: -0.05 | X45: A1V | Y45: 44 | Z45: 00:14:02.300 | AA45: +33:12:22.00 | AB45: -0.006 | AC45: -0.018 | AD45: 6.25 | AE45: A1V
A46: 45 | B46: 89Chi Peg | C46: 1013 | D46: 91792 | E46: 99 | F46: 0 | G46: 14 | H46: 36.2 | I46: + | J46: 20 | K46: 12 | L46: 24 | M46: 20 | N46: 4.8 | P46: 1.57 | R46: 1.93 | T46: 1.13 | X46: M2+III | Y46: 45 | Z46: 00:14:36.200 | AA46: +20:12:24.00 | AB46: 0.093 | AC46: 0 | AD46: 4.8 | AE46: M2+II
A47: 46 | C47: 1014 | D47: 128655 | E47: AD Cet | F47: 0 | G47: 14 | H47: 27.6 | I47: - | J47: 7 | K47: 46 | L47: 50 | M47: -7 | N47: 5.12 | P47: 1.62 | R47: 1.81 | T47: 1.03 | U47: E | X47: M3+III | Y47: 46 | Z47: 00:14:27.600 | AA47: -07:46:50.00 | AB47: 0.059 | AC47: 0.004 | AD47: 5.12 | AE47: M3+II
A48: 47 | C48: 1032 | D48: 258217 | F48: 0 | G48: 13 | H48: 19.4 | I48: - | J48: 84 | K48: 59 | L48: 39 | M48: -84 | N48: 5.77 | P48: 1.72 | R48: 2.1 | X48: M0-1III | Y48: 47 | Z48: 00:13:19.400 | AA48: -84:59:39.00 | AB48: 0.004 | AC48: 0.008 | AD48: 5.77 | AE48: M0-1I | AF48: *
A49: 48 | B49: 7 Cet | C49: 1038 | D49: 147169 | E49: AE Cet | F49: 0 | G49: 14 | H49: 38.4 | I49: - | J49: 18 | K49: 55 | L49: 58 | M49: -18 | N49: 4.44 | P49: 1.66 | R49: 1.99 | T49: 1.14 | X49: M3III | Y49: 48 | Z49: 00:14:38.400 | AA49: -18:55:58.00 | AB49: -0.024 | AC49: -0.067 | AD49: 4.44 | AE49: M3III
A50: 49 | C50: 1048 | D50: 73838 | F50: 0 | G50: 14 | H50: 56.1 | I50: + | J50: 22 | K50: 17 | L50: 3 | M50: 22 | N50: 6.24 | P50: -0.01 | R50: 0.12 | X50: A1pSi | Y50: 49 | Z50: 00:14:56.100 | AA50: +22:17:03.00 | AB50: 0.065 | AC50: -0.011 | AD50: 6.24 | AE50: A1pSi
A51: 50 | B51: 35 Psc | C51: 1061 | D51: 109087 | E51: UU Psc | F51: 0 | G51: 14 | H51: 58.8 | I51: + | J51: 8 | K51: 49 | L51: 15 | M51: 8 | N51: 5.79 | P51: 0.31 | R51: 0.04 | X51: F0IV | Y51: 50 | Z51: 00:14:58.800 | AA51: +08:49:15.00 | AB51: 0.097 | AC51: -0.028 | AD51: 5.79 | AE51: F0IV
A52: 51 | C52: 1064 | D52: 128660 | F52: 0 | G52: 14 | H52: 54.5 | I52: - | J52: 9 | K52: 34 | L52: 11 | M52: -9 | N52: 5.75 | P52: -0.08 | X52: B9V | Y52: 51 | Z52: 00:14:54.500 | AA52: -09:34:11.00 | AB52: 0.028 | AC52: -0.011 | AD52: 5.75 | AE52: B9V
A53: 52 | C53: 1075 | D53: 53755 | F53: 0 | G53: 15 | H53: 7 | I53: + | J53: 31 | K53: 32 | L53: 9 | M53: 31 | N53: 6.45 | O53: R | X53: K5 | Y53: 52 | Z53: 00:15:07 | AA53: +31:32:09.00 | AB53: 0.035 | AC53: -0.005 | AD53: 6.45 | AE53: K5
A54: 53 | C54: 1083 | D54: 73842 | F54: 0 | G54: 15 | H54: 10.6 | I54: + | J54: 27 | K54: 16 | L54: 59 | M54: 27 | N54: 6.35 | P54: -0.02 | R54: 0.02 | X54: A1Vn | Y54: 53 | Z54: 00:15:10.600 | AA54: +27:16:59.00 | AB54: 0.021 | AC54: -0.031 | AD54: 6.35 | AE54: A1Vn
A55: 54 | C55: 1089 | D55: 192418 | F55: 0 | G55: 14 | H55: 58.2 | I55: - | J55: 34 | K55: 54 | L55: 16 | M55: -34 | N55: 6.17 | P55: 1.34 | X55: K3III | Y55: 54 | Z55: 00:14:58.200 | AA55: -34:54:16.00 | AB55: 0.073 | AC55: -0.023 | AD55: 6.17 | AE55: K3III
A56: 55 | C56: 1141 | D56: 4071 | F56: 0 | G56: 16 | H56: 14 | I56: + | J56: 76 | K56: 57 | L56: 3 | M56: 76 | N56: 6.35 | P56: -0.07 | R56: -0.26 | X56: B8Vnn | Y56: 55 | Z56: 00:16:14 | AA56: +76:57:03.00 | AB56: 0.018 | AC56: -0.002 | AD56: 6.35 | AE56: B8Vnn
A57: 56 | C57: 1185 | D57: 36221 | F57: 0 | G57: 16 | H57: 21.6 | I57: + | J57: 43 | K57: 35 | L57: 41 | M57: 43 | N57: 6.15 | P57: 0.05 | R57: 0.03 | X57: A2VpSi | Y57: 56 | Z57: 00:16:21.600 | AA57: +43:35:41.00 | AB57: 0.043 | AC57: -0.03 | AD57: 6.15 | AE57: A2VpS
A58: 57 | C58: 1187 | D58: 192430 | F58: 0 | G58: 16 | H58: 8.9 | I58: - | J58: 31 | K58: 26 | L58: 47 | M58: -31 | N58: 5.67 | P58: 1.35 | R58: 1.5 | X58: K5III | Y58: 57 | Z58: 00:16:08.900 | AA58: -31:26:47.00 | AB58: 0.122 | AC58: -0.03 | AD58: 5.67 | AE58: K5III
A59: 58 | C59: 1221 | D59: 255650 | F59: 0 | G59: 15 | H59: 55.2 | I59: - | J59: 75 | K59: 54 | L59: 41 | M59: -75 | N59: 6.49 | P59: 1 | R59: 0.72 | X59: G8-K0III | Y59: 58 | Z59: 00:15:55.200 | AA59: -75:54:41.00 | AB59: -0.013 | AC59: 0.006 | AD59: 6.49 | AE59: G8-K0 | AF59: *
A60: 59 | B60: 36 Psc | C60: 1227 | D60: 109100 | F60: 0 | G60: 16 | H60: 34.1 | I60: + | J60: 8 | K60: 14 | L60: 24 | M60: 8 | N60: 6.11 | P60: 0.92 | R60: 0.66 | X60: G8II-III | Y60: 59 | Z60: 00:16:34.100 | AA60: +08:14:24.00 | AB60: -0.02 | AC60: -0.019 | AD60: 6.11 | AE60: G8II- | AF60: *
A61: 60 | C61: 1239 | D61: 11084 | F61: 0 | G61: 16 | H61: 57.1 | I61: + | J61: 61 | K61: 32 | L61: 0 | M61: 61 | N61: 5.74 | P61: 0.88 | R61: 0.59 | X61: G8III | Y61: 60 | Z61: 00:16:57.100 | AA61: +61:32:00.00 | AB61: -0.001 | AC61: -0.001 | AD61: 5.74 | AE61: G8III
A62: 61 | C62: 1256 | D62: 166167 | E62: 113 | F62: 0 | G62: 16 | H62: 42.5 | I62: - | J62: 20 | K62: 12 | L62: 38 | M62: -20 | N62: 6.47 | P62: -0.09 | R62: -0.48 | X62: B8III | Y62: 61 | Z62: 00:16:42.500 | AA62: -20:12:38.00 | AB62: 0.012 | AC62: -0.014 | AD62: 6.47 | AE62: B8III
A63: 62 | C63: 1279 | D63: 36236 | F63: 0 | G63: 17 | H63: 9.1 | I63: + | J63: 47 | K63: 56 | L63: 51 | M63: 47 | N63: 5.89 | P63: -0.09 | R63: -0.44 | X63: B7III | Y63: 62 | Z63: 00:17:09.100 | AA63: +47:56:51.00 | AB63: 0.008 | AC63: 0 | AD63: 5.89 | AE63: B7III
A64: 63 | B64: 24The And | C64: 1280 | D64: 53777 | E64: 116 | F64: 0 | G64: 17 | H64: 5.5 | I64: + | J64: 38 | K64: 40 | L64: 54 | M64: 38 | N64: 4.61 | P64: 0.06 | R64: 0.04 | T64: 0.01 | X64: A2V | Y64: 63 | Z64: 00:17:05.500 | AA64: +38:40:54.00 | AB64: -0.05 | AC64: -0.019 | AD64: 4.61 | AE64: A2V
A65: 64 | C65: 1324 | D65: 255652 | F65: 0 | G65: 16 | H65: 49 | I65: - | J65: 78 | K65: 46 | L65: 50 | M65: -78 | N65: 6.77 | P65: 0.46 | R65: 0.08 | X65: F3III | Y65: 64 | Z65: 00:16:49 | AA65: -78:46:50.00 | AB65: 0.077 | AC65: -0.043 | AD65: 6.77 | AE65: F3III
A66: 65 | C66: 1337 | D66: 21273 | E66: AO Cas | F66: 0 | G66: 17 | H66: 43 | I66: + | J66: 51 | K66: 25 | L66: 59 | M66: 51 | N66: 6.14 | P66: -0.13 | R66: -0.97 | X66: O9IIInn | Y66: 65 | Z66: 00:17:43 | AA66: +51:25:59.00 | AB66: -0.005 | AC66: -0.004 | AD66: 6.14 | AE66: O9III | AF66: *
A67: 66 | C67: 1343 | D67: 147205 | F67: 0 | G67: 17 | H67: 32.6 | I67: - | J67: 19 | K67: 3 | L67: 4 | M67: -19 | N67: 6.45 | P67: 0.37 | X67: F4IV-V | Y67: 66 | Z67: 00:17:32.600 | AA67: -19:03:04.00 | AB67: 0.015 | AC67: 0.003 | AD67: 6.45 | AE67: F4IV-
A68: 67 | C68: 1367 | D68: 109119 | F68: 0 | G68: 17 | H68: 47.7 | I68: + | J68: 1 | K68: 41 | L68: 20 | M68: 1 | N68: 6.17 | P68: 0.94 | R68: 0.73 | X68: K0II | Y68: 67 | Z68: 00:17:47.700 | AA68: +01:41:20.00 | AB68: 0.095 | AC68: 0.012 | AD68: 6.17 | AE68: K0II
A69: 68 | B69: 25Sig And | C69: 1404 | D69: 53798 | E69: 118 | F69: 0 | G69: 18 | H69: 19.7 | I69: + | J69: 36 | K69: 47 | L69: 7 | M69: 36 | N69: 4.52 | P69: 0.05 | R69: 0.07 | T69: 0 | X69: A2V | Y69: 68 | Z69: 00:18:19.700 | AA69: +36:47:07.00 | AB69: -0.063 | AC69: -0.041 | AD69: 4.52 | AE69: A2V
A70: 69 | C70: 1419 | D70: 91832 | F70: 0 | G70: 18 | H70: 17.2 | I70: + | J70: 11 | K70: 12 | L70: 21 | M70: 11 | N70: 6.05 | P70: 1.03 | X70: K0III | Y70: 69 | Z70: 00:18:17.200 | AA70: +11:12:21.00 | AB70: -0.036 | AC70: -0.038 | AD70: 6.05 | AE70: K0III
A71: 70 | B71: 26 And | C71: 1438 | D71: 36256 | E71: 119 | F71: 0 | G71: 18 | H71: 42.1 | I71: + | J71: 43 | K71: 47 | L71: 28 | M71: 43 | N71: 6.11 | P71: -0.08 | R71: -0.35 | X71: B8V | Y71: 70 | Z71: 00:18:42.100 | AA71: +43:47:28.00 | AB71: 0.02 | AC71: -0.003 | AD71: 6.11 | AE71: B8V
A72: 71 | C72: 1439 | D72: 53803 | F72: 0 | G72: 18 | H72: 38.3 | I72: + | J72: 31 | K72: 31 | L72: 2 | M72: 31 | N72: 5.87 | P72: -0.01 | R72: 0 | X72: A0IV | Y72: 71 | Z72: 00:18:38.300 | AA72: +31:31:02.00 | AB72: 0.058 | AC72: -0.006 | AD72: 5.87 | AE72: A0IV
A73: 72 | C73: 1461 | D73: 128690 | F73: 0 | G73: 18 | H73: 41.8 | I73: - | J73: 8 | K73: 3 | L73: 10 | M73: -8 | N73: 6.46 | P73: 0.68 | R73: 0.29 | X73: G0V | Y73: 72 | Z73: 00:18:41.800 | AA73: -08:03:10.00 | AB73: 0.413 | AC73: -0.139 | AD73: 6.46 | AE73: G0V
A74: 73 | C74: 1483 | D74: 215047 | F74: 0 | G74: 18 | H74: 42.6 | I74: - | J74: 43 | K74: 14 | L74: 7 | M74: -43 | N74: 6.33 | P74: 1.21 | X74: K2III | Y74: 73 | Z74: 00:18:42.600 | AA74: -43:14:07.00 | AB74: 0.056 | AC74: 0.012 | AD74: 6.33 | AE74: K2III
A75: 74 | B75: 8Iot Cet | C75: 1522 | D75: 128694 | E75: 123 | F75: 0 | G75: 19 | H75: 25.7 | I75: - | J75: 8 | K75: 49 | L75: 26 | M75: -8 | N75: 3.56 | P75: 1.22 | R75: 1.25 | T75: 0.59 | X75: K1.5III | Y75: 74 | Z75: 00:19:25.700 | AA75: -08:49:26.00 | AB75: -0.014 | AC75: -0.036 | AD75: 3.56 | AE75: K1.5I | AF75: *
A76: 75 | C76: 1527 | D76: 36269 | F76: 0 | G76: 19 | H76: 41.6 | I76: + | J76: 40 | K76: 43 | L76: 47 | M76: 40 | N76: 6.33 | P76: 1.18 | X76: K1III | Y76: 75 | Z76: 00:19:41.600 | AA76: +40:43:47.00 | AB76: -0.026 | AC76: -0.01 | AD76: 6.33 | AE76: K1III
A77: 76 | C77: 1561 | D77: 36272 | F77: 0 | G77: 20 | H77: 5.2 | I77: + | J77: 48 | K77: 51 | L77: 55 | M77: 48 | N77: 6.52 | X77: A0V s | Y77: 76 | Z77: 00:20:05.200 | AA77: +48:51:55.00 | AB77: 0.005 | AC77: -0.017 | AD77: 6.52 | AE77: A0V s
A78: 77 | B78: Zet Tuc | C78: 1581 | D78: 248163 | F78: 0 | G78: 20 | H78: 4.3 | I78: - | J78: 64 | K78: 52 | L78: 29 | M78: -64 | N78: 4.23 | P78: 0.58 | R78: 0.02 | T78: 0.33 | X78: F9V | Y78: 77 | Z78: 00:20:04.300 | AA78: -64:52:29.00 | AB78: 1.705 | AC78: 1.164 | AD78: 4.23 | AE78: F9V
A79: 78 | C79: 1606 | D79: 53820 | E79: 128 | F79: 0 | G79: 20 | H79: 24.4 | I79: + | J79: 30 | K79: 56 | L79: 9 | M79: 30 | N79: 5.9 | P79: -0.1 | R79: -0.46 | X79: B7V | Y79: 78 | Z79: 00:20:24.400 | AA79: +30:56:09.00 | AB79: 0.021 | AC79: 0.004 | AD79: 5.9 | AE79: B7V
A80: 79 | C80: 1632 | D80: 53825 | F80: 0 | G80: 20 | H80: 45.5 | I80: + | J80: 32 | K80: 54 | L80: 41 | M80: 32 | N80: 5.79 | P80: 1.59 | T80: 1 | X80: K5III | Y80: 79 | Z80: 00:20:45.500 | AA80: +32:54:41.00 | AB80: -0.026 | AC80: -0.014 | AD80: 5.79 | AE80: K5III
A81: 80 | B81: 41 Psc | C81: 1635 | D81: 109152 | E81: 132 | F81: 0 | G81: 20 | H81: 35.9 | I81: + | J81: 8 | K81: 11 | L81: 25 | M81: 8 | N81: 5.37 | P81: 1.34 | R81: 1.55 | W81: g | X81: K3 | Y81: 80 | Z81: 00:20:35.900 | AA81: +08:11:25.00 | AB81: -0.002 | AC81: 0.008 | AD81: 5.37 | AE81: gK3
A82: 81 | C82: 1663 | D82: 91858 | F82: 0 | G82: 20 | H82: 54.5 | I82: + | J82: 10 | K82: 58 | L82: 37 | M82: 10 | N82: 6.56 | X82: A0V | Y82: 81 | Z82: 00:20:54.500 | AA82: +10:58:37.00 | AB82: -0.046 | AC82: -0.028 | AD82: 6.56 | AE82: A0V
A83: 82 | B83: 27Rho And | C83: 1671 | D83: 53828 | F83: 0 | G83: 21 | H83: 7.3 | I83: + | J83: 37 | K83: 58 | L83: 7 | M83: 37 | N83: 5.18 | P83: 0.42 | R83: 0.05 | X83: F5III | Y83: 82 | Z83: 00:21:07.300 | AA83: +37:58:07.00 | AB83: 0.06 | AC83: -0.04 | AD83: 5.18 | AE83: F5III
A84: 83 | B84: Pi Tuc | C84: 1685 | D84: 248167 | F84: 0 | G84: 20 | H84: 39 | I84: - | J84: 69 | K84: 37 | L84: 30 | M84: -69 | N84: 5.51 | P84: -0.05 | R84: -0.14 | X84: B9V | Y84: 83 | Z84: 00:20:39 | AA84: -69:37:30.00 | AB84: -0.007 | AC84: 0 | AD84: 5.51 | AE84: B9V
A85: 84 | B85: Iot Scl | C85: 1737 | D85: 166207 | F85: 0 | G85: 21 | H85: 31.2 | I85: - | J85: 28 | K85: 58 | L85: 54 | M85: -28 | N85: 5.18 | P85: 1 | R85: 0.82 | X85: G5III | Y85: 84 | Z85: 00:21:31.200 | AA85: -28:58:54.00 | AB85: 0.04 | AC85: -0.074 | AD85: 5.18 | AE85: G5III
A86: 85 | C86: 1760 | D86: 166210 | E86: T Cet | F86: 0 | G86: 21 | H86: 46.3 | I86: - | J86: 20 | K86: 3 | L86: 28 | M86: -20 | N86: 5.12 | P86: 1.82 | R86: 1.78 | X86: M5IIe | Y86: 85 | Z86: 00:21:46.300 | AA86: -20:03:28.00 | AB86: 0.071 | AC86: -0.005 | AD86: 5.12 | AE86: M5IIe
A87: 86 | B87: 42 Psc | C87: 1796 | D87: 91866 | F87: 0 | G87: 22 | H87: 25.5 | I87: + | J87: 13 | K87: 28 | L87: 57 | M87: 13 | N87: 6.23 | P87: 1.22 | X87: K3III | Y87: 86 | Z87: 00:22:25.500 | AA87: +13:28:57.00 | AB87: 0.062 | AC87: 0.021 | AD87: 6.23 | AE87: K3III
A88: 87 | C88: 1801 | D88: 255663 | F88: 0 | G88: 21 | H88: 28.6 | I88: - | J88: 77 | K88: 25 | L88: 37 | M88: -77 | N88: 5.97 | P88: 1.4 | R88: 1.4 | X88: K3III | Y88: 87 | Z88: 00:21:28.600 | AA88: -77:25:37.00 | AB88: 0.002 | AC88: -0.01 | AD88: 5.97 | AE88: K3III
A89: 88 | B89: 9 Cet | C89: 1835 | D89: 147237 | E89: BE Cet | F89: 0 | G89: 22 | H89: 51.8 | I89: - | J89: 12 | K89: 12 | L89: 34 | M89: -12 | N89: 6.39 | P89: 0.66 | R89: 0.24 | X89: G2V | Y89: 88 | Z89: 00:22:51.800 | AA89: -12:12:34.00 | AB89: 0.394 | AC89: 0.061 | AD89: 6.39 | AE89: G2V
A90: 89 | C90: 1909 | D90: 192495 | F90: 0 | G90: 23 | H90: 12.6 | I90: - | J90: 31 | K90: 2 | L90: 10 | M90: -31 | N90: 6.55 | P90: 0 | R90: -0.31 | X90: B9IVMn | Y90: 89 | Z90: 00:23:12.600 | AA90: -31:02:10.00 | AB90: 0.029 | AC90: -0.003 | AD90: 6.55 | AE90: B9IVM
A91: 90 | C91: 1967 | D91: 53860 | E91: R And | F91: 0 | G91: 24 | H91: 2 | I91: + | J91: 38 | K91: 34 | L91: 38 | M91: 38 | N91: 7.39 | P91: 1.97 | R91: 1.25 | T91: 2.21 | X91: S6.5IIIeZr6Ti2 | Y91: 90 | Z91: 00:24:02 | AA91: +38:34:38.00 | AB91: -0.007 | AC91: -0.023 | AD91: 7.39 | AE91: S6.5I | AF91: *
A92: 91 | C92: 1976 | D92: 21366 | E92: 155 | F92: 0 | G92: 24 | H92: 15.6 | I92: + | J92: 52 | K92: 1 | L92: 12 | M92: 52 | N92: 5.57 | P92: -0.12 | R92: -0.6 | X92: B5IV | Y92: 91 | Z92: 00:24:15.600 | AA92: +52:01:12.00 | AB92: 0.013 | AC92: -0.004 | AD92: 5.57 | AE92: B5IV
A93: 92 | B93: NOVA 1572 | E93: B Cas | Y93: 92 | Z93: 00:00:00 | AA93: +00:00:00.00 | AB93: 0 | AC93: 0 | AD93: ????
A94: 93 | B94: 12 Cas | C94: 2011 | D94: 11172 | F94: 0 | G94: 24 | H94: 47.5 | I94: + | J94: 61 | K94: 49 | L94: 52 | M94: 61 | N94: 5.4 | P94: 0 | R94: -0.16 | X94: B9III | Y94: 93 | Z94: 00:24:47.500 | AA94: +61:49:52.00 | AB94: 0.012 | AC94: -0.001 | AD94: 5.4 | AE94: B9III
A95: 94 | C95: 2023 | D95: 128743 | F95: 0 | G95: 24 | H95: 29.7 | I95: - | J95: 2 | K95: 13 | L95: 9 | M95: -2 | N95: 6.07 | P95: 1.22 | R95: 1.23 | X95: K1III | Y95: 94 | Z95: 00:24:29.700 | AA95: -02:13:09.00 | AB95: -0.033 | AC95: -0.044 | AD95: 6.07 | AE95: K1III
A96: 95 | B96: 47 Tuc | Y96: 95 | Z96: 00:00:00 | AA96: +00:00:00.00 | AB96: 0 | AC96: 0 | AD96: ????
A97: 96 | C97: 2054 | D97: 21381 | E97: 159 | F97: 0 | G97: 25 | H97: 6.4 | I97: + | J97: 53 | K97: 2 | L97: 49 | M97: 53 | N97: 5.74 | P97: -0.06 | R97: -0.31 | X97: B9IV | Y97: 96 | Z97: 00:25:06.400 | AA97: +53:02:49.00 | AB97: 0.023 | AC97: -0.002 | AD97: 5.74 | AE97: B9IV
A98: 97 | B98: 44 Psc | C98: 2114 | D98: 109192 | F98: 0 | G98: 25 | H98: 24.2 | I98: + | J98: 1 | K98: 56 | L98: 23 | M98: 1 | N98: 5.77 | P98: 0.86 | R98: 0.57 | X98: G5III | Y98: 97 | Z98: 00:25:24.200 | AA98: +01:56:23.00 | AB98: -0.013 | AC98: -0.015 | AD98: 5.77 | AE98: G5III
A99: 98 | B99: Bet Hyi | C99: 2151 | D99: 255670 | E99: 161 | F99: 0 | G99: 25 | H99: 45.1 | I99: - | J99: 77 | K99: 15 | L99: 15 | M99: -77 | N99: 2.8 | P99: 0.62 | R99: 0.11 | T99: 0.34 | X99: G2IV | Y99: 98 | Z99: 00:25:45.100 | AA99: -77:15:15.00 | AB99: 2.215 | AC99: 0.324 | AD99: 2.8 | AE99: G2IV
A100: 99 | B100: Alp Phe | C100: 2261 | D100: 215093 | F100: 0 | G100: 26 | H100: 17 | I100: - | J100: 42 | K100: 18 | L100: 22 | M100: -42 | N100: 2.39 | P100: 1.09 | R100: 0.88 | T100: 0.6 | X100: K0III | Y100: 99 | Z100: 00:26:17 | AA100: -42:18:22.00 | AB100: 0.203 | AC100: -0.396 | AD100: 2.39 | AE100: K0III
A101: 100 | B101: Kap Phe | C101: 2262 | D101: 215092 | F101: 0 | G101: 26 | H101: 12.2 | I101: - | J101: 43 | K101: 40 | L101: 48 | M101: -43 | N101: 3.94 | P101: 0.17 | R101: 0.11 | T101: 0.08 | X101: A7V | Y101: 100 | Z101: 00:26:12.200 | AA101: -43:40:48.00 | AB101: 0.109 | AC101: 0.029 | AD101: 3.94 | AE101: A7V
A102: 101 | B102: 10 Cet | C102: 2273 | D102: 128760 | E102: Var? | F102: 0 | G102: 26 | H102: 37.4 | I102: - | J102: 0 | K102: 2 | L102: 59 | M102: 0 | N102: 6.19 | P102: 0.9 | R102: 0.55 | X102: G8III | Y102: 101 | Z102: 00:26:37.400 | AA102: -00:02:59.00 | AB102: 0.073 | AC102: -0.001 | AD102: 6.19 | AE102: G8III
A103: 102 | C103: 2363 | D103: 166282 | F103: 0 | G103: 27 | H103: 14.7 | I103: - | J103: 25 | K103: 32 | L103: 50 | M103: -25 | N103: 5.98 | P103: 1.03 | R103: 0.88 | X103: G8III | Y103: 102 | Z103: 00:27:14.700 | AA103: -25:32:50.00 | AB103: 0.036 | AC103: -0.019 | AD103: 5.98 | AE103: G8III
A104: 103 | B104: 47 Psc | C104: 2411 | D104: 91910 | E104: TV Psc | F104: 0 | G104: 28 | H104: 2.9 | I104: + | J104: 17 | K104: 53 | L104: 35 | M104: 17 | N104: 5.06 | P104: 1.65 | R104: 1.82 | T104: 1.54 | X104: M3III | Y104: 103 | Z104: 00:28:02.900 | AA104: +17:53:35.00 | AB104: 0.117 | AC104: 0.021 | AD104: 5.06 | AE104: M3III
A105: 104 | C105: 2421 | D105: 36390 | F105: 0 | G105: 28 | H105: 13.7 | I105: + | J105: 44 | K105: 23 | L105: 40 | M105: 44 | N105: 5.17 | P105: 0.03 | R105: -0.01 | X105: A2V s | Y105: 104 | Z105: 00:28:13.700 | AA105: +44:23:40.00 | AB105: 0.089 | AC105: -0.016 | AD105: 5.17 | AE105: A2V s
A106: 105 | B106: Eta Scl | C106: 2429 | D106: 192545 | E106: Eta Scl | F106: 0 | G106: 27 | H106: 55.7 | I106: - | J106: 33 | K106: 0 | L106: 26 | M106: -33 | N106: 4.81 | P106: 1.64 | R106: 1.81 | T106: 1.38 | X106: M4III | Y106: 105 | Z106: 00:27:55.700 | AA106: -33:00:26.00 | AB106: -0.019 | AC106: -0.052 | AD106: 4.81 | AE106: M4III
A107: 106 | B107: 48 Psc | C107: 2436 | D107: 91912 | F107: 0 | G107: 28 | H107: 12.7 | I107: + | J107: 16 | K107: 26 | L107: 42 | M107: 16 | N107: 6.06 | P107: 1.58 | R107: 2 | X107: K5III | Y107: 106 | Z107: 00:28:12.700 | AA107: +16:26:42.00 | AB107: 0.019 | AC107: -0.015 | AD107: 6.06 | AE107: K5III
A108: 107 | C108: 2454 | D108: 109224 | F108: 0 | G108: 28 | H108: 20.1 | I108: + | J108: 10 | K108: 11 | L108: 23 | M108: 10 | N108: 6.04 | P108: 0.43 | R108: -0.06 | X108: F6Va vw | Y108: 107 | Z108: 00:28:20.100 | AA108: +10:11:23.00 | AB108: 0.046 | AC108: -0.207 | AD108: 6.04 | AE108: F6Va
A109: 108 | C109: 2475 | D109: 166296 | F109: 0 | G109: 28 | H109: 21.1 | I109: - | J109: 20 | K109: 20 | L109: 6 | M109: -20 | N109: 6.43 | P109: 0.59 | R109: -0.03 | X109: G0V | Y109: 108 | Z109: 00:28:21.100 | AA109: -20:20:06.00 | AB109: -0.116 | AC109: -0.114 | AD109: 6.43 | AE109: G0V
A110: 109 | C110: 2490 | D110: 215103 | F110: 0 | G110: 28 | H110: 26.4 | I110: - | J110: 39 | K110: 54 | L110: 54 | M110: -39 | N110: 5.43 | P110: 1.56 | R110: 1.9 | X110: M0III | Y110: 109 | Z110: 00:28:26.400 | AA110: -39:54:54.00 | AB110: 0.13 | AC110: -0.036 | AD110: 5.43 | AE110: M0III
A111: 110 | C111: 2507 | D111: 53928 | F111: 0 | G111: 28 | H111: 56.6 | I111: + | J111: 36 | K111: 54 | L111: 0 | M111: 36 | N111: 6.26 | P111: 0.92 | X111: G5III | Y111: 110 | Z111: 00:28:56.600 | AA111: +36:54:00.00 | AB111: -0.011 | AC111: 0.003 | AD111: 6.26 | AE111: G5III
A112: 111 | C112: 2529 | D112: 232055 | F112: 0 | G112: 28 | H112: 43.1 | I112: - | J112: 50 | K112: 31 | L112: 58 | M112: -50 | N112: 6.26 | P112: 1.09 | X112: K0III | Y112: 111 | Z112: 00:28:43.100 | AA112: -50:31:58.00 | AB112: 0.15 | AC112: -0.002 | AD112: 6.26 | AE112: K0III
A113: 112 | C113: 2589 | D113: 4130 | F113: 0 | G113: 30 | H113: 55 | I113: + | J113: 77 | K113: 1 | L113: 10 | M113: 77 | N113: 6.21 | P113: 0.84 | R113: 0.54 | X113: K0IV | Y113: 112 | Z113: 00:30:55 | AA113: +77:01:10.00 | AB113: 0.337 | AC113: -0.038 | AD113: 6.21 | AE113: K0IV
A114: 113 | C114: 2626 | D114: 21457 | F114: 0 | G114: 30 | H114: 19.9 | I114: + | J114: 59 | K114: 58 | L114: 38 | M114: 59 | N114: 5.94 | P114: 0.01 | R114: -0.36 | X114: B9IIIn | Y114: 113 | Z114: 00:30:19.900 | AA114: +59:58:38.00 | AB114: 0.017 | AC114: -0.012 | AD114: 5.94 | AE114: B9III
A115: 114 | B115: 28 And | C115: 2628 | D115: 74041 | E115: GN And | F115: 0 | G115: 30 | H115: 7.3 | I115: + | J115: 29 | K115: 45 | L115: 6 | M115: 29 | N115: 5.23 | P115: 0.24 | R115: 0.09 | X115: A7III | Y115: 114 | Z115: 00:30:07.300 | AA115: +29:45:06.00 | AB115: 0.041 | AC115: -0.054 | AD115: 5.23 | AE115: A7III
A116: 115 | C116: 2630 | D116: 147307 | F116: 0 | G116: 29 | H116: 51.9 | I116: - | J116: 14 | K116: 51 | L116: 51 | M116: -14 | N116: 6.14 | P116: 0.37 | X116: F2III | Y116: 115 | Z116: 00:29:51.900 | AA116: -14:51:51.00 | AB116: 0.144 | AC116: -0.032 | AD116: 6.14 | AE116: F2III
A117: 116 | C117: 2632 | D117: 192567 | F117: 0 | G117: 29 | H117: 48.9 | I117: - | J117: 32 | K117: 7 | L117: 0 | M117: -32 | N117: 6.57 | P117: 1.34 | X117: K4III | Y117: 116 | Z117: 00:29:48.900 | AA117: -32:07:00.00 | AB117: -0.004 | AC117: -0.054 | AD117: 6.57 | AE117: K4III
A118: 117 | B118: 12 Cet | C118: 2637 | D118: 128791 | F118: 0 | G118: 30 | H118: 2.4 | I118: - | J118: 3 | K118: 57 | L118: 26 | M118: -3 | N118: 5.72 | P118: 1.56 | R118: 1.91 | X118: M0III | Y118: 117 | Z118: 00:30:02.400 | AA118: -03:57:26.00 | AB118: 0.011 | AC118: -0.012 | AD118: 5.72 | AE118: M0III
A119: 118 | C119: 2696 | D119: 166318 | F119: 0 | G119: 30 | H119: 22.7 | I119: - | J119: 23 | K119: 47 | L119: 16 | M119: -23 | N119: 5.19 | P119: 0.12 | X119: A5Vn | Y119: 118 | Z119: 00:30:22.700 | AA119: -23:47:16.00 | AB119: -0.024 | AC119: 0.013 | AD119: 5.19 | AE119: A5Vn
A120: 119 | C120: 2724 | D120: 215120 | E120: BB Phe | F120: 0 | G120: 30 | H120: 27.8 | I120: - | J120: 40 | K120: 56 | L120: 22 | M120: -40 | N120: 6.19 | P120: 0.33 | R120: 0.14 | X120: F2III | Y120: 119 | Z120: 00:30:27.800 | AA120: -40:56:22.00 | AB120: -0.001 | AC120: 0.021 | AD120: 6.19 | AE120: F2III
A121: 120 | C121: 2726 | D121: 215119 | F121: 0 | G121: 30 | H121: 26.1 | I121: - | J121: 48 | K121: 12 | L121: 54 | M121: -48 | N121: 5.69 | P121: 0.35 | R121: 0.05 | X121: F2V | Y121: 120 | Z121: 00:30:26.100 | AA121: -48:12:54.00 | AB121: 0.129 | AC121: -0.088 | AD121: 5.69 | AE121: F2V
A122: 121 | B122: 13 Cas | C122: 2729 | D122: 11243 | F122: 0 | G122: 31 | H122: 25.3 | I122: + | J122: 66 | K122: 31 | L122: 10 | M122: 66 | N122: 6.18 | P122: -0.1 | R122: -0.47 | X122: B6V | Y122: 121 | Z122: 00:31:25.300 | AA122: +66:31:10.00 | AB122: 0.023 | AC122: -0.006 | AD122: 6.18 | AE122: B6V
A123: 122 | C123: 2767 | D123: 53956 | F123: 0 | G123: 31 | H123: 25.6 | I123: + | J123: 33 | K123: 34 | L123: 54 | M123: 33 | N123: 5.87 | P123: 1.14 | X123: K1III | Y123: 122 | Z123: 00:31:25.600 | AA123: +33:34:54.00 | AB123: 0.047 | AC123: -0.019 | AD123: 5.87 | AE123: K1III
A124: 123 | B124: 14Lam Cas | C124: 2772 | D124: 21489 | F124: 0 | G124: 31 | H124: 46.4 | I124: + | J124: 54 | K124: 31 | L124: 20 | M124: 54 | N124: 4.73 | P124: -0.1 | R124: -0.35 | T124: -0.12 | X124: B8Vn | Y124: 123 | Z124: 00:31:46.400 | AA124: +54:31:20.00 | AB124: 0.045 | AC124: -0.01 | AD124: 4.73 | AE124: B8Vn
A125: 124 | C125: 2774 | D125: 21486 | F125: 0 | G125: 31 | H125: 41.2 | I125: + | J125: 52 | K125: 50 | L125: 22 | M125: 52 | N125: 5.6 | P125: 1.15 | R125: 1.13 | X125: K2III | Y125: 124 | Z125: 00:31:41.200 | AA125: +52:50:22.00 | AB125: -0.053 | AC125: -0.019 | AD125: 5.6 | AE125: K2III
A126: 125 | B126: Lam1Phe | C126: 2834 | D126: 215131 | F126: 0 | G126: 31 | H126: 25 | I126: - | J126: 48 | K126: 48 | L126: 13 | M126: -48 | N126: 4.77 | P126: 0.02 | R126: 0.04 | X126: A0V | Y126: 125 | Z126: 00:31:25 | AA126: -48:48:13.00 | AB126: 0.143 | AC126: 0.017 | AD126: 4.77 | AE126: A0V
A127: 126 | B127: Bet1Tuc | C127: 2884 | D127: 248201 | F127: 0 | G127: 31 | H127: 32.7 | I127: - | J127: 62 | K127: 57 | L127: 29 | M127: -62 | N127: 4.37 | P127: -0.07 | R127: -0.17 | T127: -0.07 | X127: B9V | Y127: 126 | Z127: 00:31:32.700 | AA127: -62:57:29.00 | AB127: 0.09 | AC127: -0.054 | AD127: 4.37 | AE127: B9V
A128: 127 | B128: Bet2Tuc | C128: 2885 | D128: 248202 | F128: 0 | G128: 31 | H128: 33.6 | I128: - | J128: 62 | K128: 57 | L128: 57 | M128: -62 | N128: 4.54 | P128: 0.15 | R128: 0.03 | T128: 0.08 | X128: A2V+A7V | Y128: 127 | Z128: 00:31:33.600 | AA128: -62:57:57.00 | AB128: 0.101 | AC128: -0.056 | AD128: 4.54 | AE128: A2V+A | AF128: *
A129: 128 | C129: 2888 | D129: 36453 | F129: 0 | G129: 32 | H129: 26.8 | I129: + | J129: 43 | K129: 29 | L129: 41 | M129: 43 | N129: 6.7 | P129: -0.01 | R129: -0.2 | X129: A1Vn | Y129: 128 | Z129: 00:32:26.800 | AA129: +43:29:41.00 | AB129: 0.018 | AC129: -0.01 | AD129: 6.7 | AE129: A1Vn
A130: 129 | C130: 2904 | D130: 4142 | F130: 0 | G130: 33 | H130: 19.3 | I130: + | J130: 70 | K130: 58 | L130: 54 | M130: 70 | N130: 6.42 | P130: -0.01 | R130: -0.06 | X130: A0Vn | Y130: 129 | Z130: 00:33:19.300 | AA130: +70:58:54.00 | AB130: 0.028 | AC130: -0.004 | AD130: 6.42 | AE130: A0Vn
A131: 130 | B131: 15Kap Cas | C131: 2905 | D131: 11256 | E131: Kap Cas | F131: 0 | G131: 33 | H131: 0 | I131: + | J131: 62 | K131: 55 | L131: 54 | M131: 62 | N131: 4.16 | P131: 0.14 | R131: -0.8 | T131: 0.06 | X131: B1Ia | Y131: 130 | Z131: 00:33:00 | AA131: +62:55:54.00 | AB131: 0.003 | AC131: -0.003 | AD131: 4.16 | AE131: B1Ia
A132: 131 | B132: 52 Psc | C132: 2910 | D132: 74084 | F132: 0 | G132: 32 | H132: 35.5 | I132: + | J132: 20 | K132: 17 | L132: 40 | M132: 20 | N132: 5.38 | P132: 1.08 | R132: 0.96 | X132: K0III | Y132: 131 | Z132: 00:32:35.500 | AA132: +20:17:40.00 | AB132: 0.135 | AC132: -0.047 | AD132: 5.38 | AE132: K0III
A133: 132 | B133: 51 Psc | C133: 2913 | D133: 109262 | E133: Var? | F133: 0 | G133: 32 | H133: 23.8 | I133: + | J133: 6 | K133: 57 | L133: 20 | M133: 6 | N133: 5.67 | P133: 0 | R133: -0.17 | X133: B9.5V | Y133: 132 | Z133: 00:32:23.800 | AA133: +06:57:20.00 | AB133: 0.035 | AC133: 0.002 | AD133: 5.67 | AE133: B9.5V
A134: 133 | C134: 2924 | D134: 74083 | F134: 0 | G134: 32 | H134: 34.5 | I134: + | J134: 27 | K134: 34 | L134: 50 | M134: 27 | N134: 6.67 | X134: A2IV | Y134: 133 | Z134: 00:32:34.500 | AA134: +27:34:50.00 | AB134: -0.017 | AC134: -0.015 | AD134: 6.67 | AE134: A2IV
A135: 134 | C135: 2942 | D135: 74090 | F135: 0 | G135: 32 | H135: 49.1 | I135: + | J135: 28 | K135: 16 | L135: 49 | M135: 28 | N135: 6.3 | P135: 1 | R135: 0.73 | X135: K0III | Y135: 134 | Z135: 00:32:49.100 | AA135: +28:16:49.00 | AB135: -0.006 | AC135: 0.007 | AD135: 6.3 | AE135: K0III
A136: 135 | C136: 2952 | D136: 21512 | F136: 0 | G136: 33 | H136: 10.4 | I136: + | J136: 54 | K136: 53 | L136: 42 | M136: 54 | N136: 5.93 | P136: 1.04 | R136: 0.84 | X136: K0III | Y136: 135 | Z136: 00:33:10.400 | AA136: +54:53:42.00 | AB136: 0.071 | AC136: -0.042 | AD136: 5.93 | AE136: K0III
A137: 136 | B137: Bet3Tuc | C137: 3003 | D137: 248208 | F137: 0 | G137: 32 | H137: 43.8 | I137: - | J137: 63 | K137: 1 | L137: 52 | M137: -63 | N137: 5.09 | P137: 0.04 | R137: 0.02 | X137: A0V | Y137: 136 | Z137: 00:32:43.800 | AA137: -63:01:52.00 | AB137: 0.081 | AC137: -0.038 | AD137: 5.09 | AE137: A0V
A138: 137 | B138: 16 Cas | C138: 3038 | D138: 11265 | F138: 0 | G138: 34 | H138: 24.9 | I138: + | J138: 66 | K138: 45 | L138: 1 | M138: 66 | N138: 6.48 | P138: -0.08 | R138: -0.32 | X138: B9III | Y138: 137 | Z138: 00:34:24.900 | AA138: +66:45:01.00 | AB138: 0.021 | AC138: 0 | AD138: 6.48 | AE138: B9III
A139: 138 | C139: 3059 | D139: 166367 | F139: 0 | G139: 33 | H139: 41.1 | I139: - | J139: 29 | K139: 33 | L139: 30 | M139: -29 | N139: 5.55 | P139: 1.27 | R139: 1.23 | X139: K2III | Y139: 138 | Z139: 00:33:41.100 | AA139: -29:33:30.00 | AB139: -0.026 | AC139: -0.03 | AD139: 5.55 | AE139: K2III
A140: 139 | B140: The Tuc | C140: 3112 | D140: 255679 | E140: The Tuc | F140: 0 | G140: 33 | H140: 23.3 | I140: - | J140: 71 | K140: 15 | L140: 58 | M140: -71 | N140: 6.13 | P140: 0.23 | R140: 0.2 | X140: A7IV | Y140: 139 | Z140: 00:33:23.300 | AA140: -71:15:58.00 | AB140: 0.067 | AC140: -0.012 | AD140: 6.13 | AE140: A7IV
A141: 140 | C141: 3158 | D141: 232091 | F141: 0 | G141: 34 | H141: 27.8 | I141: - | J141: 52 | K141: 22 | L141: 23 | M141: -52 | N141: 5.57 | P141: 0.47 | R141: 0 | X141: F3IV-V | Y141: 140 | Z141: 00:34:27.800 | AA141: -52:22:23.00 | AB141: 0.23 | AC141: 0.032 | AD141: 5.57 | AE141: F3IV-
A142: 141 | C142: 3166 | D142: 91980 | F142: 0 | G142: 34 | H142: 55.3 | I142: + | J142: 13 | K142: 22 | L142: 16 | M142: 13 | N142: 6.4 | X142: K0 | Y142: 141 | Z142: 00:34:55.300 | AA142: +13:22:16.00 | AB142: -0.09 | AC142: -0.057 | AD142: 6.4 | AE142: K0
A143: 142 | B143: 13 Cet | C143: 3196 | D143: 128839 | E143: 212 | F143: 0 | G143: 35 | H143: 14.9 | I143: - | J143: 3 | K143: 35 | L143: 34 | M143: -3 | N143: 5.2 | P143: 0.56 | R143: 0.08 | X143: F8V | Y143: 142 | Z143: 00:35:14.900 | AA143: -03:35:34.00 | AB143: 0.413 | AC143: -0.026 | AD143: 5.2 | AE143: F8V
A144: 143 | B144: 14 Cet | C144: 3229 | D144: 128843 | F144: 0 | G144: 35 | H144: 32.8 | I144: - | J144: 0 | K144: 30 | L144: 20 | M144: 0 | N144: 5.93 | P144: 0.44 | R144: -0.02 | X144: F5IV | Y144: 143 | Z144: 00:35:32.800 | AA144: -00:30:20.00 | AB144: 0.146 | AC144: -0.066 | AD144: 5.93 | AE144: F5IV
A145: 144 | C145: 3240 | D145: 21551 | F145: 0 | G145: 36 | H145: 8.3 | I145: + | J145: 54 | K145: 10 | L145: 7 | M145: 54 | N145: 5.08 | P145: -0.11 | R145: -0.36 | X145: B7III | Y145: 144 | Z145: 00:36:08.300 | AA145: +54:10:07.00 | AB145: 0.022 | AC145: 0 | AD145: 5.08 | AE145: B7III
A146: 145 | C146: 3268 | D146: 91990 | F146: 0 | G146: 35 | H146: 54.7 | I146: + | J146: 13 | K146: 12 | L146: 24 | M146: 13 | N146: 6.41 | P146: 0.52 | R146: -0.05 | X146: F7V | Y146: 145 | Z146: 00:35:54.700 | AA146: +13:12:24.00 | AB146: -0.143 | AC146: -0.189 | AD146: 6.41 | AE146: F7V
A147: 146 | C147: 3283 | D147: 11291 | F147: 0 | G147: 36 | H147: 27.3 | I147: + | J147: 60 | K147: 19 | L147: 34 | M147: 60 | N147: 5.79 | P147: 0.29 | R147: 0.29 | X147: A4III | Y147: 146 | Z147: 00:36:27.300 | AA147: +60:19:34.00 | AB147: -0.001 | AC147: -0.003 | AD147: 5.79 | AE147: A4III
A148: 147 | B148: Lam2Phe | C148: 3302 | D148: 215157 | F148: 0 | G148: 35 | H148: 41.1 | I148: - | J148: 48 | K148: 0 | L148: 3 | M148: -48 | N148: 5.51 | P148: 0.44 | R148: -0.01 | X148: F6V | Y148: 147 | Z148: 00:35:41.100 | AA148: -48:00:03.00 | AB148: 0.045 | AC148: -0.104 | AD148: 5.51 | AE148: F6V
A149: 148 | C149: 3303 | D149: 232099 | E149: 219 | F149: 0 | G149: 35 | H149: 33.4 | I149: - | J149: 54 | K149: 49 | L149: 19 | M149: -54 | N149: 6.06 | P149: 1.01 | X149: K0IV | Y149: 148 | Z149: 00:35:33.400 | AA149: -54:49:19.00 | AB149: 0.027 | AC149: -0.054 | AD149: 6.06 | AE149: K0IV
A150: 149 | C150: 3322 | D150: 74136 | E150: 221 | F150: 0 | G150: 36 | H150: 20 | I150: + | J150: 27 | K150: 15 | L150: 17 | M150: 27 | N150: 6.5 | P150: -0.09 | R150: -0.39 | X150: B8IIIpHgMn: | Y150: 149 | Z150: 00:36:20 | AA150: +27:15:17.00 | AB150: 0.011 | AC150: -0.016 | AD150: 6.5 | AE150: B8III | AF150: *
A151: 150 | C151: 3325 | D151: 147360 | F151: 0 | G151: 36 | H151: 3 | I151: - | J151: 14 | K151: 58 | L151: 25 | M151: -14 | N151: 6.45 | P151: 1.06 | R151: 0.91 | X151: G9III | Y151: 150 | Z151: 00:36:03 | AA151: -14:58:25.00 | AB151: -0.083 | AC151: -0.079 | AD151: 6.45 | AE151: G9III
A152: 151 | C152: 3326 | D152: 166400 | E152: BG Cet | F152: 0 | G152: 36 | H152: 6.9 | I152: - | J152: 22 | K152: 50 | L152: 33 | M152: -22 | N152: 6.06 | P152: 0.29 | X152: A6pSr | Y152: 151 | Z152: 00:36:06.900 | AA152: -22:50:33.00 | AB152: -0.072 | AC152: -0.052 | AD152: 6.06 | AE152: A6pSr
A153: 152 | C153: 3346 | D153: 36509 | F153: 0 | G153: 36 | H153: 46.6 | I153: + | J153: 44 | K153: 29 | L153: 19 | M153: 44 | N153: 5.13 | P153: 1.6 | R153: 1.97 | X153: K5-M0III | Y153: 152 | Z153: 00:36:46.600 | AA153: +44:29:19.00 | AB153: -0.023 | AC153: 0.033 | AD153: 5.13 | AE153: K5-M0 | AF153: *
A154: 153 | B154: 17Zet Cas | C154: 3360 | D154: 21566 | E154: 225 | F154: 0 | G154: 36 | H154: 58.3 | I154: + | J154: 53 | K154: 53 | L154: 49 | M154: 53 | N154: 3.66 | P154: -0.2 | R154: -0.87 | T154: -0.21 | X154: B2IV | Y154: 153 | Z154: 00:36:58.300 | AA154: +53:53:49.00 | AB154: 0.019 | AC154: -0.009 | AD154: 3.66 | AE154: B2IV
A155: 154 | B155: 29Pi And | C155: 3369 | D155: 54033 | E155: 227 | F155: 0 | G155: 36 | H155: 52.9 | I155: + | J155: 33 | K155: 43 | L155: 10 | M155: 33 | N155: 4.36 | P155: -0.14 | R155: -0.55 | T155: -0.12 | X155: B5V | Y155: 154 | Z155: 00:36:52.900 | AA155: +33:43:10.00 | AB155: 0.015 | AC155: -0.004 | AD155: 4.36 | AE155: B5V
A156: 155 | B156: 53 Psc | C156: 3379 | D156: 91995 | E156: AG Psc | F156: 0 | G156: 36 | H156: 47.3 | I156: + | J156: 15 | K156: 13 | L156: 54 | M156: 15 | N156: 5.89 | P156: -0.15 | R156: -0.66 | X156: B2.5IV | Y156: 155 | Z156: 00:36:47.300 | AA156: +15:13:54.00 | AB156: 0.002 | AC156: -0.015 | AD156: 5.89 | AE156: B2.5I
A157: 156 | C157: 3411 | D157: 74148 | F157: 0 | G157: 37 | H157: 7.2 | I157: + | J157: 24 | K157: 0 | L157: 51 | M157: 24 | N157: 6.47 | O157: R | X157: K2III | Y157: 156 | Z157: 00:37:07.200 | AA157: +24:00:51.00 | AB157: -0.014 | AC157: -0.044 | AD157: 6.47 | AE157: K2III
A158: 157 | C158: 3421 | D158: 54038 | F158: 0 | G158: 37 | H158: 21.1 | I158: + | J158: 35 | K158: 23 | L158: 58 | M158: 35 | N158: 5.48 | P158: 0.88 | R158: 0.48 | X158: G2.5IIa | Y158: 157 | Z158: 00:37:21.100 | AA158: +35:23:58.00 | AB158: -0.016 | AC158: -0.005 | AD158: 5.48 | AE158: G2.5I | AF158: *
A159: 158 | C159: 3440 | D159: 106 | E159: 235 | F159: 0 | G159: 39 | H159: 47.3 | I159: + | J159: 82 | K159: 29 | L159: 38 | M159: 82 | N159: 6.4 | P159: 0.55 | R159: -0.01 | W159: d | X159: F6 | Y159: 158 | Z159: 00:39:47.300 | AA159: +82:29:38.00 | AB159: -0.111 | AC159: 0.078 | AD159: 6.4 | AE159: dF6
A160: 159 | C160: 3443 | D160: 166418 | F160: 0 | G160: 37 | H160: 20.7 | I160: - | J160: 24 | K160: 46 | L160: 2 | M160: -24 | N160: 5.57 | P160: 0.72 | R160: 0.24 | T160: 0.27 | U160: E | X160: G8V | Y160: 159 | Z160: 00:37:20.700 | AA160: -24:46:02.00 | AB160: 1.39 | AC160: -0.012 | AD160: 5.57 | AE160: G8V
A161: 160 | C161: 3444 | D161: 248225 | F161: 0 | G161: 36 | H161: 37.4 | I161: - | J161: 65 | K161: 7 | L161: 29 | M161: -65 | N161: 6.42 | P161: 1.26 | R161: 1.38 | X161: K2-3III | Y161: 160 | Z161: 00:36:37.400 | AA161: -65:07:29.00 | AB161: 0.029 | AC161: -0.02 | AD161: 6.42 | AE161: K2-3I | AF161: *
A162: 161 | C162: 3457 | D162: 109315 | F162: 0 | G162: 37 | H162: 30.5 | I162: + | J162: 3 | K162: 8 | L162: 7 | M162: 3 | N162: 6.39 | P162: 1.33 | R162: 1.52 | T162: 0.54 | U162: E | X162: K4III | Y162: 161 | Z162: 00:37:30.500 | AA162: +03:08:07.00 | AB162: 0.095 | AC162: -0.061 | AD162: 6.39 | AE162: K4III
A163: 162 | C163: 3488 | D163: 232114 | F163: 0 | G163: 37 | H163: 18.1 | I163: - | J163: 54 | K163: 23 | L163: 39 | M163: -54 | N163: 6.41 | P163: 1 | X163: K0II-IIICNIV | Y163: 162 | Z163: 00:37:18.100 | AA163: -54:23:39.00 | AB163: 0.056 | AC163: -0.021 | AD163: 6.41 | AE163: K0II- | AF163: *
A164: 163 | B164: 30Eps And | C164: 3546 | D164: 74164 | F164: 0 | G164: 38 | H164: 33.3 | I164: + | J164: 29 | K164: 18 | L164: 42 | M164: 29 | N164: 4.37 | P164: 0.87 | R164: 0.47 | T164: 0.51 | X164: G6IIIFe-3CH1 | Y164: 163 | Z164: 00:38:33.300 | AA164: +29:18:42.00 | AB164: -0.227 | AC164: -0.254 | AD164: 4.37 | AE164: G6III | AF164: *
A165: 164 | C165: 3574 | D165: 36550 | F165: 0 | G165: 39 | H165: 9.9 | I165: + | J165: 49 | K165: 21 | L165: 16 | M165: 49 | N165: 5.43 | P165: 1.64 | X165: K7III | Y165: 164 | Z165: 00:39:09.900 | AA165: +49:21:16.00 | AB165: 0.008 | AC165: -0.011 | AD165: 5.43 | AE165: K7III
A166: 165 | B166: 31Del And | C166: 3627 | D166: 54058 | F166: 0 | G166: 39 | H166: 19.7 | I166: + | J166: 30 | K166: 51 | L166: 39 | M166: 30 | N166: 3.27 | P166: 1.28 | R166: 1.48 | T166: 0.66 | X166: K3III | Y166: 165 | Z166: 00:39:19.700 | AA166: +30:51:39.00 | AB166: 0.136 | AC166: -0.091 | AD166: 3.27 | AE166: K3III
A167: 166 | B167: 54 Psc | C167: 3651 | D167: 74175 | E167: 245 | F167: 0 | G167: 39 | H167: 21.8 | I167: + | J167: 21 | K167: 15 | L167: 2 | M167: 21 | N167: 5.87 | P167: 0.85 | R167: 0.57 | T167: 0.39 | X167: K0+V | Y167: 166 | Z167: 00:39:21.800 | AA167: +21:15:02.00 | AB167: -0.464 | AC167: -0.37 | AD167: 5.87 | AE167: K0+V
A168: 167 | B168: 55 Psc | C168: 3690 | D168: 74182 | F168: 0 | G168: 39 | H168: 55.6 | I168: + | J168: 21 | K168: 26 | L168: 18 | M168: 21 | N168: 5.36 | P168: 1.16 | R168: 1.05 | X168: K0III+F3V | Y168: 167 | Z168: 00:39:55.600 | AA168: +21:26:18.00 | AB168: 0.028 | AC168: -0.035 | AD168: 5.36 | AE168: K0III | AF168: *
A169: 168 | B169: 18Alp Cas | C169: 3712 | D169: 21609 | E169: Alp Cas | F169: 0 | G169: 40 | H169: 30.5 | I169: + | J169: 56 | K169: 32 | L169: 14 | M169: 56 | N169: 2.23 | P169: 1.17 | R169: 1.13 | T169: 0.6 | X169: K0IIIa | Y169: 168 | Z169: 00:40:30.500 | AA169: +56:32:14.00 | AB169: 0.053 | AC169: -0.032 | AD169: 2.23 | AE169: K0III
A170: 169 | C170: 3719 | D170: 255690 | F170: 0 | G170: 38 | H170: 40.8 | I170: - | J170: 73 | K170: 8 | L170: 14 | M170: -73 | N170: 6.85 | P170: 0.11 | R170: 0.12 | T170: 0.06 | U170: C | X170: A1m | Y170: 169 | Z170: 00:38:40.800 | AA170: -73:08:14.00 | AB170: -0.017 | AC170: 0.02 | AD170: 6.85 | AE170: A1m
A171: 170 | C171: 3735 | D171: 192663 | E171: Z Scl | F171: 0 | G171: 39 | H171: 57.9 | I171: - | J171: 33 | K171: 57 | L171: 42 | M171: -33 | N171: 6.69 | P171: 0.51 | R171: -0.03 | X171: F8V | Y171: 170 | Z171: 00:39:57.900 | AA171: -33:57:42.00 | AB171: 0.333 | AC171: -0.116 | AD171: 6.69 | AE171: F8V
A172: 171 | C172: 3750 | D172: 215185 | F172: 0 | G172: 39 | H172: 52 | I172: - | J172: 44 | K172: 47 | L172: 48 | M172: -44 | N172: 6.01 | P172: 1.14 | R172: 1.09 | X172: K1IIICNII | Y172: 171 | Z172: 00:39:52 | AA172: -44:47:48.00 | AB172: 0.045 | AC172: 0 | AD172: 6.01 | AE172: K1III | AF172: *
A173: 172 | C173: 3794 | D173: 147395 | F173: 0 | G173: 40 | H173: 28.6 | I173: - | J173: 16 | K173: 31 | L173: 1 | M173: -16 | N173: 6.49 | P173: 0.92 | R173: 0.53 | X173: G5 | Y173: 172 | Z173: 00:40:28.600 | AA173: -16:31:01.00 | AB173: 0.037 | AC173: -0.04 | AD173: 6.49 | AE173: G5
A174: 173 | C174: 3795 | D174: 166475 | F174: 0 | G174: 40 | H174: 32.9 | I174: - | J174: 23 | K174: 48 | L174: 16 | M174: -23 | N174: 6.14 | P174: 0.7 | R174: 0.21 | X174: G3V | Y174: 173 | Z174: 00:40:32.900 | AA174: -23:48:16.00 | AB174: 0.644 | AC174: -0.333 | AD174: 6.14 | AE174: G3V
A175: 174 | C175: 3807 | D175: 128891 | F175: 0 | G175: 40 | H175: 42.4 | I175: - | J175: 4 | K175: 21 | L175: 7 | M175: -4 | N175: 5.91 | P175: 1.1 | R175: 0.89 | X175: K0III | Y175: 174 | Z175: 00:40:42.400 | AA175: -04:21:07.00 | AB175: -0.013 | AC175: -0.013 | AD175: 5.91 | AE175: K0III
A176: 175 | B176: 32 And | C176: 3817 | D176: 54079 | F176: 0 | G176: 41 | H176: 7.2 | I176: + | J176: 39 | K176: 27 | L176: 31 | M176: 39 | N176: 5.33 | P176: 0.89 | R176: 0.6 | T176: 0.46 | X176: G8III | Y176: 175 | Z176: 00:41:07.200 | AA176: +39:27:31.00 | AB176: -0.01 | AC176: -0.007 | AD176: 5.33 | AE176: G8III
A177: 176 | C177: 3823 | D177: 232143 | F177: 0 | G177: 40 | H177: 26.4 | I177: - | J177: 59 | K177: 27 | L177: 16 | M177: -59 | N177: 5.89 | P177: 0.55 | R177: 0.01 | X177: G1V | Y177: 176 | Z177: 00:40:26.400 | AA177: -59:27:16.00 | AB177: 0.889 | AC177: 0.448 | AD177: 5.89 | AE177: G1V
A178: 177 | C178: 3856 | D178: 11336 | F178: 0 | G178: 42 | H178: 3.4 | I178: + | J178: 66 | K178: 8 | L178: 51 | M178: 66 | N178: 5.83 | P178: 1.04 | R178: 0.87 | X178: G9III-IV | Y178: 177 | Z178: 00:42:03.400 | AA178: +66:08:51.00 | AB178: -0.013 | AC178: -0.009 | AD178: 5.83 | AE178: G9III | AF178: *
A179: 178 | C179: 3883 | D179: 74200 | E179: 258 | F179: 0 | G179: 41 | H179: 36 | I179: + | J179: 24 | K179: 37 | L179: 45 | M179: 24 | N179: 6.04 | P179: 0.26 | R179: 0.22 | T179: 0.11 | X179: A7m | Y179: 178 | Z179: 00:41:36 | AA179: +24:37:45.00 | AB179: 0.107 | AC179: -0.016 | AD179: 6.04 | AE179: A7m
A180: 179 | B180: 19Xi Cas | C180: 3901 | D180: 21637 | E180: 260 | F180: 0 | G180: 42 | H180: 3.9 | I180: + | J180: 50 | K180: 30 | L180: 45 | M180: 50 | N180: 4.8 | P180: -0.11 | R180: -0.63 | T180: -0.12 | X180: B2V | Y180: 179 | Z180: 00:42:03.900 | AA180: +50:30:45.00 | AB180: 0.015 | AC180: -0.005 | AD180: 4.8 | AE180: B2V
A181: 180 | B181: Mu Phe | C181: 3919 | D181: 215194 | F181: 0 | G181: 41 | H181: 19.6 | I181: - | J181: 46 | K181: 5 | L181: 6 | M181: -46 | N181: 4.59 | P181: 0.97 | R181: 0.72 | T181: 0.52 | X181: G8III | Y181: 180 | Z181: 00:41:19.600 | AA181: -46:05:06.00 | AB181: -0.014 | AC181: -0.002 | AD181: 4.59 | AE181: G8III
A182: 181 | C182: 3924 | D182: 21642 | F182: 0 | G182: 42 | H182: 31.1 | I182: + | J182: 58 | K182: 45 | L182: 12 | M182: 58 | N182: 6.17 | P182: -0.01 | R182: -0.11 | X182: B9.5III | Y182: 181 | Z182: 00:42:31.100 | AA182: +58:45:12.00 | AB182: 0.036 | AC182: -0.007 | AD182: 6.17 | AE182: B9.5I | AF182: *
A183: 182 | B183: M 31 And | E183: S And | Y183: 182 | Z183: 00:00:00 | AA183: +00:00:00.00 | AB183: 0 | AC183: 0 | AD183: ????
A184: 183 | B184: Xi Phe | C184: 3980 | D184: 232152 | E184: Xi Phe | F184: 0 | G184: 41 | H184: 46.4 | I184: - | J184: 56 | K184: 30 | L184: 6 | M184: -56 | N184: 5.7 | P184: 0.2 | X184: ApSrEuCr | Y184: 183 | Z184: 00:41:46.400 | AA184: -56:30:06.00 | AB184: 0.085 | AC184: 0.044 | AD184: 5.7 | AE184: ApSrE | AF184: *
A185: 184 | B185: 20Pi Cas | C185: 4058 | D185: 36602 | E185: 268 | F185: 0 | G185: 43 | H185: 28.1 | I185: + | J185: 47 | K185: 1 | L185: 29 | M185: 47 | N185: 4.94 | P185: 0.18 | R185: 0.09 | X185: A5V | Y185: 184 | Z185: 00:43:28.100 | AA185: +47:01:29.00 | AB185: -0.02 | AC185: -0.034 | AD185: 4.94 | AE185: A5V
A186: 185 | B186: Lam1Scl | C186: 4065 | D186: 192690 | F186: 0 | G186: 42 | H186: 42.9 | I186: - | J186: 38 | K186: 27 | L186: 48 | M186: -38 | N186: 6.06 | P186: -0.03 | R186: -0.13 | X186: A0V | Y186: 185 | Z186: 00:42:42.900 | AA186: -38:27:48.00 | AB186: 0.003 | AC186: -0.005 | AD186: 6.06 | AE186: A0V
A187: 186 | C187: 4088 | D187: 248238 | F187: 0 | G187: 42 | H187: 41.8 | I187: - | J187: 60 | K187: 15 | L187: 45 | M187: -60 | N187: 5.98 | P187: 1.32 | R187: 1.45 | X187: K5III | Y187: 186 | Z187: 00:42:41.800 | AA187: -60:15:45.00 | AB187: 0.255 | AC187: -0.045 | AD187: 5.98 | AE187: K5III
A188: 187 | B188: Rho Tuc | C188: 4089 | D188: 248237 | F188: 0 | G188: 42 | H188: 28.4 | I188: - | J188: 65 | K188: 28 | L188: 5 | M188: -65 | N188: 5.39 | P188: 0.5 | R188: 0.02 | X188: F6V | Y188: 187 | Z188: 00:42:28.400 | AA188: -65:28:05.00 | AB188: 0.053 | AC188: 0.042 | AD188: 5.39 | AE188: F6V
A189: 188 | B189: 16Bet Cet | C189: 4128 | D189: 147420 | E189: 272 | F189: 0 | G189: 43 | H189: 35.4 | I189: - | J189: 17 | K189: 59 | L189: 12 | M189: -17 | N189: 2.04 | P189: 1.02 | R189: 0.87 | T189: 0.51 | X189: G9.5IIICH-1 | Y189: 188 | Z189: 00:43:35.400 | AA189: -17:59:12.00 | AB189: 0.234 | AC189: 0.033 | AD189: 2.04 | AE189: G9.5I | AF189: *
A190: 189 | C190: 4142 | D190: 36617 | F190: 0 | G190: 44 | H190: 26.4 | I190: + | J190: 47 | K190: 51 | L190: 51 | M190: 47 | N190: 5.67 | P190: -0.12 | R190: -0.56 | X190: B5V | Y190: 189 | Z190: 00:44:26.400 | AA190: +47:51:51.00 | AB190: -0.026 | AC190: 0.015 | AD190: 5.67 | AE190: B5V
A191: 190 | C191: 4145 | D191: 147422 | F191: 0 | G191: 43 | H191: 50.2 | I191: - | J191: 12 | K191: 0 | L191: 42 | M191: -12 | N191: 6.02 | P191: 1.1 | R191: 1.09 | X191: K2III-IV | Y191: 190 | Z191: 00:43:50.200 | AA191: -12:00:42.00 | AB191: 0.007 | AC191: -0.204 | AD191: 6.02 | AE191: K2III | AF191: *
A192: 191 | B192: Eta Phe | C192: 4150 | D192: 232162 | F192: 0 | G192: 43 | H192: 21.2 | I192: - | J192: 57 | K192: 27 | L192: 47 | M192: -57 | N192: 4.36 | P192: 0 | R192: -0.02 | T192: 0 | X192: A0IV | Y192: 191 | Z192: 00:43:21.200 | AA192: -57:27:47.00 | AB192: -0.006 | AC192: 0.011 | AD192: 4.36 | AE192: A0IV
A193: 192 | B193: 21 Cas | C193: 4161 | D193: 4216 | E193: YZ Cas | F193: 0 | G193: 45 | H193: 39 | I193: + | J193: 74 | K193: 59 | L193: 17 | M193: 74 | N193: 5.66 | P193: 0.05 | R193: 0.07 | X193: A2IV | Y193: 192 | Z193: 00:45:39 | AA193: +74:59:17.00 | AB193: -0.018 | AC193: -0.026 | AD193: 5.66 | AE193: A2IV
A194: 193 | B194: 22Omi Cas | C194: 4180 | D194: 36620 | E194: Omi Cas | F194: 0 | G194: 44 | H194: 43.5 | I194: + | J194: 48 | K194: 17 | L194: 4 | M194: 48 | N194: 4.54 | P194: -0.07 | R194: -0.51 | T194: -0.05 | X194: B5IIIe | Y194: 193 | Z194: 00:44:43.500 | AA194: +48:17:04.00 | AB194: 0.019 | AC194: -0.008 | AD194: 4.54 | AE194: B5III
A195: 194 | B195: 17Phi1Cet | C195: 4188 | D195: 147423 | E195: 278 | F195: 0 | G195: 44 | H195: 11.4 | I195: - | J195: 10 | K195: 36 | L195: 34 | M195: -10 | N195: 4.76 | P195: 1.01 | R195: 0.84 | T195: 0.51 | X195: K0III | Y195: 194 | Z195: 00:44:11.400 | AA195: -10:36:34.00 | AB195: -0.009 | AC195: -0.113 | AD195: 4.76 | AE195: K0III
A196: 195 | B196: Lam2Scl | C196: 4211 | D196: 192703 | F196: 0 | G196: 44 | H196: 12.1 | I196: - | J196: 38 | K196: 25 | L196: 18 | M196: -38 | N196: 5.9 | P196: 1.16 | R196: 1.18 | X196: K1III | Y196: 195 | Z196: 00:44:12.100 | AA196: -38:25:18.00 | AB196: 0.244 | AC196: 0.113 | AD196: 5.9 | AE196: K1III
A197: 196 | C197: 4222 | D197: 21677 | F197: 0 | G197: 45 | H197: 17.2 | I197: + | J197: 55 | K197: 13 | L197: 18 | M197: 55 | N197: 5.42 | P197: 0.04 | R197: 0.04 | X197: A2V s | Y197: 196 | Z197: 00:45:17.200 | AA197: +55:13:18.00 | AB197: -0.025 | AC197: 0.002 | AD197: 5.42 | AE197: A2V s
A198: 197 | C198: 4247 | D198: 166528 | F198: 0 | G198: 44 | H198: 44.4 | I198: - | J198: 22 | K198: 0 | L198: 22 | M198: -22 | N198: 5.24 | P198: 0.33 | X198: F1III-IV | Y198: 197 | Z198: 00:44:44.400 | AA198: -22:00:22.00 | AB198: -0.066 | AC198: 0.083 | AD198: 5.24 | AE198: F1III | AF198: *
A199: 198 | C199: 4293 | D199: 215221 | F199: 0 | G199: 44 | H199: 57.1 | I199: - | J199: 42 | K199: 40 | L199: 36 | M199: -42 | N199: 5.94 | P199: 0.28 | X199: F0V | Y199: 198 | Z199: 00:44:57.100 | AA199: -42:40:36.00 | AB199: -0.086 | AC199: -0.102 | AD199: 5.94 | AE199: F0V
A200: 199 | C200: 4294 | D200: 248243 | F200: 0 | G200: 44 | H200: 32.3 | I200: - | J200: 62 | K200: 29 | L200: 52 | M200: -62 | N200: 6.07 | P200: 0.44 | R200: 0.13 | X200: F5III-IV | Y200: 199 | Z200: 00:44:32.300 | AA200: -62:29:52.00 | AB200: 0.143 | AC200: -0.005 | AD200: 6.07 | AE200: F5III | AF200: *
... 2050 more rows

Sheet Data
B5: Rayon | E5: Classe
A6: 1 | B6: 5 | D6: 1 | E6: O
A7: 2 | B7: 10 | D7: 2 | E7: B
A8: 3 | B8: 15 | D8: 3 | E8: A
A9: 4 | B9: 20 | D9: 4 | E9: F
A10: 5 | B10: 30 | D10: 5 | E10: G
A11: 6 | B11: 35 | D11: 6 | E11: K
A12: 7 | B12: 40 | D12: 7 | E12: M
D13: 8 | E13: R
D14: 9 | E14: N
D15: 10 | E15: S
B16: 3
B17: =+VLOOKUP(B16,A6:B14,2,) -> 15 | E17: 3
E18: =+VLOOKUP(E17,D6:E15,2,) -> A
